Workbook

Sheet START
A1: =muni -> NW375 Moses Kotane

Sheet Instructions
D2: 2020
X4: Yes
X5: No
W7: Type of Entities Range: | X7: Parent Municipality
X8: Consolidated Information
W10: Date linked | X10: 7
W11: Date | X11: =VLOOKUP(X10,W39:X55,2) -> M07 January | Y11: 2013-08-01
W19: MTREF Range: | X19: 2008
X20: 2009
X21: 2010
X22: 2011
X23: 2012
X24: 2013
X25: 2014
X26: 2015
X27: 2016
X28: 2017
X29: 2018
X30: 2019
X31: 2020
X32: 2021
X33: 2022
W34: MTREF Linked:
W35: MTREF: | X35: 13
X36: =INDEX(X19:X33,X35,1) -> 2020
W37: Fin Year:
X38: =MTREF&"/"&RIGHT(MTREF,2)+1 -> 2020/21
V39: Date/type of report | W39: 1 | X39: M01 July
W40: 2 | X40: M02 August
W41: 3 | X41: M03 September
W42: 4 | X42: M04 October
W43: 5 | X43: M05 November
W44: 6 | X44: M06 December
W45: 7 | X45: M07 January
W46: 8 | X46: M08 February
W47: 9 | X47: M09 March
W48: 10 | X48: M10 April
W49: 11 | X49: M11 May
W50: 12 | X50: M12 June
W51: 13 | X51: Q1 First Quarter
W52: 14 | X52: Q2 Second Quarter
W53: 15 | X53: Q3 Third Quarter
W54: 16 | X54: Q4 Fourth Quarter
W55: 17 | X55: Mid-Year Assessment

Sheet Template names (hidden)
A1: Common sheet headings
A2: Head1 | B2: =HLOOKUP(MTREF,Headings,2) -> 2019/20 | C2: Prior year -1
A3: Head2 | B3: =HLOOKUP(MTREF,Headings,5) -> Budget Year 2020/21 | C3: Year of approved budget
A4: Head2A | B4: =HLOOKUP(MTREF,Headings,4) -> 2020/21 | C4: Approved budget year
A5: Head3 | B5: =HLOOKUP(MTREF,Headings,3) -> 2020/21 Medium Term Revenue & Expenditure Framework | C5: MTREF header name
A6: Head5 | B6: Audited Outcome
A7: Head5A | B7: Outcome
A8: Head5B | B8: Pre-audit outcome
A9: Head6 | B9: Original Budget
A10: Head7 | B10: Adjusted Budget
A11: Head8 | B11: Full Year Forecast
A12: Head9 | B12: =HLOOKUP(MTREF,Headings,5) -> Budget Year 2020/21 | C12: 1st year of MTREF | D12: Year1
A13: Head10 | B13: =HLOOKUP(MTREF,Headings,6) -> Budget Year +1 2021/22 | C13: 2nd year of MTREF | D13: Year2
A14: Head11 | B14: =HLOOKUP(MTREF,Headings,7) -> Budget Year +2 2022/23 | C14: 3rd year of MTREF | D14: Year3
A15: Head12 | B15: Forecast 2010/11 | D15: Year4
A16: Head13 | B16: Forecast 2011/12 | D16: Year5
A17: Head14 | B17: Forecast 2012/13 | D17: Year6
A18: Head15 | B18: Forecast 2013/14 | D18: Year7
A19: Head16 | B19: Forecast 2014/15 | D19: Year8
A20: Head17 | B20: Forecast 2015/16 | D20: Year9
A21: Head18 | B21: Forecast 2016/17 | D21: Year10
A22: Head19 | B22: Forecast 2017/18 | D22: Year11
A23: Head20 | B23: Forecast 2018/19 | D23: Year12
A24: Head21 | B24: Forecast 2019/20 | D24: Year13
A25: Head22 | B25: Forecast 2020/21 | D25: Year14
A26: Head23 | B26: Forecast 2021/22 | D26: Year15
A27: Head24 | B27: Description | D27: Desc
A28: Head25 | B28: Schedule of funding diligence | D28: fdil
A29: Head26 | B29: Vote Description | D29: VDesc
A30: Head27 | B30: Ref
A31: Head27a | B31: References
A32: Head28 | B32: Surplus/ (Deficit) for the year | D32: Result
A33: Head29 | B33: Annual target 2007/08
A34: Head30 | B34: Revised target 2007/08
A35: Head31 | B35: Quarter ended 30 September
A36: Head32 | B36: Quarter ended 31 December
A37: Head33 | B37: Quarter ended 31 March
A38: Head34 | B38: Quarter ended 30 June
A39: Head35 | B39: Variance explanation
A40: Head36 | B40: YTD Actual 31 Dec
A41: Head37 | B41: YTD Budget 31 Dec
A42: Head38 | B42: Monthly actual
A43: Head39 | B43: YearTD actual
A44: Head40 | B44: YearTD budget
A45: Head41 | B45: YTD variance
A46: Head42 | B46: Surplus/ (Deficit) for the yr/period
A47: Head43 | B47: =Head3&" Summary" -> 2020/21 Medium Term Revenue & Expenditure Framework Summary
A48: Head44 | B48: 1996 Census
A49: Head45 | B49: 2001 Census
A50: Head46 | B50: - Adjustments Budget - Month YYYY
A51: Head47 | B51: Previous target year to complete
A52: Head48 | B52: Present value
A53: Head49 | B53: Virement
A54: Head50 | B54: Other Adjusts.
A55: Head51 | B55: Accum. Funds
A56: Head52 | B56: Multi-year capital
A57: Head53 | B57: Unfore. Unavoid.
A58: Head54 | B58: Prior Adjusted
A59: Head55 | B59: Nat. or Prov. Govt
A60: Head56 | B60: Total Adjusts.
A61: Head57 | B61: =date -> M07 January
A62: Head58 | B62: Parent muni.
A63: Head59 | B63: Downward adjusts
A64: Head60 | B64: Month | C64: Report header part name | D64: =MONTH(date) -> 
A65: SFPerf1 | B65: Budgeted Financial Performance
A66: SFPerf2 | B66: Forecast Financial Performance
A67: SFPos1 | B67: Budgeted Financial Position
A68: SFPos2 | B68: Forecast Financial Position
A69: Cash1 | B69: Budget Cash Flow
A70: Cash2 | B70: Forecast Cash Flow
A71: RandM | B71: Expenditure includes repairs & maintenance of R'000
A72: Standard nomenclature
A73: Muni | B73: ='Lookup and lists'!B27 -> NW375 Moses Kotane
A74: Municipal Entities | B74: 2 | C74: Type of report: | D74: 1
A75: =IF((MuniEntities=1)*(MuniType=2),"YES","NO") -> NO | B75: Does this municipality have entities (consolidated budget and entity budgets required)? YES/NO
A76: s71 (Monthly Mayor report) schedules and charts
A77: S71sum | B77: =IF(Consolques="YES",E77,F77) -> Table C1 Monthly Budget Statement Summary | D77: Table C1 | E77: =D77&"Consolidated Monthly Budget Statement Summary" -> Table C1 Consolidated Monthly Budget Statement Summary | F77: =D77&"Monthly Budget Statement Summary" -> Table C1 Monthly Budget Statement Summary
A78: S71C | B78: Table C3 Monthly Budget Statement - Financial Performance (revenue and expenditure by municipal vote) | D78: Table C3 | E78: =D78&"Consolidated Monthly Budget Statement - Financial Performance (revenue and expenditure by municipal vote) " -> Table C3 Consolidated Monthly Budget Statement - Financial Performance (revenue and expenditure by municipal vote) | F78: =D78&"Monthly Budget Statement - Financial Performance (revenue and expenditure by municipal vote)" -> Table C3 Monthly Budget Statement - Financial Performance (revenue and expenditure by municipal vote)
A79: S71A | B79: =IF(Consolques="YES",E79,F79) -> Table C2 Monthly Budget Statement - Financial Performance (functional classification) | D79: Table C2 | E79: =D79&"Consolidated Monthly Budget Statement - Financial Performance (functional classification) " -> Table C2 Consolidated Monthly Budget Statement - Financial Performance (functional classification) | F79: =D79&"Monthly Budget Statement - Financial Performance (functional classification)" -> Table C2 Monthly Budget Statement - Financial Performance (functional classification)
A80: S71B | B80: =IF(Consolques="YES",E80,F80) -> Table C4 Monthly Budget Statement - Financial Performance (revenue and expenditure) | D80: Table C4 | E80: =D80&"Consolidated Monthly Budget Statement - Financial Performance (revenue and expenditure) " -> Table C4 Consolidated Monthly Budget Statement - Financial Performance (revenue and expenditure) | F80: =D80&"Monthly Budget Statement - Financial Performance (revenue and expenditure)" -> Table C4 Monthly Budget Statement - Financial Performance (revenue and expenditure)
A81: S71D | B81: =IF(Consolques="YES",E81,F81) -> Table C5 Monthly Budget Statement - Capital Expenditure (municipal vote, functional classification and funding) | D81: Table C5 | E81: =D81&"Consolidated Monthly Budget Statement - Capital Expenditure (municipal vote, functional classification and funding " -> Table C5 Consolidated Monthly Budget Statement - Capital Expenditure (municipal vote, functional classification and funding | F81: =D81&"Monthly Budget Statement - Capital Expenditure (municipal vote, functional classification and funding)" -> Table C5 Monthly Budget Statement - Capital Expenditure (municipal vote, functional classification and funding)
A82: S71E | B82: Table C6 Monthly Budget Statement - Financial Position | D82: Table C6 | E82: =D82&"Consolidated Monthly Budget Statement - Financial Position " -> Table C6 Consolidated Monthly Budget Statement - Financial Position | F82: =D82&"Monthly Budget Statement - Financial Position" -> Table C6 Monthly Budget Statement - Financial Position
A83: S71F | B83: Table C7 Monthly Budget Statement - Cash Flow | D83: Table C7 | E83: =D83&"Consolidated Monthly Budget Statement - Cash Flow " -> Table C7 Consolidated Monthly Budget Statement - Cash Flow | F83: =D83&"Monthly Budget Statement - Cash Flow " -> Table C7 Monthly Budget Statement - Cash Flow
A84: S71G | B84: =D84&"Material variance explanations " -> Supporting Table SC1 Material variance explanations | D84: Supporting Table SC1
A85: S71H | B85: =D85&"Monthly Budget Statement - performance indicators " -> Supporting Table SC2 Monthly Budget Statement - performance indicators | D85: Supporting Table SC2
A86: S71I | B86: =D86&"Monthly Budget Statement - aged debtors" -> Supporting Table SC3 Monthly Budget Statement - aged debtors | D86: Supporting Table SC3
A87: S71J | B87: =D87&"Monthly Budget Statement - aged creditors " -> Supporting Table SC4 Monthly Budget Statement - aged creditors | D87: Supporting Table SC4
A88: S71K | B88: =D88&"Monthly Budget Statement - investment portfolio " -> Supporting Table SC5 Monthly Budget Statement - investment portfolio | D88: Supporting Table SC5
A89: S71L | B89: =D89&"Monthly Budget Statement - transfers and grant receipts " -> Supporting Table SC6 Monthly Budget Statement - transfers and grant receipts | D89: Supporting Table SC6
A90: S71M | B90: =D90&" Monthly Budget Statement - transfers and grant expenditure " -> Supporting Table SC7(1) Monthly Budget Statement - transfers and grant expenditure | D90: Supporting Table SC7(1)
A91: S71N | B91: =D91&"Monthly Budget Statement - councillor and staff benefits " -> Supporting Table SC8 Monthly Budget Statement - councillor and staff benefits | D91: Supporting Table SC8
A92: S71O | B92: =D92&"Monthly Budget Statement - actuals and revised targets for cash receipts" -> Supporting Table SC9 Monthly Budget Statement - actuals and revised targets for cash receipts | D92: Supporting Table SC9
A93: S71P | B93: =IF(Consolques="YES",E93,F93) -> NOT REQUIRED - municipality does not have entities or this is the parent municipality's budget | D93: Supporting Table SC10 | E93: =D93&"Monthly Budget Statement - Parent Municipality Financial Performance (revenue and expenditure) " -> Supporting Table SC10 Monthly Budget Statement - Parent Municipality Financial Performance (revenue and expenditure) | F93: NOT REQUIRED - municipality does not have entities or this is the parent municipality's budget
A94: S71Q | B94: NOT REQUIRED - municipality does not have entities or this is the parent municipality's budget | D94: Supporting Table SC11 | E94: =D94&"Monthly Budget Statement - summary of municipal entities" -> Supporting Table SC11 Monthly Budget Statement - summary of municipal entities | F94: NOT REQUIRED - municipality does not have entities or this is the parent municipality's budget
A95: S71R | B95: Supporting Table SC12 Monthly Budget Statement - capital expenditure trend | D95: Supporting Table SC12 | E95: =D95&"Consolidated Monthly Budget Statement - capital expenditure trend " -> Supporting Table SC12 Consolidated Monthly Budget Statement - capital expenditure trend | F95: =D95&"Monthly Budget Statement - capital expenditure trend" -> Supporting Table SC12 Monthly Budget Statement - capital expenditure trend
A96: S71Sa | B96: Supporting Table SC13a Monthly Budget Statement - capital expenditure on new assets by asset class | D96: Supporting Table SC13a | E96: =D96&"Consolidated Monthly Budget Statement - capital expenditure on new assets by asset class" -> Supporting Table SC13a Consolidated Monthly Budget Statement - capital expenditure on new assets by asset class | F96: =D96&"Monthly Budget Statement - capital expenditure on new assets by asset class" -> Supporting Table SC13a Monthly Budget Statement - capital expenditure on new assets by asset class
A97: S71Sb | B97: Supporting Table SC13b Monthly Budget Statement - capital expenditure on renewal of existing assets by asset class | D97: Supporting Table SC13b | E97: =D97&"Consolidated Monthly Budget Statement - capital expenditure on renewal of existing assets by asset class" -> Supporting Table SC13b Consolidated Monthly Budget Statement - capital expenditure on renewal of existing assets by asset class | F97: =D97&"Monthly Budget Statement - capital expenditure on renewal of existing assets by asset class" -> Supporting Table SC13b Monthly Budget Statement - capital expenditure on renewal of existing assets by asset class
A98: S71Sc | B98: Supporting Table SC13c Monthly Budget Statement - expenditure on repairs and maintenance by asset class | D98: Supporting Table SC13c | E98: =D98&"Consolidated Monthly Budget Statement - expenditure on repairs and maintenance by asset class" -> Supporting Table SC13c Consolidated Monthly Budget Statement - expenditure on repairs and maintenance by asset class | F98: =D98&"Monthly Budget Statement - expenditure on repairs and maintenance by asset class" -> Supporting Table SC13c Monthly Budget Statement - expenditure on repairs and maintenance by asset class
A99: S71Sd | B99: Supporting Table SC13d Monthly Budget Statement - depreciation by asset class | D99: Supporting Table SC13d | E99: =D99&"Consolidated Monthly Budget Statement - depreciation by asset class" -> Supporting Table SC13d Consolidated Monthly Budget Statement - depreciation by asset class | F99: =D99&"Monthly Budget Statement - depreciation by asset class" -> Supporting Table SC13d Monthly Budget Statement - depreciation by asset class
A100: S71Se | B100: =IF(Consolques="YES",E100,F100) -> Supporting Table SC13e Monthly Budget Statement - capital expenditure on upgrading of existing assets by asset class | D100: Supporting Table SC13e | E100: =D100&"Consolidated Monthly Budget Statement - capital expenditure on upgrading of existing assets by asset class" -> Supporting Table SC13e Consolidated Monthly Budget Statement - capital expenditure on upgrading of existing assets by asset class | F100: =D100&"Monthly Budget Statement - capital expenditure on upgrading of existing assets by asset class" -> Supporting Table SC13e Monthly Budget Statement - capital expenditure on upgrading of existing assets by asset class
B101: s71 charts listing
B102: =D102&Head2A&" Capital Expenditure Monthly Trend: actual v target" -> Chart C1 2020/21 Capital Expenditure Monthly Trend: actual v target | D102: Chart C1
B103: =D103&Head2A&" Capital Expenditure: YTD actual v YTD target" -> Chart C2 2020/21 Capital Expenditure: YTD actual v YTD target | D103: Chart C2
B104: =D104&"Aged Consumer Debtors Analysis" -> Chart C3 Aged Consumer Debtors Analysis | D104: Chart C3
B105: =D105&"Consumer Debtors (total by Debtor Customer Category)" -> Chart C4 Consumer Debtors (total by Debtor Customer Category) | D105: Chart C4
B106: =D106&"Aged Creditors Analysis" -> Chart C5 Aged Creditors Analysis | D106: Chart C5
A107: S71T | B107: =D107&" Monthly Budget Statement - Expenditure against approved rollovers" -> Supporting Table SC7(2) Monthly Budget Statement - Expenditure against approved rollovers | D107: Supporting Table SC7(2)

Sheet Lookup and lists (hidden)
A1: Description | B1: 2007 | C1: 2008 | D1: 2009 | E1: 2010 | F1: 2011 | G1: 2012 | H1: 2013 | I1: 2014 | J1: 2015 | K1: 2016 | L1: 2017 | M1: 2018 | N1: 2019 | O1: 2020 | Q1: Grants: | R1: National - opex | S1: Provincial - opex | T1: National - capex | U1: Provincial - capex | V1: YESNO
A2: ='Template names'!C2 -> Prior year -1 | B2: 2006/07 | C2: 2007/08 | D2: 2008/09 | E2: =E1-1&"/"&RIGHT(E1,2)-0 -> 2009/10 | F2: =F1-1&"/"&RIGHT(F1,2)-0 -> 2010/11 | G2: 2011/12 | H2: 2012/13 | I2: 2013/14 | J2: 2014/15 | K2: 2015/16 | L2: 2016/17 | M2: 2017/18 | N2: 2018/19 | O2: 2019/20 | R2: Local Government Equitable Share | S2: Health subsidy | T2: Municipal Infrastructure Grant (MIG) | U2: Agriculture | V2: Yes
A3: ='Template names'!C5 -> MTREF header name | B3: 2007/08 Medium Term Revenue & Expenditure Framework | C3: 2008/09 Medium Term Revenue & Expenditure Framework | D3: 2009/10 Medium Term Revenue & Expenditure Framework | E3: =E1&"/"&RIGHT(E1,2)+1&" Medium Term Revenue & Expenditure Framework" -> 2010/11 Medium Term Revenue & Expenditure Framework | F3: =F1&"/"&RIGHT(F1,2)+1&" Medium Term Revenue & Expenditure Framework" -> 2011/12 Medium Term Revenue & Expenditure Framework | G3: 2012/13 Medium Term Revenue & Expenditure Framework | H3: 2013/14 Medium Term Revenue & Expenditure Framework | I3: 2014/15 Medium Term Revenue & Expenditure Framework | J3: 2015/16 Medium Term Revenue & Expenditure Framework | K3: 2016/17 Medium Term Revenue & Expenditure Framework | L3: 2017/18 Medium Term Revenue & Expenditure Framework | M3: 2018/19 Medium Term Revenue & Expenditure Framework | N3: 2019/20 Medium Term Revenue & Expenditure Framework | O3: 2020/21 Medium Term Revenue & Expenditure Framework | R3: RSC Levy Replacement | S3: Ambulance subsidy | T3: Public Transport and Systems | U3: Education | V3: No
A4: ='Template names'!C4 -> Approved budget year | B4: 2007/08 | C4: 2008/09 | D4: 2009/10 | E4: =E1&"/"&RIGHT(E1,2)+1 -> 2010/11 | F4: =F1&"/"&RIGHT(F1,2)+1 -> 2011/12 | G4: 2012/13 | H4: 2013/14 | I4: 2014/15 | J4: 2015/16 | K4: 2016/17 | L4: 2017/18 | M4: 2018/19 | N4: 2019/20 | O4: 2020/21 | R4: Finance Management | S4: Housing | T4: Rural Transport Services and Infrastructure | U4: Health
A5: ='Template names'!C12 -> 1st year of MTREF | B5: Budget Year 2007/08 | C5: Budget Year 2008/09 | D5: Budget Year 2009/10 | E5: ="Budget Year "&E1&"/"&RIGHT(E1,2)+1 -> Budget Year 2010/11 | F5: ="Budget Year "&F1&"/"&RIGHT(F1,2)+1 -> Budget Year 2011/12 | G5: Budget Year 2012/13 | H5: Budget Year 2013/14 | I5: Budget Year 2014/15 | J5: Budget Year 2015/16 | K5: Budget Year 2016/17 | L5: Budget Year 2017/18 | M5: Budget Year 2018/19 | N5: Budget Year 2019/20 | O5: Budget Year 2020/21 | R5: Municipal Systems Improvement | S5: Sport and Recreation | T5: Regional Bulk Infrastructure | U5: Housing and Local Government
A6: ='Template names'!C13 -> 2nd year of MTREF | B6: Budget Year +1 2008/09 | C6: Budget Year +1 2009/10 | D6: Budget Year +1 2010/11 | E6: ="Budget Year +1 "&E1+1&"/"&RIGHT(E1,2)+2 -> Budget Year +1 2011/12 | F6: ="Budget Year +1 "&F1+1&"/"&RIGHT(F1,2)+2 -> Budget Year +1 2012/13 | G6: Budget Year +1 2013/14 | H6: Budget Year +1 2014/15 | I6: Budget Year +1 2015/16 | J6: Budget Year +1 2016/17 | K6: Budget Year +1 2017/18 | L6: Budget Year +1 2018/19 | M6: Budget Year +1 2019/20 | N6: Budget Year +1 2020/21 | O6: Budget Year +1 2021/22 | R6: Water Services Operating Subsidy | T6: Rural Households Infrastructure | U6: Other Departments
A7: ='Template names'!C14 -> 3rd year of MTREF | B7: Budget Year +2 2009/10 | C7: Budget Year +2 2010/11 | D7: Budget Year +2 2011/12 | E7: ="Budget Year +2 "&E1+2&"/"&RIGHT(E1,2)+3 -> Budget Year +2 2012/13 | F7: ="Budget Year +2 "&F1+2&"/"&RIGHT(F1,2)+3 -> Budget Year +2 2013/14 | G7: Budget Year +2 2014/15 | H7: Budget Year +2 2015/16 | I7: Budget Year +2 2016/17 | J7: Budget Year +2 2017/18 | K7: Budget Year +2 2018/19 | L7: Budget Year +2 2019/20 | M7: Budget Year +2 2020/21 | N7: Budget Year +2 2021/22 | O7: Budget Year +2 2022/23 | R7: Energy Efficiency and Demand Management | T7: Neighbourhood Development Partnership | U7: Public Works, Roads, Transport
A8: NOTE: This sheet should not be directly amended - select headings from sheet 'S' | R8: Integrated National Electrification Programme | T8: 2010 FIFA World Cup Stadiums Development | U8: Sport and Recreation
R9: Municipal Drought Relief
R10: 2010 FIFA World Cup Operating
R11: Electricity Demand Side Management
R12: EPWP Incentive
A26: Name link | B26: 211
A27: Name of Muni | B27: =INDEX(B28:B311,B26,1) -> NW375 Moses Kotane
B28: Choose name from list | C28: Set name on 'Instructions' sheet
B29: BUF Buffalo City | C29: EC EASTERN CAPE
B30: NMA Nelson Mandela Bay | C30: EC EASTERN CAPE
B31: EC101 Dr Beyers Naude | C31: EC EASTERN CAPE
B32: EC102 Blue Crane Route | C32: EC EASTERN CAPE
B33: EC104 Makana | C33: EC EASTERN CAPE
B34: EC105 Ndlambe | C34: EC EASTERN CAPE
B35: EC106 Sundays River Valley | C35: EC EASTERN CAPE
B36: EC108 Kouga | C36: EC EASTERN CAPE
B37: EC109 Kou-Kamma | C37: EC EASTERN CAPE
B38: DC10 Sarah Baartman | C38: EC EASTERN CAPE
B39: EC121 Mbhashe | C39: EC EASTERN CAPE
B40: EC122 Mnquma | C40: EC EASTERN CAPE
B41: EC123 Great Kei | C41: EC EASTERN CAPE
B42: EC124 Amahlathi | C42: EC EASTERN CAPE
B43: EC126 Ngqushwa | C43: EC EASTERN CAPE
B44: EC129 Raymond Mhlaba | C44: EC EASTERN CAPE
B45: DC12 Amathole | C45: EC EASTERN CAPE
B46: EC131 Inxuba Yethemba | C46: EC EASTERN CAPE
B47: EC135 Intsika Yethu | C47: EC EASTERN CAPE
B48: EC136 Emalahleni (Ec) | C48: EC EASTERN CAPE
B49: EC137 Engcobo | C49: EC EASTERN CAPE
B50: EC138 Sakhisizwe | C50: EC EASTERN CAPE
B51: EC139 Enoch Mgijima | C51: EC EASTERN CAPE
B52: DC13 Chris Hani | C52: EC EASTERN CAPE
B53: EC141 Elundini | C53: EC EASTERN CAPE
B54: EC142 Senqu | C54: EC EASTERN CAPE
B55: EC145 Walter Sisulu | C55: EC EASTERN CAPE
B56: DC14 Joe Gqabi | C56: EC EASTERN CAPE
B57: EC153 Ngquza Hills | C57: EC EASTERN CAPE
B58: EC154 Port St Johns | C58: EC EASTERN CAPE
B59: EC155 Nyandeni | C59: EC EASTERN CAPE
B60: EC156 Mhlontlo | C60: EC EASTERN CAPE
B61: EC157 King Sabata Dalindyebo | C61: EC EASTERN CAPE
B62: DC15 O .R. Tambo | C62: EC EASTERN CAPE
B63: EC441 Matatiele | C63: EC EASTERN CAPE
B64: EC442 Umzimvubu | C64: EC EASTERN CAPE
B65: EC443 Mbizana | C65: EC EASTERN CAPE
B66: EC444 Ntabankulu | C66: EC EASTERN CAPE
B67: DC44 Alfred Nzo | C67: EC EASTERN CAPE
B68: MAN Mangaung | C68: FS FREE STATE
B69: FS161 Letsemeng | C69: FS FREE STATE
B70: FS162 Kopanong | C70: FS FREE STATE
B71: FS163 Mohokare | C71: FS FREE STATE
B72: DC16 Xhariep | C72: FS FREE STATE
B73: FS181 Masilonyana | C73: FS FREE STATE
B74: FS182 Tokologo | C74: FS FREE STATE
B75: FS183 Tswelopele | C75: FS FREE STATE
B76: FS184 Matjhabeng | C76: FS FREE STATE
B77: FS185 Nala | C77: FS FREE STATE
B78: DC18 Lejweleputswa | C78: FS FREE STATE
B79: FS191 Setsoto | C79: FS FREE STATE
B80: FS192 Dihlabeng | C80: FS FREE STATE
B81: FS193 Nketoana | C81: FS FREE STATE
B82: FS194 Maluti-a-Phofung | C82: FS FREE STATE
B83: FS195 Phumelela | C83: FS FREE STATE
B84: FS196 Mantsopa | C84: FS FREE STATE
B85: DC19 Thabo Mofutsanyana | C85: FS FREE STATE
B86: FS201 Moqhaka | C86: FS FREE STATE
B87: FS203 Ngwathe | C87: FS FREE STATE
B88: FS204 Metsimaholo | C88: FS FREE STATE
B89: FS205 Mafube | C89: FS FREE STATE
B90: DC20 Fezile Dabi | C90: FS FREE STATE
B91: EKU City of Ekurhuleni | C91: GT GAUTENG
B92: JHB City Of Johannesburg | C92: GT GAUTENG
B93: TSH City Of Tshwane | C93: GT GAUTENG
B94: GT421 Emfuleni | C94: GT GAUTENG
B95: GT422 Midvaal | C95: GT GAUTENG
B96: GT423 Lesedi | C96: GT GAUTENG
B97: DC42 Sedibeng | C97: GT GAUTENG
B98: GT481 Mogale City | C98: GT GAUTENG
B99: GT484 Merafong City | C99: GT GAUTENG
B100: GT485 Rand West City | C100: GT GAUTENG
B101: DC48 West Rand | C101: GT GAUTENG
B102: ETH eThekwini | C102: KZN KWAZULU-NATAL
B103: KZN212 Umdoni | C103: KZN KWAZULU-NATAL
B104: KZN213 Umzumbe | C104: KZN KWAZULU-NATAL
B105: KZN214 uMuziwabantu | C105: KZN KWAZULU-NATAL
B106: KZN216 Ray Nkonyeni | C106: KZN KWAZULU-NATAL
B107: DC21 Ugu | C107: KZN KWAZULU-NATAL
B108: KZN221 uMshwathi | C108: KZN KWAZULU-NATAL
B109: KZN222 uMngeni | C109: KZN KWAZULU-NATAL
B110: KZN223 Mpofana | C110: KZN KWAZULU-NATAL
B111: KZN224 Impendle | C111: KZN KWAZULU-NATAL
B112: KZN225 Msunduzi | C112: KZN KWAZULU-NATAL
B113: KZN226 Mkhambathini | C113: KZN KWAZULU-NATAL
B114: KZN227 Richmond | C114: KZN KWAZULU-NATAL
B115: DC22 uMgungundlovu | C115: KZN KWAZULU-NATAL
B116: KZN235 Okhahlamba | C116: KZN KWAZULU-NATAL
B117: KZN237 Inkosi Langalibalele | C117: KZN KWAZULU-NATAL
B118: KZN238 Alfred Duma | C118: KZN KWAZULU-NATAL
B119: DC23 Uthukela | C119: KZN KWAZULU-NATAL
B120: KZN241 Endumeni | C120: KZN KWAZULU-NATAL
B121: KZN242 Nquthu | C121: KZN KWAZULU-NATAL
B122: KZN244 Msinga | C122: KZN KWAZULU-NATAL
B123: KZN245 Umvoti | C123: KZN KWAZULU-NATAL
B124: DC24 Umzinyathi | C124: KZN KWAZULU-NATAL
B125: KZN252 Newcastle | C125: KZN KWAZULU-NATAL
B126: KZN253 Emadlangeni | C126: KZN KWAZULU-NATAL
B127: KZN254 Dannhauser | C127: KZN KWAZULU-NATAL
B128: DC25 Amajuba | C128: KZN KWAZULU-NATAL
B129: KZN261 eDumbe | C129: KZN KWAZULU-NATAL
B130: KZN262 uPhongolo | C130: KZN KWAZULU-NATAL
B131: KZN263 Abaqulusi | C131: KZN KWAZULU-NATAL
B132: KZN265 Nongoma | C132: KZN KWAZULU-NATAL
B133: KZN266 Ulundi | C133: KZN KWAZULU-NATAL
B134: DC26 Zululand | C134: KZN KWAZULU-NATAL
B135: KZN271 Umhlabuyalingana | C135: KZN KWAZULU-NATAL
B136: KZN272 Jozini | C136: KZN KWAZULU-NATAL
B137: KZN275 Mtubatuba | C137: KZN KWAZULU-NATAL
B138: KZN276 Hlabisa Big Five | C138: KZN KWAZULU-NATAL
B139: DC27 Umkhanyakude | C139: KZN KWAZULU-NATAL
B140: KZN281 Mfolozi | C140: KZN KWAZULU-NATAL
B141: KZN282 uMhlathuze | C141: KZN KWAZULU-NATAL
B142: KZN284 uMlalazi | C142: KZN KWAZULU-NATAL
B143: KZN285 Mthonjaneni | C143: KZN KWAZULU-NATAL
B144: KZN286 Nkandla | C144: KZN KWAZULU-NATAL
B145: DC28 King Cetshwayo | C145: KZN KWAZULU-NATAL
B146: KZN291 Mandeni | C146: KZN KWAZULU-NATAL
B147: KZN292 KwaDukuza | C147: KZN KWAZULU-NATAL
B148: KZN293 Ndwedwe | C148: KZN KWAZULU-NATAL
B149: KZN294 Maphumulo | C149: KZN KWAZULU-NATAL
B150: DC29 iLembe | C150: KZN KWAZULU-NATAL
B151: KZN433 Greater Kokstad | C151: KZN KWAZULU-NATAL
B152: KZN434 Ubuhlebezwe | C152: KZN KWAZULU-NATAL
B153: KZN435 Umzimkhulu | C153: KZN KWAZULU-NATAL
B154: KZN436 Dr Nkosazana Dlamini Zuma | C154: KZN KWAZULU-NATAL
B155: DC43 Harry Gwala | C155: KZN KWAZULU-NATAL
B156: LIM331 Greater Giyani | C156: LIM LIMPOPO
B157: LIM332 Greater Letaba | C157: LIM LIMPOPO
B158: LIM333 Greater Tzaneen | C158: LIM LIMPOPO
B159: LIM334 Ba-Phalaborwa | C159: LIM LIMPOPO
B160: LIM335 Maruleng | C160: LIM LIMPOPO
B161: DC33 Mopani | C161: LIM LIMPOPO
B162: LIM341 Musina | C162: LIM LIMPOPO
B163: LIM343 Thulamela | C163: LIM LIMPOPO
B164: LIM344 Makhado | C164: LIM LIMPOPO
B165: LIM345 Collins Chabane | C165: LIM LIMPOPO
B166: DC34 Vhembe | C166: LIM LIMPOPO
B167: LIM351 Blouberg | C167: LIM LIMPOPO
B168: LIM353 Molemole | C168: LIM LIMPOPO
B169: LIM354 Polokwane | C169: LIM LIMPOPO
B170: LIM355 Lepelle-Nkumpi | C170: LIM LIMPOPO
B171: DC35 Capricorn | C171: LIM LIMPOPO
B172: LIM361 Thabazimbi | C172: LIM LIMPOPO
B173: LIM362 Lephalale | C173: LIM LIMPOPO
B174: LIM366 Bela Bela | C174: LIM LIMPOPO
B175: LIM367 Mogalakwena | C175: LIM LIMPOPO
B176: LIM368 Modimolle-Mookgopong | C176: LIM LIMPOPO
B177: DC36 Waterberg | C177: LIM LIMPOPO
B178: LIM471 Ephraim Mogale | C178: LIM LIMPOPO
B179: LIM472 Elias Motsoaledi | C179: LIM LIMPOPO
B180: LIM473 Makhuduthamaga | C180: LIM LIMPOPO
B181: LIM476 Tubatse Fetakgomo | C181: LIM LIMPOPO
B182: DC47 Sekhukhune | C182: LIM LIMPOPO
B183: MP301 Albert Luthuli | C183: MP MPUMALANGA
B184: MP302 Msukaligwa | C184: MP MPUMALANGA
B185: MP303 Mkhondo | C185: MP MPUMALANGA
B186: MP304 Pixley Ka Seme (MP) | C186: MP MPUMALANGA
B187: MP305 Lekwa | C187: MP MPUMALANGA
B188: MP306 Dipaleseng | C188: MP MPUMALANGA
B189: MP307 Govan Mbeki | C189: MP MPUMALANGA
B190: DC30 Gert Sibande | C190: MP MPUMALANGA
B191: MP311 Victor Khanye | C191: MP MPUMALANGA
B192: MP312 Emalahleni (Mp) | C192: MP MPUMALANGA
B193: MP313 Steve Tshwete | C193: MP MPUMALANGA
B194: MP314 Emakhazeni | C194: MP MPUMALANGA
B195: MP315 Thembisile Hani | C195: MP MPUMALANGA
B196: MP316 Dr J.S. Moroka | C196: MP MPUMALANGA
B197: DC31 Nkangala | C197: MP MPUMALANGA
B198: MP321 Thaba Chweu | C198: MP MPUMALANGA
B199: MP324 Nkomazi | C199: MP MPUMALANGA
B200: MP325 Bushbuckridge | C200: MP MPUMALANGA
B201: MP326 City of Mbombela | C201: MP MPUMALANGA
B202: DC32 Ehlanzeni | C202: MP MPUMALANGA
B203: NC451 Joe Morolong | C203: NC NORTHERN CAPE
B204: NC452 Ga-Segonyana | C204: NC NORTHERN CAPE
B205: NC453 Gamagara | C205: NC NORTHERN CAPE
B206: DC45 John Taolo Gaetsewe | C206: NC NORTHERN CAPE
B207: NC061 Richtersveld | C207: NC NORTHERN CAPE
B208: NC062 Nama Khoi | C208: NC NORTHERN CAPE
B209: NC064 Kamiesberg | C209: NC NORTHERN CAPE
B210: NC065 Hantam | C210: NC NORTHERN CAPE
B211: NC066 Karoo Hoogland | C211: NC NORTHERN CAPE
B212: NC067 Khai-Ma | C212: NC NORTHERN CAPE
B213: DC6 Namakwa | C213: NC NORTHERN CAPE
... 73 more rows

Sheet Org structure
A1: Organisational Structure Votes | C1: Organisational Structure Sub-Votes | E1: Display Sub-Votes
A2: =B2&" - "&C2 -> Vote 01 - Municipal Council | B2: Vote 01 | C2: Municipal Council
A3: =B8&" - "&C8 -> Vote 02 - Office Of The Accounting Officer | B3: 01.1 | C3: Office Of The Mayor | D3: =CONCATENATE(B3, " - ", C3) -> 01.1 - Office Of The Mayor | E3: 01.1 - Office Of The Mayor
A4: =B15&" - "&C15 -> Vote 03 - Budget And Treasury Office | B4: 01.2 | C4: Office Of The Speaker | D4: =CONCATENATE(B4, " - ", C4) -> 01.2 - Office Of The Speaker | E4: 01.2 - Office Of The Speaker
A5: =B23&" - "&C23 -> Vote 04 - Corporate Services | B5: 01.3 | C5: Office Of The Chief Whip | D5: =CONCATENATE(B5, " - ", C5) -> 01.3 - Office Of The Chief Whip | E5: 01.3 - Office Of The Chief Whip
A6: =B32&" - "&C32 -> Vote 05 - Community Services | B6: 01.4 | C6: Mpac | D6: =CONCATENATE(B6, " - ", C6) -> 01.4 - Mpac | E6: 01.4 - Mpac
A7: =B47&" - "&C47 -> Vote 06 - Planning & Development | B7: 01.5 | C7: Council General Administration | D7: =CONCATENATE(B7, " - ", C7) -> 01.5 - Council General Administration | E7: 01.5 - Council General Administration
A8: =B58&" - "&C58 -> Vote 07 - Infrastructure & Technical Services | B8: Vote 02 | C8: Office Of The Accounting Officer
A9: =B78&" - "&C78 -> Vote 08 - | B9: 02.1 | C9: Office Of The Ao Admin | D9: =CONCATENATE(B9, " - ", C9) -> 02.1 - Office Of The Ao Admin | E9: 02.1 - Office Of The Ao Admin
A10: Vote 09 - | B10: 02.2 | C10: Strategic Planning Monitoring & Evaluat | D10: 02.2 - Strategic Planning Monitoring & Evaluat | E10: 02.2 - Strategic Planning Monitoring & Evaluat
A11: Vote 10 - | B11: 02.3 | C11: Perfomance Management System | D11: 02.3 - Perfomance Management System | E11: 02.3 - Perfomance Management System
A12: Vote 11 - | B12: 02.4 | C12: Internal Audit | D12: 02.4 - Internal Audit | E12: 02.4 - Internal Audit
A13: Vote 12 - | B13: 02.5 | C13: Municipal Planning Idp | D13: 02.5 - Municipal Planning Idp | E13: 02.5 - Municipal Planning Idp
A14: Vote 13 - | B14: 02.6 | C14: Risk | D14: 02.6 - Risk | E14: 02.6 - Risk
A15: Vote 14 - | B15: Vote 03 | C15: Budget And Treasury Office
A16: Vote 15 - Other | B16: 03.1 | C16: Chief Financial Officer Admin | D16: =CONCATENATE(B16, " - ", C16) -> 03.1 - Chief Financial Officer Admin | E16: 03.1 - Chief Financial Officer Admin
B17: 03.2 | C17: Budget Expenditure & Reporting | D17: 03.2 - Budget Expenditure & Reporting | E17: 03.2 - Budget Expenditure & Reporting
B18: 03.3 | C18: Budget Expenditure & Reporting | D18: 03.3 - Budget Expenditure & Reporting | E18: 03.3 - Budget Expenditure & Reporting
B19: 03.4 | C19: Revenue Management | D19: 03.4 - Revenue Management | E19: 03.4 - Revenue Management
B20: 03.5 | C20: Supply Chain Management | D20: 03.5 - Supply Chain Management | E20: 03.5 - Supply Chain Management
B21: 03.6 | C21: Assets Management | D21: 03.6 - Assets Management | E21: 03.6 - Assets Management
B22: 03.7 | C22: Expenditure | D22: 03.7 - Expenditure | E22: 03.7 - Expenditure
B23: Vote 04 | C23: Corporate Services
B24: 04.1 | C24: Legal Services | D24: =CONCATENATE(B24, " - ", C24) -> 04.1 - Legal Services | E24: 04.1 - Legal Services
B25: 04.2 | C25: Corporate Service Administration | D25: 04.2 - Corporate Service Administration | E25: 04.2 - Corporate Service Administration
B26: 04.3 | C26: Human Resources | D26: 04.3 - Human Resources | E26: 04.3 - Human Resources
B27: 04.4 | C27: Media & Communication | D27: 04.4 - Media & Communication | E27: 04.4 - Media & Communication
B28: 04.5 | C28: Organisational Development | D28: 04.5 - Organisational Development | E28: 04.5 - Organisational Development
B29: 04.6 | C29: Labour Relations | D29: 04.6 - Labour Relations | E29: 04.6 - Labour Relations
B30: 04.7 | C30: Legal Services | D30: 04.7 - Legal Services | E30: 04.7 - Legal Services
B31: 04.8 | C31: Information Technology Services | D31: 04.8 - Information Technology Services | E31: 04.8 - Information Technology Services
B32: Vote 05 | C32: Community Services
B33: 05.1 | C33: Municipal Buildings | D33: =CONCATENATE(B33, " - ", C33) -> 05.1 - Municipal Buildings | E33: 05.1 - Municipal Buildings
B34: 05.2 | C34: Fleet Management | D34: 05.2 - Fleet Management | E34: 05.2 - Fleet Management
B35: 05.3 | C35: Community Services Administration | D35: 05.3 - Community Services Administration | E35: 05.3 - Community Services Administration
B36: 05.4 | C36: Cemeteries | D36: 05.4 - Cemeteries | E36: 05.4 - Cemeteries
B37: 05.5 | C37: Disaster Management | D37: 05.5 - Disaster Management | E37: 05.5 - Disaster Management
B38: 05.6 | C38: Fires Service | D38: 05.6 - Fires Service | E38: 05.6 - Fires Service
B39: 05.7 | C39: Libraries | D39: 05.7 - Libraries | E39: 05.7 - Libraries
B40: 05.8 | C40: Municipal Buildings | D40: 05.8 - Municipal Buildings | E40: 05.8 - Municipal Buildings
B41: 05.9 | C41: Sports Recreation & Social Amenitie | D41: 05.9 - Sports Recreation & Social Amenitie | E41: 05.9 - Sports Recreation & Social Amenitie
B42: 05.10 | C42: Waste Management Solid Waste | D42: 05.10 - Waste Management Solid Waste | E42: 05.10 - Waste Management Solid Waste
B43: 05.11 | C43: Safety And Security | D43: 05.11 - Safety And Security | E43: 05.11 - Safety And Security
B44: 05.12 | C44: Traffic Service | D44: 05.12 - Traffic Service | E44: 05.12 - Traffic Service
B45: 05.13 | C45: Traffic Service | D45: 05.13 - Traffic Service | E45: 05.13 - Traffic Service
B46: 05.14 | C46: Fleet Management | D46: 05.14 - Fleet Management | E46: 05.14 - Fleet Management
B47: Vote 06 | C47: Planning & Development
B48: 06.1 | C48: Planning And Development Admin | D48: =CONCATENATE(B48, " - ", C48) -> 06.1 - Planning And Development Admin | E48: 06.1 - Planning And Development Admin
B49: 06.2 | C49: Municipal Planning Idp | D49: 06.2 - Municipal Planning Idp | E49: 06.2 - Municipal Planning Idp
B50: 06.3 | C50: Pms | D50: 06.3 - Pms | E50: 06.3 - Pms
B51: 06.4 | C51: Town Planning | D51: 06.4 - Town Planning | E51: 06.4 - Town Planning
B52: 06.5 | C52: Land Use And Housing Admin | D52: 06.5 - Land Use And Housing Admin | E52: 06.5 - Land Use And Housing Admin
B53: 06.6 | C53: Local Economic Development | D53: 06.6 - Local Economic Development | E53: 06.6 - Local Economic Development
B54: 06.7 | C54: Led | D54: 06.7 - Led | E54: 06.7 - Led
B55: 06.8 | C55: Agriculture & Rural Development | D55: 06.8 - Agriculture & Rural Development | E55: 06.8 - Agriculture & Rural Development
B56: 06.9 | C56: Tourism & Business Development | D56: 06.9 - Tourism & Business Development | E56: 06.9 - Tourism & Business Development
B57: 06.10 | C57: Arts & Culture | D57: 06.10 - Arts & Culture | E57: 06.10 - Arts & Culture
B58: Vote 07 | C58: Infrastructure & Technical Services
B59: 07.1 | C59: Infrastructure Admin & Tech Admin | D59: =CONCATENATE(B59, " - ", C59) -> 07.1 - Infrastructure Admin & Tech Admin | E59: 07.1 - Infrastructure Admin & Tech Admin
B60: 07.2 | C60: Fleet Management | D60: 07.2 - Fleet Management | E60: 07.2 - Fleet Management
B61: 07.3 | C61: Roads | D61: 07.3 - Roads | E61: 07.3 - Roads
B62: 07.4 | C62: Storm Water | D62: 07.4 - Storm Water | E62: 07.4 - Storm Water
B63: 07.5 | C63: Street Lighting | D63: 07.5 - Street Lighting | E63: 07.5 - Street Lighting
B64: 07.6 | C64: Project Management Unit | D64: 07.6 - Project Management Unit | E64: 07.6 - Project Management Unit
B65: 07.7 | C65: Sanitation Treatment Plant: Mogwase | D65: 07.7 - Sanitation Treatment Plant: Mogwase | E65: 07.7 - Sanitation Treatment Plant: Mogwase
B66: 07.8 | C66: Sanitation Treatment Plant: Madikwe | D66: 07.8 - Sanitation Treatment Plant: Madikwe | E66: 07.8 - Sanitation Treatment Plant: Madikwe
B67: 07.9 | C67: Sanitation Reticulation | D67: 07.9 - Sanitation Reticulation | E67: 07.9 - Sanitation Reticulation
B68: 07.10 | C68: Water Administration | D68: 07.10 - Water Administration | E68: 07.10 - Water Administration
B69: 07.11 | C69: Water Madikwe: Water Treatment Work | D69: 07.11 - Water Madikwe: Water Treatment Work | E69: 07.11 - Water Madikwe: Water Treatment Work
B70: 07.12 | C70: Water: Pella Water Treatment Works | D70: 07.12 - Water: Pella Water Treatment Works | E70: 07.12 - Water: Pella Water Treatment Works
B71: 07.13 | C71: Water: Madikwe Retail & Bulk Lines | D71: 07.13 - Water: Madikwe Retail & Bulk Lines | E71: 07.13 - Water: Madikwe Retail & Bulk Lines
B72: 07.14 | C72: Water: Madikwe Rural | D72: 07.14 - Water: Madikwe Rural | E72: 07.14 - Water: Madikwe Rural
B73: 07.15 | C73: Water: Molatedi | D73: 07.15 - Water: Molatedi | E73: 07.15 - Water: Molatedi
B74: 07.16 | C74: Water Eastern: Retail Mankwe | D74: 07.16 - Water Eastern: Retail Mankwe | E74: 07.16 - Water Eastern: Retail Mankwe
B75: 07.17 | C75: Water Vaalkopdam: Mankwe | D75: 07.17 - Water Vaalkopdam: Mankwe | E75: 07.17 - Water Vaalkopdam: Mankwe
B76: 07.18 | C76: Water Eastern: Retail Mankwe | D76: 07.18 - Water Eastern: Retail Mankwe | E76: 07.18 - Water Eastern: Retail Mankwe
B77: 07.19 | C77: Reporting Function Electricity | D77: 07.19 - Reporting Function Electricity | E77: 07.19 - Reporting Function Electricity
B78: Vote 08
B79: Vote 09
B80: Vote 10
B81: Vote 11
B82: Vote 12
B83: Vote 13
B84: Vote 14
B85: Vote 15 | C85: Other

Sheet Contacts
A1: =muni&" - "&" Contact Information" -> NW375 Moses Kotane - Contact Information
A3: A. GENERAL INFORMATION
A4: Municipality | B4: =muni -> NW375 Moses Kotane | C4: Set name on 'Instructions' sheet
A6: Grade | B6: 2 | C6: 1 Grade in terms of the Remuneration of Public Office Bearers Act.
A8: Province | B8: =IF(B4>" ",VLOOKUP(B4,'Lookup and lists'!B28:C311,2, FALSE)," ") -> NW NORTH WEST
A10: Web Address | B10: www.moseskotane.gov.za
A12: e-mail Address | B12: municipalmanager@moseskotane.gov.za
A14: B. CONTACT INFORMATION
A15: Postal address:
A16: P.O. Box | B16: 1011
A17: City / Town | B17: Mogwase
A18: Postal Code | B18: 0314
A20: Street address
A21: Building | B21: Mogwase Shopping Complex
A22: Street No. & Name | B22: 935 Station Road
A23: City / Town | B23: Mogwase
A24: Postal Code | B24: 0314
A26: General Contacts
A27: Telephone number | B27: 014 555 1300
A28: Fax number | B28: 014 555 6368
A30: C. POLITICAL LEADERSHIP
A31: Speaker: | C31: Secretary/PA to the Speaker:
A32: ID Number | B32: 7206135791081 | C32: ID Number
A33: Title | B33: Clr | C33: Title | D33: Ms
A34: Name | B34: Sipho Vava | C34: Name | D34: D MANAME
A35: Telephone number | B35: 014 555 1309 | C35: Telephone number | D35: 014 555 1309
A36: Cell number | B36: 0823079727 | C36: Cell number | D36: 073 973 7862
A37: Fax number | B37: 014 555 6368 | C37: Fax number | D37: 014 555 7635
A38: E-mail address | B38: speakersecretary@moseskotane.gov.za | C38: E-mail address | D38: speakersecretary@moseskotane.gov.za
A40: Mayor/Executive Mayor: | C40: Secretary/PA to the Mayor/Executive Mayor:
A41: ID Number | C41: ID Number
A42: Title | B42: Clr | C42: Title | D42: Mrs
A43: Name | B43: A R DIALE | C43: Name | D43: M MORUPI
A44: Telephone number | B44: 014 555 1305 | C44: Telephone number | D44: 014 555 1305
A45: Cell number | B45: 082 467 2895 | C45: Cell number | D45: 079 342 0861
A46: Fax number | B46: 014 555 6368 | C46: Fax number | D46: 014 555 6368
A47: E-mail address | B47: mayorssecretary@moseskotane.gov.za | C47: E-mail address | D47: mayorsecretary@moseskotane.gov.za
A49: Deputy Mayor/Executive Mayor: | C49: Secretary/PA to the Deputy Mayor/Executive Mayor:
A50: ID Number | C50: ID Number
A51: Title | C51: Title
A52: Name | C52: Name
A53: Telephone number | C53: Telephone number
A54: Cell number | C54: Cell number
A55: Fax number | C55: Fax number
A56: E-mail address | C56: E-mail address
A58: D. MANAGEMENT LEADERSHIP
A59: Municipal Manager: | C59: Secretary/PA to the Municipal Manager:
A60: ID Number | C60: ID Number
A61: Title | B61: Mr | C61: Title | D61: Ms
A62: Name | B62: M V LETSOALO | C62: Name | D62: WINNIE MABALANE
A63: Telephone number | B63: 014 555 1307 | C63: Telephone number | D63: 014 555 1307
A64: Cell number | B64: 066 300 6349 | C64: Cell number | D64: 082 543 4845
A65: Fax number | B65: 086 654 5962 | C65: Fax number | D65: 086 654 5962
A66: E-mail address | B66: 066 300 6349 | C66: E-mail address | D66: municipalmanager@moseskotane.gov.za
A68: Chief Financial Officer | C68: Secretary/PA to the Chief Financial Officer
A69: ID Number | B69: 8409265857081 | C69: ID Number
A70: Title | B70: Mr | C70: Title
A71: Name | B71: MR Mkhize | C71: Name
A72: Telephone number | B72: 014 555 1332 | C72: Telephone number
A73: Cell number | B73: 0609782021 | C73: Cell number
A74: Fax number | C74: Fax number
A75: E-mail address | B75: cfo@moseskotane.gov.za | C75: E-mail address
A77: Official responsible for submitting financial information | C77: Official responsible for submitting financial information
A78: ID Number | C78: ID Number
A79: Title | B79: Ms T Lebusa | C79: Title
A80: Name | B80: T LEBUSA | C80: Name
A81: Telephone number | B81: 014 555 1333 | C81: Telephone number
A82: Cell number | B82: 082 051 2347 | C82: Cell number
A83: Fax number | B83: 086 232 1786 | C83: Fax number
A84: E-mail address | B84: tlebusa@moseskotane.gov.za | C84: E-mail address
A85: Official responsible for submitting financial information | C85: Official responsible for submitting financial information
A86: ID Number | C86: ID Number
A87: Title | C87: Title
A88: Name | C88: Name
A89: Telephone number | C89: Telephone number
A90: Cell number | C90: Cell number
A91: Fax number | C91: Fax number
A92: E-mail address | C92: E-mail address
A93: Official responsible for submitting financial information | C93: Official responsible for submitting financial information
A94: ID Number | C94: ID Number
A95: Title | C95: Title
A96: Name | C96: Name
A97: Telephone number | C97: Telephone number
A98: Cell number | C98: Cell number
A99: Fax number | C99: Fax number
A100: E-mail address | C100: E-mail address
A101: Official responsible for submitting financial information | C101: Official responsible for submitting financial information
A102: ID Number | C102: ID Number
A103: Title | C103: Title
A104: Name | C104: Name
A105: Telephone number | C105: Telephone number
A106: Cell number | C106: Cell number
A107: Fax number | C107: Fax number
A108: E-mail address | C108: E-mail address
A109: Official responsible for submitting financial information | C109: Official responsible for submitting financial information
A110: ID Number | C110: ID Number
A111: Title | C111: Title
A112: Name | C112: Name
A113: Telephone number | C113: Telephone number
A114: Cell number | C114: Cell number
A115: Fax number | C115: Fax number
A116: E-mail address | C116: E-mail address
A117: Official responsible for submitting financial information | C117: Official responsible for submitting financial information
A118: ID Number | C118: ID Number
A119: Title | C119: Title
A120: Name | C120: Name
A121: Telephone number | C121: Telephone number
A122: Cell number | C122: Cell number
A123: Fax number | C123: Fax number
A124: E-mail address | C124: E-mail address
A125: Official responsible for submitting financial information | C125: Official responsible for submitting financial information
A126: ID Number | C126: ID Number
A127: Title | C127: Title
A128: Name | C128: Name
A129: Telephone number | C129: Telephone number
A130: Cell number | C130: Cell number
A131: Fax number | C131: Fax number
A132: E-mail address | C132: E-mail address
A133: Official responsible for submitting financial information
A134: ID Number
A135: Title
A136: Name
A137: Telephone number
A138: Cell number
A139: Fax number
A140: E-mail address

Sheet C1-Sum
A1: =muni& " - "&s71sum& " - "&date -> NW375 Moses Kotane - Table C1 Monthly Budget Statement Summary - M07 January
A2: =desc -> Description | B2: =Head1 -> 2019/20 | C2: =Head2 -> Budget Year 2020/21
B3: =Head5 -> Audited Outcome | C3: =Head6 -> Original Budget | D3: =Head7 -> Adjusted Budget | E3: =Head38 -> Monthly actual | F3: =Head39 -> YearTD actual | G3: =Head40 -> YearTD budget | H3: =Head41 -> YTD variance | I3: =Head41 -> YTD variance | J3: =Head8 -> Full Year Forecast
A4: R thousands | I4: %
A5: Financial Performance
A6: Property rates | B6: =SUM('C4-FinPerf RE'!C6:C6) -> 141419581.4 | C6: =SUM('C4-FinPerf RE'!D6:D6) -> 148602075 | D6: =SUM('C4-FinPerf RE'!E6:E6) -> 148602075 | E6: =SUM('C4-FinPerf RE'!F6:F6) -> 12099935.62 | F6: =SUM('C4-FinPerf RE'!G6:G6) -> 84208675.9 | G6: =SUM('C4-FinPerf RE'!H6:H6) -> 86684500 | H6: =F6-G6 -> -2475824.1 | I6: =IF(H6=0,"",H6/G6) -> -0.02856132411 | J6: =SUM('C4-FinPerf RE'!K6:K6) -> 148602075
A7: Service charges | B7: =SUM('C4-FinPerf RE'!C7:C10) -> 177042111.1 | C7: =SUM('C4-FinPerf RE'!D7:D10) -> 186492720 | D7: =SUM('C4-FinPerf RE'!E7:E10) -> 186492720 | E7: =SUM('C4-FinPerf RE'!F7:F10) -> 19196155.48 | F7: =SUM('C4-FinPerf RE'!G7:G10) -> 104428087 | G7: =SUM('C4-FinPerf RE'!H7:H10) -> 108787371 | H7: =F7-G7 -> -4359284.02 | I7: =IF(H7=0,"",H7/G7) -> -0.04007160004 | J7: =SUM('C4-FinPerf RE'!K7:K10) -> 186492720
A8: Investment revenue | B8: ='C4-FinPerf RE'!C13 -> 5586509.72 | C8: ='C4-FinPerf RE'!D13 -> 5400000 | D8: ='C4-FinPerf RE'!E13 -> 5400000 | E8: ='C4-FinPerf RE'!F13 -> 26429.72 | F8: ='C4-FinPerf RE'!G13 -> 1560022.16 | G8: ='C4-FinPerf RE'!H13 -> 3150000 | H8: =F8-G8 -> -1589977.84 | I8: =IF(H8=0,"",H8/G8) -> -0.5047548698 | J8: ='C4-FinPerf RE'!K13 -> 5400000
A9: Transfers and subsidies | B9: ='C4-FinPerf RE'!C19 -> 434445420.4 | C9: ='C4-FinPerf RE'!D19 -> 467694767 | D9: ='C4-FinPerf RE'!E19 -> 550339767 | E9: ='C4-FinPerf RE'!F19 -> 0 | F9: ='C4-FinPerf RE'!G19 -> 429726279.2 | G9: ='C4-FinPerf RE'!H19 -> 314144427 | H9: =F9-G9 -> 115581852.2 | I9: =IF(H9=0,"",H9/G9) -> 0.36792584 | J9: ='C4-FinPerf RE'!K19 -> 550339767
A10: Other own revenue | B10: ='C4-FinPerf RE'!C12+'C4-FinPerf RE'!C14+'C4-FinPerf RE'!C15+'C4-FinPerf RE'!C16+'C4-FinPerf RE'!C17+'C4-FinPerf RE'!C18+'C4-FinPerf RE'!C20+'C4-FinPerf RE'!C21 -> 72405632.45 | C10: ='C4-FinPerf RE'!D12+'C4-FinPerf RE'!D14+'C4-FinPerf RE'!D15+'C4-FinPerf RE'!D16+'C4-FinPerf RE'!D17+'C4-FinPerf RE'!D18+'C4-FinPerf RE'!D20+'C4-FinPerf RE'!D21 -> 67591050 | D10: ='C4-FinPerf RE'!E12+'C4-FinPerf RE'!E14+'C4-FinPerf RE'!E15+'C4-FinPerf RE'!E16+'C4-FinPerf RE'!E17+'C4-FinPerf RE'!E18+'C4-FinPerf RE'!E20+'C4-FinPerf RE'!E21 -> 67591050 | E10: ='C4-FinPerf RE'!F12+'C4-FinPerf RE'!F14+'C4-FinPerf RE'!F15+'C4-FinPerf RE'!F16+'C4-FinPerf RE'!F17+'C4-FinPerf RE'!F18+'C4-FinPerf RE'!F20+'C4-FinPerf RE'!F21 -> 6624491.74 | F10: ='C4-FinPerf RE'!G12+'C4-FinPerf RE'!G14+'C4-FinPerf RE'!G15+'C4-FinPerf RE'!G16+'C4-FinPerf RE'!G17+'C4-FinPerf RE'!G18+'C4-FinPerf RE'!G20+'C4-FinPerf RE'!G21 -> 39261930.76 | G10: ='C4-FinPerf RE'!H12+'C4-FinPerf RE'!H14+'C4-FinPerf RE'!H15+'C4-FinPerf RE'!H16+'C4-FinPerf RE'!H17+'C4-FinPerf RE'!H18+'C4-FinPerf RE'!H20+'C4-FinPerf RE'!H21 -> 39428060 | H10: =F10-G10 -> -166129.24 | I10: =IF(H10=0,"",H10/G10) -> -0.004213477407 | J10: ='C4-FinPerf RE'!K12+'C4-FinPerf RE'!K14+'C4-FinPerf RE'!K15+'C4-FinPerf RE'!K16+'C4-FinPerf RE'!K17+'C4-FinPerf RE'!K18+'C4-FinPerf RE'!K20+'C4-FinPerf RE'!K21 -> 67591050
A11: Total Revenue (excluding capital transfers and contributions) | B11: =SUM(B6:B10) -> 830899255.1 | C11: 875780612 | D11: 958425612 | E11: 37947012.56 | F11: 659184995 | G11: 552194358 | H11: =F11-G11 -> 106990637 | I11: =IF(H11=0,"",H11/G11) -> 0.1937553969 | J11: 958425612
A12: Employee costs | B12: ='C4-FinPerf RE'!C25 -> 236924858.3 | C12: ='C4-FinPerf RE'!D25 -> 270831407 | D12: ='C4-FinPerf RE'!E25 -> 272119407 | E12: ='C4-FinPerf RE'!F25 -> 19015199 | F12: ='C4-FinPerf RE'!G25 -> 139705628.5 | G12: ='C4-FinPerf RE'!H25 -> 158629912 | H12: -18924283.5 | I12: -0.1192983294 | J12: ='C4-FinPerf RE'!K25 -> 272119407
A13: Remuneration of Councillors | B13: ='C4-FinPerf RE'!C26 -> 24128277.65 | C13: ='C4-FinPerf RE'!D26 -> 24819114 | D13: ='C4-FinPerf RE'!E26 -> 24819114 | E13: ='C4-FinPerf RE'!F26 -> 2026094.6 | F13: ='C4-FinPerf RE'!G26 -> 14907625.12 | G13: ='C4-FinPerf RE'!H26 -> 14477834 | H13: 429791.12 | I13: 0.0296861478 | J13: ='C4-FinPerf RE'!K26 -> 24819114
A14: Depreciation & asset impairment | B14: ='C4-FinPerf RE'!C28 -> 146795994.9 | C14: ='C4-FinPerf RE'!D28 -> 133503316 | D14: ='C4-FinPerf RE'!E28 -> 133503316 | E14: ='C4-FinPerf RE'!F28 -> 77876911 | F14: ='C4-FinPerf RE'!G28 -> 77876911 | G14: ='C4-FinPerf RE'!H28 -> 77877002 | H14: -91 | I14: -1.168509286e-06 | J14: ='C4-FinPerf RE'!K28 -> 133503316
A15: Finance charges | B15: ='C4-FinPerf RE'!C29 -> 5347470.47 | C15: ='C4-FinPerf RE'!D29 -> 3043808 | D15: ='C4-FinPerf RE'!E29 -> 3043808 | E15: ='C4-FinPerf RE'!F29 -> 6028.98 | F15: ='C4-FinPerf RE'!G29 -> 1586336.46 | G15: ='C4-FinPerf RE'!H29 -> 1775571 | H15: -189234.54 | I15: -0.1065767238 | J15: ='C4-FinPerf RE'!K29 -> 3043808
A16: Materials and bulk purchases | B16: =SUM('C4-FinPerf RE'!C30:C31) -> 132620027.3 | C16: =SUM('C4-FinPerf RE'!D30:D31) -> 86827300 | D16: =SUM('C4-FinPerf RE'!E30:E31) -> 106857300 | E16: =SUM('C4-FinPerf RE'!F30:F31) -> 9812728.78 | F16: =SUM('C4-FinPerf RE'!G30:G31) -> 48263593.98 | G16: =SUM('C4-FinPerf RE'!H30:H31) -> 60664305 | H16: -12400711.02 | I16: -0.2044152821 | J16: =SUM('C4-FinPerf RE'!K30:K31) -> 106857300
A17: Transfers and subsidies | B17: ='C4-FinPerf RE'!C33 -> 0 | C17: ='C4-FinPerf RE'!D33 -> 0 | D17: ='C4-FinPerf RE'!E33 -> 0 | E17: ='C4-FinPerf RE'!F33 -> 0 | F17: ='C4-FinPerf RE'!G33 -> 0 | G17: ='C4-FinPerf RE'!H33 -> 0 | H17: 0 | J17: ='C4-FinPerf RE'!K33 -> 0
A18: Other expenditure | B18: ='C4-FinPerf RE'!C36-SUM('C1-Sum'!B12:B17) -> 460338993.9 | C18: ='C4-FinPerf RE'!D36-SUM('C1-Sum'!C12:C17) -> 335952317 | D18: ='C4-FinPerf RE'!E36-SUM('C1-Sum'!D12:D17) -> 376724802 | E18: ='C4-FinPerf RE'!F36-SUM('C1-Sum'!E12:E17) -> 121419145.3 | F18: ='C4-FinPerf RE'!G36-SUM('C1-Sum'!F12:F17) -> 232699192.8 | G18: ='C4-FinPerf RE'!H36-SUM('C1-Sum'!G12:G17) -> 216358774.5 | H18: 16340418.31 | I18: 0.07552463887 | J18: ='C4-FinPerf RE'!K36-SUM('C1-Sum'!J12:J17) -> 376724802
A19: Total Expenditure | B19: =SUM(B12:B18) -> 1006155623 | C19: 854977262 | D19: 917067747 | E19: 230156107.7 | F19: 515039287.9 | G19: 529783398.5 | H19: -14744110.63 | I19: -0.02783045047 | J19: =SUM(J12:J18) -> 917067747
A20: Surplus/(Deficit) | B20: =B11-B19 -> -175256367.5 | C20: 20803350 | D20: 41357865 | E20: -192209095.1 | F20: 144145707.1 | G20: 22410959.5 | H20: 121734747.6 | I20: 5.431929303 | J20: =J11-J19 -> 41357865
A21: ='C4-FinPerf RE'!A39 -> Transfers and subsidies - capital (monetary allocations) (National / Provincial and District) | B21: ='C4-FinPerf RE'!C39 -> 68075621.78 | C21: ='C4-FinPerf RE'!D39 -> 202495233 | D21: ='C4-FinPerf RE'!E39 -> 202495233 | E21: ='C4-FinPerf RE'!F39 -> 0 | F21: ='C4-FinPerf RE'!G39 -> 0 | G21: ='C4-FinPerf RE'!H39 -> 118122200 | H21: -118122200 | I21: -1 | J21: ='C4-FinPerf RE'!K39 -> 202495233
A22: ='C4-FinPerf RE'!A40&" & "&'C4-FinPerf RE'!A41 -> Transfers and subsidies - capital (monetary allocations) (National / Provincial Departmental Agencies, Households, Non-profit Institutions, Private Enterprises, Public Corporatons, Higher Educational Institutions) & Transfers and subsidies - capital (in-kind - all) | B22: =SUM('C4-FinPerf RE'!C40:C41) -> 96552077.22 | C22: =SUM('C4-FinPerf RE'!D40:D41) -> 0 | D22: =SUM('C4-FinPerf RE'!E40:E41) -> 0 | E22: =SUM('C4-FinPerf RE'!F40:F41) -> 0 | F22: =SUM('C4-FinPerf RE'!G40:G41) -> 0 | G22: =SUM('C4-FinPerf RE'!H40:H41) -> 0 | H22: 0 | J22: =SUM('C4-FinPerf RE'!K40:K41) -> 0
A23: Surplus/(Deficit) after capital transfers & contributions | B23: =B20+B21+B22 -> -10628668.5 | C23: 223298583 | D23: 243853098 | E23: -192209095.1 | F23: 144145707.1 | G23: 140533159.5 | H23: 3612547.61 | I23: 0.02570601574 | J23: =J20+J21+J22 -> 243853098
A24: Share of surplus/ (deficit) of associate | B24: ='C4-FinPerf RE'!C47 -> 0 | C24: ='C4-FinPerf RE'!D47 -> 0 | D24: ='C4-FinPerf RE'!E47 -> 0 | E24: ='C4-FinPerf RE'!F47 -> 0 | F24: ='C4-FinPerf RE'!G47 -> 0 | G24: ='C4-FinPerf RE'!H47 -> 0 | H24: 0 | J24: ='C4-FinPerf RE'!K47 -> 0
A25: Surplus/ (Deficit) for the year | B25: =B23+B24 -> -10628668.5 | C25: 223298583 | D25: 243853098 | E25: -192209095.1 | F25: 144145707.1 | G25: 140533159.5 | H25: 3612547.61 | I25: 0.02570601574 | J25: =J23+J24 -> 243853098
A27: Capital expenditure & funds sources
A28: Capital expenditure | B28: ='C5-Capex'!C40 -> 22910640.89 | C28: ='C5-Capex'!D40 -> 203495233 | D28: ='C5-Capex'!E40 -> 203495233 | E28: ='C5-Capex'!F40 -> 6904946.19 | F28: ='C5-Capex'!G40 -> 73187957.6 | G28: ='C5-Capex'!H40 -> 118705671 | H28: =F28-G28 -> -45517713.4 | I28: =IF(H28=0,"",H28/G28) -> -0.383450201 | J28: ='C5-Capex'!K40 -> 203495233
A29: Capital transfers recognised | B29: ='C5-Capex'!C70 -> 22738382.28 | C29: ='C5-Capex'!D70 -> 202495233 | D29: ='C5-Capex'!E70 -> 202495233 | E29: ='C5-Capex'!F70 -> 5758720.01 | F29: ='C5-Capex'!G70 -> 70502585.58 | G29: ='C5-Capex'!H70 -> 118122333 | H29: -47619747.42 | I29: -0.4031392389 | J29: ='C5-Capex'!K70 -> 202495233
A31: Borrowing | B31: ='C5-Capex'!C72 -> 0 | C31: ='C5-Capex'!D72 -> 0 | D31: ='C5-Capex'!E72 -> 0 | E31: ='C5-Capex'!F72 -> 0 | F31: ='C5-Capex'!G72 -> 0 | G31: ='C5-Capex'!H72 -> 0 | H31: 0 | J31: ='C5-Capex'!K72 -> 0
A32: Internally generated funds | B32: ='C5-Capex'!C73 -> 172258.61 | C32: ='C5-Capex'!D73 -> 1000000 | D32: ='C5-Capex'!E73 -> 1000000 | E32: ='C5-Capex'!F73 -> 1146226.18 | F32: ='C5-Capex'!G73 -> 2685372.02 | G32: ='C5-Capex'!H73 -> 583338 | H32: 2102034.02 | I32: 3.603458064 | J32: ='C5-Capex'!K73 -> 1000000
A33: Total sources of capital funds | B33: =+B29+B31+B32 -> 22910640.89 | C33: 203495233 | D33: 203495233 | E33: 6904946.19 | F33: 73187957.6 | G33: 118705671 | H33: -45517713.4 | I33: -0.383450201 | J33: =+J29+J31+J32 -> 203495233
A35: Financial position
A36: Total current assets | B36: ='C6-FinPos'!C13 -> 191810788.3 | C36: ='C6-FinPos'!D13 -> 169043591 | D36: ='C6-FinPos'!E13 -> 471860917 | F36: ='C6-FinPos'!F13 -> 341029598.8 | J36: ='C6-FinPos'!G13 -> 471860917
A37: Total non current assets | B37: ='C6-FinPos'!C25 -> 3069450547 | C37: ='C6-FinPos'!D25 -> 3686970409 | D37: ='C6-FinPos'!E25 -> 3275337330 | F37: ='C6-FinPos'!F25 -> 3064761593 | J37: ='C6-FinPos'!G25 -> 3275337330
A38: Total current liabilities | B38: ='C6-FinPos'!C35 -> 374230239.9 | C38: ='C6-FinPos'!D35 -> 86362000 | D38: ='C6-FinPos'!E35 -> 368430240 | F38: ='C6-FinPos'!F35 -> 374802451.8 | J38: ='C6-FinPos'!G35 -> 368430240
A39: Total non current liabilities | B39: ='C6-FinPos'!C40 -> 30725685.37 | C39: ='C6-FinPos'!D40 -> 29829314 | D39: ='C6-FinPos'!E40 -> 30725686 | F39: ='C6-FinPos'!F40 -> 31075685.37 | J39: ='C6-FinPos'!G40 -> 30725686
A40: Community wealth/Equity | B40: ='C6-FinPos'!C48 -> 2856305410 | C40: ='C6-FinPos'!D48 -> 3516524103 | D40: ='C6-FinPos'!E48 -> 3088472378 | F40: ='C6-FinPos'!F48 -> 2999913055 | J40: ='C6-FinPos'!G48 -> 3088472378
A42: Cash flows
A43: Net cash from (used) operating | B43: ='C7-CFlow'!C18 -> 0 | C43: ='C7-CFlow'!D18 -> 0 | D43: ='C7-CFlow'!E18 -> 1057406 | E43: ='C7-CFlow'!F18 -> -40901875.49 | F43: ='C7-CFlow'!G18 -> 220713745.8 | G43: ='C7-CFlow'!H18 -> 616820.05 | H43: =G43-F43 -> -220096925.7 | I43: =IF(H43=0,"",H43/G43) -> -356.8251806 | J43: ='C7-CFlow'!K18 -> 1057406
A44: Net cash from (used) investing | B44: ='C7-CFlow'!C28 -> 0 | C44: ='C7-CFlow'!D28 -> 0 | D44: ='C7-CFlow'!E28 -> 0 | E44: ='C7-CFlow'!F28 -> -6904946.19 | F44: ='C7-CFlow'!G28 -> -47713765.59 | G44: ='C7-CFlow'!H28 -> 0 | H44: =G44-F44 -> 47713765.59 | I44: =IF(H44=0,"",H44/G44) ->  | J44: ='C7-CFlow'!K28 -> 0
A45: Net cash from (used) financing | B45: ='C7-CFlow'!C37 -> -6181846.49 | C45: ='C7-CFlow'!D37 -> 0 | D45: ='C7-CFlow'!E37 -> -2815500 | E45: ='C7-CFlow'!F37 -> -1722.22 | F45: ='C7-CFlow'!G37 -> -2650500.81 | G45: ='C7-CFlow'!H37 -> -1251333.2 | H45: =G45-F45 -> 1399167.61 | I45: =IF(H45=0,"",H45/G45) -> -1.118141523 | J45: ='C7-CFlow'!K37 -> -2815500
A46: Cash/cash equivalents at the month/year end | B46: ='C7-CFlow'!C41 -> 58491414.8 | C46: ='C7-CFlow'!D41 -> 19040753 | D46: ='C7-CFlow'!E41 -> 44897761 | E46: ='C7-CFlow'!F41 -> 0 | F46: ='C7-CFlow'!G41 -> 219130130.2 | G46: ='C7-CFlow'!H41 -> -634513.15 | H46: =G46-F46 -> -219764643.3 | I46: =IF(H46=0,"",H46/G46) -> 346.3515978 | J46: ='C7-CFlow'!K41 -> -1758094
A48: Debtors & creditors analysis | B48: ='SC3'!C3 -> 0-30 Days | C48: ='SC3'!D3 -> 31-60 Days | D48: ='SC3'!E3 -> 61-90 Days | E48: ='SC3'!F3 -> 91-120 Days | F48: ='SC3'!G3 -> 121-150 Dys | G48: ='SC3'!H3 -> 151-180 Dys | H48: ='SC3'!I3 -> 181 Dys-1 Yr | I48: ='SC3'!J3 -> Over 1Yr | J48: Total
A49: =LEFT('SC3'!A4,20) -> Debtors Age Analysis
A50: ='SC3'!A14 -> Total By Income Source | B50: ='SC3'!C14 -> 75402115 | C50: ='SC3'!D14 -> 32977160 | D50: ='SC3'!E14 -> 32419706 | E50: ='SC3'!F14 -> 33402540 | F50: ='SC3'!G14 -> 28779214 | G50: ='SC3'!H14 -> 25344132 | H50: ='SC3'!I14 -> 162478680 | I50: ='SC3'!J14 -> 989283789 | J50: ='SC3'!K14 -> 1380087336
A51: =LEFT('SC4'!A5,22) -> Creditors Age Analysis
A52: Total Creditors | B52: ='SC4'!C15 -> 2222350.38 | C52: ='SC4'!D15 -> 61881.5 | D52: ='SC4'!E15 -> 1740603.85 | E52: ='SC4'!F15 -> 4024835.73 | F52: ='SC4'!G15 -> 0 | G52: ='SC4'!H15 -> 0 | H52: ='SC4'!I15 -> 0 | I52: ='SC4'!J15 -> 0 | J52: ='SC4'!K15 -> 8049671.46

Sheet C2-FinPerf SC
A1: =muni& " - "&S71A& " - "&date -> NW375 Moses Kotane - Table C2 Monthly Budget Statement - Financial Performance (functional classification) - M07 January
A2: =desc -> Description | B2: =head27 -> Ref | C2: =Head1 -> 2019/20 | D2: =Head2 -> Budget Year 2020/21
C3: =Head5 -> Audited Outcome | D3: =Head6 -> Original Budget | E3: =Head7 -> Adjusted Budget | F3: =Head38 -> Monthly actual | G3: =Head39 -> YearTD actual | H3: =Head40 -> YearTD budget | I3: =Head41 -> YTD variance | J3: =Head41 -> YTD variance | K3: =Head8 -> Full Year Forecast
A4: R thousands | B4: 1 | J4: %
A5: Revenue - Functional
A6: Governance and administration | C6: =SUM(C7:C9) -> 482518123.7 | D6: 508138125 | E6: 548648970 | F6: 17858257.05 | G6: 453176314.9 | H6: 316669239.5 | I6: =G6-H6 -> 136507075.4 | J6: =IF(I6=0,"",I6/H6) -> 0.4310714726 | K6: =SUM(K7:K9) -> 548648970
A7: Executive and council | C7: ='C2C'!C7 -> 1559133.26 | D7: ='C2C'!D7 -> 1827000 | E7: ='C2C'!E7 -> 1827000 | F7: ='C2C'!F7 -> 0 | G7: ='C2C'!G7 -> 1096370.07 | H7: ='C2C'!H7 -> 1065743 | I7: 30627.07 | J7: =IF(I7=0,"",I7/H7) -> 0.02873776323 | K7: ='C2C'!K7 -> 1827000
A8: Finance and administration | C8: ='C2C'!C10 -> 480958990.5 | D8: ='C2C'!D10 -> 506311125 | E8: ='C2C'!E10 -> 546821970 | F8: ='C2C'!F10 -> 17858257.05 | G8: ='C2C'!G10 -> 452079944.8 | H8: ='C2C'!H10 -> 315603496.5 | I8: 136476448.3 | J8: 0.4324300898 | K8: ='C2C'!K10 -> 546821970
A9: Internal audit | C9: ='C2C'!C24 -> 0 | D9: ='C2C'!D24 -> 0 | E9: ='C2C'!E24 -> 0 | F9: ='C2C'!F24 -> 0 | G9: ='C2C'!G24 -> 0 | H9: ='C2C'!H24 -> 0 | I9: 0 | K9: ='C2C'!K24 -> 0
A10: Community and public safety | C10: =SUM(C11:C15) -> 35940811.55 | D10: 20221987 | E10: 20221987 | F10: 891556.55 | G10: 901839.16 | H10: 11796134 | I10: -10894294.84 | J10: -0.9235479048 | K10: =SUM(K11:K15) -> 20221987
A11: Community and social services | C11: ='C2C'!C27 -> 30321542.24 | D11: ='C2C'!D27 -> 7273512 | E11: ='C2C'!E27 -> 7273512 | F11: ='C2C'!F27 -> 4956.55 | G11: ='C2C'!G27 -> 15239.16 | H11: ='C2C'!H27 -> 4242875 | I11: -4227635.84 | J11: -0.9964082939 | K11: ='C2C'!K27 -> 7273512
A12: Sport and recreation | C12: ='C2C'!C49 -> 5859.31 | D12: ='C2C'!D49 -> 9898475 | E12: ='C2C'!E49 -> 9898475 | F12: ='C2C'!F49 -> 0 | G12: ='C2C'!G49 -> 0 | H12: ='C2C'!H49 -> 5774097 | I12: -5774097 | J12: -1 | K12: ='C2C'!K49 -> 9898475
A13: Public safety | C13: ='C2C'!C55 -> 5613410 | D13: ='C2C'!D55 -> 3050000 | E13: ='C2C'!E55 -> 3050000 | F13: ='C2C'!F55 -> 886600 | G13: ='C2C'!G55 -> 886600 | H13: ='C2C'!H55 -> 1779162 | I13: -892562 | J13: -0.5016755079 | K13: ='C2C'!K55 -> 3050000
A14: Housing | C14: ='C2C'!C64 -> 0 | D14: ='C2C'!D64 -> 0 | E14: ='C2C'!E64 -> 0 | F14: ='C2C'!F64 -> 0 | G14: ='C2C'!G64 -> 0 | H14: ='C2C'!H64 -> 0 | I14: =G14-H14 -> 0 | J14: =IF(I14=0,"",I14/H14) ->  | K14: ='C2C'!K64 -> 0
A15: Health | C15: ='C2C'!C67 -> 0 | D15: ='C2C'!D67 -> 0 | E15: ='C2C'!E67 -> 0 | F15: ='C2C'!F67 -> 0 | G15: ='C2C'!G67 -> 0 | H15: ='C2C'!H67 -> 0 | I15: 0 | K15: ='C2C'!K67 -> 0
A16: Economic and environmental services | C16: =SUM(C17:C19) -> 55466186.7 | D16: 65260549 | E16: 65260549 | F16: 1043.48 | G16: 44598.94 | H16: 38068646 | I16: -38024047.06 | J16: -0.99882846 | K16: =SUM(K17:K19) -> 65260549
A17: Planning and development | C17: ='C2C'!C76 -> 3476504.69 | D17: ='C2C'!D76 -> 4278767 | E17: ='C2C'!E76 -> 4278767 | F17: ='C2C'!F76 -> 1043.48 | G17: ='C2C'!G76 -> 44598.94 | H17: ='C2C'!H76 -> 2495941 | I17: -2451342.06 | J17: -0.9821314126 | K17: ='C2C'!K76 -> 4278767
A18: Road transport | C18: ='C2C'!C87 -> 51989682.01 | D18: ='C2C'!D87 -> 60981782 | E18: ='C2C'!E87 -> 60981782 | F18: ='C2C'!F87 -> 0 | G18: ='C2C'!G87 -> 0 | H18: ='C2C'!H87 -> 35572705 | I18: -35572705 | J18: -1 | K18: ='C2C'!K87 -> 60981782
A19: Environmental protection | C19: ='C2C'!C92 -> 0 | D19: ='C2C'!D92 -> 0 | E19: ='C2C'!E92 -> 0 | F19: ='C2C'!F92 -> 0 | G19: ='C2C'!G92 -> 0 | H19: ='C2C'!H92 -> 0 | I19: 0 | K19: ='C2C'!K92 -> 0
A20: Trading services | C20: =SUM(C21:C24) -> 421601832.1 | D20: =SUM(D21:D24) -> 484655184 | E20: 526789339 | F20: 19196155.48 | G20: 205062242 | H20: 303782538.5 | I20: -98720296.52 | J20: -0.3249702798 | K20: =SUM(K21:K24) -> 526789339
A21: Energy sources | C21: ='C2C'!C100 -> 15484099.17 | D21: ='C2C'!D100 -> 12265741 | E21: ='C2C'!E100 -> 12265741 | F21: ='C2C'!F100 -> 0 | G21: ='C2C'!G100 -> 0 | H21: ='C2C'!H100 -> 7155015 | I21: =G21-H21 -> -7155015 | J21: -1 | K21: ='C2C'!K100 -> 12265741
A22: Water management | C22: ='C2C'!C104 -> 312818243.5 | D22: ='C2C'!D104 -> 350686981 | E22: ='C2C'!E104 -> 383052336 | F22: ='C2C'!F104 -> 17985456.59 | G22: ='C2C'!G104 -> 109250221.3 | H22: ='C2C'!H104 -> 220750054.5 | I22: =G22-H22 -> -111499833.2 | J22: -0.5050953826 | K22: ='C2C'!K104 -> 383052336
A23: Waste water management | C23: ='C2C'!C108 -> 28295147.57 | D23: ='C2C'!D108 -> 47377755 | E23: ='C2C'!E108 -> 47377755 | F23: ='C2C'!F108 -> 301653.22 | G23: ='C2C'!G108 -> 20827939.27 | H23: ='C2C'!H108 -> 27637008 | I23: =G23-H23 -> -6809068.73 | J23: -0.246375032 | K23: ='C2C'!K108 -> 47377755
A24: Waste management | C24: ='C2C'!C113 -> 65004341.87 | D24: ='C2C'!D113 -> 74324707 | E24: ='C2C'!E113 -> 84093507 | F24: ='C2C'!F113 -> 909045.67 | G24: ='C2C'!G113 -> 74984081.45 | H24: ='C2C'!H113 -> 48240461 | I24: =G24-H24 -> 26743620.45 | J24: 0.5543815274 | K24: ='C2C'!K113 -> 84093507
A25: Other | B25: 4 | C25: ='C2C'!C118 -> 0 | D25: ='C2C'!D118 -> 0 | E25: ='C2C'!E118 -> 0 | F25: ='C2C'!F118 -> 0 | G25: ='C2C'!G118 -> 0 | H25: ='C2C'!H118 -> 0 | I25: =G25-H25 -> 0 | K25: ='C2C'!K118 -> 0
A26: Total Revenue - Functional | B26: 2 | C26: =C6+C10+C16+C20+C25 -> 995526954.1 | D26: =D6+D10+D16+D20+D25 -> 1078275845 | E26: 1160920845 | F26: 37947012.56 | G26: 659184995 | H26: 670316558 | I26: -11131563.02 | J26: -0.01660642705 | K26: =K6+K10+K16+K20+K25 -> 1160920845
A28: Expenditure - Functional
A29: Governance and administration | C29: =SUM(C30:C32) -> 333671818.8 | D29: 323417191 | E29: 345138059 | F29: 65609559.35 | G29: 186884052.6 | H29: 199521186 | I29: =G29-H29 -> -12637133.44 | J29: =IF(I29=0,"",I29/H29) -> -0.06333730113 | K29: =SUM(K30:K32) -> 345138059
A30: Executive and council | C30: ='C2C'!C129 -> 87479429.76 | D30: ='C2C'!D129 -> 75047222 | E30: ='C2C'!E129 -> 85623222 | F30: ='C2C'!F129 -> 5476732.78 | G30: ='C2C'!G129 -> 44741140.82 | H30: ='C2C'!H129 -> 49065839 | I30: -4324698.18 | J30: =IF(I30=0,"",I30/H30) -> -0.08814071599 | K30: ='C2C'!K129 -> 85623222
A31: Finance and administration | C31: ='C2C'!C132 -> 242643643 | D31: ='C2C'!D132 -> 244344601 | E31: ='C2C'!E132 -> 255399469 | F31: ='C2C'!F132 -> 59818636.63 | G31: ='C2C'!G132 -> 139938782.5 | H31: ='C2C'!H132 -> 148062183 | I31: -8123400.55 | J31: -0.05486478982 | K31: ='C2C'!K132 -> 255399469
A32: Internal audit | C32: ='C2C'!C146 -> 3548746.06 | D32: ='C2C'!D146 -> 4025368 | E32: ='C2C'!E146 -> 4115368 | F32: ='C2C'!F146 -> 314189.94 | G32: ='C2C'!G146 -> 2204129.29 | H32: ='C2C'!H146 -> 2393164 | I32: -189034.71 | J32: -0.07898945079 | K32: ='C2C'!K146 -> 4115368
A33: Community and public safety | C33: =SUM(C34:C38) -> 101187018.2 | D33: 94362294 | E33: 96241094 | F33: 21013683.57 | G33: 51350075.64 | H33: 55984306 | I33: -4634230.36 | J33: -0.08277731191 | K33: =SUM(K34:K38) -> 96241094
A34: Community and social services | C34: ='C2C'!C149 -> 22020872.63 | D34: ='C2C'!D149 -> 25180426 | E34: ='C2C'!E149 -> 25509226 | F34: ='C2C'!F149 -> 13281412.74 | G34: ='C2C'!G149 -> 17422025.47 | H34: ='C2C'!H149 -> 14853109 | I34: 2568916.47 | J34: 0.1729547982 | K34: ='C2C'!K149 -> 25509226
A35: Sport and recreation | C35: ='C2C'!C171 -> 43792225.28 | D35: ='C2C'!D171 -> 39415232 | E35: ='C2C'!E171 -> 39665232 | F35: ='C2C'!F171 -> 5580708.44 | G35: ='C2C'!G171 -> 18128485.33 | H35: ='C2C'!H171 -> 23117256 | I35: -4988770.67 | J35: -0.2158028907 | K35: ='C2C'!K171 -> 39665232
A36: Public safety | C36: ='C2C'!C177 -> 35373920.31 | D36: ='C2C'!D177 -> 29766636 | E36: ='C2C'!E177 -> 31066636 | F36: ='C2C'!F177 -> 2151562.39 | G36: ='C2C'!G177 -> 15799564.84 | H36: ='C2C'!H177 -> 18013941 | I36: -2214376.16 | J36: -0.1229256918 | K36: ='C2C'!K177 -> 31066636
A37: Housing | C37: ='C2C'!C186 -> 0 | D37: ='C2C'!D186 -> 0 | E37: ='C2C'!E186 -> 0 | F37: ='C2C'!F186 -> 0 | G37: ='C2C'!G186 -> 0 | H37: ='C2C'!H186 -> 0 | I37: 0 | K37: ='C2C'!K186 -> 0
A38: Health | C38: ='C2C'!C189 -> 0 | D38: ='C2C'!D189 -> 0 | E38: ='C2C'!E189 -> 0 | F38: ='C2C'!F189 -> 0 | G38: ='C2C'!G189 -> 0 | H38: ='C2C'!H189 -> 0 | I38: 0 | K38: ='C2C'!K189 -> 0
A39: Economic and environmental services | C39: =SUM(C40:C42) -> 88577675.18 | D39: 85219149 | E39: 85219149 | F39: 29049526.53 | G39: 45985567.64 | H39: 49711410 | I39: -3725842.36 | J39: -0.07494944038 | K39: =SUM(K40:K42) -> 85219149
A40: Planning and development | C40: ='C2C'!C198 -> 20421819.7 | D40: ='C2C'!D198 -> 24090808 | E40: ='C2C'!E198 -> 24090808 | F40: ='C2C'!F198 -> -2725054.23 | G40: ='C2C'!G198 -> 8836759.68 | H40: ='C2C'!H198 -> 14053172 | I40: -5216412.32 | J40: -0.3711910962 | K40: ='C2C'!K198 -> 24090808
A41: Road transport | C41: ='C2C'!C209 -> 68155855.48 | D41: ='C2C'!D209 -> 61128341 | E41: ='C2C'!E209 -> 61128341 | F41: ='C2C'!F209 -> 31774580.76 | G41: ='C2C'!G209 -> 37148807.96 | H41: ='C2C'!H209 -> 35658238 | I41: 1490569.96 | J41: 0.04180155957 | K41: ='C2C'!K209 -> 61128341
A42: Environmental protection | C42: ='C2C'!C214 -> 0 | D42: ='C2C'!D214 -> 0 | E42: ='C2C'!E214 -> 0 | F42: ='C2C'!F214 -> 0 | G42: ='C2C'!G214 -> 0 | H42: ='C2C'!H214 -> 0 | I42: 0 | K42: ='C2C'!K214 -> 0
A43: Trading services | C43: =SUM(C44:C47) -> 482719110.4 | D43: =SUM(D44:D47) -> 351978628 | E43: 390469445 | F43: 114483338.2 | G43: 230819592 | H43: 224566496.5 | I43: 6253095.53 | J43: 0.02784518451 | K43: =SUM(K44:K47) -> 390469445
A44: Energy sources | C44: ='C2C'!C222 -> 46041168.57 | D44: ='C2C'!D222 -> 15598588 | E44: ='C2C'!E222 -> 35598588 | F44: ='C2C'!F222 -> 3057583.01 | G44: ='C2C'!G222 -> 19595344.31 | H44: ='C2C'!H222 -> 19099216 | I44: 496128.31 | J44: 0.02597637044 | K44: ='C2C'!K222 -> 35598588
A45: Water management | C45: ='C2C'!C226 -> 355501528.8 | D45: ='C2C'!D226 -> 272588832 | E45: ='C2C'!E226 -> 283029649 | F45: ='C2C'!F226 -> 44195602.55 | G45: ='C2C'!G226 -> 114658048.5 | H45: ='C2C'!H226 -> 164230616.5 | I45: -49572567.98 | J45: -0.3018472989 | K45: ='C2C'!K226 -> 283029649
A46: Waste water management | C46: ='C2C'!C230 -> 26829536.52 | D46: ='C2C'!D230 -> 19928371 | E46: ='C2C'!E230 -> 19928371 | F46: ='C2C'!F230 -> 62546745.27 | G46: ='C2C'!G230 -> 70569753.73 | H46: ='C2C'!H230 -> 11624949 | I46: 58944804.73 | J46: 5.070543082 | K46: ='C2C'!K230 -> 19928371
A47: Waste management | C47: ='C2C'!C235 -> 54346876.52 | D47: ='C2C'!D235 -> 43862837 | E47: ='C2C'!E235 -> 51912837 | F47: ='C2C'!F235 -> 4683407.42 | G47: ='C2C'!G235 -> 25996445.47 | H47: ='C2C'!H235 -> 29611715 | I47: -3615269.53 | J47: -0.122089164 | K47: ='C2C'!K235 -> 51912837
A48: Other | C48: ='C2C'!C240 -> 0 | D48: ='C2C'!D240 -> 0 | E48: ='C2C'!E240 -> 0 | F48: ='C2C'!F240 -> 0 | G48: ='C2C'!G240 -> 0 | H48: ='C2C'!H240 -> 0 | I48: 0 | K48: ='C2C'!K240 -> 0
A49: Total Expenditure - Functional | B49: 3 | C49: =C29+C33+C39+C43+C48 -> 1006155623 | D49: =D29+D33+D39+D43+D48 -> 854977262 | E49: 917067747 | F49: 230156107.7 | G49: 515039287.9 | H49: 529783398.5 | I49: -14744110.63 | J49: -0.02783045047 | K49: =K29+K33+K39+K43+K48 -> 917067747
A50: Surplus/ (Deficit) for the year | C50: =C26-C49 -> -10628668.5 | D50: 223298583 | E50: 243853098 | F50: -192209095.1 | G50: 144145707.1 | H50: 140533159.5 | I50: =I26-I49 -> 3612547.61 | J50: =IF(I50=0,"",I50/H50) -> 0.02570601574 | K50: =K26-K49 -> 243853098
A51: =head27a -> References
A52: 1. Government Finance Statistics Functions and Sub-functions are standardised to assist the compilation of national and international accounts for comparison purposes
A53: 2. Total Revenue by functional classification must reconcile to Total Operating Revenue shown in the Financial Performance Statement
A54: 3. Total Expenditure by functional classification must reconcile to total operating expenditure shown in 'Financial Performance Statement'
A55: 4. All amounts must be classified under a functional classification (modified GFS). The GFS function 'Other' is only for Abbatoirs, Air Transport, Licensing and Regulation, Markets and Tourism - and if used must be supported by footnotes. Nothing else may be placed under 'Other'. Assign associate share to relevant classification

Sheet C2C
A1: =muni& " - "&S71A& " - "&date -> NW375 Moses Kotane - Table C2 Monthly Budget Statement - Financial Performance (functional classification) - M07 January
A2: =desc -> Description | B2: =head27 -> Ref | C2: =Head1 -> 2019/20 | D2: =Head2 -> Budget Year 2020/21
C3: =Head5 -> Audited Outcome | D3: =Head6 -> Original Budget | E3: =Head7 -> Adjusted Budget | F3: =Head38 -> Monthly actual | G3: =Head39 -> YearTD actual | H3: =Head40 -> YearTD budget | I3: =Head41 -> YTD variance | J3: =Head41 -> YTD variance | K3: =Head8 -> Full Year Forecast
A4: R thousands | B4: 1 | J4: %
A5: Revenue - Functional
A6: Municipal governance and administration | C6: =C7+C10+C24 -> 482518123.7 | D6: 508138125 | E6: 548648970 | F6: 17858257.05 | G6: 453176314.9 | H6: 316669239.5 | I6: =G6-H6 -> 136507075.4 | J6: =IF(I6=0,"",I6/H6) -> 0.4310714726 | K6: =K7+K10+K24 -> 548648970
A7: Executive and council | C7: =SUM(C8:C9) -> 1559133.26 | D7: =SUM(D8:D9) -> 1827000 | E7: 1827000 | F7: 0 | G7: 1096370.07 | H7: 1065743 | I7: =G7-H7 -> 30627.07 | J7: =IF(I7=0,"",I7/H7) -> 0.02873776323 | K7: 1827000
A8: Mayor and Council | C8: 1559133.26 | D8: 1827000 | E8: 1827000 | F8: 0 | G8: 1096370.07 | H8: 1065743 | I8: 30627.07 | J8: 0.02873776323 | K8: 1827000
A9: Municipal Manager, Town Secretary and Chief Executive | I9: 0
A10: Finance and administration | C10: =SUM(C11:C23) -> 480958990.5 | D10: 506311125 | E10: 546821970 | F10: 17858257.05 | G10: 452079944.8 | H10: 315603496.5 | I10: =G10-H10 -> 136476448.3 | J10: =IF(I10=0,"",I10/H10) -> 0.4324300898 | K10: =SUM(K11:K23) -> 546821970
A11: Administrative and Corporate Support | C11: 0 | D11: 0 | E11: 0 | F11: 0 | G11: 0 | H11: 0 | I11: 0 | K11: 0
A12: Asset Management | I12: 0
A13: Finance | C13: 480028747.6 | D13: 505811125 | E13: 546321970 | F13: 17858257.05 | G13: 452079944.8 | H13: 315311834.5 | I13: 136768110.3 | J13: 0.4337550811 | K13: 546321970
A14: Fleet Management | C14: 290000 | D14: 0 | E14: 0 | F14: 0 | G14: 0 | H14: 0 | I14: 0 | K14: 0
A15: Human Resources | C15: 640242.92 | D15: 500000 | E15: 500000 | F15: 0 | G15: 0 | H15: 291662 | I15: -291662 | J15: -1 | K15: 500000
A16: Information Technology | C16: 0 | D16: 0 | E16: 0 | F16: 0 | G16: 0 | H16: 0 | I16: =G16-H16 -> 0 | J16: =IF(I16=0,"",I16/H16) ->  | K16: 0
A17: Legal Services | I17: 0
A18: Marketing, Customer Relations, Publicity and Media Co-ordination | I18: 0
A19: Property Services | I19: 0
A20: Risk Management | I20: 0
A21: Security Services | I21: 0
A22: Supply Chain Management | I22: 0
A23: Valuation Service | I23: 0
A24: Internal audit | C24: =SUM(C25:C25) -> 0 | D24: 0 | E24: 0 | F24: 0 | G24: 0 | H24: 0 | I24: 0 | K24: =SUM(K25:K25) -> 0
A25: Governance Function | I25: 0
A26: Community and public safety | C26: =C27+C49+C55+C64+C67 -> 35940811.55 | D26: =D27+D49+D55+D64+D67 -> 20221987 | E26: 20221987 | F26: 891556.55 | G26: 901839.16 | H26: 11796134 | I26: -10894294.84 | J26: -0.9235479048 | K26: 20221987
A27: Community and social services | C27: =SUM(C28:C48) -> 30321542.24 | D27: 7273512 | E27: 7273512 | F27: 4956.55 | G27: 15239.16 | H27: 4242875 | I27: -4227635.84 | J27: -0.9964082939 | K27: =SUM(K28:K48) -> 7273512
A28: Aged Care | I28: =G28-H28 -> 0 | J28: =IF(I28=0,"",I28/H28) -> 
A29: Agricultural | I29: 0
A30: Animal Care and Diseases | I30: 0
A31: Cemeteries, Funeral Parlours and Crematoriums | C31: 11727.79 | D31: 10000 | E31: 10000 | F31: 4956.55 | G31: 8021.77 | H31: 5831 | I31: 2190.77 | J31: 0.3757108558 | K31: 10000
A32: Child Care Facilities | I32: 0
A33: Community Halls and Facilities | C33: 29638422.81 | D33: 7223512 | E33: 7223512 | F33: 0 | G33: 0 | H33: 4213713 | I33: -4213713 | J33: -1 | K33: 7223512
A34: Consumer Protection | I34: 0
A35: Cultural Matters | I35: =G35-H35 -> 0 | J35: =IF(I35=0,"",I35/H35) -> 
A36: Disaster Management | I36: 0
A37: Education | I37: 0
A38: Indigenous and Customary Law | I38: 0
A39: Industrial Promotion | I39: 0
A40: Language Policy | I40: 0
A41: Libraries and Archives | C41: 671391.64 | D41: 40000 | E41: 40000 | F41: 0 | G41: 7217.39 | H41: 23331 | I41: -16113.61 | J41: -0.6906523509 | K41: 40000
A42: Literacy Programmes | I42: 0
A43: Media Services | I43: 0
A44: Museums and Art Galleries | I44: 0
A45: Population Development | I45: 0
A46: Provincial Cultural Matters | I46: 0
A47: Theatres | I47: 0
A48: Zoo's | I48: 0
A49: Sport and recreation | C49: =SUM(C50:C54) -> 5859.31 | D49: =SUM(D50:D54) -> 9898475 | E49: 9898475 | F49: 0 | G49: 0 | H49: 5774097 | I49: =G49-H49 -> -5774097 | J49: =IF(I49=0,"",I49/H49) -> -1 | K49: 9898475
A50: Beaches and Jetties | I50: 0
A51: Casinos, Racing, Gambling, Wagering | I51: 0
A52: Community Parks (including Nurseries) | I52: 0
A53: Recreational Facilities | C53: 5859.31 | D53: 9898475 | E53: 9898475 | F53: 0 | G53: 0 | H53: 5774097 | I53: -5774097 | J53: -1 | K53: 9898475
A54: Sports Grounds and Stadiums | I54: 0
A55: Public safety | C55: =SUM(C56:C63) -> 5613410 | D55: =SUM(D56:D63) -> 3050000 | E55: 3050000 | F55: 886600 | G55: 886600 | H55: 1779162 | I55: -892562 | J55: -0.5016755079 | K55: 3050000
A56: Civil Defence | C56: 0 | D56: 0 | E56: 0 | F56: 0 | G56: 0 | H56: 0 | I56: 0 | K56: 0
A57: Cleansing | I57: 0
A58: Control of Public Nuisances | I58: =G58-H58 -> 0 | J58: =IF(I58=0,"",I58/H58) -> 
A59: Fencing and Fences | I59: 0
A60: Fire Fighting and Protection | I60: 0
A61: Licensing and Control of Animals | I61: =G61-H61 -> 0 | J61: =IF(I61=0,"",I61/H61) -> 
A62: Police Forces, Traffic and Street Parking Control | C62: 5613410 | D62: 3050000 | E62: 3050000 | F62: 886600 | G62: 886600 | H62: 1779162 | I62: =G62-H62 -> -892562 | J62: =IF(I62=0,"",I62/H62) -> -0.5016755079 | K62: 3050000
A63: Pounds | I63: 0
A64: Housing | C64: =SUM(C65:C66) -> 0 | D64: 0 | E64: 0 | F64: 0 | G64: 0 | H64: 0 | I64: =G64-H64 -> 0 | J64: =IF(I64=0,"",I64/H64) ->  | K64: =SUM(K65:K66) -> 0
A65: Housing | I65: =G65-H65 -> 0 | J65: =IF(I65=0,"",I65/H65) -> 
A66: Informal Settlements | I66: =G66-H66 -> 0 | J66: =IF(I66=0,"",I66/H66) -> 
A67: Health | C67: =SUM(C68:C74) -> 0 | D67: 0 | E67: 0 | F67: 0 | G67: 0 | H67: 0 | I67: 0 | K67: =SUM(K68:K74) -> 0
A68: Ambulance | I68: 0
A69: Health Services | I69: 0
A70: Laboratory Services | I70: =G70-H70 -> 0 | J70: =IF(I70=0,"",I70/H70) -> 
A71: Food Control | I71: =G71-H71 -> 0 | J71: =IF(I71=0,"",I71/H71) -> 
A72: Health Surveillance and Prevention of Communicable Diseases including immunizations | I72: 0
A73: Vector Control | I73: 0
A74: Chemical Safety | I74: 0
A75: Economic and environmental services | C75: =C76+C87+C92 -> 55466186.7 | D75: 65260549 | E75: 65260549 | F75: 1043.48 | G75: 44598.94 | H75: 38068646 | I75: -38024047.06 | J75: -0.99882846 | K75: =K76+K87+K92 -> 65260549
A76: Planning and development | C76: =SUM(C77:C86) -> 3476504.69 | D76: 4278767 | E76: 4278767 | F76: 1043.48 | G76: 44598.94 | H76: 2495941 | I76: -2451342.06 | J76: -0.9821314126 | K76: =SUM(K77:K86) -> 4278767
A77: Billboards | I77: =G77-H77 -> 0 | J77: =IF(I77=0,"",I77/H77) -> 
A78: Corporate Wide Strategic Planning (IDPs, LEDs) | I78: 0
A79: Central City Improvement District | I79: 0
A80: Development Facilitation | I80: =G80-H80 -> 0 | J80: =IF(I80=0,"",I80/H80) -> 
A81: Economic Development/Planning | C81: 0 | D81: 0 | E81: 0 | F81: 0 | G81: 0 | H81: 0 | I81: =G81-H81 -> 0 | J81: =IF(I81=0,"",I81/H81) ->  | K81: 0
A82: Regional Planning and Development | I82: =G82-H82 -> 0 | J82: =IF(I82=0,"",I82/H82) -> 
A83: Town Planning, Building Regulations and Enforcement, and City Engineer | C83: 133969.78 | D83: 100000 | E83: 100000 | F83: 1043.48 | G83: 44598.94 | H83: 58331 | I83: =G83-H83 -> -13732.06 | J83: =IF(I83=0,"",I83/H83) -> -0.2354161595 | K83: 100000
A84: Project Management Unit | C84: 3342534.91 | D84: 4178767 | E84: 4178767 | F84: 0 | G84: 0 | H84: 2437610 | I84: -2437610 | J84: -1 | K84: 4178767
A85: Provincial Planning | I85: 0
A86: Support to Local Municipalities | I86: 0
A87: Road transport | C87: =SUM(C88:C91) -> 51989682.01 | D87: 60981782 | E87: 60981782 | F87: 0 | G87: 0 | H87: 35572705 | I87: -35572705 | J87: -1 | K87: =SUM(K88:K91) -> 60981782
A88: Public Transport | I88: 0
A89: Road and Traffic Regulation | I89: 0
A90: Roads | C90: 51989682.01 | D90: 60981782 | E90: 60981782 | F90: 0 | G90: 0 | H90: 35572705 | I90: -35572705 | J90: -1 | K90: 60981782
A91: Taxi Ranks | I91: 0
A92: Environmental protection | C92: =SUM(C93:C98) -> 0 | D92: =SUM(D93:D98) -> 0 | E92: 0 | F92: 0 | G92: 0 | H92: 0 | I92: 0 | K92: 0
A93: Biodiversity and Landscape | I93: 0
A94: Coastal Protection | I94: 0
A95: Indigenous Forests | I95: =G95-H95 -> 0 | J95: =IF(I95=0,"",I95/H95) -> 
A96: Nature Conservation | I96: =G96-H96 -> 0 | J96: =IF(I96=0,"",I96/H96) -> 
A97: Pollution Control | I97: 0
A98: Soil Conservation | I98: 0
A99: Trading services | C99: =C100+C104+C108+C113 -> 421601832.1 | D99: =D100+D104+D108+D113 -> 484655184 | E99: 526789339 | F99: 19196155.48 | G99: 205062242 | H99: 303782538.5 | I99: -98720296.52 | J99: -0.3249702798 | K99: =K100+K104+K108+K113 -> 526789339
A100: Energy sources | C100: =SUM(C101:C103) -> 15484099.17 | D100: =SUM(D101:D103) -> 12265741 | E100: 12265741 | F100: 0 | G100: 0 | H100: 7155015 | I100: -7155015 | J100: -1 | K100: 12265741
A101: Electricity | I101: 0
A102: Street Lighting and Signal Systems | C102: 15484099.17 | D102: 12265741 | E102: 12265741 | F102: 0 | G102: 0 | H102: 7155015 | I102: =G102-H102 -> -7155015 | J102: =IF(I102=0,"",I102/H102) -> -1 | K102: 12265741
A103: Nonelectric Energy | I103: 0
A104: Water management | C104: =SUM(C105:C107) -> 312818243.5 | D104: =SUM(D105:D107) -> 350686981 | E104: 383052336 | F104: 17985456.59 | G104: 109250221.3 | H104: 220750054.5 | I104: -111499833.2 | J104: -0.5050953826 | K104: 383052336
A105: Water Treatment | C105: 224818243.5 | D105: 254799981 | E105: 254799981 | F105: 17985456.59 | G105: 96234866.26 | H105: 148633303 | I105: -52398436.74 | J105: -0.3525349682 | K105: 254799981
A106: Water Distribution | C106: 88000000 | D106: 95887000 | E106: 128252355 | F106: 0 | G106: 13015355 | H106: 72116751.5 | I106: =G106-H106 -> -59101396.5 | J106: =IF(I106=0,"",I106/H106) -> -0.8195238314 | K106: 128252355
A107: Water Storage | I107: 0
A108: Waste water management | C108: =SUM(C109:C112) -> 28295147.57 | D108: =SUM(D109:D112) -> 47377755 | E108: 47377755 | F108: 301653.22 | G108: 20827939.27 | H108: 27637008 | I108: -6809068.73 | J108: -0.246375032 | K108: 47377755
A109: Public Toilets | I109: 0
A110: Sewerage | C110: 28295147.57 | D110: 47377755 | E110: 47377755 | F110: 301653.22 | G110: 20827939.27 | H110: 27637008 | I110: -6809068.73 | J110: -0.246375032 | K110: 47377755
A111: Storm Water Management | C111: 0 | D111: 0 | E111: 0 | F111: 0 | G111: 0 | H111: 0 | I111: =G111-H111 -> 0 | J111: =IF(I111=0,"",I111/H111) ->  | K111: 0
A112: Waste Water Treatment | I112: 0
A113: Waste management | C113: =SUM(C114:C117) -> 65004341.87 | D113: 74324707 | E113: 84093507 | F113: 909045.67 | G113: 74984081.45 | H113: 48240461 | I113: 26743620.45 | J113: 0.5543815274 | K113: =SUM(K114:K117) -> 84093507
A114: Recycling | I114: =G114-H114 -> 0 | J114: =IF(I114=0,"",I114/H114) -> 
A115: Solid Waste Disposal (Landfill Sites) | I115: =G115-H115 -> 0 | J115: =IF(I115=0,"",I115/H115) -> 
A116: Solid Waste Removal | C116: 65004341.87 | D116: 74324707 | E116: 84093507 | F116: 909045.67 | G116: 74984081.45 | H116: 48240461 | I116: 26743620.45 | J116: 0.5543815274 | K116: 84093507
A117: Street Cleaning | I117: =G117-H117 -> 0 | J117: =IF(I117=0,"",I117/H117) -> 
A118: Other | C118: =SUM(C119:C124) -> 0 | D118: =SUM(D119:D124) -> 0 | E118: 0 | F118: 0 | G118: 0 | H118: 0 | I118: 0 | K118: 0
A119: Abattoirs | I119: 0
A120: Air Transport | I120: 0
A121: Forestry | I121: =G121-H121 -> 0 | J121: =IF(I121=0,"",I121/H121) -> 
A122: Licensing and Regulation | I122: 0
A123: Markets | I123: 0
A124: Tourism | I124: =G124-H124 -> 0 | J124: =IF(I124=0,"",I124/H124) -> 
A125: ="Total "&A5 -> Total Revenue - Functional | B125: 2 | C125: =C6+C26+C75+C99+C118 -> 995526954.1 | D125: 1078275845 | E125: 1160920845 | F125: 37947012.56 | G125: 659184995 | H125: 670316558 | I125: =G125-H125 -> -11131563.02 | J125: =IF(I125=0,"",I125/H125) -> -0.01660642705 | K125: =K6+K26+K75+K99+K118 -> 1160920845
A127: Expenditure - Functional
A128: =A6 -> Municipal governance and administration | C128: =C129+C132+C146 -> 333671818.8 | D128: 323417191 | E128: 345138059 | F128: 65609559.35 | G128: 186884052.6 | H128: 199521186 | I128: =G128-H128 -> -12637133.44 | J128: =IF(I128=0,"",I128/H128) -> -0.06333730113 | K128: =K129+K132+K146 -> 345138059
A129: Executive and council | C129: =SUM(C130:C131) -> 87479429.76 | D129: 75047222 | E129: 85623222 | F129: 5476732.78 | G129: 44741140.82 | H129: 49065839 | I129: -4324698.18 | J129: -0.08814071599 | K129: 85623222
A130: Mayor and Council | C130: 69162409.31 | D130: 60038020 | E130: 68784020 | F130: 4654306.71 | G130: 37634512.84 | H130: 39395358 | I130: -1760845.16 | J130: -0.04469676757 | K130: 68784020
A131: Municipal Manager, Town Secretary and Chief Executive | C131: 18317020.45 | D131: 15009202 | E131: 16839202 | F131: 822426.07 | G131: 7106627.98 | H131: 9670481 | I131: -2563853.02 | J131: -0.2651215612 | K131: 16839202
A132: Finance and administration | C132: =SUM(C133:C145) -> 242643643 | D132: 244344601 | E132: 255399469 | F132: 59818636.63 | G132: 139938782.5 | H132: 148062183 | I132: -8123400.55 | J132: -0.05486478982 | K132: =SUM(K133:K145) -> 255399469
A133: Administrative and Corporate Support | C133: 38026277.32 | D133: 40317622 | E133: 43611622 | F133: 2906212.45 | G133: 24440959.84 | H133: 25165705 | I133: -724745.16 | J133: -0.02879892139 | K133: 43611622
A134: Asset Management | C134: 3069358.44 | D134: 11587935 | E134: 11587935 | F134: 285486.59 | G134: 3110076.16 | H134: 6759648 | I134: -3649571.84 | J134: -0.5399056046 | K134: 11587935
A135: Finance | C135: 100924570.5 | D135: 120915478 | E135: 123229346 | F135: 47772112.67 | G135: 80799042.34 | H135: 71691083 | I135: 9107959.34 | J135: 0.1270445216 | K135: 123229346
A136: Fleet Management | C136: 15037335.28 | D136: 18271527 | E136: 18271527 | F136: 3318053.62 | G136: 9944685.43 | H136: 10658445 | I136: -713759.57 | J136: -0.06696657627 | K136: 18271527
A137: Human Resources | C137: 11312659.96 | D137: 15769578 | E137: 18216578 | F137: 746176.21 | G137: 6567948.36 | H137: 10422459 | I137: -3854510.64 | J137: -0.3698273738 | K137: 18216578
A138: Information Technology | C138: 65317667.81 | D138: 27329546 | E138: 30329546 | F138: 4033972.68 | G138: 9940053.92 | H138: 17442262 | I138: -7502208.08 | J138: -0.4301166947 | K138: 30329546
A139: Legal Services | C139: 1161607.3 | D139: 1309413 | E139: 1309413 | F139: 103603.25 | G139: 750249.07 | H139: 763833 | I139: -13583.93 | J139: -0.01778390041 | K139: 1309413
A140: Marketing, Customer Relations, Publicity and Media Co-ordination | I140: 0
A141: Property Services | I141: 0
A142: Risk Management | C142: 0 | D142: 941888 | E142: 941888 | F142: 0 | G142: 0 | H142: 549451 | I142: -549451 | J142: -1 | K142: 941888
A143: Security Services | I143: 0
A144: Supply Chain Management | C144: 7794166.36 | D144: 7901614 | E144: 7901614 | F144: 653019.16 | G144: 4385767.33 | H144: 4609297 | I144: -223529.67 | J144: -0.04849539312 | K144: 7901614
A145: Valuation Service | I145: 0
A146: Internal audit | C146: =SUM(C147:C147) -> 3548746.06 | D146: 4025368 | E146: 4115368 | F146: 314189.94 | G146: 2204129.29 | H146: 2393164 | I146: -189034.71 | J146: -0.07898945079 | K146: =SUM(K147:K147) -> 4115368
A147: Governance Function | C147: 3548746.06 | D147: 4025368 | E147: 4115368 | F147: 314189.94 | G147: 2204129.29 | H147: 2393164 | I147: -189034.71 | J147: -0.07898945079 | K147: 4115368
A148: Community and public safety | C148: =C149+C171+C177+C186+C189 -> 101187018.2 | D148: 94362294 | E148: 96241094 | F148: 21013683.57 | G148: 51350075.64 | H148: 55984306 | I148: -4634230.36 | J148: -0.08277731191 | K148: =K149+K171+K177+K186+K189 -> 96241094
A149: Community and social services | C149: =SUM(C150:C170) -> 22020872.63 | D149: 25180426 | E149: 25509226 | F149: 13281412.74 | G149: 17422025.47 | H149: 14853109 | I149: 2568916.47 | J149: 0.1729547982 | K149: =SUM(K150:K170) -> 25509226
A150: Aged Care | I150: 0
A151: Agricultural | C151: 0 | D151: 8157250 | E151: 8157250 | F151: 4493619.33 | G151: 4493619.33 | H151: 4758418 | I151: -264798.67 | J151: -0.05564846762 | K151: 8157250
A152: Animal Care and Diseases | I152: 0
A153: Cemeteries, Funeral Parlours and Crematoriums | C153: 0 | D153: 3978010 | E153: 3978010 | F153: 0 | G153: 0 | H153: 2320535 | I153: -2320535 | J153: -1 | K153: 3978010
A154: Child Care Facilities | I154: 0
A155: Community Halls and Facilities | C155: 19613207.76 | D155: 8784996 | E155: 8784996 | F155: 8668485.89 | G155: 12137648.61 | H155: 5124595 | I155: 7013053.61 | J155: 1.36850885 | K155: 8784996
A156: Consumer Protection | I156: 0
A157: Cultural Matters | I157: =G157-H157 -> 0 | J157: =IF(I157=0,"",I157/H157) -> 
A158: Disaster Management | C158: 29958.9 | D158: 2486022 | E158: 2814822 | F158: 0 | G158: 86100 | H158: 1614604 | I158: =G158-H158 -> -1528504 | J158: =IF(I158=0,"",I158/H158) -> -0.946674231 | K158: 2814822
A159: Education | I159: =G159-H159 -> 0 | J159: =IF(I159=0,"",I159/H159) -> 
A160: =A38 -> Indigenous and Customary Law | I160: 0
A161: Industrial Promotion | I161: 0
A162: Language Policy | I162: 0
A163: Libraries and Archives | C163: 2377705.97 | D163: 1774148 | E163: 1774148 | F163: 119307.52 | G163: 704657.53 | H163: 1034957 | I163: -330299.47 | J163: -0.3191431818 | K163: 1774148
A164: Literacy Programmes | I164: 0
A165: Media Services | C165: 0 | D165: 0 | E165: 0 | F165: 0 | G165: 0 | H165: 0 | I165: 0 | K165: 0
A166: Museums and Art Galleries | C166: 0 | D166: 0 | E166: 0 | F166: 0 | G166: 0 | H166: 0 | I166: 0 | K166: 0
A167: Population Development | I167: 0
A168: Provincial Cultural Matters | I168: 0
A169: Theatres | I169: 0
A170: Zoo's | I170: 0
A171: Sport and recreation | C171: =SUM(C172:C176) -> 43792225.28 | D171: 39415232 | E171: 39665232 | F171: 5580708.44 | G171: 18128485.33 | H171: 23117256 | I171: =G171-H171 -> -4988770.67 | J171: =IF(I171=0,"",I171/H171) -> -0.2158028907 | K171: 39665232
A172: Beaches and Jetties | I172: 0
A173: Casinos, Racing, Gambling, Wagering | I173: 0
A174: Community Parks (including Nurseries) | I174: 0
A175: Recreational Facilities | C175: 43792225.28 | D175: 39415232 | E175: 39665232 | F175: 5580708.44 | G175: 18128485.33 | H175: 23117256 | I175: -4988770.67 | J175: -0.2158028907 | K175: 39665232
A176: Sports Grounds and Stadiums | I176: 0
A177: Public safety | C177: =SUM(C178:C185) -> 35373920.31 | D177: 29766636 | E177: 31066636 | F177: 2151562.39 | G177: 15799564.84 | H177: 18013941 | I177: -2214376.16 | J177: -0.1229256918 | K177: 31066636
A178: Civil Defence | C178: 23287789.82 | D178: 19897500 | E178: 21097500 | F178: 1732719.3 | G178: 12276426.19 | H178: 12206903 | I178: 69523.19 | J178: 0.005695399562 | K178: 21097500
A179: Cleansing | I179: 0
A180: Control of Public Nuisances | I180: =G180-H180 -> 0 | J180: =IF(I180=0,"",I180/H180) -> 
A181: Fencing and Fences | I181: 0
A182: Fire Fighting and Protection | C182: 0 | D182: 0 | E182: 0 | F182: 0 | G182: 0 | H182: 0 | I182: 0 | K182: 0
A183: Licensing and Control of Animals | I183: =G183-H183 -> 0 | J183: =IF(I183=0,"",I183/H183) -> 
A184: Police Forces, Traffic and Street Parking Control | C184: 12086130.49 | D184: 9869136 | E184: 9969136 | F184: 418843.09 | G184: 3523138.65 | H184: 5807038 | I184: =G184-H184 -> -2283899.35 | J184: =IF(I184=0,"",I184/H184) -> -0.3932985026 | K184: 9969136
A185: Pounds | I185: 0
A186: Housing | C186: =SUM(C187:C188) -> 0 | D186: 0 | E186: 0 | F186: 0 | G186: 0 | H186: 0 | I186: =G186-H186 -> 0 | J186: =IF(I186=0,"",I186/H186) ->  | K186: =SUM(K187:K188) -> 0
A187: Housing | I187: =G187-H187 -> 0 | J187: =IF(I187=0,"",I187/H187) -> 
A188: Informal Settlements | I188: =G188-H188 -> 0 | J188: =IF(I188=0,"",I188/H188) -> 
A189: Health | C189: =SUM(C190:C196) -> 0 | D189: 0 | E189: 0 | F189: 0 | G189: 0 | H189: 0 | I189: 0 | K189: 0
A190: Ambulance | I190: 0
A191: Health Services | I191: 0
A192: =A70 -> Laboratory Services | I192: 0
A193: Food Control | I193: =G193-H193 -> 0 | J193: =IF(I193=0,"",I193/H193) -> 
A194: Health Surveillance and Prevention of Communicable Diseases including immunizations | I194: =G194-H194 -> 0 | J194: =IF(I194=0,"",I194/H194) -> 
A195: Vector Control | I195: 0
A196: Chemical Safety | I196: 0
A197: Economic and environmental services | C197: =C198+C209+C214 -> 88577675.18 | D197: 85219149 | E197: 85219149 | F197: 29049526.53 | G197: 45985567.64 | H197: 49711410 | I197: -3725842.36 | J197: -0.07494944038 | K197: =K198+K209+K214 -> 85219149
A198: Planning and development | C198: =SUM(C199:C208) -> 20421819.7 | D198: 24090808 | E198: 24090808 | F198: -2725054.23 | G198: 8836759.68 | H198: 14053172 | I198: -5216412.32 | J198: -0.3711910962 | K198: 24090808
A199: Billboards | I199: 0
A200: Corporate Wide Strategic Planning (IDPs, LEDs) | C200: 0 | D200: 7380884 | E200: 7380884 | F200: 853848.48 | G200: 1126148.48 | H200: 4305567 | I200: -3179418.52 | J200: -0.7384436289 | K200: 7380884
A201: Central City Improvement District | I201: 0
... 54 more rows

Sheet C3-FinPerf V
A1: =muni& " - "&S71C& " - "&date -> NW375 Moses Kotane - Table C3 Monthly Budget Statement - Financial Performance (revenue and expenditure by municipal vote) - M07 January
A2: =Vdesc -> Vote Description | B2: =head27 -> Ref | C2: =Head1 -> 2019/20 | D2: =Head2 -> Budget Year 2020/21
C3: =Head5 -> Audited Outcome | D3: =Head6 -> Original Budget | E3: =Head7 -> Adjusted Budget | F3: =Head38 -> Monthly actual | G3: =Head39 -> YearTD actual | H3: =Head40 -> YearTD budget | I3: =Head41 -> YTD variance | J3: =Head41 -> YTD variance | K3: =Head8 -> Full Year Forecast
A4: R thousands | J4: %
A5: Revenue by Vote | B5: 1
A6: ='Org structure'!A2 -> Vote 01 - Municipal Council | C6: ='C3C'!C6 -> 1559133.26 | D6: ='C3C'!D6 -> 1827000 | E6: ='C3C'!E6 -> 1827000 | F6: ='C3C'!F6 -> 0 | G6: ='C3C'!G6 -> 1096370.07 | H6: ='C3C'!H6 -> 1065743 | I6: =G6-H6 -> 30627.07 | J6: =IF(I6=0,"",I6/H6) -> 0.02873776323 | K6: ='C3C'!K6 -> 1827000
A7: ='Org structure'!A3 -> Vote 02 - Office Of The Accounting Officer | C7: ='C3C'!C12 -> 0 | D7: ='C3C'!D12 -> 0 | E7: ='C3C'!E12 -> 0 | F7: ='C3C'!F12 -> 0 | G7: ='C3C'!G12 -> 0 | H7: ='C3C'!H12 -> 0 | I7: 0 | K7: ='C3C'!K12 -> 0
A8: ='Org structure'!A4 -> Vote 03 - Budget And Treasury Office | C8: ='C3C'!C19 -> 480028747.6 | D8: ='C3C'!D19 -> 505811125 | E8: ='C3C'!E19 -> 546321970 | F8: ='C3C'!F19 -> 17858257.05 | G8: ='C3C'!G19 -> 452079944.8 | H8: ='C3C'!H19 -> 315311834.5 | I8: 136768110.3 | J8: 0.4337550811 | K8: ='C3C'!K19 -> 546321970
A9: ='Org structure'!A5 -> Vote 04 - Corporate Services | C9: ='C3C'!C27 -> 640242.92 | D9: ='C3C'!D27 -> 500000 | E9: ='C3C'!E27 -> 500000 | F9: ='C3C'!F27 -> 0 | G9: ='C3C'!G27 -> 0 | H9: ='C3C'!H27 -> 291662 | I9: -291662 | J9: -1 | K9: ='C3C'!K27 -> 500000
A10: ='Org structure'!A6 -> Vote 05 - Community Services | C10: ='C3C'!C36 -> 101235153.4 | D10: ='C3C'!D36 -> 94546694 | E10: ='C3C'!E36 -> 104315494 | F10: ='C3C'!F36 -> 1800602.22 | G10: ='C3C'!G36 -> 75885920.61 | H10: ='C3C'!H36 -> 60036595 | I10: 15849325.61 | J10: 0.2639944122 | K10: ='C3C'!K36 -> 104315494
A11: ='Org structure'!A7 -> Vote 06 - Planning & Development | C11: ='C3C'!C51 -> 133969.78 | D11: ='C3C'!D51 -> 100000 | E11: ='C3C'!E51 -> 100000 | F11: ='C3C'!F51 -> 1043.48 | G11: ='C3C'!G51 -> 44598.94 | H11: ='C3C'!H51 -> 58331 | I11: -13732.06 | J11: -0.2354161595 | K11: ='C3C'!K51 -> 100000
A12: ='Org structure'!A8 -> Vote 07 - Infrastructure & Technical Services | C12: ='C3C'!C62 -> 411929707.1 | D12: ='C3C'!D62 -> 475491026 | E12: ='C3C'!E62 -> 507856381 | F12: ='C3C'!F62 -> 18287109.81 | G12: ='C3C'!G62 -> 130078160.5 | H12: ='C3C'!H62 -> 293552392.5 | I12: -163474232 | J12: -0.5568826422 | K12: ='C3C'!K62 -> 507856381
A13: ='Org structure'!A9 -> Vote 08 - | C13: ='C3C'!C82 -> 0 | D13: ='C3C'!D82 -> 0 | E13: ='C3C'!E82 -> 0 | F13: ='C3C'!F82 -> 0 | G13: ='C3C'!G82 -> 0 | H13: ='C3C'!H82 -> 0 | I13: =G13-H13 -> 0 | J13: =IF(I13=0,"",I13/H13) ->  | K13: ='C3C'!K82 -> 0
A14: ='Org structure'!A10 -> Vote 09 - | C14: ='C3C'!C83 -> 0 | D14: ='C3C'!D83 -> 0 | E14: ='C3C'!E83 -> 0 | F14: ='C3C'!F83 -> 0 | G14: ='C3C'!G83 -> 0 | H14: ='C3C'!H83 -> 0 | I14: 0 | K14: ='C3C'!K83 -> 0
A15: ='Org structure'!A11 -> Vote 10 - | C15: ='C3C'!C84 -> 0 | D15: ='C3C'!D84 -> 0 | E15: ='C3C'!E84 -> 0 | F15: ='C3C'!F84 -> 0 | G15: ='C3C'!G84 -> 0 | H15: ='C3C'!H84 -> 0 | I15: 0 | K15: ='C3C'!K84 -> 0
A16: ='Org structure'!A12 -> Vote 11 - | C16: ='C3C'!C85 -> 0 | D16: ='C3C'!D85 -> 0 | E16: ='C3C'!E85 -> 0 | F16: ='C3C'!F85 -> 0 | G16: ='C3C'!G85 -> 0 | H16: ='C3C'!H85 -> 0 | I16: 0 | K16: ='C3C'!K85 -> 0
A17: ='Org structure'!A13 -> Vote 12 - | C17: ='C3C'!C86 -> 0 | D17: ='C3C'!D86 -> 0 | E17: ='C3C'!E86 -> 0 | F17: ='C3C'!F86 -> 0 | G17: ='C3C'!G86 -> 0 | H17: ='C3C'!H86 -> 0 | I17: 0 | K17: ='C3C'!K86 -> 0
A18: ='Org structure'!A14 -> Vote 13 - | C18: ='C3C'!C87 -> 0 | D18: ='C3C'!D87 -> 0 | E18: ='C3C'!E87 -> 0 | F18: ='C3C'!F87 -> 0 | G18: ='C3C'!G87 -> 0 | H18: ='C3C'!H87 -> 0 | I18: 0 | K18: ='C3C'!K87 -> 0
A19: ='Org structure'!A15 -> Vote 14 - | C19: ='C3C'!C88 -> 0 | D19: ='C3C'!D88 -> 0 | E19: ='C3C'!E88 -> 0 | F19: ='C3C'!F88 -> 0 | G19: ='C3C'!G88 -> 0 | H19: ='C3C'!H88 -> 0 | I19: 0 | K19: ='C3C'!K88 -> 0
A20: ='Org structure'!A16 -> Vote 15 - Other | C20: ='C3C'!C89 -> 0 | D20: ='C3C'!D89 -> 0 | E20: ='C3C'!E89 -> 0 | F20: ='C3C'!F89 -> 0 | G20: ='C3C'!G89 -> 0 | H20: ='C3C'!H89 -> 0 | I20: 0 | K20: ='C3C'!K89 -> 0
A21: Total Revenue by Vote | B21: 2 | C21: =SUM(C6:C20) -> 995526954.1 | D21: =SUM(D6:D20) -> 1078275845 | E21: 1160920845 | F21: 37947012.56 | G21: 659184995 | H21: 670316558 | I21: -11131563.02 | J21: -0.01660642705 | K21: =SUM(K6:K20) -> 1160920845
A23: Expenditure by Vote | B23: 1
A24: ='Org structure'!A2 -> Vote 01 - Municipal Council | C24: ='C3C'!C93 -> 69361549.31 | D24: ='C3C'!D93 -> 60486020 | E24: ='C3C'!E93 -> 69322020 | F24: ='C3C'!F93 -> 4654306.71 | G24: ='C3C'!G93 -> 37634512.84 | H24: ='C3C'!H93 -> 39701696 | I24: =G24-H24 -> -2067183.16 | J24: =IF(I24=0,"",I24/H24) -> -0.05206788043 | K24: ='C3C'!K93 -> 69322020
A25: ='Org structure'!A3 -> Vote 02 - Office Of The Accounting Officer | C25: ='C3C'!C99 -> 21666626.51 | D25: ='C3C'!D99 -> 22678311 | E25: ='C3C'!E99 -> 24508311 | F25: ='C3C'!F99 -> 1136616.01 | G25: ='C3C'!G99 -> 9310757.27 | H25: ='C3C'!H99 -> 14144202 | I25: -4833444.73 | J25: -0.3417262232 | K25: ='C3C'!K99 -> 24508311
A26: ='Org structure'!A4 -> Vote 03 - Budget And Treasury Office | C26: ='C3C'!C106 -> 111788095.3 | D26: ='C3C'!D106 -> 140405027 | E26: ='C3C'!E106 -> 142718895 | F26: ='C3C'!F106 -> 48710618.42 | G26: ='C3C'!G106 -> 88294885.83 | H26: ='C3C'!H106 -> 83060028 | I26: 5234857.83 | J26: 0.06302499477 | K26: ='C3C'!K106 -> 142718895
A27: ='Org structure'!A5 -> Vote 04 - Corporate Services | C27: ='C3C'!C114 -> 114403634.7 | D27: ='C3C'!D114 -> 82262312 | E27: ='C3C'!E114 -> 91013312 | F27: ='C3C'!F114 -> 7603663.37 | G27: ='C3C'!G114 -> 40937750.47 | H27: ='C3C'!H114 -> 52361991 | I27: -11424240.53 | J27: -0.2181781157 | K27: ='C3C'!K114 -> 91013312
A28: ='Org structure'!A6 -> Vote 05 - Community Services | C28: ='C3C'!C123 -> 170571230 | D28: ='C3C'!D123 -> 148339408 | E28: ='C3C'!E123 -> 158268208 | F28: ='C3C'!F123 -> 24521525.28 | G28: ='C3C'!G123 -> 82797587.21 | H28: ='C3C'!H123 -> 91496048 | I28: -8698460.79 | J28: -0.09506925141 | K28: ='C3C'!K123 -> 158268208
A29: ='Org structure'!A7 -> Vote 06 - Planning & Development | C29: ='C3C'!C138 -> 17223219.06 | D29: ='C3C'!D138 -> 24919438 | E29: ='C3C'!E138 -> 24919438 | F29: ='C3C'!F138 -> 1568949.26 | G29: ='C3C'!G138 -> 11326433.78 | H29: ='C3C'!H138 -> 14536494 | I29: -3210060.22 | J29: -0.2208276783 | K29: ='C3C'!K138 -> 24919438
A30: ='Org structure'!A8 -> Vote 07 - Infrastructure & Technical Services | C30: ='C3C'!C149 -> 501141267.7 | D30: ='C3C'!D149 -> 375886746 | E30: ='C3C'!E149 -> 406317563 | F30: ='C3C'!F149 -> 141960428.7 | G30: ='C3C'!G149 -> 244737360.5 | H30: ='C3C'!H149 -> 234482939.5 | I30: 10254420.97 | J30: 0.0437320557 | K30: ='C3C'!K149 -> 406317563
A31: ='Org structure'!A9 -> Vote 08 - | C31: ='C3C'!C169 -> 0 | D31: ='C3C'!D169 -> 0 | E31: ='C3C'!E169 -> 0 | F31: ='C3C'!F169 -> 0 | G31: ='C3C'!G169 -> 0 | H31: ='C3C'!H169 -> 0 | I31: =G31-H31 -> 0 | J31: =IF(I31=0,"",I31/H31) ->  | K31: ='C3C'!K169 -> 0
A32: ='Org structure'!A10 -> Vote 09 - | C32: ='C3C'!C170 -> 0 | D32: ='C3C'!D170 -> 0 | E32: ='C3C'!E170 -> 0 | F32: ='C3C'!F170 -> 0 | G32: ='C3C'!G170 -> 0 | H32: ='C3C'!H170 -> 0 | I32: 0 | K32: ='C3C'!K170 -> 0
A33: ='Org structure'!A11 -> Vote 10 - | C33: ='C3C'!C171 -> 0 | D33: ='C3C'!D171 -> 0 | E33: ='C3C'!E171 -> 0 | F33: ='C3C'!F171 -> 0 | G33: ='C3C'!G171 -> 0 | H33: ='C3C'!H171 -> 0 | I33: 0 | J33: =IF(I33=0,"",I33/H33) ->  | K33: ='C3C'!K171 -> 0
A34: ='Org structure'!A12 -> Vote 11 - | C34: ='C3C'!C172 -> 0 | D34: ='C3C'!D172 -> 0 | E34: ='C3C'!E172 -> 0 | F34: ='C3C'!F172 -> 0 | G34: ='C3C'!G172 -> 0 | H34: ='C3C'!H172 -> 0 | I34: 0 | J34: =IF(I34=0,"",I34/H34) ->  | K34: ='C3C'!K172 -> 0
A35: ='Org structure'!A13 -> Vote 12 - | C35: ='C3C'!C173 -> 0 | D35: ='C3C'!D173 -> 0 | E35: ='C3C'!E173 -> 0 | F35: ='C3C'!F173 -> 0 | G35: ='C3C'!G173 -> 0 | H35: ='C3C'!H173 -> 0 | I35: 0 | J35: =IF(I35=0,"",I35/H35) ->  | K35: ='C3C'!K173 -> 0
A36: ='Org structure'!A14 -> Vote 13 - | C36: ='C3C'!C174 -> 0 | D36: ='C3C'!D174 -> 0 | E36: ='C3C'!E174 -> 0 | F36: ='C3C'!F174 -> 0 | G36: ='C3C'!G174 -> 0 | H36: ='C3C'!H174 -> 0 | I36: 0 | J36: =IF(I36=0,"",I36/H36) ->  | K36: ='C3C'!K174 -> 0
A37: ='Org structure'!A15 -> Vote 14 - | C37: ='C3C'!C175 -> 0 | D37: ='C3C'!D175 -> 0 | E37: ='C3C'!E175 -> 0 | F37: ='C3C'!F175 -> 0 | G37: ='C3C'!G175 -> 0 | H37: ='C3C'!H175 -> 0 | I37: 0 | J37: =IF(I37=0,"",I37/H37) ->  | K37: ='C3C'!K175 -> 0
A38: ='Org structure'!A16 -> Vote 15 - Other | C38: ='C3C'!C176 -> 0 | D38: ='C3C'!D176 -> 0 | E38: ='C3C'!E176 -> 0 | F38: ='C3C'!F176 -> 0 | G38: ='C3C'!G176 -> 0 | H38: ='C3C'!H176 -> 0 | I38: 0 | K38: ='C3C'!K176 -> 0
A39: Total Expenditure by Vote | B39: 2 | C39: =SUM(C24:C38) -> 1006155623 | D39: =SUM(D24:D38) -> 854977262 | E39: 917067747 | F39: 230156107.7 | G39: 515039287.9 | H39: 529783398.5 | I39: -14744110.63 | J39: =IF(I39=0,"",I39/H39) -> -0.02783045047 | K39: =SUM(K24:K38) -> 917067747
A40: =result -> Surplus/ (Deficit) for the year | B40: 2 | C40: =C21-C39 -> -10628668.5 | D40: 223298583 | E40: 243853098 | F40: -192209095.1 | G40: 144145707.1 | H40: 140533159.5 | I40: =I21-I39 -> 3612547.61 | J40: =IF(I40=0,"",I40/H40) -> 0.02570601574 | K40: =K21-K39 -> 243853098
A41: =head27a -> References
A42: 1. Insert 'Vote'; e.g. Department, if different to standard classification structure
A43: 2. Must reconcile to Monthly Budget Statement - Financial Performance Statement (standard classification)

Sheet C3C
A1: =muni& " - "&S71C& " - "&"A"& " - "&date -> NW375 Moses Kotane - Table C3 Monthly Budget Statement - Financial Performance (revenue and expenditure by municipal vote) - A - M07 January
A2: =Vdesc -> Vote Description | B2: =head27 -> Ref | C2: =Head1 -> 2019/20 | D2: =Head2 -> Budget Year 2020/21 | L2: =Head4 -> 
A3: R thousand | C3: =Head5 -> Audited Outcome | D3: =Head6 -> Original Budget | E3: =Head7 -> Adjusted Budget | F3: =Head38 -> Monthly actual | G3: =Head39 -> YearTD actual | H3: =Head40 -> YearTD budget | I3: =Head41 -> YTD variance | J3: =Head41 -> YTD variance | K3: =Head8 -> Full Year Forecast | L3: =Head12 -> Forecast 2010/11 | M3: =Head13 -> Forecast 2011/12 | N3: =Head14 -> Forecast 2012/13 | O3: =Head15 -> Forecast 2013/14 | P3: =Head16 -> Forecast 2014/15 | Q3: =Head17 -> Forecast 2015/16 | R3: =Head18 -> Forecast 2016/17 | S3: =Head19 -> Forecast 2017/18 | T3: =Head20 -> Forecast 2018/19 | U3: =Head21 -> Forecast 2019/20 | V3: =Head22 -> Forecast 2020/21 | W3: =Head23 -> Forecast 2021/22
J4: %
A5: Revenue by Vote | B5: 1
A6: ='Org structure'!A2 -> Vote 01 - Municipal Council | C6: =SUM(C7:C11) -> 1559133.26 | D6: 1827000 | E6: 1827000 | F6: 0 | G6: 1096370.07 | H6: 1065743 | I6: =G6-H6 -> 30627.07 | J6: =IF(I6=0,"",I6/H6) -> 0.02873776323 | K6: =SUM(K7:K11) -> 1827000
A7: ='Org structure'!E3 -> 01.1 - Office Of The Mayor | C7: 1559133.26 | D7: 1827000 | E7: 1827000 | F7: 0 | G7: 1096370.07 | H7: 1065750 | I7: =G7-H7 -> 30620.07 | J7: =IF(I7=0,"",I7/H7) -> 0.02873100633 | K7: 1827000
A8: ='Org structure'!E4 -> 01.2 - Office Of The Speaker | C8: 0 | D8: 0 | E8: 0 | F8: 0 | G8: 0 | H8: 0 | I8: =G8-H8 -> 0 | J8: =IF(I8=0,"",I8/H8) ->  | K8: 0
A9: ='Org structure'!E5 -> 01.3 - Office Of The Chief Whip | C9: 0 | D9: 0 | E9: 0 | F9: 0 | G9: 0 | H9: 0 | I9: =G9-H9 -> 0 | J9: =IF(I9=0,"",I9/H9) ->  | K9: 0
A10: ='Org structure'!E6 -> 01.4 - Mpac | C10: 0 | D10: 0 | E10: 0 | F10: 0 | G10: 0 | H10: 0 | I10: =G10-H10 -> 0 | J10: =IF(I10=0,"",I10/H10) ->  | K10: 0
A11: ='Org structure'!E7 -> 01.5 - Council General Administration | C11: 0 | D11: 0 | E11: 0 | F11: 0 | G11: 0 | H11: -7 | I11: =G11-H11 -> 7 | J11: =IF(I11=0,"",I11/H11) -> -1 | K11: 0
A12: ='Org structure'!A3 -> Vote 02 - Office Of The Accounting Officer | C12: =SUM(C13:C18) -> 0 | D12: 0 | E12: 0 | F12: 0 | G12: 0 | H12: 0 | I12: 0 | K12: =SUM(K13:K18) -> 0
A13: ='Org structure'!E9 -> 02.1 - Office Of The Ao Admin | C13: 0 | D13: 0 | E13: 0 | F13: 0 | G13: 0 | H13: 0 | I13: =G13-H13 -> 0 | J13: =IF(I13=0,"",I13/H13) ->  | K13: 0
A14: ='Org structure'!E10 -> 02.2 - Strategic Planning Monitoring & Evaluat | C14: 0 | D14: 0 | E14: 0 | F14: 0 | G14: 0 | H14: 0 | I14: 0 | K14: 0
A15: ='Org structure'!E11 -> 02.3 - Perfomance Management System | C15: 0 | D15: 0 | E15: 0 | F15: 0 | G15: 0 | H15: 0 | I15: 0 | K15: 0
A16: ='Org structure'!E12 -> 02.4 - Internal Audit | C16: 0 | D16: 0 | E16: 0 | F16: 0 | G16: 0 | H16: 0 | I16: 0 | K16: 0
A17: ='Org structure'!E13 -> 02.5 - Municipal Planning Idp | C17: 0 | D17: 0 | E17: 0 | F17: 0 | G17: 0 | H17: 0 | I17: 0 | K17: 0
A18: ='Org structure'!E14 -> 02.6 - Risk | C18: 0 | D18: 0 | E18: 0 | F18: 0 | G18: 0 | H18: 0 | I18: 0 | K18: 0
A19: ='Org structure'!A4 -> Vote 03 - Budget And Treasury Office | C19: =SUM(C20:C26) -> 480028747.6 | D19: 505811125 | E19: 546321970 | F19: 17858257.05 | G19: 452079944.8 | H19: 315311834.5 | I19: 136768110.3 | J19: 0.4337550811 | K19: =SUM(K20:K26) -> 546321970
A20: ='Org structure'!E16 -> 03.1 - Chief Financial Officer Admin | C20: 142550211.7 | D20: 148602075 | E20: 148602075 | F20: 12099935.62 | G20: 84208675.9 | H20: 86684500 | I20: =G20-H20 -> -2475824.1 | J20: =IF(I20=0,"",I20/H20) -> -0.02856132411 | K20: 148602075
A21: ='Org structure'!E17 -> 03.2 - Budget Expenditure & Reporting | C21: 0 | D21: 0 | E21: 0 | F21: 0 | G21: 0 | H21: 0 | I21: 0 | K21: 0
A22: ='Org structure'!E18 -> 03.3 - Budget Expenditure & Reporting | C22: 0 | D22: 0 | E22: 0 | F22: 0 | G22: 0 | H22: 0 | I22: 0 | K22: 0
A23: ='Org structure'!E19 -> 03.4 - Revenue Management | C23: 337478535.8 | D23: 357209050 | E23: 397719895 | F23: 5758321.43 | G23: 367871268.9 | H23: 228627334.5 | I23: 139243934.4 | J23: 0.6090432482 | K23: 397719895
A24: ='Org structure'!E20 -> 03.5 - Supply Chain Management | C24: 0 | D24: 0 | E24: 0 | F24: 0 | G24: 0 | H24: 0 | I24: 0 | K24: 0
A25: ='Org structure'!E21 -> 03.6 - Assets Management | C25: 0 | D25: 0 | E25: 0 | F25: 0 | G25: 0 | H25: 0 | I25: 0 | K25: 0
A26: ='Org structure'!E22 -> 03.7 - Expenditure | C26: 0 | D26: 0 | E26: 0 | F26: 0 | G26: 0 | H26: 0 | I26: 0 | K26: 0
A27: ='Org structure'!A5 -> Vote 04 - Corporate Services | C27: =SUM(C28:C35) -> 640242.92 | D27: 500000 | E27: 500000 | F27: 0 | G27: 0 | H27: 291662 | I27: -291662 | J27: -1 | K27: =SUM(K28:K35) -> 500000
A28: ='Org structure'!E24 -> 04.1 - Legal Services | C28: 0 | D28: 0 | E28: 0 | F28: 0 | G28: 0 | H28: 0 | I28: =G28-H28 -> 0 | J28: =IF(I28=0,"",I28/H28) ->  | K28: 0
A29: ='Org structure'!E25 -> 04.2 - Corporate Service Administration | C29: 0 | D29: 0 | E29: 0 | F29: 0 | G29: 0 | H29: 0 | I29: 0 | K29: 0
A30: ='Org structure'!E26 -> 04.3 - Human Resources | C30: 640242.92 | D30: 500000 | E30: 500000 | F30: 0 | G30: 0 | H30: 291662 | I30: -291662 | J30: -1 | K30: 500000
A31: ='Org structure'!E27 -> 04.4 - Media & Communication | C31: 0 | D31: 0 | E31: 0 | F31: 0 | G31: 0 | H31: 0 | I31: 0 | K31: 0
A32: ='Org structure'!E28 -> 04.5 - Organisational Development | C32: 0 | D32: 0 | E32: 0 | F32: 0 | G32: 0 | H32: 0 | I32: 0 | K32: 0
A33: ='Org structure'!E29 -> 04.6 - Labour Relations | C33: 0 | D33: 0 | E33: 0 | F33: 0 | G33: 0 | H33: 0 | I33: 0 | K33: 0
A34: ='Org structure'!E30 -> 04.7 - Legal Services | C34: 0 | D34: 0 | E34: 0 | F34: 0 | G34: 0 | H34: 0 | I34: 0 | K34: 0
A35: ='Org structure'!E31 -> 04.8 - Information Technology Services | C35: 0 | D35: 0 | E35: 0 | F35: 0 | G35: 0 | H35: 0 | I35: 0 | K35: 0
A36: ='Org structure'!A6 -> Vote 05 - Community Services | C36: =SUM(C37:C50) -> 101235153.4 | D36: 94546694 | E36: 104315494 | F36: 1800602.22 | G36: 75885920.61 | H36: 60036595 | I36: 15849325.61 | J36: 0.2639944122 | K36: =SUM(K37:K50) -> 104315494
A37: ='Org structure'!E33 -> 05.1 - Municipal Buildings | C37: 29638422.81 | D37: 7223512 | E37: 7223512 | F37: 0 | G37: 0 | H37: 4213713 | I37: =G37-H37 -> -4213713 | J37: =IF(I37=0,"",I37/H37) -> -1 | K37: 7223512
A38: ='Org structure'!E34 -> 05.2 - Fleet Management | C38: 290000 | D38: 0 | E38: 0 | F38: 0 | G38: 0 | H38: 0 | I38: 0 | K38: 0
A39: ='Org structure'!E35 -> 05.3 - Community Services Administration | C39: 0 | D39: 0 | E39: 0 | F39: 0 | G39: 0 | H39: 0 | I39: 0 | K39: 0
A40: ='Org structure'!E36 -> 05.4 - Cemeteries | C40: 11727.79 | D40: 10000 | E40: 10000 | F40: 4956.55 | G40: 8021.77 | H40: 5831 | I40: 2190.77 | J40: 0.3757108558 | K40: 10000
A41: ='Org structure'!E37 -> 05.5 - Disaster Management | C41: 0 | D41: 0 | E41: 0 | F41: 0 | G41: 0 | H41: 0 | I41: 0 | K41: 0
A42: ='Org structure'!E38 -> 05.6 - Fires Service | C42: 0 | D42: 0 | E42: 0 | F42: 0 | G42: 0 | H42: 0 | I42: 0 | K42: 0
A43: ='Org structure'!E39 -> 05.7 - Libraries | C43: 671391.64 | D43: 40000 | E43: 40000 | F43: 0 | G43: 7217.39 | H43: 23331 | I43: -16113.61 | J43: -0.6906523509 | K43: 40000
A44: ='Org structure'!E40 -> 05.8 - Municipal Buildings | C44: 0 | D44: 0 | E44: 0 | F44: 0 | G44: 0 | H44: 0 | I44: 0 | K44: 0
A45: ='Org structure'!E41 -> 05.9 - Sports Recreation & Social Amenitie | C45: 5859.31 | D45: 9898475 | E45: 9898475 | F45: 0 | G45: 0 | H45: 5774097 | I45: -5774097 | J45: -1 | K45: 9898475
A46: ='Org structure'!E42 -> 05.10 - Waste Management Solid Waste | C46: 65004341.87 | D46: 74324707 | E46: 84093507 | F46: 909045.67 | G46: 74984081.45 | H46: 48240461 | I46: 26743620.45 | J46: 0.5543815274 | K46: 84093507
A47: ='Org structure'!E43 -> 05.11 - Safety And Security | C47: 0 | D47: 0 | E47: 0 | F47: 0 | G47: 0 | H47: 0 | I47: 0 | K47: 0
A48: ='Org structure'!E44 -> 05.12 - Traffic Service | C48: 0 | D48: 0 | E48: 0 | F48: 0 | G48: 0 | H48: 0 | I48: 0 | K48: 0
A49: ='Org structure'!E45 -> 05.13 - Traffic Service | C49: 5613410 | D49: 3050000 | E49: 3050000 | F49: 886600 | G49: 886600 | H49: 1779162 | I49: -892562 | J49: -0.5016755079 | K49: 3050000
A50: ='Org structure'!E46 -> 05.14 - Fleet Management | C50: 0 | D50: 0 | E50: 0 | F50: 0 | G50: 0 | H50: 0 | I50: 0 | K50: 0
A51: ='Org structure'!A7 -> Vote 06 - Planning & Development | C51: =SUM(C52:C61) -> 133969.78 | D51: 100000 | E51: 100000 | F51: 1043.48 | G51: 44598.94 | H51: 58331 | I51: -13732.06 | J51: -0.2354161595 | K51: =SUM(K52:K61) -> 100000
A52: ='Org structure'!E48 -> 06.1 - Planning And Development Admin | C52: 0 | D52: 0 | E52: 0 | F52: 0 | G52: 0 | H52: 0 | I52: =G52-H52 -> 0 | J52: =IF(I52=0,"",I52/H52) ->  | K52: 0
A53: ='Org structure'!E49 -> 06.2 - Municipal Planning Idp | C53: 0 | D53: 0 | E53: 0 | F53: 0 | G53: 0 | H53: 0 | I53: 0 | K53: 0
A54: ='Org structure'!E50 -> 06.3 - Pms | C54: 0 | D54: 0 | E54: 0 | F54: 0 | G54: 0 | H54: 0 | I54: 0 | K54: 0
A55: ='Org structure'!E51 -> 06.4 - Town Planning | C55: 133969.78 | D55: 100000 | E55: 100000 | F55: 1043.48 | G55: 44598.94 | H55: 58331 | I55: -13732.06 | J55: -0.2354161595 | K55: 100000
A56: ='Org structure'!E52 -> 06.5 - Land Use And Housing Admin | C56: 0 | D56: 0 | E56: 0 | F56: 0 | G56: 0 | H56: 0 | I56: 0 | K56: 0
A57: ='Org structure'!E53 -> 06.6 - Local Economic Development | C57: 0 | D57: 0 | E57: 0 | F57: 0 | G57: 0 | H57: 0 | I57: 0 | K57: 0
A58: ='Org structure'!E54 -> 06.7 - Led | C58: 0 | D58: 0 | E58: 0 | F58: 0 | G58: 0 | H58: 0 | I58: 0 | K58: 0
A59: ='Org structure'!E55 -> 06.8 - Agriculture & Rural Development | C59: 0 | D59: 0 | E59: 0 | F59: 0 | G59: 0 | H59: 0 | I59: 0 | K59: 0
A60: ='Org structure'!E56 -> 06.9 - Tourism & Business Development | C60: 0 | D60: 0 | E60: 0 | F60: 0 | G60: 0 | H60: 0 | I60: 0 | K60: 0
A61: ='Org structure'!E57 -> 06.10 - Arts & Culture | C61: 0 | D61: 0 | E61: 0 | F61: 0 | G61: 0 | H61: 0 | I61: 0 | K61: 0
A62: ='Org structure'!A8 -> Vote 07 - Infrastructure & Technical Services | C62: =SUM(C63:C81) -> 411929707.1 | D62: 475491026 | E62: 507856381 | F62: 18287109.81 | G62: 130078160.5 | H62: 293552392.5 | I62: =G62-H62 -> -163474232 | J62: =IF(I62=0,"",I62/H62) -> -0.5568826422 | K62: =SUM(K63:K81) -> 507856381
A63: ='Org structure'!E59 -> 07.1 - Infrastructure Admin & Tech Admin | C63: 0 | D63: 0 | E63: 0 | F63: 0 | G63: 0 | H63: 0 | I63: =G63-H63 -> 0 | J63: =IF(I63=0,"",I63/H63) ->  | K63: 0
A64: ='Org structure'!E60 -> 07.2 - Fleet Management | C64: 0 | D64: 0 | E64: 0 | F64: 0 | G64: 0 | H64: 0 | I64: 0 | K64: 0
A65: ='Org structure'!E61 -> 07.3 - Roads | C65: 51989682.01 | D65: 60981782 | E65: 60981782 | F65: 0 | G65: 0 | H65: 35572705 | I65: -35572705 | J65: -1 | K65: 60981782
A66: ='Org structure'!E62 -> 07.4 - Storm Water | C66: 0 | D66: 0 | E66: 0 | F66: 0 | G66: 0 | H66: 0 | I66: 0 | K66: 0
A67: ='Org structure'!E63 -> 07.5 - Street Lighting | C67: 15484099.17 | D67: 12265741 | E67: 12265741 | F67: 0 | G67: 0 | H67: 7155015 | I67: -7155015 | J67: -1 | K67: 12265741
A68: ='Org structure'!E64 -> 07.6 - Project Management Unit | C68: 3342534.91 | D68: 4178767 | E68: 4178767 | F68: 0 | G68: 0 | H68: 2437610 | I68: -2437610 | J68: -1 | K68: 4178767
A69: ='Org structure'!E65 -> 07.7 - Sanitation Treatment Plant: Mogwase | C69: 0 | D69: 0 | E69: 0 | F69: 0 | G69: 0 | H69: 0 | I69: 0 | K69: 0
A70: ='Org structure'!E66 -> 07.8 - Sanitation Treatment Plant: Madikwe | C70: 0 | D70: 0 | E70: 0 | F70: 0 | G70: 0 | H70: 0 | I70: 0 | K70: 0
A71: ='Org structure'!E67 -> 07.9 - Sanitation Reticulation | C71: 28295147.57 | D71: 47377755 | E71: 47377755 | F71: 301653.22 | G71: 20827939.27 | H71: 27637008 | I71: -6809068.73 | J71: -0.246375032 | K71: 47377755
A72: ='Org structure'!E68 -> 07.10 - Water Administration | C72: 224818243.5 | D72: 254799981 | E72: 254799981 | F72: 17985456.59 | G72: 96234866.26 | H72: 148633303 | I72: -52398436.74 | J72: -0.3525349682 | K72: 254799981
A73: ='Org structure'!E69 -> 07.11 - Water Madikwe: Water Treatment Work | C73: 0 | D73: 0 | E73: 0 | F73: 0 | G73: 0 | H73: 0 | I73: 0 | K73: 0
A74: ='Org structure'!E70 -> 07.12 - Water: Pella Water Treatment Works | C74: 0 | D74: 0 | E74: 0 | F74: 0 | G74: 0 | H74: 0 | I74: 0 | K74: 0
A75: ='Org structure'!E71 -> 07.13 - Water: Madikwe Retail & Bulk Lines | C75: 0 | D75: 0 | E75: 0 | F75: 0 | G75: 0 | H75: 0 | I75: 0 | K75: 0
A76: ='Org structure'!E72 -> 07.14 - Water: Madikwe Rural | C76: 0 | D76: 0 | E76: 0 | F76: 0 | G76: 0 | H76: 0 | I76: 0 | K76: 0
A77: ='Org structure'!E73 -> 07.15 - Water: Molatedi | C77: 0 | D77: 0 | E77: 0 | F77: 0 | G77: 0 | H77: 0 | I77: 0 | K77: 0
A78: ='Org structure'!E74 -> 07.16 - Water Eastern: Retail Mankwe | C78: 0 | D78: 0 | E78: 0 | F78: 0 | G78: 0 | H78: 0 | I78: 0 | K78: 0
A79: ='Org structure'!E75 -> 07.17 - Water Vaalkopdam: Mankwe | C79: 0 | D79: 0 | E79: 0 | F79: 0 | G79: 0 | H79: 0 | I79: 0 | K79: 0
A80: ='Org structure'!E76 -> 07.18 - Water Eastern: Retail Mankwe | C80: 88000000 | D80: 95887000 | E80: 128252355 | F80: 0 | G80: 13015355 | H80: 72116751.5 | I80: -59101396.5 | J80: -0.8195238314 | K80: 128252355
A81: ='Org structure'!E77 -> 07.19 - Reporting Function Electricity | C81: 0 | D81: 0 | E81: 0 | F81: 0 | G81: 0 | H81: 0 | I81: 0 | K81: 0
A82: ='Org structure'!A9 -> Vote 08 - | C82: 0 | D82: 0 | E82: 0 | F82: 0 | G82: 0 | H82: 0 | I82: 0 | K82: 0
A83: ='Org structure'!A10 -> Vote 09 - | C83: 0 | D83: 0 | E83: 0 | F83: 0 | G83: 0 | H83: 0 | I83: 0 | K83: 0
A84: ='Org structure'!A11 -> Vote 10 - | C84: 0 | D84: 0 | E84: 0 | F84: 0 | G84: 0 | H84: 0 | I84: 0 | K84: 0
A85: ='Org structure'!A12 -> Vote 11 - | C85: 0 | D85: 0 | E85: 0 | F85: 0 | G85: 0 | H85: 0 | I85: 0 | K85: 0
A86: ='Org structure'!A13 -> Vote 12 - | C86: 0 | D86: 0 | E86: 0 | F86: 0 | G86: 0 | H86: 0 | I86: 0 | K86: 0
A87: ='Org structure'!A14 -> Vote 13 - | C87: 0 | D87: 0 | E87: 0 | F87: 0 | G87: 0 | H87: 0 | I87: =G87-H87 -> 0 | J87: =IF(I87=0,"",I87/H87) ->  | K87: 0
A88: ='Org structure'!A15 -> Vote 14 - | C88: 0 | D88: 0 | E88: 0 | F88: 0 | G88: 0 | H88: 0 | I88: 0 | K88: 0
A89: ='Org structure'!A16 -> Vote 15 - Other | C89: 0 | D89: 0 | E89: 0 | F89: 0 | G89: 0 | H89: 0 | I89: 0 | K89: 0
A90: Total Revenue by Vote | B90: 2 | C90: =C6+C12+C19+C27+C36+C51+C62+C82+C83+C84+C85+C86+C87+C88+C89 -> 995526954.1 | D90: 1078275845 | E90: 1160920845 | F90: 37947012.56 | G90: 659184995 | H90: 670316558 | I90: -11131563.02 | J90: -0.01660642705 | K90: =K6+K12+K19+K27+K36+K51+K62+K82+K83+K84+K85+K86+K87+K88+K89 -> 1160920845
I91: 0
A92: Expenditure by Vote | B92: 1 | I92: 0
A93: ='Org structure'!A2 -> Vote 01 - Municipal Council | C93: =SUM(C94:C98) -> 69361549.31 | D93: 60486020 | E93: 69322020 | F93: 4654306.71 | G93: 37634512.84 | H93: 39701696 | I93: -2067183.16 | J93: -0.05206788043 | K93: =SUM(K94:K98) -> 69322020
A94: ='Org structure'!E3 -> 01.1 - Office Of The Mayor | C94: 7755490.13 | D94: 7468021 | E94: 9406021 | F94: 558374.79 | G94: 4509034.79 | H94: 5325394 | I94: =G94-H94 -> -816359.21 | J94: =IF(I94=0,"",I94/H94) -> -0.1532955515 | K94: 9406021
A95: ='Org structure'!E4 -> 01.2 - Office Of The Speaker | C95: 6088184.2 | D95: 6501849 | E95: 6701849 | F95: 652780.32 | G95: 4732681.94 | H95: 3892789 | I95: =G95-H95 -> 839892.94 | J95: =IF(I95=0,"",I95/H95) -> 0.2157560916 | K95: 6701849
A96: ='Org structure'!E5 -> 01.3 - Office Of The Chief Whip | C96: 1587093.48 | D96: 3311676 | E96: 3361676 | F96: 140959.64 | G96: 985007.48 | H96: 1956832 | I96: =G96-H96 -> -971824.52 | J96: =IF(I96=0,"",I96/H96) -> -0.4966315555 | K96: 3361676
A97: ='Org structure'!E6 -> 01.4 - Mpac | C97: 199140 | D97: 448000 | E97: 538000 | F97: 0 | G97: 0 | H97: 306338 | I97: =G97-H97 -> -306338 | J97: =IF(I97=0,"",I97/H97) -> -1 | K97: 538000
A98: ='Org structure'!E7 -> 01.5 - Council General Administration | C98: 53731641.5 | D98: 42756474 | E98: 49314474 | F98: 3302191.96 | G98: 27407788.63 | H98: 28220343 | I98: =G98-H98 -> -812554.37 | J98: =IF(I98=0,"",I98/H98) -> -0.02879321382 | K98: 49314474
A99: ='Org structure'!A3 -> Vote 02 - Office Of The Accounting Officer | C99: =SUM(C100:C105) -> 21666626.51 | D99: 22678311 | E99: 24508311 | F99: 1136616.01 | G99: 9310757.27 | H99: 14144202 | I99: -4833444.73 | J99: -0.3417262232 | K99: =SUM(K100:K105) -> 24508311
A100: ='Org structure'!E9 -> 02.1 - Office Of The Ao Admin | C100: 13399133.62 | D100: 12187364 | E100: 13927364 | F100: 615391.25 | G100: 5591567.6 | H100: 7979368 | I100: =G100-H100 -> -2387800.4 | J100: =IF(I100=0,"",I100/H100) -> -0.2992468075 | K100: 13927364
A101: ='Org structure'!E10 -> 02.2 - Strategic Planning Monitoring & Evaluat | C101: 0 | D101: 0 | E101: 0 | F101: 0 | G101: 0 | H101: 0 | I101: 0 | K101: 0
A102: ='Org structure'!E11 -> 02.3 - Perfomance Management System | C102: 4718746.83 | D102: 2373838 | E102: 2373838 | F102: 207034.82 | G102: 1515060.38 | H102: 1384775 | I102: 130285.38 | J102: 0.09408415085 | K102: 2373838
A103: ='Org structure'!E12 -> 02.4 - Internal Audit | C103: 3548746.06 | D103: 4025368 | E103: 4115368 | F103: 314189.94 | G103: 2204129.29 | H103: 2393164 | I103: -189034.71 | J103: -0.07898945079 | K103: 4115368
A104: ='Org structure'!E13 -> 02.5 - Municipal Planning Idp | C104: 0 | D104: 3149853 | E104: 3149853 | F104: 0 | G104: 0 | H104: 1837444 | I104: -1837444 | J104: -1 | K104: 3149853
A105: ='Org structure'!E14 -> 02.6 - Risk | C105: 0 | D105: 941888 | E105: 941888 | F105: 0 | G105: 0 | H105: 549451 | I105: -549451 | J105: -1 | K105: 941888
A106: ='Org structure'!A4 -> Vote 03 - Budget And Treasury Office | C106: =SUM(C107:C113) -> 111788095.3 | D106: 140405027 | E106: 142718895 | F106: 48710618.42 | G106: 88294885.83 | H106: 83060028 | I106: 5234857.83 | J106: 0.06302499477 | K106: =SUM(K107:K113) -> 142718895
A107: ='Org structure'!E16 -> 03.1 - Chief Financial Officer Admin | C107: 23513926.94 | D107: 6863583 | E107: 10523583 | F107: 1210789.2 | G107: 19338970.85 | H107: 5833804 | I107: =G107-H107 -> 13505166.85 | J107: =IF(I107=0,"",I107/H107) -> 2.314984674 | K107: 10523583
A108: ='Org structure'!E17 -> 03.2 - Budget Expenditure & Reporting | C108: 0 | D108: 0 | E108: 0 | F108: 0 | G108: 0 | H108: 0 | I108: 0 | K108: 0
A109: ='Org structure'!E18 -> 03.3 - Budget Expenditure & Reporting | C109: 4951789.32 | D109: 8403932 | E109: 8403932 | F109: 433031.7 | G109: 3216480.73 | H109: 4902324 | I109: -1685843.27 | J109: -0.3438865465 | K109: 8403932
A110: ='Org structure'!E19 -> 03.4 - Revenue Management | C110: 72458854.26 | D110: 105647963 | E110: 104301831 | F110: 46128291.77 | G110: 58243590.76 | H110: 60954955 | I110: -2711364.24 | J110: -0.04448144109 | K110: 104301831
A111: ='Org structure'!E20 -> 03.5 - Supply Chain Management | C111: 7794166.36 | D111: 7901614 | E111: 7901614 | F111: 653019.16 | G111: 4385767.33 | H111: 4609297 | I111: -223529.67 | J111: -0.04849539312 | K111: 7901614
A112: ='Org structure'!E21 -> 03.6 - Assets Management | C112: 3069358.44 | D112: 11587935 | E112: 11587935 | F112: 285486.59 | G112: 3110076.16 | H112: 6759648 | I112: -3649571.84 | J112: -0.5399056046 | K112: 11587935
A113: ='Org structure'!E22 -> 03.7 - Expenditure | C113: 0 | D113: 0 | E113: 0 | F113: 0 | G113: 0 | H113: 0 | I113: 0 | K113: 0
A114: ='Org structure'!A5 -> Vote 04 - Corporate Services | C114: =SUM(C115:C122) -> 114403634.7 | D114: 82262312 | E114: 91013312 | F114: 7603663.37 | G114: 40937750.47 | H114: 52361991 | I114: =G114-H114 -> -11424240.53 | J114: =IF(I114=0,"",I114/H114) -> -0.2181781157 | K114: =SUM(K115:K122) -> 91013312
A115: ='Org structure'!E24 -> 04.1 - Legal Services | C115: 1161607.3 | D115: 1309413 | E115: 1309413 | F115: 103603.25 | G115: 750249.07 | H115: 763833 | I115: =G115-H115 -> -13583.93 | J115: =IF(I115=0,"",I115/H115) -> -0.01778390041 | K115: 1309413
A116: ='Org structure'!E25 -> 04.2 - Corporate Service Administration | C116: 36611699.58 | D116: 37853775 | E116: 41157775 | F116: 2719911.23 | G116: 23679499.12 | H116: 23733437 | I116: -53937.88 | J116: -0.002272653556 | K116: 41157775
A117: ='Org structure'!E26 -> 04.3 - Human Resources | C117: 11312659.96 | D117: 15769578 | E117: 18216578 | F117: 746176.21 | G117: 6567948.36 | H117: 10422459 | I117: -3854510.64 | J117: -0.3698273738 | K117: 18216578
A118: ='Org structure'!E27 -> 04.4 - Media & Communication | C118: 0 | D118: 0 | E118: 0 | F118: 0 | G118: 0 | H118: 0 | I118: 0 | K118: 0
A119: ='Org structure'!E28 -> 04.5 - Organisational Development | C119: 0 | D119: 0 | E119: 0 | F119: 0 | G119: 0 | H119: 0 | I119: 0 | K119: 0
A120: ='Org structure'!E29 -> 04.6 - Labour Relations | C120: 0 | D120: 0 | E120: 0 | F120: 0 | G120: 0 | H120: 0 | I120: 0 | K120: 0
A121: ='Org structure'!E30 -> 04.7 - Legal Services | C121: 0 | D121: 0 | E121: 0 | F121: 0 | G121: 0 | H121: 0 | I121: 0 | K121: 0
A122: ='Org structure'!E31 -> 04.8 - Information Technology Services | C122: 65317667.81 | D122: 27329546 | E122: 30329546 | F122: 4033972.68 | G122: 9940053.92 | H122: 17442262 | I122: -7502208.08 | J122: -0.4301166947 | K122: 30329546
A123: ='Org structure'!A6 -> Vote 05 - Community Services | C123: =SUM(C124:C137) -> 170571230 | D123: 148339408 | E123: 158268208 | F123: 24521525.28 | G123: 82797587.21 | H123: 91496048 | I123: -8698460.79 | J123: -0.09506925141 | K123: =SUM(K124:K137) -> 158268208
A124: ='Org structure'!E33 -> 05.1 - Municipal Buildings | C124: 19613207.76 | D124: 8784996 | E124: 8784996 | F124: 8668485.89 | G124: 12137648.61 | H124: 5124595 | I124: =G124-H124 -> 7013053.61 | J124: =IF(I124=0,"",I124/H124) -> 1.36850885 | K124: 8784996
A125: ='Org structure'!E34 -> 05.2 - Fleet Management | C125: 15037335.28 | D125: 18271527 | E125: 18271527 | F125: 3318053.62 | G125: 9944685.43 | H125: 10658445 | I125: -713759.57 | J125: -0.06696657627 | K125: 18271527
A126: ='Org structure'!E35 -> 05.3 - Community Services Administration | C126: 3430975.96 | D126: 1981674 | E126: 1981674 | F126: 277703.17 | G126: 2040286.79 | H126: 1155994 | I126: 884292.79 | J126: 0.7649631313 | K126: 1981674
A127: ='Org structure'!E36 -> 05.4 - Cemeteries | C127: 0 | D127: 3978010 | E127: 3978010 | F127: 0 | G127: 0 | H127: 2320535 | I127: -2320535 | J127: -1 | K127: 3978010
A128: ='Org structure'!E37 -> 05.5 - Disaster Management | C128: 29958.9 | D128: 2486022 | E128: 2814822 | F128: 0 | G128: 86100 | H128: 1614604 | I128: -1528504 | J128: -0.946674231 | K128: 2814822
A129: ='Org structure'!E38 -> 05.6 - Fires Service | C129: 0 | D129: 0 | E129: 0 | F129: 0 | G129: 0 | H129: 0 | I129: 0 | K129: 0
A130: ='Org structure'!E39 -> 05.7 - Libraries | C130: 2377705.97 | D130: 1774148 | E130: 1774148 | F130: 119307.52 | G130: 704657.53 | H130: 1034957 | I130: -330299.47 | J130: -0.3191431818 | K130: 1774148
A131: ='Org structure'!E40 -> 05.8 - Municipal Buildings | C131: 0 | D131: 0 | E131: 0 | F131: 0 | G131: 0 | H131: 0 | I131: 0 | K131: 0
A132: ='Org structure'!E41 -> 05.9 - Sports Recreation & Social Amenitie | C132: 43792225.28 | D132: 39415232 | E132: 39665232 | F132: 5580708.44 | G132: 18128485.33 | H132: 23117256 | I132: -4988770.67 | J132: -0.2158028907 | K132: 39665232
A133: ='Org structure'!E42 -> 05.10 - Waste Management Solid Waste | C133: 50915900.56 | D133: 41881163 | E133: 49931163 | F133: 4405704.25 | G133: 23956158.68 | H133: 28455721 | I133: -4499562.32 | J133: -0.1581250505 | K133: 49931163
A134: ='Org structure'!E43 -> 05.11 - Safety And Security | C134: 23287789.82 | D134: 19897500 | E134: 21097500 | F134: 1732719.3 | G134: 12276426.19 | H134: 12206903 | I134: 69523.19 | J134: 0.005695399562 | K134: 21097500
A135: ='Org structure'!E44 -> 05.12 - Traffic Service | C135: 0 | D135: 0 | E135: 0 | F135: 0 | G135: 0 | H135: 0 | I135: 0 | K135: 0
A136: ='Org structure'!E45 -> 05.13 - Traffic Service | C136: 12086130.49 | D136: 9869136 | E136: 9969136 | F136: 418843.09 | G136: 3523138.65 | H136: 5807038 | I136: -2283899.35 | J136: -0.3932985026 | K136: 9969136
A137: ='Org structure'!E46 -> 05.14 - Fleet Management | C137: 0 | D137: 0 | E137: 0 | F137: 0 | G137: 0 | H137: 0 | I137: 0 | K137: 0
A138: ='Org structure'!A7 -> Vote 06 - Planning & Development | C138: =SUM(C139:C148) -> 17223219.06 | D138: 24919438 | E138: 24919438 | F138: 1568949.26 | G138: 11326433.78 | H138: 14536494 | I138: -3210060.22 | J138: -0.2208276783 | K138: =SUM(K139:K148) -> 24919438
A139: ='Org structure'!E48 -> 06.1 - Planning And Development Admin | C139: 1821248.99 | D139: 2004633 | E139: 2004633 | F139: -681498.7 | G139: 346600.11 | H139: 1169399 | I139: =G139-H139 -> -822798.89 | J139: =IF(I139=0,"",I139/H139) -> -0.7036083407 | K139: 2004633
A140: ='Org structure'!E49 -> 06.2 - Municipal Planning Idp | C140: 0 | D140: 0 | E140: 0 | F140: 0 | G140: 0 | H140: 0 | I140: 0 | K140: 0
A141: ='Org structure'!E50 -> 06.3 - Pms | C141: 0 | D141: 0 | E141: 0 | F141: 0 | G141: 0 | H141: 0 | I141: 0 | K141: 0
A142: ='Org structure'!E51 -> 06.4 - Town Planning | C142: 2841470.73 | D142: 3849336 | E142: 3849336 | F142: 269898.45 | G142: 2059442.86 | H142: 2245488 | I142: -186045.14 | J142: -0.08285287652 | K142: 3849336
A143: ='Org structure'!E52 -> 06.5 - Land Use And Housing Admin | C143: 5373143.59 | D143: 6677188 | E143: 6677188 | F143: 489785.9 | G143: 3298923.4 | H143: 3895066 | I143: -596142.6 | J143: -0.1530507057 | K143: 6677188
A144: ='Org structure'!E53 -> 06.6 - Local Economic Development | C144: 7187355.75 | D144: 0 | E144: 0 | F144: -3856704.2 | G144: 1699.6 | H144: 0 | I144: 1699.6 | K144: 0
A145: ='Org structure'!E54 -> 06.7 - Led | C145: 0 | D145: 4231031 | E145: 4231031 | F145: 853848.48 | G145: 1126148.48 | H145: 2468123 | I145: -1341974.52 | J145: -0.5437227075 | K145: 4231031
A146: ='Org structure'!E55 -> 06.8 - Agriculture & Rural Development | C146: 0 | D146: 8157250 | E146: 8157250 | F146: 4493619.33 | G146: 4493619.33 | H146: 4758418 | I146: -264798.67 | J146: -0.05564846762 | K146: 8157250
A147: ='Org structure'!E56 -> 06.9 - Tourism & Business Development | C147: 0 | D147: 0 | E147: 0 | F147: 0 | G147: 0 | H147: 0 | I147: 0 | K147: 0
A148: ='Org structure'!E57 -> 06.10 - Arts & Culture | C148: 0 | D148: 0 | E148: 0 | F148: 0 | G148: 0 | H148: 0 | I148: 0 | K148: 0
A149: ='Org structure'!A8 -> Vote 07 - Infrastructure & Technical Services | C149: =SUM(C150:C168) -> 501141267.7 | D149: 375886746 | E149: 406317563 | F149: 141960428.7 | G149: 244737360.5 | H149: 234482939.5 | I149: 10254420.97 | J149: 0.0437320557 | K149: =SUM(K150:K168) -> 406317563
A150: ='Org structure'!E59 -> 07.1 - Infrastructure Admin & Tech Admin | C150: 1414577.74 | D150: 2463847 | E150: 2453847 | F150: 186301.22 | G150: 761460.72 | H150: 1432268 | I150: =G150-H150 -> -670807.28 | J150: =IF(I150=0,"",I150/H150) -> -0.4683531853 | K150: 2453847
A151: ='Org structure'!E60 -> 07.2 - Fleet Management | C151: 0 | D151: 0 | E151: 0 | F151: 0 | G151: 0 | H151: 0 | I151: 0 | K151: 0
A152: ='Org structure'!E61 -> 07.3 - Roads | C152: 68155855.48 | D152: 61128341 | E152: 61128341 | F152: 31774580.76 | G152: 37148807.96 | H152: 35658238 | I152: 1490569.96 | J152: 0.04180155957 | K152: 61128341
A153: ='Org structure'!E62 -> 07.4 - Storm Water | C153: 0 | D153: 0 | E153: 0 | F153: 0 | G153: 0 | H153: 0 | I153: 0 | K153: 0
A154: ='Org structure'!E63 -> 07.5 - Street Lighting | C154: 21499416.99 | D154: 7598588 | E154: 7598588 | F154: 1803594.26 | G154: 4690239.41 | H154: 4432547 | I154: 257692.41 | J154: 0.05813641908 | K154: 7598588
A155: ='Org structure'!E64 -> 07.6 - Project Management Unit | C155: 3198600.64 | D155: 4178767 | E155: 4178767 | F155: 199615.84 | G155: 2003945.23 | H155: 2437652 | I155: -433706.77 | J155: -0.1779198877 | K155: 4178767
A156: ='Org structure'!E65 -> 07.7 - Sanitation Treatment Plant: Mogwase | C156: 15331396.41 | D156: 6230194 | E156: 6230194 | F156: 553710.81 | G156: 5692489.9 | H156: 3634309 | I156: 2058180.9 | J156: 0.5663197323 | K156: 6230194
A157: ='Org structure'!E66 -> 07.8 - Sanitation Treatment Plant: Madikwe | C157: 5237872.63 | D157: 8369184 | E157: 8369184 | F157: 333234.65 | G157: 2879887.53 | H157: 4882052 | I157: -2002164.47 | J157: -0.4101071578 | K157: 8369184
A158: ='Org structure'!E67 -> 07.9 - Sanitation Reticulation | C158: 6260267.48 | D158: 5328993 | E158: 5328993 | F158: 61659799.81 | G158: 61997376.3 | H158: 3108588 | I158: 58888788.3 | J158: 18.9439026 | K158: 5328993
A159: ='Org structure'!E68 -> 07.10 - Water Administration | C159: 46028675.84 | D159: 41037321 | E159: 41037321 | F159: 2780907.22 | G159: 25657604.41 | H159: 23938453 | I159: 1719151.41 | J159: 0.07181547655 | K159: 41037321
A160: ='Org structure'!E69 -> 07.11 - Water Madikwe: Water Treatment Work | C160: 1002608 | D160: 1060000 | E160: 300817 | F160: 0 | G160: 243371.78 | H160: 238746.5 | I160: 4625.28 | J160: 0.01937318453 | K160: 300817
A161: ='Org structure'!E70 -> 07.12 - Water: Pella Water Treatment Works | C161: 1289789.39 | D161: 300000 | E161: 300000 | F161: 0 | G161: 130155.02 | H161: 175007 | I161: -44851.98 | J161: -0.2562867771 | K161: 300000
A162: ='Org structure'!E71 -> 07.13 - Water: Madikwe Retail & Bulk Lines | C162: 2171520.42 | D162: 1300000 | E162: 1300000 | F162: 0 | G162: 1601294.5 | H162: 758338 | I162: 842956.5 | J162: 1.111584148 | K162: 1300000
A163: ='Org structure'!E72 -> 07.14 - Water: Madikwe Rural | C163: 3310017.09 | D163: 3200000 | E163: 2000000 | F163: 0 | G163: -30275 | H163: 1266669 | I163: -1296944 | J163: -1.023901272 | K163: 2000000
A164: ='Org structure'!E73 -> 07.15 - Water: Molatedi | C164: 266458.8 | D164: 210000 | E164: 210000 | F164: 0 | G164: 82919 | H164: 122507 | I164: -39588 | J164: -0.3231488813 | K164: 210000
A165: ='Org structure'!E74 -> 07.16 - Water Eastern: Retail Mankwe | C165: 0 | D165: 0 | E165: 0 | F165: 0 | G165: 0 | H165: 0 | I165: 0 | K165: 0
A166: ='Org structure'!E75 -> 07.17 - Water Vaalkopdam: Mankwe | C166: 0 | D166: 0 | E166: 0 | F166: 0 | G166: 0 | H166: 0 | I166: 0 | K166: 0
A167: ='Org structure'!E76 -> 07.18 - Water Eastern: Retail Mankwe | C167: 301432459.2 | D167: 225481511 | E167: 237881511 | F167: 41414695.33 | G167: 86972978.81 | H167: 137730896 | I167: -50757917.19 | J167: -0.3685296376 | K167: 237881511
A168: ='Org structure'!E77 -> 07.19 - Reporting Function Electricity | C168: 24541751.58 | D168: 8000000 | E168: 28000000 | F168: 1253988.75 | G168: 14905104.9 | H168: 14666669 | I168: 238435.9 | J168: 0.0162569906 | K168: 28000000
A169: ='Org structure'!A9 -> Vote 08 - | C169: 0 | D169: 0 | E169: 0 | F169: 0 | G169: 0 | H169: 0 | I169: 0 | K169: 0
A170: ='Org structure'!A10 -> Vote 09 - | C170: 0 | D170: 0 | E170: 0 | F170: 0 | G170: 0 | H170: 0 | I170: =G170-H170 -> 0 | J170: =IF(I170=0,"",I170/H170) ->  | K170: 0
A171: ='Org structure'!A11 -> Vote 10 - | C171: 0 | D171: 0 | E171: 0 | F171: 0 | G171: 0 | H171: 0 | I171: 0 | K171: 0
A172: ='Org structure'!A12 -> Vote 11 - | C172: 0 | D172: 0 | E172: 0 | F172: 0 | G172: 0 | H172: 0 | I172: 0 | K172: 0
A173: ='Org structure'!A13 -> Vote 12 - | C173: 0 | D173: 0 | E173: 0 | F173: 0 | G173: 0 | H173: 0 | I173: 0 | K173: 0
A174: ='Org structure'!A14 -> Vote 13 - | C174: 0 | D174: 0 | E174: 0 | F174: 0 | G174: 0 | H174: 0 | I174: 0 | K174: 0
A175: ='Org structure'!A15 -> Vote 14 - | C175: 0 | D175: 0 | E175: 0 | F175: 0 | G175: 0 | H175: 0 | I175: 0 | K175: 0
A176: ='Org structure'!A16 -> Vote 15 - Other | C176: 0 | D176: 0 | E176: 0 | F176: 0 | G176: 0 | H176: 0 | I176: =G176-H176 -> 0 | J176: =IF(I176=0,"",I176/H176) ->  | K176: 0
A177: Total Expenditure by Vote | B177: 2 | C177: =C93+C99+C106+C114+C123+C138+C149+C169+C170+C171+C172+C173+C174+C175+C176 -> 1006155623 | D177: 854977262 | E177: 917067747 | F177: 230156107.7 | G177: 515039287.9 | H177: 529783398.5 | I177: -14744110.63 | J177: -0.02783045047 | K177: =K93+K99+K106+K114+K123+K138+K149+K169+K170+K171+K172+K173+K174+K175+K176 -> 917067747
I178: 0 | L178: =#REF!-#REF! ->  | M178: =#REF!-#REF! ->  | N178: =#REF!-#REF! ->  | O178: =#REF!-#REF! ->  | P178: =#REF!-#REF! ->  | Q178: =#REF!-#REF! ->  | R178: =#REF!-#REF! ->  | S178: =#REF!-#REF! ->  | T178: =#REF!-#REF! ->  | U178: =#REF!-#REF! ->  | V178: =#REF!-#REF! ->  | W178: =#REF!-#REF! -> 
A179: =result -> Surplus/ (Deficit) for the year | B179: 2 | C179: =C90-C177 -> -10628668.5 | D179: 223298583 | E179: 243853098 | F179: -192209095.1 | G179: 144145707.1 | H179: 140533159.5 | I179: 3612547.61 | J179: 0.02570601574 | K179: =K90-K177 -> 243853098
A180: =head27a -> References
A181: 1. Insert 'Vote'; e.g. Department, if different to standard structure
A182: 2. Must reconcile to Financial Performance ('Revenue and Expenditure by Standard Classification' and 'Revenue and Expenditure')
A183: 3. Assign share in 'associate' to relevant Vote
A185: check revenue
A186: check expenditure

Sheet C4-FinPerf RE
A1: =muni& " - "&S71B& " - "&date -> NW375 Moses Kotane - Table C4 Monthly Budget Statement - Financial Performance (revenue and expenditure) - M07 January
A2: =desc -> Description | B2: =head27 -> Ref | C2: =Head1 -> 2019/20 | D2: =Head2 -> Budget Year 2020/21
C3: =Head5 -> Audited Outcome | D3: =Head6 -> Original Budget | E3: =Head7 -> Adjusted Budget | F3: =Head38 -> Monthly actual | G3: =Head39 -> YearTD actual | H3: =Head40 -> YearTD budget | I3: =Head41 -> YTD variance | J3: =Head41 -> YTD variance | K3: =Head8 -> Full Year Forecast
A4: R thousands | J4: %
A5: Revenue By Source
A6: Property rates | C6: 141419581.4 | D6: 148602075 | E6: 148602075 | F6: 12099935.62 | G6: 84208675.9 | H6: 86684500 | I6: =G6-H6 -> -2475824.1 | J6: =IF(I6=0,"",I6/H6) -> -0.02856132411 | K6: 148602075
A7: Service charges - electricity revenue | C7: 0 | D7: 0 | E7: 0 | F7: 0 | G7: 0 | H7: -7 | I7: 7 | J7: -1 | K7: 0
A8: Service charges - water revenue | C8: 164372927.8 | D8: 171527615 | E8: 171527615 | F8: 17985456.59 | G8: 96234866.26 | H8: 100057755 | I8: -3822888.74 | J8: -0.03820682105 | K8: 171527615
A9: Service charges - sanitation revenue | C9: 2664841.47 | D9: 2490398 | E9: 2490398 | F9: 301653.22 | G9: 1827939.27 | H9: 1452724 | I9: 375215.27 | J9: 0.2582839342 | K9: 2490398
A10: Service charges - refuse revenue | C10: 10004341.87 | D10: 12474707 | E10: 12474707 | F10: 909045.67 | G10: 6365281.45 | H10: 7276899 | I10: -911617.55 | J10: -0.1252755535 | K10: 12474707
A12: Rental of facilities and equipment | C12: 83677.2 | D12: 30000 | E12: 30000 | F12: 6891.37 | G12: 39468.78 | H12: 17493 | I12: 21975.78 | J12: 1.256261362 | K12: 30000
A13: Interest earned - external investments | C13: 5586509.72 | D13: 5400000 | E13: 5400000 | F13: 26429.72 | G13: 1560022.16 | H13: 3150000 | I13: -1589977.84 | J13: -0.5047548698 | K13: 5400000
A14: Interest earned - outstanding debtors | C14: 62398768 | D14: 62480550 | E14: 62480550 | F14: 5708186.23 | G14: 37725946.49 | H14: 36446977 | I14: 1278969.49 | J14: 0.03509123651 | K14: 62480550
A15: Dividends received | C15: 0 | D15: 0 | E15: 0 | F15: 0 | G15: 0 | H15: 0 | I15: 0 | K15: 0
A16: Fines, penalties and forfeits | C16: 5600000 | D16: 3000000 | E16: 3000000 | F16: 886600 | G16: 886600 | H16: 1750000 | I16: -863400 | J16: -0.4933714286 | K16: 3000000
A17: Licences and permits | C17: 13410 | D17: 50000 | E17: 50000 | F17: 0 | G17: 0 | H17: 29162 | I17: -29162 | J17: -1 | K17: 50000
A18: Agency services | I18: 0
A19: Transfers and subsidies | C19: 434445420.4 | D19: 467694767 | E19: 550339767 | F19: 0 | G19: 429726279.2 | H19: 314144427 | I19: 115581852.2 | J19: 0.36792584 | K19: 550339767
A20: Other revenue | C20: 2329020.12 | D20: 2030500 | E20: 2030500 | F20: 22814.14 | G20: 609915.49 | H20: 1184428 | I20: -574512.51 | J20: -0.4850548197 | K20: 2030500
A21: Gains | C21: 1980757.13 | D21: 0 | E21: 0 | F21: 0 | G21: 0 | H21: 0 | I21: 0 | K21: 0
A22: Total Revenue (excluding capital transfers and contributions) | C22: =SUM(C6:C10)+SUM(C12:C21) -> 830899255.1 | D22: 875780612 | E22: 958425612 | F22: 37947012.56 | G22: 659184995 | H22: 552194358 | I22: 106990637 | J22: 0.1937553969 | K22: =SUM(K6:K10)+SUM(K12:K21) -> 958425612
A24: Expenditure By Type
A25: Employee related costs | C25: 236924858.3 | D25: 270831407 | E25: 272119407 | F25: 19015199 | G25: 139705628.5 | H25: 158629912 | I25: =G25-H25 -> -18924283.5 | J25: =IF(I25=0,"",I25/H25) -> -0.1192983294 | K25: 272119407
A26: Remuneration of councillors | C26: 24128277.65 | D26: 24819114 | E26: 24819114 | F26: 2026094.6 | G26: 14907625.12 | H26: 14477834 | I26: 429791.12 | J26: 0.0296861478 | K26: 24819114
A27: Debt impairment | C27: 201036122.3 | D27: 194602817 | E27: 194602817 | F27: 112334413.2 | G27: 112356118.5 | H27: 113518321 | I27: -1162202.49 | J27: -0.01023801691 | K27: 194602817
A28: Depreciation & asset impairment | C28: 146795994.9 | D28: 133503316 | E28: 133503316 | F28: 77876911 | G28: 77876911 | H28: 77877002 | I28: -91 | J28: -1.168509286e-06 | K28: 133503316
A29: Finance charges | C29: 5347470.47 | D29: 3043808 | E29: 3043808 | F29: 6028.98 | G29: 1586336.46 | H29: 1775571 | I29: -189234.54 | J29: -0.1065767238 | K29: 3043808
A30: Bulk purchases | C30: 130803587.2 | D30: 83000000 | E30: 103000000 | F30: 9812728.78 | G30: 46996792.42 | H30: 58416669 | I30: -11419876.58 | J30: -0.1954900335 | K30: 103000000
A31: Other materials | C31: 1816440.16 | D31: 3827300 | E31: 3857300 | F31: 0 | G31: 1266801.56 | H31: 2247636 | I31: -980834.44 | J31: -0.4363849129 | K31: 3857300
A32: Contracted services | C32: 123389435.3 | D32: 91709200 | E32: 116603685 | F32: 5742211.71 | G32: 86310506.95 | H32: 65944455.5 | I32: 20366051.45 | J32: 0.3088364487 | K32: 116603685
A33: Transfers and subsidies | C33: 0 | D33: 0 | E33: 0 | F33: 0 | G33: 0 | H33: 0 | I33: 0 | K33: 0
A34: Other expenditure | C34: 113324808 | D34: 49640300 | E34: 65518300 | F34: 3342520.38 | G34: 33602904.32 | H34: 36895998 | I34: -3293093.68 | J34: -0.08925341117 | K34: 65518300
A35: Losses | C35: 22588628.32 | D35: 0 | E35: 0 | F35: 0 | G35: 429663.03 | H35: 0 | I35: 429663.03 | K35: 0
A36: Total Expenditure | C36: =SUM(C25:C35) -> 1006155623 | D36: =SUM(D25:D35) -> 854977262 | E36: =SUM(E25:E35) -> 917067747 | F36: 230156107.7 | G36: 515039287.9 | H36: 529783398.5 | I36: -14744110.63 | J36: -0.02783045047 | K36: 917067747
A38: Surplus/(Deficit) | C38: =C22-C36 -> -175256367.5 | D38: 20803350 | E38: 41357865 | F38: -192209095.1 | G38: 144145707.1 | H38: 22410959.5 | I38: =I22-I36 -> 121734747.6 | J38: 5.431929303 | K38: =K22-K36 -> 41357865
A39: Transfers and subsidies - capital (monetary allocations) (National / Provincial and District) | C39: 68075621.78 | D39: 202495233 | E39: 202495233 | F39: 0 | G39: 0 | H39: 118122200 | I39: =G39-H39 -> -118122200 | J39: -1 | K39: 202495233
A40: Transfers and subsidies - capital (monetary allocations) (National / Provincial Departmental Agencies, Households, Non-profit Institutions, Private Enterprises, Public Corporatons, Higher Educational Institutions) | C40: 96552077.22 | D40: 0 | E40: 0 | F40: 0 | G40: 0 | H40: 0 | I40: =G40-H40 -> 0 | K40: 0
A41: Transfers and subsidies - capital (in-kind - all) | C41: 0 | D41: 0 | E41: 0 | F41: 0 | G41: 0 | H41: 0 | I41: =G41-H41 -> 0 | K41: 0
A42: Surplus/(Deficit) after capital transfers & contributions | C42: =C38+SUM(C39:C41) -> -10628668.5 | D42: 223298583 | E42: 243853098 | F42: -192209095.1 | G42: 144145707.1 | H42: 140533159.5 | K42: =K38+SUM(K39:K41) -> 243853098
A43: Taxation | I43: =G43-H43 -> 0 | J43: =IF(I43=0,"",I43/H43) -> 
A44: Surplus/(Deficit) after taxation | C44: =C42-C43 -> -10628668.5 | D44: 223298583 | E44: 243853098 | F44: -192209095.1 | G44: 144145707.1 | H44: 140533159.5 | K44: =K42-K43 -> 243853098
A45: Attributable to minorities
A46: Surplus/(Deficit) attributable to municipality | C46: =SUM(C44:C45) -> -10628668.5 | D46: 223298583 | E46: 243853098 | F46: -192209095.1 | G46: 144145707.1 | H46: 140533159.5 | K46: =SUM(K44:K45) -> 243853098
A47: Share of surplus/ (deficit) of associate
A48: Surplus/ (Deficit) for the year | C48: =C46+C47 -> -10628668.5 | D48: 223298583 | E48: 243853098 | F48: -192209095.1 | G48: 144145707.1 | H48: 140533159.5 | K48: =K46+K47 -> 243853098
A49: =head27a -> References
A50: 1. Material variances to be explained on Table SC1
A53: =A22&" including capital transfers/contributions etc" -> Total Revenue (excluding capital transfers and contributions) including capital transfers/contributions etc | C53: =C22+SUM(C39:C41) -> 995526954.1 | D53: 1078275845 | E53: 1160920845 | F53: 37947012.56 | G53: 659184995 | H53: 670316558 | K53: =K22+SUM(K39:K41) -> 1160920845

Sheet C5-Capex
A1: =muni& " - "&S71D& " - "&date -> NW375 Moses Kotane - Table C5 Monthly Budget Statement - Capital Expenditure (municipal vote, functional classification and funding) - M07 January
A2: =Vdesc -> Vote Description | B2: =head27 -> Ref | C2: =Head1 -> 2019/20 | D2: =Head2 -> Budget Year 2020/21
C3: =Head5 -> Audited Outcome | D3: =Head6 -> Original Budget | E3: =Head7 -> Adjusted Budget | F3: =Head38 -> Monthly actual | G3: =Head39 -> YearTD actual | H3: =Head40 -> YearTD budget | I3: =Head41 -> YTD variance | J3: =Head41 -> YTD variance | K3: =Head8 -> Full Year Forecast
A4: R thousands | B4: 1 | J4: %
A5: Multi-Year expenditure appropriation | B5: 2
A6: ='Org structure'!A2 -> Vote 01 - Municipal Council | C6: ='C5C'!C7 -> 0 | D6: ='C5C'!D7 -> 0 | E6: ='C5C'!E7 -> 0 | F6: ='C5C'!F7 -> 0 | G6: ='C5C'!G7 -> 0 | H6: ='C5C'!H7 -> 0 | I6: =G6-H6 -> 0 | J6: =IF(I6=0,"",I6/H6) ->  | K6: ='C5C'!K7 -> 0
A7: ='Org structure'!A3 -> Vote 02 - Office Of The Accounting Officer | C7: ='C5C'!C13 -> 0 | D7: ='C5C'!D13 -> 0 | E7: ='C5C'!E13 -> 0 | F7: ='C5C'!F13 -> 0 | G7: ='C5C'!G13 -> 0 | H7: ='C5C'!H13 -> 0 | I7: 0 | K7: ='C5C'!K13 -> 0
A8: ='Org structure'!A4 -> Vote 03 - Budget And Treasury Office | C8: ='C5C'!C20 -> 41762.17 | D8: ='C5C'!D20 -> 0 | E8: ='C5C'!E20 -> 0 | F8: ='C5C'!F20 -> 0 | G8: ='C5C'!G20 -> 0 | H8: ='C5C'!H20 -> 0 | I8: 0 | K8: ='C5C'!K20 -> 0
A9: ='Org structure'!A5 -> Vote 04 - Corporate Services | C9: ='C5C'!C28 -> 130496.44 | D9: ='C5C'!D28 -> 1000000 | E9: ='C5C'!E28 -> 1000000 | F9: ='C5C'!F28 -> 0 | G9: ='C5C'!G28 -> 54200 | H9: ='C5C'!H28 -> 583338 | I9: -529138 | J9: -0.9070864576 | K9: ='C5C'!K28 -> 1000000
A10: ='Org structure'!A6 -> Vote 05 - Community Services | C10: ='C5C'!C37 -> -2219817 | D10: ='C5C'!D37 -> 20087987 | E10: ='C5C'!E37 -> 20087987 | F10: ='C5C'!F37 -> 889551.83 | G10: ='C5C'!G37 -> 4432601.07 | H10: ='C5C'!H37 -> 11718000 | I10: -7285398.93 | J10: -0.6217271659 | K10: ='C5C'!K37 -> 20087987
A11: ='Org structure'!A7 -> Vote 06 - Planning & Development | C11: ='C5C'!C52 -> 0 | D11: ='C5C'!D52 -> 0 | E11: ='C5C'!E52 -> 0 | F11: ='C5C'!F52 -> 0 | G11: ='C5C'!G52 -> 0 | H11: ='C5C'!H52 -> 0 | I11: 0 | K11: ='C5C'!K52 -> 0
A12: ='Org structure'!A8 -> Vote 07 - Infrastructure & Technical Services | C12: ='C5C'!C63 -> 24958199.28 | D12: ='C5C'!D63 -> 182407246 | E12: ='C5C'!E63 -> 182407246 | F12: ='C5C'!F63 -> 6015394.36 | G12: ='C5C'!G63 -> 68701156.53 | H12: ='C5C'!H63 -> 106404333 | I12: -37703176.47 | J12: -0.3543387323 | K12: ='C5C'!K63 -> 182407246
A13: ='Org structure'!A9 -> Vote 08 - | C13: ='C5C'!C83 -> 0 | D13: ='C5C'!D83 -> 0 | E13: ='C5C'!E83 -> 0 | F13: ='C5C'!F83 -> 0 | G13: ='C5C'!G83 -> 0 | H13: ='C5C'!H83 -> 0 | I13: =G13-H13 -> 0 | J13: =IF(I13=0,"",I13/H13) ->  | K13: ='C5C'!K83 -> 0
A14: ='Org structure'!A10 -> Vote 09 - | C14: ='C5C'!C84 -> 0 | D14: ='C5C'!D84 -> 0 | E14: ='C5C'!E84 -> 0 | F14: ='C5C'!F84 -> 0 | G14: ='C5C'!G84 -> 0 | H14: ='C5C'!H84 -> 0 | I14: 0 | K14: ='C5C'!K84 -> 0
A15: ='Org structure'!A11 -> Vote 10 - | C15: ='C5C'!C85 -> 0 | D15: ='C5C'!D85 -> 0 | E15: ='C5C'!E85 -> 0 | F15: ='C5C'!F85 -> 0 | G15: ='C5C'!G85 -> 0 | H15: ='C5C'!H85 -> 0 | I15: 0 | K15: ='C5C'!K85 -> 0
A16: ='Org structure'!A12 -> Vote 11 - | C16: ='C5C'!C86 -> 0 | D16: ='C5C'!D86 -> 0 | E16: ='C5C'!E86 -> 0 | F16: ='C5C'!F86 -> 0 | G16: ='C5C'!G86 -> 0 | H16: ='C5C'!H86 -> 0 | I16: 0 | K16: ='C5C'!K86 -> 0
A17: ='Org structure'!A13 -> Vote 12 - | C17: ='C5C'!C87 -> 0 | D17: ='C5C'!D87 -> 0 | E17: ='C5C'!E87 -> 0 | F17: ='C5C'!F87 -> 0 | G17: ='C5C'!G87 -> 0 | H17: ='C5C'!H87 -> 0 | I17: 0 | K17: ='C5C'!K87 -> 0
A18: ='Org structure'!A14 -> Vote 13 - | C18: ='C5C'!C88 -> 0 | D18: ='C5C'!D88 -> 0 | E18: ='C5C'!E88 -> 0 | F18: ='C5C'!F88 -> 0 | G18: ='C5C'!G88 -> 0 | H18: ='C5C'!H88 -> 0 | I18: =G18-H18 -> 0 | J18: =IF(I18=0,"",I18/H18) ->  | K18: ='C5C'!K88 -> 0
A19: ='Org structure'!A15 -> Vote 14 - | C19: ='C5C'!C89 -> 0 | D19: ='C5C'!D89 -> 0 | E19: ='C5C'!E89 -> 0 | F19: ='C5C'!F89 -> 0 | G19: ='C5C'!G89 -> 0 | H19: ='C5C'!H89 -> 0 | I19: =G19-H19 -> 0 | J19: =IF(I19=0,"",I19/H19) ->  | K19: ='C5C'!K89 -> 0
A20: ='Org structure'!A16 -> Vote 15 - Other | C20: ='C5C'!C90 -> 0 | D20: ='C5C'!D90 -> 0 | E20: ='C5C'!E90 -> 0 | F20: ='C5C'!F90 -> 0 | G20: ='C5C'!G90 -> 0 | H20: ='C5C'!H90 -> 0 | I20: =G20-H20 -> 0 | J20: =IF(I20=0,"",I20/H20) ->  | K20: ='C5C'!K90 -> 0
A21: Total Capital Multi-year expenditure | B21: 4,7 | C21: =SUM(C6:C20) -> 22910640.89 | D21: =SUM(D6:D20) -> 203495233 | E21: 203495233 | F21: 6904946.19 | G21: 73187957.6 | H21: 118705671 | I21: -45517713.4 | J21: =IF(I21=0,"",I21/H21) -> -0.383450201 | K21: =SUM(K6:K20) -> 203495233
A23: Single Year expenditure appropriation | B23: 2
A24: ='C5C'!A95 -> Vote 01 - Municipal Council | C24: ='C5C'!C95 -> 0 | D24: ='C5C'!D95 -> 0 | E24: ='C5C'!E95 -> 0 | F24: ='C5C'!F95 -> 0 | G24: ='C5C'!G95 -> 0 | H24: ='C5C'!H95 -> 0 | I24: =G24-H24 -> 0 | J24: =IF(I24=0,"",I24/H24) ->  | K24: ='C5C'!K95 -> 0
A25: ='C5C'!A101 -> Vote 02 - Office Of The Accounting Officer | C25: ='C5C'!C101 -> 0 | D25: ='C5C'!D101 -> 0 | E25: ='C5C'!E101 -> 0 | F25: ='C5C'!F101 -> 0 | G25: ='C5C'!G101 -> 0 | H25: ='C5C'!H101 -> 0 | I25: 0 | K25: ='C5C'!K101 -> 0
A26: ='C5C'!A108 -> Vote 03 - Budget And Treasury Office | C26: ='C5C'!C108 -> 0 | D26: ='C5C'!D108 -> 0 | E26: ='C5C'!E108 -> 0 | F26: ='C5C'!F108 -> 0 | G26: ='C5C'!G108 -> 0 | H26: ='C5C'!H108 -> 0 | I26: 0 | K26: ='C5C'!K108 -> 0
A27: ='C5C'!A116 -> Vote 04 - Corporate Services | C27: ='C5C'!C116 -> 0 | D27: ='C5C'!D116 -> 0 | E27: ='C5C'!E116 -> 0 | F27: ='C5C'!F116 -> 0 | G27: ='C5C'!G116 -> 0 | H27: ='C5C'!H116 -> 0 | I27: 0 | K27: ='C5C'!K116 -> 0
A28: ='C5C'!A125 -> Vote 05 - Community Services | C28: ='C5C'!C125 -> 0 | D28: ='C5C'!D125 -> 0 | E28: ='C5C'!E125 -> 0 | F28: ='C5C'!F125 -> 0 | G28: ='C5C'!G125 -> 0 | H28: ='C5C'!H125 -> 0 | I28: 0 | K28: ='C5C'!K125 -> 0
A29: ='C5C'!A140 -> Vote 06 - Planning & Development | C29: ='C5C'!C140 -> 0 | D29: ='C5C'!D140 -> 0 | E29: ='C5C'!E140 -> 0 | F29: ='C5C'!F140 -> 0 | G29: ='C5C'!G140 -> 0 | H29: ='C5C'!H140 -> 0 | I29: 0 | K29: ='C5C'!K140 -> 0
A30: ='C5C'!A151 -> Vote 07 - Infrastructure & Technical Services | C30: ='C5C'!C151 -> 0 | D30: ='C5C'!D151 -> 0 | E30: ='C5C'!E151 -> 0 | F30: ='C5C'!F151 -> 0 | G30: ='C5C'!G151 -> 0 | H30: ='C5C'!H151 -> 0 | I30: 0 | K30: ='C5C'!K151 -> 0
A31: ='Org structure'!A9 -> Vote 08 - | C31: ='C5C'!C171 -> 0 | D31: ='C5C'!D171 -> 0 | E31: ='C5C'!E171 -> 0 | F31: ='C5C'!F171 -> 0 | G31: ='C5C'!G171 -> 0 | H31: ='C5C'!H171 -> 0 | I31: ='C5C'!I171 -> 0 | J31: =IF(I31=0,"",I31/H31) ->  | K31: ='C5C'!K171 -> 0
A32: ='Org structure'!A10 -> Vote 09 - | C32: ='C5C'!C172 -> 0 | D32: ='C5C'!D172 -> 0 | E32: ='C5C'!E172 -> 0 | F32: ='C5C'!F172 -> 0 | G32: ='C5C'!G172 -> 0 | H32: ='C5C'!H172 -> 0 | I32: ='C5C'!I172 -> 0 | K32: ='C5C'!K172 -> 0
A33: ='Org structure'!A11 -> Vote 10 - | C33: ='C5C'!C173 -> 0 | D33: ='C5C'!D173 -> 0 | E33: ='C5C'!E173 -> 0 | F33: ='C5C'!F173 -> 0 | G33: ='C5C'!G173 -> 0 | H33: ='C5C'!H173 -> 0 | I33: ='C5C'!I173 -> 0 | K33: ='C5C'!K173 -> 0
A34: ='Org structure'!A12 -> Vote 11 - | C34: ='C5C'!C174 -> 0 | D34: ='C5C'!D174 -> 0 | E34: ='C5C'!E174 -> 0 | F34: ='C5C'!F174 -> 0 | G34: ='C5C'!G174 -> 0 | H34: ='C5C'!H174 -> 0 | I34: ='C5C'!I174 -> 0 | K34: ='C5C'!K174 -> 0
A35: ='Org structure'!A13 -> Vote 12 - | C35: ='C5C'!C175 -> 0 | D35: ='C5C'!D175 -> 0 | E35: ='C5C'!E175 -> 0 | F35: ='C5C'!F175 -> 0 | G35: ='C5C'!G175 -> 0 | H35: ='C5C'!H175 -> 0 | I35: ='C5C'!I175 -> 0 | K35: ='C5C'!K175 -> 0
A36: ='Org structure'!A14 -> Vote 13 - | C36: ='C5C'!C176 -> 0 | D36: ='C5C'!D176 -> 0 | E36: ='C5C'!E176 -> 0 | F36: ='C5C'!F176 -> 0 | G36: ='C5C'!G176 -> 0 | H36: ='C5C'!H176 -> 0 | I36: ='C5C'!I176 -> 0 | K36: ='C5C'!K176 -> 0
A37: ='Org structure'!A15 -> Vote 14 - | C37: ='C5C'!C177 -> 0 | D37: ='C5C'!D177 -> 0 | E37: ='C5C'!E177 -> 0 | F37: ='C5C'!F177 -> 0 | G37: ='C5C'!G177 -> 0 | H37: ='C5C'!H177 -> 0 | I37: ='C5C'!I177 -> 0 | K37: ='C5C'!K177 -> 0
A38: ='Org structure'!A16 -> Vote 15 - Other | C38: ='C5C'!C178 -> 0 | D38: ='C5C'!D178 -> 0 | E38: ='C5C'!E178 -> 0 | F38: ='C5C'!F178 -> 0 | G38: ='C5C'!G178 -> 0 | H38: ='C5C'!H178 -> 0 | I38: ='C5C'!I178 -> 0 | K38: ='C5C'!K178 -> 0
A39: Total Capital single-year expenditure | B39: 4 | C39: =SUM(C24:C38) -> 0 | D39: 0 | E39: 0 | F39: 0 | G39: 0 | H39: 0 | I39: 0 | K39: =SUM(K24:K38) -> 0
A40: Total Capital Expenditure | C40: =C39+C21 -> 22910640.89 | D40: 203495233 | E40: 203495233 | F40: 6904946.19 | G40: 73187957.6 | H40: 118705671 | I40: -45517713.4 | J40: =IF(I40=0,"",I40/H40) -> -0.383450201 | K40: =K39+K21 -> 203495233
A42: Capital Expenditure - Functional Classification
A43: Governance and administration | C43: =SUM(C44:C46) -> 172258.61 | D43: 1000000 | E43: 1000000 | F43: 0 | G43: 54200 | H43: 583338 | I43: =G43-H43 -> -529138 | J43: =IF(I43=0,"",I43/H43) -> -0.9070864576 | K43: =SUM(K44:K46) -> 1000000
A44: Executive and council | I44: 0 | J44: =IF(I44=0,"",I44/H44) -> 
A45: Finance and administration | C45: 172258.61 | D45: 1000000 | E45: 1000000 | F45: 0 | G45: 54200 | H45: 583338 | I45: -529138 | J45: -0.9070864576 | K45: 1000000
A46: Internal audit | I46: 0
A47: Community and public safety | C47: =SUM(C48:C52) -> 0 | D47: 17087987 | E47: 17087987 | F47: 889551.83 | G47: 4432601.07 | H47: 9968000 | I47: -5535398.93 | J47: -0.5553169071 | K47: =SUM(K48:K52) -> 17087987
A48: Community and social services | C48: 0 | D48: 7223512 | E48: 7223512 | F48: 889551.83 | G48: 1807754.11 | H48: 4213720 | I48: -2405965.89 | J48: -0.5709838077 | K48: 7223512
A49: Sport and recreation | C49: 0 | D49: 9864475 | E49: 9864475 | F49: 0 | G49: 2624846.96 | H49: 5754280 | I49: -3129433.04 | J49: -0.5438444149 | K49: 9864475
A50: Public safety | C50: 0 | D50: 0 | E50: 0 | F50: 0 | G50: 0 | H50: 0 | I50: 0 | K50: 0
A51: Housing | I51: 0
A52: Health | I52: 0
A53: Economic and environmental services | C53: =SUM(C54:C56) -> 1862217.88 | D53: 60981783 | E53: 60981783 | F53: -2538353.94 | G53: 23908066.43 | H53: 35572719 | I53: -11664652.57 | J53: -0.3279100642 | K53: =SUM(K54:K56) -> 60981783
A54: Planning and development | I54: 0
A55: Road transport | C55: 1862217.88 | D55: 60981783 | E55: 60981783 | F55: -2538353.94 | G55: 23908066.43 | H55: 35572719 | I55: -11664652.57 | J55: -0.3279100642 | K55: 60981783
A56: Environmental protection | I56: 0
A57: Trading services | C57: =SUM(C58:C61) -> 20876164.4 | D57: 124425463 | E57: 124425463 | F57: 8553748.3 | G57: 44793090.1 | H57: 72581614 | I57: -27788523.9 | J57: -0.3828589965 | K57: =SUM(K58:K61) -> 124425463
A58: Energy sources | C58: 0 | D58: 12265740 | E58: 12265740 | F58: 162522.9 | G58: 4750472.55 | H58: 7155057 | I58: -2404584.45 | J58: -0.3360678259 | K58: 12265740
A59: Water management | C59: 23095981.4 | D59: 83272366 | E59: 83272366 | F59: 6447814 | G59: 28576887.68 | H59: 48575583 | I59: -19998695.32 | J59: -0.4117026309 | K59: 83272366
A60: Waste water management | C60: 0 | D60: 25887357 | E60: 25887357 | F60: 1943411.4 | G60: 11465729.87 | H60: 15100974 | I60: -3635244.13 | J60: -0.2407291165 | K60: 25887357
A61: Waste management | C61: -2219817 | D61: 3000000 | E61: 3000000 | F61: 0 | G61: 0 | H61: 1750000 | I61: -1750000 | J61: -1 | K61: 3000000
A62: Other | I62: 0
A63: Total Capital Expenditure - Functional Classification | B63: 3 | C63: =C43+C47+C53+C57+C62 -> 22910640.89 | D63: =D43+D47+D53+D57+D62 -> 203495233 | E63: 203495233 | F63: 6904946.19 | G63: 73187957.6 | H63: 118705671 | I63: -45517713.4 | J63: -0.383450201 | K63: =K43+K47+K53+K57+K62 -> 203495233
A65: Funded by:
A66: National Government | C66: 22738382.28 | D66: 202495233 | E66: 202495233 | F66: 5758720.01 | G66: 70502585.58 | H66: 118122333 | I66: =G66-H66 -> -47619747.42 | J66: =IF(I66=0,"",I66/H66) -> -0.4031392389 | K66: 202495233
A67: Provincial Government | C67: 0 | D67: 0 | E67: 0 | F67: 0 | G67: 0 | H67: 0 | I67: 0 | K67: 0
A68: District Municipality | I68: 0
A69: ='C4-FinPerf RE'!A40 -> Transfers and subsidies - capital (monetary allocations) (National / Provincial Departmental Agencies, Households, Non-profit Institutions, Private Enterprises, Public Corporatons, Higher Educational Institutions) | C69: 0 | D69: 0 | E69: 0 | F69: 0 | G69: 0 | H69: 0 | I69: 0 | K69: 0
A70: Transfers recognised - capital | C70: =SUM(C66:C69) -> 22738382.28 | D70: 202495233 | E70: 202495233 | F70: 5758720.01 | G70: 70502585.58 | H70: 118122333 | I70: -47619747.42 | J70: -0.4031392389 | K70: =SUM(K66:K69) -> 202495233
A72: Borrowing | B72: 6 | I72: 0
A73: Internally generated funds | C73: 172258.61 | D73: 1000000 | E73: 1000000 | F73: 1146226.18 | G73: 2685372.02 | H73: 583338 | I73: 2102034.02 | J73: 3.603458064 | K73: 1000000
A74: Total Capital Funding | C74: =+C70+C72+C73 -> 22910640.89 | D74: 203495233 | E74: 203495233 | F74: 6904946.19 | G74: 73187957.6 | H74: 118705671 | I74: -45517713.4 | J74: -0.383450201 | K74: =+K70+K72+K73 -> 203495233
A75: =head27a -> References
A76: 1. Municipalities may choose to appropriate for capital expenditure for three years or for one year (if one year appropriation projected expenditure required for yr2 and yr3).
A77: 2. Include capital component of PPP unitary payment
A78: 3. Capital expenditure by functional classification must reconcile to the total of multi-year and single year appropriations
A79: 4. Include expenditure on investment property, intangible and biological assets
A81: 6. Include finance leases and PPP capital funding component of unitary payment - total borrowing/repayments to reconcile to changes in Table SA17
A86: check balance | C86: =C40-C74 -> 0 | D86: =D40-D74 -> 0 | E86: 0 | F86: 0 | G86: 0 | H86: 0 | K86: 0

Sheet C5C
A1: =muni& " - "&S71D& " - "&"A"& " - "&date -> NW375 Moses Kotane - Table C5 Monthly Budget Statement - Capital Expenditure (municipal vote, functional classification and funding) - A - M07 January
A2: =Vdesc -> Vote Description | B2: =head27 -> Ref | C2: =Head1 -> 2019/20 | D2: =Head2 -> Budget Year 2020/21 | L2: =Head4 -> 
A3: R thousand | C3: =Head5 -> Audited Outcome | D3: =Head6 -> Original Budget | E3: =Head7 -> Adjusted Budget | F3: =Head38 -> Monthly actual | G3: =Head39 -> YearTD actual | H3: =Head40 -> YearTD budget | I3: =Head41 -> YTD variance | J3: =Head41 -> YTD variance | K3: =Head8 -> Full Year Forecast | L3: =Head12 -> Forecast 2010/11 | M3: =Head13 -> Forecast 2011/12 | N3: =Head14 -> Forecast 2012/13 | O3: =Head15 -> Forecast 2013/14 | P3: =Head16 -> Forecast 2014/15 | Q3: =Head17 -> Forecast 2015/16 | R3: =Head18 -> Forecast 2016/17 | S3: =Head19 -> Forecast 2017/18 | T3: =Head20 -> Forecast 2018/19 | U3: =Head21 -> Forecast 2019/20 | V3: =Head22 -> Forecast 2020/21 | W3: =Head23 -> Forecast 2021/22
J4: %
A5: Capital expenditure - Municipal Vote
A6: Expenditure of multi-year capital appropriation | B6: 1
A7: ='Org structure'!A2 -> Vote 01 - Municipal Council | C7: =SUM(C8:C12) -> 0 | D7: 0 | E7: 0 | F7: 0 | G7: 0 | H7: 0 | I7: =G7-H7 -> 0 | J7: =IF(I7=0,"",I7/H7) ->  | K7: =SUM(K8:K12) -> 0
A8: ='Org structure'!E3 -> 01.1 - Office Of The Mayor | I8: =G8-H8 -> 0 | J8: =IF(I8=0,"",I8/H8) ->  | K8: 0
A9: ='Org structure'!E4 -> 01.2 - Office Of The Speaker | I9: =G9-H9 -> 0 | J9: =IF(I9=0,"",I9/H9) ->  | K9: 0
A10: ='Org structure'!E5 -> 01.3 - Office Of The Chief Whip | I10: =G10-H10 -> 0 | J10: =IF(I10=0,"",I10/H10) ->  | K10: 0
A11: ='Org structure'!E6 -> 01.4 - Mpac | I11: =G11-H11 -> 0 | J11: =IF(I11=0,"",I11/H11) ->  | K11: 0
A12: ='Org structure'!E7 -> 01.5 - Council General Administration | I12: =G12-H12 -> 0 | J12: =IF(I12=0,"",I12/H12) ->  | K12: 0
A13: ='Org structure'!A3 -> Vote 02 - Office Of The Accounting Officer | C13: =SUM(C14:C19) -> 0 | D13: 0 | E13: 0 | F13: 0 | G13: 0 | H13: 0 | I13: 0 | K13: =SUM(K14:K19) -> 0
A14: ='Org structure'!E9 -> 02.1 - Office Of The Ao Admin | I14: =G14-H14 -> 0 | J14: =IF(I14=0,"",I14/H14) ->  | K14: 0
A15: ='Org structure'!E10 -> 02.2 - Strategic Planning Monitoring & Evaluat | I15: 0 | K15: 0
A16: ='Org structure'!E11 -> 02.3 - Perfomance Management System | I16: 0 | K16: 0
A17: ='Org structure'!E12 -> 02.4 - Internal Audit | I17: 0 | K17: 0
A18: ='Org structure'!E13 -> 02.5 - Municipal Planning Idp | I18: 0 | K18: 0
A19: ='Org structure'!E14 -> 02.6 - Risk | I19: 0 | K19: 0
A20: ='Org structure'!A4 -> Vote 03 - Budget And Treasury Office | C20: =SUM(C21:C27) -> 41762.17 | D20: 0 | E20: 0 | F20: 0 | G20: 0 | H20: 0 | I20: 0 | K20: =SUM(K21:K27) -> 0
A21: ='Org structure'!E16 -> 03.1 - Chief Financial Officer Admin | I21: =G21-H21 -> 0 | J21: =IF(I21=0,"",I21/H21) ->  | K21: 0
A22: ='Org structure'!E17 -> 03.2 - Budget Expenditure & Reporting | I22: 0 | K22: 0
A23: ='Org structure'!E18 -> 03.3 - Budget Expenditure & Reporting | I23: 0 | K23: 0
A24: ='Org structure'!E19 -> 03.4 - Revenue Management | C24: 41762.17 | D24: 0 | E24: 0 | F24: 0 | G24: 0 | H24: 0 | I24: 0 | K24: 0
A25: ='Org structure'!E20 -> 03.5 - Supply Chain Management | I25: 0 | K25: 0
A26: ='Org structure'!E21 -> 03.6 - Assets Management | I26: 0 | K26: 0
A27: ='Org structure'!E22 -> 03.7 - Expenditure | I27: 0 | K27: 0
A28: ='Org structure'!A5 -> Vote 04 - Corporate Services | C28: =SUM(C29:C36) -> 130496.44 | D28: 1000000 | E28: 1000000 | F28: 0 | G28: 54200 | H28: 583338 | I28: -529138 | J28: -0.9070864576 | K28: =SUM(K29:K36) -> 1000000
A29: ='Org structure'!E24 -> 04.1 - Legal Services | I29: =G29-H29 -> 0 | J29: =IF(I29=0,"",I29/H29) ->  | K29: 0
A30: ='Org structure'!E25 -> 04.2 - Corporate Service Administration | C30: 130496.44 | D30: 500000 | E30: 500000 | F30: 0 | G30: 54200 | H30: 291669 | I30: -237469 | J30: -0.8141729152 | K30: 500000
A31: ='Org structure'!E26 -> 04.3 - Human Resources | C31: 0 | D31: 500000 | E31: 500000 | F31: 0 | G31: 0 | H31: 291669 | I31: -291669 | J31: -1 | K31: 500000
A32: ='Org structure'!E27 -> 04.4 - Media & Communication | I32: 0 | K32: 0
A33: ='Org structure'!E28 -> 04.5 - Organisational Development | I33: 0 | K33: 0
A34: ='Org structure'!E29 -> 04.6 - Labour Relations | I34: 0 | K34: 0
A35: ='Org structure'!E30 -> 04.7 - Legal Services | I35: 0 | K35: 0
A36: ='Org structure'!E31 -> 04.8 - Information Technology Services | C36: 0 | D36: 0 | E36: 0 | F36: 0 | G36: 0 | H36: 0 | I36: 0 | K36: 0
A37: ='Org structure'!A6 -> Vote 05 - Community Services | C37: =SUM(C38:C51) -> -2219817 | D37: 20087987 | E37: 20087987 | F37: 889551.83 | G37: 4432601.07 | H37: 11718000 | I37: -7285398.93 | J37: -0.6217271659 | K37: =SUM(K38:K51) -> 20087987
A38: ='Org structure'!E33 -> 05.1 - Municipal Buildings | C38: 0 | D38: 7223512 | E38: 7223512 | F38: 889551.83 | G38: 1807754.11 | H38: 4213720 | I38: =G38-H38 -> -2405965.89 | J38: =IF(I38=0,"",I38/H38) -> -0.5709838077 | K38: 7223512
A39: ='Org structure'!E34 -> 05.2 - Fleet Management | C39: 0 | D39: 0 | E39: 0 | F39: 0 | G39: 0 | H39: 0 | I39: 0 | K39: 0
A40: ='Org structure'!E35 -> 05.3 - Community Services Administration | I40: 0 | K40: 0
A41: ='Org structure'!E36 -> 05.4 - Cemeteries | C41: 0 | D41: 0 | E41: 0 | F41: 0 | G41: 0 | H41: 0 | I41: 0 | K41: 0
A42: ='Org structure'!E37 -> 05.5 - Disaster Management | I42: 0 | K42: 0
A43: ='Org structure'!E38 -> 05.6 - Fires Service | I43: 0 | K43: 0
A44: ='Org structure'!E39 -> 05.7 - Libraries | I44: 0 | K44: 0
A45: ='Org structure'!E40 -> 05.8 - Municipal Buildings | C45: 0 | D45: 0 | E45: 0 | F45: 0 | G45: 0 | H45: 0 | I45: 0 | K45: 0
A46: ='Org structure'!E41 -> 05.9 - Sports Recreation & Social Amenitie | C46: 0 | D46: 9864475 | E46: 9864475 | F46: 0 | G46: 2624846.96 | H46: 5754280 | I46: -3129433.04 | J46: -0.5438444149 | K46: 9864475
A47: ='Org structure'!E42 -> 05.10 - Waste Management Solid Waste | C47: -2219817 | D47: 3000000 | E47: 3000000 | F47: 0 | G47: 0 | H47: 1750000 | I47: -1750000 | J47: -1 | K47: 3000000
A48: ='Org structure'!E43 -> 05.11 - Safety And Security | C48: 0 | D48: 0 | E48: 0 | F48: 0 | G48: 0 | H48: 0 | I48: 0 | K48: 0
A49: ='Org structure'!E44 -> 05.12 - Traffic Service | I49: 0 | K49: 0
A50: ='Org structure'!E45 -> 05.13 - Traffic Service | I50: 0 | K50: 0
A51: ='Org structure'!E46 -> 05.14 - Fleet Management | C51: 0 | D51: 0 | E51: 0 | F51: 0 | G51: 0 | H51: 0 | I51: 0 | K51: 0
A52: ='Org structure'!A7 -> Vote 06 - Planning & Development | C52: =SUM(C53:C62) -> 0 | D52: 0 | E52: 0 | F52: 0 | G52: 0 | H52: 0 | I52: 0 | K52: =SUM(K53:K62) -> 0
A53: ='Org structure'!E48 -> 06.1 - Planning And Development Admin | I53: =G53-H53 -> 0 | J53: =IF(I53=0,"",I53/H53) ->  | K53: 0
A54: ='Org structure'!E49 -> 06.2 - Municipal Planning Idp | I54: 0 | K54: 0
A55: ='Org structure'!E50 -> 06.3 - Pms | I55: 0 | K55: 0
A56: ='Org structure'!E51 -> 06.4 - Town Planning | I56: 0 | K56: 0
A57: ='Org structure'!E52 -> 06.5 - Land Use And Housing Admin | I57: 0 | K57: 0
A58: ='Org structure'!E53 -> 06.6 - Local Economic Development | I58: 0 | K58: 0
A59: ='Org structure'!E54 -> 06.7 - Led | I59: 0 | K59: 0
A60: ='Org structure'!E55 -> 06.8 - Agriculture & Rural Development | I60: 0 | K60: 0
A61: ='Org structure'!E56 -> 06.9 - Tourism & Business Development | I61: 0 | K61: 0
A62: ='Org structure'!E57 -> 06.10 - Arts & Culture | I62: 0 | K62: 0
A63: ='Org structure'!A8 -> Vote 07 - Infrastructure & Technical Services | C63: =SUM(C64:C82) -> 24958199.28 | D63: 182407246 | E63: 182407246 | F63: 6015394.36 | G63: 68701156.53 | H63: 106404333 | I63: =G63-H63 -> -37703176.47 | J63: =IF(I63=0,"",I63/H63) -> -0.3543387323 | K63: =SUM(K64:K82) -> 182407246
A64: ='Org structure'!E59 -> 07.1 - Infrastructure Admin & Tech Admin | I64: =G64-H64 -> 0 | J64: =IF(I64=0,"",I64/H64) ->  | K64: 0
A65: ='Org structure'!E60 -> 07.2 - Fleet Management | C65: 0 | D65: 0 | E65: 0 | F65: 0 | G65: 0 | H65: 0 | I65: 0 | K65: 0
A66: ='Org structure'!E61 -> 07.3 - Roads | C66: 1862217.88 | D66: 60981783 | E66: 60981783 | F66: -2538353.94 | G66: 23908066.43 | H66: 35572719 | I66: -11664652.57 | J66: -0.3279100642 | K66: 60981783
A67: ='Org structure'!E62 -> 07.4 - Storm Water | I67: 0 | K67: 0
A68: ='Org structure'!E63 -> 07.5 - Street Lighting | C68: 0 | D68: 12265740 | E68: 12265740 | F68: 162522.9 | G68: 4750472.55 | H68: 7155057 | I68: -2404584.45 | J68: -0.3360678259 | K68: 12265740
A69: ='Org structure'!E64 -> 07.6 - Project Management Unit | I69: 0 | K69: 0
A70: ='Org structure'!E65 -> 07.7 - Sanitation Treatment Plant: Mogwase | I70: 0 | K70: 0
A71: ='Org structure'!E66 -> 07.8 - Sanitation Treatment Plant: Madikwe | I71: 0 | K71: 0
A72: ='Org structure'!E67 -> 07.9 - Sanitation Reticulation | C72: 0 | D72: 25887357 | E72: 25887357 | F72: 1943411.4 | G72: 11465729.87 | H72: 15100974 | I72: -3635244.13 | J72: -0.2407291165 | K72: 25887357
A73: ='Org structure'!E68 -> 07.10 - Water Administration | C73: 23095981.4 | D73: 83272366 | E73: 83272366 | F73: 6447814 | G73: 28576887.68 | H73: 48575583 | I73: -19998695.32 | J73: -0.4117026309 | K73: 83272366
A74: ='Org structure'!E69 -> 07.11 - Water Madikwe: Water Treatment Work | I74: 0 | K74: 0
A75: ='Org structure'!E70 -> 07.12 - Water: Pella Water Treatment Works | I75: 0 | K75: 0
A76: ='Org structure'!E71 -> 07.13 - Water: Madikwe Retail & Bulk Lines | I76: 0 | K76: 0
A77: ='Org structure'!E72 -> 07.14 - Water: Madikwe Rural | I77: 0 | K77: 0
A78: ='Org structure'!E73 -> 07.15 - Water: Molatedi | I78: 0 | K78: 0
A79: ='Org structure'!E74 -> 07.16 - Water Eastern: Retail Mankwe | I79: 0 | K79: 0
A80: ='Org structure'!E75 -> 07.17 - Water Vaalkopdam: Mankwe | I80: 0 | K80: 0
A81: ='Org structure'!E76 -> 07.18 - Water Eastern: Retail Mankwe | I81: 0 | K81: 0
A82: ='Org structure'!E77 -> 07.19 - Reporting Function Electricity | I82: 0 | K82: 0
A83: ='Org structure'!A9 -> Vote 08 - | C83: 0 | D83: 0 | E83: 0 | F83: 0 | G83: 0 | H83: 0 | I83: 0 | K83: 0
A84: ='Org structure'!A10 -> Vote 09 - | C84: 0 | D84: 0 | E84: 0 | F84: 0 | G84: 0 | H84: 0 | I84: 0 | K84: 0
A85: ='Org structure'!A11 -> Vote 10 - | C85: 0 | D85: 0 | E85: 0 | F85: 0 | G85: 0 | H85: 0 | I85: 0 | K85: 0
A86: ='Org structure'!A12 -> Vote 11 - | C86: 0 | D86: 0 | E86: 0 | F86: 0 | G86: 0 | H86: 0 | I86: 0 | K86: 0
A87: ='Org structure'!A13 -> Vote 12 - | C87: 0 | D87: 0 | E87: 0 | F87: 0 | G87: 0 | H87: 0 | I87: 0 | K87: 0
A88: ='Org structure'!A14 -> Vote 13 - | C88: 0 | D88: 0 | E88: 0 | F88: 0 | G88: 0 | H88: 0 | I88: =G88-H88 -> 0 | J88: =IF(I88=0,"",I88/H88) ->  | K88: 0
A89: ='Org structure'!A15 -> Vote 14 - | C89: 0 | D89: 0 | E89: 0 | F89: 0 | G89: 0 | H89: 0 | I89: 0 | K89: 0
A90: ='Org structure'!A16 -> Vote 15 - Other | C90: 0 | D90: 0 | E90: 0 | F90: 0 | G90: 0 | H90: 0 | I90: 0 | K90: 0
A91: Total multi-year capital expenditure | C91: =C7+C13+C20+C28+C37+C52+C63+C83+C84+C85+C86+C87+C88+C89+C90 -> 22910640.89 | D91: 203495233 | E91: 203495233 | F91: 6904946.19 | G91: 73187957.6 | H91: 118705671 | I91: -45517713.4 | J91: -0.383450201 | K91: =K7+K13+K20+K28+K37+K52+K63+K83+K84+K85+K86+K87+K88+K89+K90 -> 203495233
I92: 0
A93: Capital expenditure - Municipal Vote
A94: Expenditue of single-year capital appropriation | B94: 1 | I94: 0
A95: ='Org structure'!A2 -> Vote 01 - Municipal Council | C95: =SUM(C96:C100) -> 0 | D95: 0 | E95: 0 | F95: 0 | G95: 0 | H95: 0 | I95: 0 | K95: =SUM(K96:K100) -> 0
A96: ='Org structure'!E3 -> 01.1 - Office Of The Mayor | C96: 0 | D96: 0 | E96: 0 | F96: 0 | G96: 0 | H96: 0 | I96: 0 | K96: 0
A97: ='Org structure'!E4 -> 01.2 - Office Of The Speaker | C97: 0 | D97: 0 | E97: 0 | F97: 0 | G97: 0 | H97: 0 | I97: 0 | K97: 0
A98: ='Org structure'!E5 -> 01.3 - Office Of The Chief Whip | C98: 0 | D98: 0 | E98: 0 | F98: 0 | G98: 0 | H98: 0 | I98: 0 | K98: 0
A99: ='Org structure'!E6 -> 01.4 - Mpac | C99: 0 | D99: 0 | E99: 0 | F99: 0 | G99: 0 | H99: 0 | I99: 0 | K99: 0
A100: ='Org structure'!E7 -> 01.5 - Council General Administration | C100: 0 | D100: 0 | E100: 0 | F100: 0 | G100: 0 | H100: 0 | I100: 0 | K100: 0
A101: ='Org structure'!A3 -> Vote 02 - Office Of The Accounting Officer | C101: =SUM(C102:C107) -> 0 | D101: 0 | E101: 0 | F101: 0 | G101: 0 | H101: 0 | I101: 0 | K101: =SUM(K102:K107) -> 0
A102: ='Org structure'!E9 -> 02.1 - Office Of The Ao Admin | C102: 0 | D102: 0 | E102: 0 | F102: 0 | G102: 0 | H102: 0 | I102: 0 | K102: 0
A103: ='Org structure'!E10 -> 02.2 - Strategic Planning Monitoring & Evaluat | C103: 0 | D103: 0 | E103: 0 | F103: 0 | G103: 0 | H103: 0 | I103: 0 | K103: 0
A104: ='Org structure'!E11 -> 02.3 - Perfomance Management System | C104: 0 | D104: 0 | E104: 0 | F104: 0 | G104: 0 | H104: 0 | I104: 0 | K104: 0
A105: ='Org structure'!E12 -> 02.4 - Internal Audit | C105: 0 | D105: 0 | E105: 0 | F105: 0 | G105: 0 | H105: 0 | I105: 0 | K105: 0
A106: ='Org structure'!E13 -> 02.5 - Municipal Planning Idp | C106: 0 | D106: 0 | E106: 0 | F106: 0 | G106: 0 | H106: 0 | I106: 0 | K106: 0
A107: ='Org structure'!E14 -> 02.6 - Risk | C107: 0 | D107: 0 | E107: 0 | F107: 0 | G107: 0 | H107: 0 | I107: 0 | K107: 0
A108: ='Org structure'!A4 -> Vote 03 - Budget And Treasury Office | C108: =SUM(C109:C115) -> 0 | D108: 0 | E108: 0 | F108: 0 | G108: 0 | H108: 0 | I108: 0 | K108: =SUM(K109:K115) -> 0
A109: ='Org structure'!E16 -> 03.1 - Chief Financial Officer Admin | C109: 0 | D109: 0 | E109: 0 | F109: 0 | G109: 0 | H109: 0 | I109: 0 | K109: 0
A110: ='Org structure'!E17 -> 03.2 - Budget Expenditure & Reporting | C110: 0 | D110: 0 | E110: 0 | F110: 0 | G110: 0 | H110: 0 | I110: =G110-H110 -> 0 | J110: =IF(I110=0,"",I110/H110) ->  | K110: 0
A111: ='Org structure'!E18 -> 03.3 - Budget Expenditure & Reporting | C111: 0 | D111: 0 | E111: 0 | F111: 0 | G111: 0 | H111: 0 | I111: 0 | K111: 0
A112: ='Org structure'!E19 -> 03.4 - Revenue Management | C112: 0 | D112: 0 | E112: 0 | F112: 0 | G112: 0 | H112: 0 | I112: 0 | K112: 0
A113: ='Org structure'!E20 -> 03.5 - Supply Chain Management | C113: 0 | D113: 0 | E113: 0 | F113: 0 | G113: 0 | H113: 0 | I113: 0 | K113: 0
A114: ='Org structure'!E21 -> 03.6 - Assets Management | C114: 0 | D114: 0 | E114: 0 | F114: 0 | G114: 0 | H114: 0 | I114: 0 | K114: 0
A115: ='Org structure'!E22 -> 03.7 - Expenditure | C115: 0 | D115: 0 | E115: 0 | F115: 0 | G115: 0 | H115: 0 | I115: 0 | K115: 0
A116: ='Org structure'!A5 -> Vote 04 - Corporate Services | C116: =SUM(C117:C124) -> 0 | D116: 0 | E116: 0 | F116: 0 | G116: 0 | H116: 0 | I116: 0 | K116: =SUM(K117:K124) -> 0
A117: ='Org structure'!E24 -> 04.1 - Legal Services | C117: 0 | D117: 0 | E117: 0 | F117: 0 | G117: 0 | H117: 0 | I117: 0 | K117: 0
A118: ='Org structure'!E25 -> 04.2 - Corporate Service Administration | C118: 0 | D118: 0 | E118: 0 | F118: 0 | G118: 0 | H118: 0 | I118: 0 | K118: 0
A119: ='Org structure'!E26 -> 04.3 - Human Resources | C119: 0 | D119: 0 | E119: 0 | F119: 0 | G119: 0 | H119: 0 | I119: 0 | K119: 0
A120: ='Org structure'!E27 -> 04.4 - Media & Communication | C120: 0 | D120: 0 | E120: 0 | F120: 0 | G120: 0 | H120: 0 | I120: 0 | K120: 0
A121: ='Org structure'!E28 -> 04.5 - Organisational Development | C121: 0 | D121: 0 | E121: 0 | F121: 0 | G121: 0 | H121: 0 | I121: 0 | K121: 0
A122: ='Org structure'!E29 -> 04.6 - Labour Relations | C122: 0 | D122: 0 | E122: 0 | F122: 0 | G122: 0 | H122: 0 | I122: 0 | K122: 0
A123: ='Org structure'!E30 -> 04.7 - Legal Services | C123: 0 | D123: 0 | E123: 0 | F123: 0 | G123: 0 | H123: 0 | I123: 0 | K123: 0
A124: ='Org structure'!E31 -> 04.8 - Information Technology Services | C124: 0 | D124: 0 | E124: 0 | F124: 0 | G124: 0 | H124: 0 | I124: 0 | K124: 0
A125: ='Org structure'!A6 -> Vote 05 - Community Services | C125: =SUM(C126:C139) -> 0 | D125: 0 | E125: 0 | F125: 0 | G125: 0 | H125: 0 | I125: 0 | K125: =SUM(K126:K139) -> 0
A126: ='Org structure'!E33 -> 05.1 - Municipal Buildings | C126: 0 | D126: 0 | E126: 0 | F126: 0 | G126: 0 | H126: 0 | I126: 0 | K126: 0
A127: ='Org structure'!E34 -> 05.2 - Fleet Management | C127: 0 | D127: 0 | E127: 0 | F127: 0 | G127: 0 | H127: 0 | I127: 0 | K127: 0
A128: ='Org structure'!E35 -> 05.3 - Community Services Administration | C128: 0 | D128: 0 | E128: 0 | F128: 0 | G128: 0 | H128: 0 | I128: 0 | K128: 0
A129: ='Org structure'!E36 -> 05.4 - Cemeteries | C129: 0 | D129: 0 | E129: 0 | F129: 0 | G129: 0 | H129: 0 | I129: 0 | K129: 0
A130: ='Org structure'!E37 -> 05.5 - Disaster Management | C130: 0 | D130: 0 | E130: 0 | F130: 0 | G130: 0 | H130: 0 | I130: 0 | K130: 0
A131: ='Org structure'!E38 -> 05.6 - Fires Service | C131: 0 | D131: 0 | E131: 0 | F131: 0 | G131: 0 | H131: 0 | I131: 0 | K131: 0
A132: ='Org structure'!E39 -> 05.7 - Libraries | C132: 0 | D132: 0 | E132: 0 | F132: 0 | G132: 0 | H132: 0 | I132: 0 | K132: 0
A133: ='Org structure'!E40 -> 05.8 - Municipal Buildings | C133: 0 | D133: 0 | E133: 0 | F133: 0 | G133: 0 | H133: 0 | I133: 0 | K133: 0
A134: ='Org structure'!E41 -> 05.9 - Sports Recreation & Social Amenitie | C134: 0 | D134: 0 | E134: 0 | F134: 0 | G134: 0 | H134: 0 | I134: 0 | K134: 0
A135: ='Org structure'!E42 -> 05.10 - Waste Management Solid Waste | C135: 0 | D135: 0 | E135: 0 | F135: 0 | G135: 0 | H135: 0 | K135: 0
A136: ='Org structure'!E43 -> 05.11 - Safety And Security | C136: 0 | D136: 0 | E136: 0 | F136: 0 | G136: 0 | H136: 0 | K136: 0
A137: ='Org structure'!E44 -> 05.12 - Traffic Service | C137: 0 | D137: 0 | E137: 0 | F137: 0 | G137: 0 | H137: 0 | K137: 0
A138: ='Org structure'!E45 -> 05.13 - Traffic Service | C138: 0 | D138: 0 | E138: 0 | F138: 0 | G138: 0 | H138: 0 | K138: 0
A139: ='Org structure'!E46 -> 05.14 - Fleet Management | C139: 0 | D139: 0 | E139: 0 | F139: 0 | G139: 0 | H139: 0 | K139: 0
A140: ='Org structure'!A7 -> Vote 06 - Planning & Development | C140: =SUM(C141:C150) -> 0 | D140: 0 | E140: 0 | F140: 0 | G140: 0 | H140: 0 | I140: 0 | K140: =SUM(K141:K150) -> 0
A141: ='Org structure'!E48 -> 06.1 - Planning And Development Admin | C141: 0 | D141: 0 | E141: 0 | F141: 0 | G141: 0 | H141: 0 | I141: 0 | K141: 0
A142: ='Org structure'!E49 -> 06.2 - Municipal Planning Idp | C142: 0 | D142: 0 | E142: 0 | F142: 0 | G142: 0 | H142: 0 | I142: 0 | K142: 0
A143: ='Org structure'!E50 -> 06.3 - Pms | C143: 0 | D143: 0 | E143: 0 | F143: 0 | G143: 0 | H143: 0 | I143: 0 | K143: 0
A144: ='Org structure'!E51 -> 06.4 - Town Planning | C144: 0 | D144: 0 | E144: 0 | F144: 0 | G144: 0 | H144: 0 | I144: 0 | K144: 0
A145: ='Org structure'!E52 -> 06.5 - Land Use And Housing Admin | C145: 0 | D145: 0 | E145: 0 | F145: 0 | G145: 0 | H145: 0 | I145: 0 | K145: 0
A146: ='Org structure'!E53 -> 06.6 - Local Economic Development | C146: 0 | D146: 0 | E146: 0 | F146: 0 | G146: 0 | H146: 0 | I146: 0 | K146: 0
A147: ='Org structure'!E54 -> 06.7 - Led | C147: 0 | D147: 0 | E147: 0 | F147: 0 | G147: 0 | H147: 0 | I147: 0 | K147: 0
A148: ='Org structure'!E55 -> 06.8 - Agriculture & Rural Development | C148: 0 | D148: 0 | E148: 0 | F148: 0 | G148: 0 | H148: 0 | I148: 0 | K148: 0
A149: ='Org structure'!E56 -> 06.9 - Tourism & Business Development | C149: 0 | D149: 0 | E149: 0 | F149: 0 | G149: 0 | H149: 0 | I149: 0 | K149: 0
A150: ='Org structure'!E57 -> 06.10 - Arts & Culture | C150: 0 | D150: 0 | E150: 0 | F150: 0 | G150: 0 | H150: 0 | K150: 0
A151: ='Org structure'!A8 -> Vote 07 - Infrastructure & Technical Services | C151: =SUM(C152:C170) -> 0 | D151: 0 | E151: 0 | F151: 0 | G151: 0 | H151: 0 | I151: 0 | K151: =SUM(K152:K170) -> 0
A152: ='Org structure'!E59 -> 07.1 - Infrastructure Admin & Tech Admin | C152: 0 | D152: 0 | E152: 0 | F152: 0 | G152: 0 | H152: 0 | I152: 0 | K152: 0
A153: ='Org structure'!E60 -> 07.2 - Fleet Management | C153: 0 | D153: 0 | E153: 0 | F153: 0 | G153: 0 | H153: 0 | I153: 0 | K153: 0
A154: ='Org structure'!E61 -> 07.3 - Roads | C154: 0 | D154: 0 | E154: 0 | F154: 0 | G154: 0 | H154: 0 | I154: 0 | K154: 0
A155: ='Org structure'!E62 -> 07.4 - Storm Water | C155: 0 | D155: 0 | E155: 0 | F155: 0 | G155: 0 | H155: 0 | I155: 0 | K155: 0
A156: ='Org structure'!E63 -> 07.5 - Street Lighting | C156: 0 | D156: 0 | E156: 0 | F156: 0 | G156: 0 | H156: 0 | I156: 0 | K156: 0
A157: ='Org structure'!E64 -> 07.6 - Project Management Unit | C157: 0 | D157: 0 | E157: 0 | F157: 0 | G157: 0 | H157: 0 | I157: 0 | K157: 0
A158: ='Org structure'!E65 -> 07.7 - Sanitation Treatment Plant: Mogwase | C158: 0 | D158: 0 | E158: 0 | F158: 0 | G158: 0 | H158: 0 | I158: 0 | K158: 0
A159: ='Org structure'!E66 -> 07.8 - Sanitation Treatment Plant: Madikwe | C159: 0 | D159: 0 | E159: 0 | F159: 0 | G159: 0 | H159: 0 | I159: 0 | K159: 0
A160: ='Org structure'!E67 -> 07.9 - Sanitation Reticulation | C160: 0 | D160: 0 | E160: 0 | F160: 0 | G160: 0 | H160: 0 | I160: 0 | K160: 0
A161: ='Org structure'!E68 -> 07.10 - Water Administration | C161: 0 | D161: 0 | E161: 0 | F161: 0 | G161: 0 | H161: 0 | K161: 0
A162: ='Org structure'!E69 -> 07.11 - Water Madikwe: Water Treatment Work | C162: 0 | D162: 0 | E162: 0 | F162: 0 | G162: 0 | H162: 0 | K162: 0
A163: ='Org structure'!E70 -> 07.12 - Water: Pella Water Treatment Works | C163: 0 | D163: 0 | E163: 0 | F163: 0 | G163: 0 | H163: 0 | K163: 0
A164: ='Org structure'!E71 -> 07.13 - Water: Madikwe Retail & Bulk Lines | C164: 0 | D164: 0 | E164: 0 | F164: 0 | G164: 0 | H164: 0 | K164: 0
A165: ='Org structure'!E72 -> 07.14 - Water: Madikwe Rural | C165: 0 | D165: 0 | E165: 0 | F165: 0 | G165: 0 | H165: 0 | K165: 0
A166: ='Org structure'!E73 -> 07.15 - Water: Molatedi | C166: 0 | D166: 0 | E166: 0 | F166: 0 | G166: 0 | H166: 0 | K166: 0
A167: ='Org structure'!E74 -> 07.16 - Water Eastern: Retail Mankwe | C167: 0 | D167: 0 | E167: 0 | F167: 0 | G167: 0 | H167: 0 | K167: 0
A168: ='Org structure'!E75 -> 07.17 - Water Vaalkopdam: Mankwe | C168: 0 | D168: 0 | E168: 0 | F168: 0 | G168: 0 | H168: 0 | K168: 0
A169: ='Org structure'!E76 -> 07.18 - Water Eastern: Retail Mankwe | C169: 0 | D169: 0 | E169: 0 | F169: 0 | G169: 0 | H169: 0 | K169: 0
A170: ='Org structure'!E77 -> 07.19 - Reporting Function Electricity | C170: 0 | D170: 0 | E170: 0 | F170: 0 | G170: 0 | H170: 0 | K170: 0
A171: ='Org structure'!A9 -> Vote 08 - | C171: 0 | D171: 0 | E171: 0 | F171: 0 | G171: 0 | H171: 0 | I171: 0 | K171: 0
A172: ='Org structure'!A10 -> Vote 09 - | C172: 0 | D172: 0 | E172: 0 | F172: 0 | G172: 0 | H172: 0 | I172: =G172-H172 -> 0 | J172: =IF(I172=0,"",I172/H172) ->  | K172: 0
A173: ='Org structure'!A11 -> Vote 10 - | C173: 0 | D173: 0 | E173: 0 | F173: 0 | G173: 0 | H173: 0 | I173: 0 | K173: 0
A174: ='Org structure'!A12 -> Vote 11 - | C174: 0 | D174: 0 | E174: 0 | F174: 0 | G174: 0 | H174: 0 | I174: 0 | K174: 0
A175: ='Org structure'!A13 -> Vote 12 - | C175: 0 | D175: 0 | E175: 0 | F175: 0 | G175: 0 | H175: 0 | I175: 0 | K175: 0
A176: ='Org structure'!A14 -> Vote 13 - | C176: 0 | D176: 0 | E176: 0 | F176: 0 | G176: 0 | H176: 0 | I176: 0 | K176: 0
A177: ='Org structure'!A15 -> Vote 14 - | C177: 0 | D177: 0 | E177: 0 | F177: 0 | G177: 0 | H177: 0 | I177: 0 | K177: 0
A178: ='Org structure'!A16 -> Vote 15 - Other | C178: 0 | D178: 0 | E178: 0 | F178: 0 | G178: 0 | H178: 0 | I178: =G178-H178 -> 0 | J178: =IF(I178=0,"",I178/H178) ->  | K178: 0
A179: Total single-year capital expenditure | C179: =C95+C101+C108+C116+C125+C140+C151+C171+C172+C173+C174+C175+C176+C177+C178 -> 0 | D179: 0 | E179: 0 | F179: 0 | G179: 0 | H179: 0 | I179: 0 | K179: =K95+K101+K108+K116+K125+K140+K151+K171+K172+K173+K174+K175+K176+K177+K178 -> 0
A180: Total Capital Expenditure | C180: =C91+C179 -> 22910640.89 | D180: 203495233 | E180: 203495233 | F180: 6904946.19 | G180: 73187957.6 | H180: 118705671 | I180: -45517713.4 | J180: -0.383450201 | K180: =K91+K179 -> 203495233
A181: =head27a -> References
A182: 1. Insert 'Vote'; e.g. Department, if different to standard structure

Sheet C6-FinPos
A1: =muni& " - "&S71E& " - "&date -> NW375 Moses Kotane - Table C6 Monthly Budget Statement - Financial Position - M07 January
A2: =desc -> Description | B2: =head27 -> Ref | C2: =Head1 -> 2019/20 | D2: =Head2 -> Budget Year 2020/21
C3: =Head5 -> Audited Outcome | D3: =Head6 -> Original Budget | E3: =Head7 -> Adjusted Budget | F3: =Head39 -> YearTD actual | G3: =Head8 -> Full Year Forecast
A4: R thousands | B4: 1
A5: ASSETS
A6: Current assets
A7: Cash | C7: 4015680.42 | D7: 1328000 | E7: 11760218 | F7: 299019721.8 | G7: 11760218
A8: Call investment deposits | C8: 44764970.39 | D8: 17712753 | E8: 42796851 | F8: -147413650.2 | G8: 42796851
A9: Consumer debtors | C9: 62378187.89 | D9: 127002838 | E9: 336731922 | F9: 108250631 | G9: 336731922
A10: Other debtors | C10: 70900472.13 | D10: 18000000 | E10: 70820448 | F10: 69615055.04 | G10: 70820448
A11: Current portion of long-term receivables
A12: Inventory | C12: 9751477.52 | D12: 5000000 | E12: 9751478 | F12: 11557841.15 | G12: 9751478
A13: Total current assets | C13: =SUM(C7:C12) -> 191810788.3 | D13: =SUM(D7:D12) -> 169043591 | E13: =SUM(E7:E12) -> 471860917 | F13: =SUM(F7:F12) -> 341029598.8 | G13: =SUM(G7:G12) -> 471860917
A15: Non current assets
A16: Long-term receivables | C16: 0 | D16: 0 | E16: 0 | F16: 0 | G16: 0
A17: Investments | C17: 0 | D17: 0 | E17: 0 | F17: 0 | G17: 0
A18: Investment property | C18: 154834421.6 | D18: 155209867 | E18: 154834422 | F18: 154834421.6 | G18: 154834422
A19: Investments in Associate
A20: Property, plant and equipment | C20: 2905440968 | D20: 3531746542 | E20: 3111327750 | F20: 2904002835 | G20: 3111327750
A22: Biological
A23: Intangible | C23: 9161157.31 | D23: 0 | E23: 9161158 | F23: 5910336.31 | G23: 9161158
A24: Other non-current assets | C24: 14000 | D24: 14000 | E24: 14000 | F24: 14000 | G24: 14000
A25: Total non current assets | C25: =SUM(C16:C20)+SUM(C22:C24) -> 3069450547 | D25: =SUM(D16:D20)+SUM(D22:D24) -> 3686970409 | E25: =SUM(E16:E20)+SUM(E22:E24) -> 3275337330 | F25: =SUM(F16:F20)+SUM(F22:F24) -> 3064761593 | G25: =SUM(G16:G20)+SUM(G22:G24) -> 3275337330
A26: TOTAL ASSETS | C26: =C13+C25 -> 3261261335 | D26: =D13+D25 -> 3856014000 | E26: =E13+E25 -> 3747198247 | F26: =F13+F25 -> 3405791192 | G26: =G13+G25 -> 3747198247
A28: LIABILITIES
A29: Current liabilities
A30: Bank overdraft | C30: 0 | D30: 0 | E30: 0 | F30: 0 | G30: 0
A31: Borrowing | C31: 35987887.29 | D31: 41362000 | E31: 30187889 | F31: 27059115.73 | G31: 30187889
A32: Consumer deposits | C32: 15500 | D32: 0 | E32: 15500 | F32: 22033.99 | G32: 15500
A33: Trade and other payables | C33: 303291422.6 | D33: 45000000 | E33: 303291421 | F33: 314217075.5 | G33: 303291421
A34: Provisions | C34: 34935429.97 | D34: 0 | E34: 34935430 | F34: 33504226.65 | G34: 34935430
A35: Total current liabilities | C35: =SUM(C30:C34) -> 374230239.9 | D35: =SUM(D30:D34) -> 86362000 | E35: =SUM(E30:E34) -> 368430240 | F35: =SUM(F30:F34) -> 374802451.8 | G35: =SUM(G30:G34) -> 368430240
A37: Non current liabilities
A38: Borrowing | C38: 0 | D38: 0 | E38: 0 | F38: 0 | G38: 0
A39: Provisions | C39: 30725685.37 | D39: 29829314 | E39: 30725686 | F39: 31075685.37 | G39: 30725686
A40: Total non current liabilities | C40: =SUM(C38:C39) -> 30725685.37 | D40: =SUM(D38:D39) -> 29829314 | E40: =SUM(E38:E39) -> 30725686 | F40: =SUM(F38:F39) -> 31075685.37 | G40: =SUM(G38:G39) -> 30725686
A41: TOTAL LIABILITIES | C41: =C35+C40 -> 404955925.2 | D41: =D35+D40 -> 116191314 | E41: =E35+E40 -> 399155926 | F41: =F35+F40 -> 405878137.2 | G41: =G35+G40 -> 399155926
A43: NET ASSETS | B43: 2 | C43: =C26-C41 -> 2856305410 | D43: =D26-D41 -> 3739822686 | E43: =E26-E41 -> 3348042321 | F43: =F26-F41 -> 2999913055 | G43: =G26-G41 -> 3348042321
A45: COMMUNITY WEALTH/EQUITY
A46: Accumulated Surplus/(Deficit) | C46: 2856305410 | D46: 3516524103 | E46: 3088472378 | F46: 2999913055 | G46: 3088472378
A47: Reserves | C47: 0 | D47: 0 | E47: 0 | F47: 0 | G47: 0
A48: TOTAL COMMUNITY WEALTH/EQUITY | B48: 2 | C48: =SUM(C46:C47) -> 2856305410 | D48: =SUM(D46:D47) -> 3516524103 | E48: =SUM(E46:E47) -> 3088472378 | F48: =SUM(F46:F47) -> 2999913055 | G48: =SUM(G46:G47) -> 3088472378
A49: =head27a -> References
A50: 1. Material variances to be explained in Table SC1
A51: 2. Net assets must balance with Total Community Wealth/Equity
A54: check balance | C54: =C43-C48 -> 0 | D54: =D43-D48 -> 223298583 | E54: =E43-E48 -> 259569943 | F54: =F43-F48 -> 0 | G54: =G43-G48 -> 259569943

Sheet C7-CFlow
A1: =muni& " - "&S71F& " - "&date -> NW375 Moses Kotane - Table C7 Monthly Budget Statement - Cash Flow - M07 January
A2: =desc -> Description | B2: =head27 -> Ref | C2: =Head1 -> 2019/20 | D2: =Head2 -> Budget Year 2020/21
C3: =Head5 -> Audited Outcome | D3: =Head6 -> Original Budget | E3: =Head7 -> Adjusted Budget | F3: =Head38 -> Monthly actual | G3: =Head39 -> YearTD actual | H3: =Head40 -> YearTD budget | I3: =Head41 -> YTD variance | J3: =Head41 -> YTD variance | K3: =Head8 -> Full Year Forecast
A4: R thousands | B4: 1 | J4: %
A5: CASH FLOW FROM OPERATING ACTIVITIES
A6: Receipts
A7: Property rates | C7: 0 | D7: 0 | E7: 71063746 | F7: 6056968.16 | G7: 48215932.82 | H7: 41453851.81 | I7: =G7-H7 -> 6762081.01 | J7: =IF(I7=0,"",I7/H7) -> 0.1631231047 | K7: 71063746
A8: Service charges | C8: 0 | D8: 0 | E8: 68734345 | F8: 3656003.33 | G8: 17788117.85 | H8: 40095034.56 | I8: -22306916.71 | J8: =IF(I8=0,"",I8/H8) -> -0.5563511032 | K8: 68734345
A9: Other revenue | C9: 0 | D9: 0 | E9: 7725000 | F9: -23496321.47 | G9: 261447845.3 | H9: 4506250 | I9: 256941595.3 | J9: =IF(I9=0,"",I9/H9) -> 57.01893932 | K9: 7725000
A10: Transfers and Subsidies - Operational | C10: 0 | D10: 0 | E10: 550339767 | F10: 0 | G10: 766000 | H10: 321031530.8 | I10: -320265530.8 | J10: =IF(I10=0,"",I10/H10) -> -0.9976139415 | K10: 550339767
A11: Transfers and Subsidies - Capital | C11: 0 | D11: 0 | E11: 202495203 | F11: 0 | G11: 86112160.11 | H11: 118122201.8 | I11: -32010041.64 | J11: =IF(I11=0,"",I11/H11) -> -0.270990899 | K11: 202495203
A12: Interest | C12: 0 | D12: 0 | E12: 0 | F12: 26429.72 | G12: 935249.12 | H12: 0 | I12: 935249.12 | K12: 0
A13: Dividends | I13: 0
A14: Payments
A15: Suppliers and employees | C15: 0 | D15: 0 | E15: -896256847 | F15: -27144955.23 | G15: -194551559.4 | H15: -522816494.1 | I15: =H15-G15 -> -328264934.7 | J15: 0.6278779235 | K15: -896256847
A16: Finance charges | C16: 0 | D16: 0 | E16: -3043808 | F16: 0 | G16: 0 | H16: -1775554.69 | I16: =H16-G16 -> -1775554.69 | J16: 1 | K16: -3043808
A17: Transfers and Grants | I17: =H17-G17 -> 0
A18: NET CASH FROM/(USED) OPERATING ACTIVITIES | C18: =SUM(C7:C13)+SUM(C15:C17) -> 0 | D18: 0 | E18: 1057406 | F18: -40901875.49 | G18: 220713745.8 | H18: 616820.05 | I18: =H18-G18 -> -220096925.7 | J18: -356.8251806 | K18: =SUM(K7:K13)+SUM(K15:K17) -> 1057406
A20: CASH FLOWS FROM INVESTING ACTIVITIES
A21: Receipts
A22: Proceeds on disposal of PPE | I22: =G22-H22 -> 0 | J22: =IF(I22=0,"",I22/H22) -> 
A24: Decrease (increase) in non-current receivables | C24: 0 | D24: 0 | E24: 0 | F24: 0 | G24: 0 | H24: 0 | I24: =G24-H24 -> 0 | K24: 0
A25: Decrease (increase) in non-current investments | C25: 0 | D25: 0 | E25: 0 | F25: 0 | G25: 0 | H25: 0 | I25: =G25-H25 -> 0 | K25: 0
A26: Payments
A27: Capital assets | C27: 0 | D27: 0 | E27: 0 | F27: -6904946.19 | G27: -47713765.59 | H27: 0 | I27: =H27-G27 -> 47713765.59 | K27: 0
A28: NET CASH FROM/(USED) INVESTING ACTIVITIES | C28: =SUM(C22:C25)+C27 -> 0 | D28: =SUM(D22:D25)+D27 -> 0 | E28: 0 | F28: -6904946.19 | G28: -47713765.59 | H28: 0 | I28: =H28-G28 -> 47713765.59 | K28: =SUM(K22:K25)+K27 -> 0
A30: CASH FLOWS FROM FINANCING ACTIVITIES
A31: Receipts
A32: Short term loans | I32: =G32-H32 -> 0 | J32: =IF(I32=0,"",I32/H32) -> 
A33: Borrowing long term/refinancing | I33: =G33-H33 -> 0
A34: Increase (decrease) in consumer deposits | C34: -15500 | D34: 0 | E34: -15500 | F34: -1722.22 | G34: -1722.22 | H34: -6888.88 | I34: =G34-H34 -> 5166.66 | J34: -0.75 | K34: -15500
A35: Payments
A36: Repayment of borrowing | C36: -6166346.49 | D36: 0 | E36: -2800000 | F36: 0 | G36: -2648778.59 | H36: -1244444.32 | I36: =H36-G36 -> 1404334.27 | J36: -1.128483008 | K36: -2800000
A37: NET CASH FROM/(USED) FINANCING ACTIVITIES | C37: =SUM(C32:C34)+C36 -> -6181846.49 | D37: 0 | E37: -2815500 | F37: -1722.22 | G37: -2650500.81 | H37: -1251333.2 | I37: =H37-G37 -> 1399167.61 | J37: -1.118141523 | K37: =SUM(K32:K34)+K36 -> -2815500
A39: NET INCREASE/ (DECREASE) IN CASH HELD | C39: =C18+C28+C37 -> -6181846.49 | D39: 0 | E39: -1758094 | F39: -47808543.9 | G39: 170349479.4 | H39: -634513.15 | K39: =K18+K28+K37 -> -1758094
A40: Cash/cash equivalents at beginning: | C40: 64673261.29 | D40: 19040753 | E40: 46655855 | G40: 48780650.81
A41: Cash/cash equivalents at month/year end: | C41: =C39+C40 -> 58491414.8 | D41: =D39+D40 -> 19040753 | E41: =E39+E40 -> 44897761 | G41: =G39+G40 -> 219130130.2 | H41: =H39+H40 -> -634513.15 | K41: =K39+K40 -> -1758094
A42: References
A43: 1. Material variances to be explained in Table SC1

Sheet SC1
A1: =muni& " - "&S71G& " - "&date -> NW375 Moses Kotane - Supporting Table SC1 Material variance explanations - M07 January
A2: =head27 -> Ref | B2: =desc -> Description
C3: Variance | D3: Reasons for material deviations | E3: Remedial or corrective steps/remarks
B4: R thousands
A5: 1 | B5: ='C4-FinPerf RE'!A5 -> Revenue By Source
B6: Variances was not Calculated
A10: 2 | B10: ='C4-FinPerf RE'!A24 -> Expenditure By Type
B11: Variances was not Calculated
A15: 3 | B15: =RIGHT('C5-Capex'!A40,19) -> Capital Expenditure
B16: Variances was not Calculated
A20: 4 | B20: Financial Position
B21: Variances was not Calculated
A25: 5 | B25: Cash Flow
A30: 6 | B30: Measureable performance
A35: 7 | B35: Municipal Entities
A41: =head27a -> References
A42: 1. Revenue for each source, vote and standard classification
A43: 2. Expenditure for each type, vote and standard classification
A44: 3. Capital expenditure for each vote and standard classification
A45: 4. Explain any material variances between the annual budget and the expected financial position based on current trends
A46: 5. Cash receipts by source and cash payments by type where not explained under revenue and expenditure
A47: 6. For Sept, Dec, Mar and Jun statements explain any material variances in achievement of measurable performance objectives

Sheet SC2
A1: =muni& " - "&S71H& " - "&Head57 -> NW375 Moses Kotane - Supporting Table SC2 Monthly Budget Statement - performance indicators - M07 January
A2: Description of financial indicator | B2: Basis of calculation | C2: =head27 -> Ref | D2: =Head1 -> 2019/20 | E2: =Head2 -> Budget Year 2020/21
D3: =Head5 -> Audited Outcome | E3: =Head6 -> Original Budget | F3: =Head7 -> Adjusted Budget | G3: =Head39 -> YearTD actual | H3: =Head8 -> Full Year Forecast
A5: Borrowing Management
A7: Capital Charges to Operating Expenditure | B7: Interest & principal paid/Operating Expenditure | D7: =IF(ISERROR((D42-D43)/D45),0,((D42-D43)/D45)) -> -0.000813866167 | E7: =IF(ISERROR((E42+E44)/E45),0,((E42+E44)/E45)) -> 0.1597084859 | F7: =IF(ISERROR((F42+F44)/F45),0,((F42+F44)/F45)) -> 0.1488953509 | G7: =IF(ISERROR((G42+G44)/G45),0,((G42+G44)/G45)) -> 0.003080030004 | H7: =IF(ISERROR((H42+H44)/H45),0,((H42+H44)/H45)) -> 0.03038262123
A8: Borrowed funding of 'own' capital expenditure | B8: Borrowings/Capital expenditure excl. transfers and grants | D8: =IF(ISERROR(D47/D46),0,(D47/D46)) -> 0 | E8: =IF(ISERROR(E47/E46),0,(E47/E46)) -> 0 | F8: =IF(ISERROR(F47/F46),0,(F47/F46)) -> 0 | G8: =IF(ISERROR(G47/G46),0,(G47/G46)) -> 0 | H8: =IF(ISERROR(H47/H46),0,(H47/H46)) -> 0
A9: Safety of Capital
A10: Debt to Equity | B10: Loans, Accounts Payable, Overdraft & Tax Provision/ Funds & Reserves | D10: =IF(ISERROR(D48/D49),0,(D48/D49)) -> 0.1187825744 | E10: =IF(ISERROR(E48/E49),0,(E48/E49)) -> 0.0245589103 | F10: =IF(ISERROR(F48/F49),0,(F48/F49)) -> 0.1079754873 | G10: =IF(ISERROR(G48/G49),0,(G48/G49)) -> 0.1137620274 | H10: =IF(ISERROR(H48/H49),0,(H48/H49)) -> 0.1079754873
A11: Gearing | B11: Long Term Borrowing/ Funds & Reserves | D11: =IF(ISERROR(D51/D50),0,(D51/D50)) -> 0 | E11: =IF(ISERROR(E51/E50),0,(E51/E50)) -> 0 | F11: =IF(ISERROR(F51/F50),0,(F51/F50)) -> 0 | G11: =IF(ISERROR(G51/G50),0,(G51/G50)) -> 0 | H11: =IF(ISERROR(H51/H50),0,(H51/H50)) -> 0
A12: Liquidity
A13: Current Ratio | B13: Current assets/current liabilities | C13: 1 | D13: =IF(ISERROR(D52/D53),0,(D52/D53)) -> 0.5125475387 | E13: =IF(ISERROR(E52/E53),0,(E52/E53)) -> 1.95738393 | F13: =IF(ISERROR(F52/F53),0,(F52/F53)) -> 1.280733408 | G13: =IF(ISERROR(G52/G53),0,(G52/G53)) -> 0.90989159 | H13: =IF(ISERROR(H52/H53),0,(H52/H53)) -> 1.280733408
A14: Liquidity Ratio | B14: Monetary Assets/Current Liabilities | D14: =IF(ISERROR(D54/D53),0,(D54/D53)) -> 0.1303493027 | E14: =IF(ISERROR(E54/E53),0,(E54/E53)) -> 0.2204760543 | F14: =IF(ISERROR(F54/F53),0,(F54/F53)) -> 0.1480797803 | G14: =IF(ISERROR(G54/G53),0,(G54/G53)) -> 0.4044959441 | H14: =IF(ISERROR(H54/H53),0,(H54/H53)) -> 0.1480797803
A15: Revenue Management
A16: Annual Debtors Collection Rate (Payment Level %) | B16: Last 12 Mths Receipts/ Last 12 Mths Billing
A17: Outstanding Debtors to Revenue | B17: Total Outstanding Debtors to Annual Revenue | D17: =IF(ISERROR(D59/D55),0,(D59/D55)) -> 0.1604029119 | E17: =IF(ISERROR(E59/E55),0,(E59/E55)) -> 0.1655698197 | F17: =IF(ISERROR(F59/F55),0,(F59/F55)) -> 0.4252310924 | G17: =IF(ISERROR(G59/G55),0,(G59/G55)) -> 0.2698266609 | H17: =IF(ISERROR(H59/H55),0,(H59/H55)) -> 0.4252310924
A18: Longstanding Debtors Recovered | B18: Debtors > 12 Mths Recovered/Total Debtors > 12 Months Old | D18: =IF(ISERROR(D64/D63),0,(D64/D63)) -> 0 | E18: =IF(ISERROR(E64/E63),0,(E64/E63)) -> 0 | F18: =IF(ISERROR(F64/F63),0,(F64/F63)) -> 0 | G18: =IF(ISERROR(G64/G63),0,(G64/G63)) -> 0 | H18: =IF(ISERROR(H64/H63),0,(H64/H63)) -> 0
A19: Creditors Management
A20: Creditors System Efficiency | B20: % of Creditors Paid Within Terms (within MFMA s 65(e))
A21: Funding of Provisions
A22: Percentage Of Provisions Not Funded | B22: Unfunded Provisions/Total Provisions
A23: Other Indicators
A24: Electricity Distribution Losses | B24: % Volume (units purchased and generated less units sold)/units purchased and generated | C24: 2
A25: Water Distribution Losses | B25: % Volume (units purchased and own source less units sold)/Total units purchased and own source | C25: 2
A26: Employee costs | B26: Employee costs/Total Revenue - capital revenue | D26: =IF(ISERROR(D40/D55),0,(D40/D55)) -> 0.2851427016 | E26: =IF(ISERROR(E40/E55),0,(E40/E55)) -> 0.3092457212 | F26: =IF(ISERROR(F40/F55),0,(F40/F55)) -> 0.2839233464 | G26: =IF(ISERROR(G40/G55),0,(G40/G55)) -> 0.2119369063 | H26: =IF(ISERROR(H40/H55),0,(H40/H55)) -> 0.2839233464
A27: Repairs & Maintenance | B27: R&M/Total Revenue - capital revenue | D27: =IF(ISERROR(D41/D55),0,(D41/D55)) -> 0.05512652474 | E27: =IF(ISERROR(E41/E55),0,(E41/E55)) -> 0.03560252371 | F27: =IF(ISERROR(F41/F55),0,(F41/F55)) -> 0.03940505818 | G27: =IF(ISERROR(G41/G55),0,(G41/G55)) -> 0.05545130867 | H27: =IF(ISERROR(H41/H55),0,(H41/H55)) -> 0.03940505818
A28: Interest & Depreciation | B28: I&D/Total Revenue - capital revenue | D28: =IF(ISERROR((D42+D44)/D55),0,((D42+D44)/D55)) -> 0.1831069945 | E28: =IF(ISERROR((E42+E44)/E55),0,((E42+E44)/E55)) -> 0.1559147601 | F28: =IF(ISERROR((F42+F44)/F55),0,((F42+F44)/F55)) -> 0.1424702369 | G28: =IF(ISERROR((G42+G44)/G55),0,((G42+G44)/G55)) -> 0.002406511787 | H28: =IF(ISERROR((H42+H44)/H55),0,((H42+H44)/H55)) -> 0.02907155407
A29: IDP regulation financial viability indicators
A30: i. Debt coverage | B30: (Total Operating Revenue - Operating Grants)/Debt service payments due within financial year)
A31: ii. O/S Service Debtors to Revenue | B31: Total outstanding service debtors/annual revenue received for services
A32: iii. Cost coverage | B32: (Available cash + Investments)/monthly fixed operational expenditure
A33: References
A34: 1. Consumer debtors > 12 months old are excluded from current assets.
A35: 2. Material variances to be explained.
A37: Calculations
A38: ='C6-FinPos'!A38 -> Borrowing | D38: ='C6-FinPos'!C38 -> 0 | E38: ='C6-FinPos'!D38 -> 0 | F38: ='C6-FinPos'!E38 -> 0 | G38: ='C6-FinPos'!F38 -> 0 | H38: 0
A39: Total Assets | D39: ='C6-FinPos'!C26 -> 3261261335 | E39: ='C6-FinPos'!D26 -> 3856014000 | F39: ='C6-FinPos'!E26 -> 3747198247 | G39: ='C6-FinPos'!F26 -> 3405791192 | H39: ='C6-FinPos'!G26 -> 3747198247
A40: ='C4-FinPerf RE'!A25 -> Employee related costs | D40: ='C4-FinPerf RE'!C25 -> 236924858.3 | E40: ='C4-FinPerf RE'!D25 -> 270831407 | F40: ='C4-FinPerf RE'!E25 -> 272119407 | G40: ='C4-FinPerf RE'!G25 -> 139705628.5 | H40: ='C4-FinPerf RE'!K25 -> 272119407
A41: =A27 -> Repairs & Maintenance | D41: 45804588.34 | E41: 31180000 | F41: 37766817 | G41: 36552670.63 | H41: 37766817
A42: Interest (finance charges) | D42: ='C4-FinPerf RE'!C29 -> 5347470.47 | E42: ='C4-FinPerf RE'!D29 -> 3043808 | F42: ='C4-FinPerf RE'!E29 -> 3043808 | G42: ='C4-FinPerf RE'!G29 -> 1586336.46 | H42: ='C4-FinPerf RE'!K29 -> 3043808
A43: Principal paid | D43: =-'C7-CFlow'!C36 -> 6166346.49 | E43: =-'C7-CFlow'!D36 -> 0 | F43: =-'C7-CFlow'!E36 -> 2800000 | G43: =-'C7-CFlow'!G36 -> 2648778.59 | H43: =-'C7-CFlow'!K36 -> 2800000
A44: Depreciation | D44: ='C4-FinPerf RE'!C28 -> 146795994.9 | E44: ='C4-FinPerf RE'!D28 -> 133503316 | F44: ='C4-FinPerf RE'!E28 -> 133503316 | H44: ='C4-FinPerf RE'!K26 -> 24819114
A45: Operating expenditure | D45: ='C4-FinPerf RE'!C36 -> 1006155623 | E45: ='C4-FinPerf RE'!D36 -> 854977262 | F45: ='C4-FinPerf RE'!E36 -> 917067747 | G45: ='C4-FinPerf RE'!G36 -> 515039287.9 | H45: ='C4-FinPerf RE'!K36 -> 917067747
A46: ='C5-Capex'!A40 -> Total Capital Expenditure | D46: ='C5-Capex'!C40 -> 22910640.89 | E46: ='C5-Capex'!D40 -> 203495233 | F46: ='C5-Capex'!E40 -> 203495233 | G46: ='C5-Capex'!G40 -> 73187957.6 | H46: ='C5-Capex'!K40 -> 203495233
A47: Borrowed funding for capital | D47: ='C5-Capex'!C72 -> 0 | E47: ='C5-Capex'!D72 -> 0 | F47: ='C5-Capex'!E72 -> 0 | G47: ='C5-Capex'!G72 -> 0 | H47: ='C5-Capex'!K72 -> 0
A48: Debt | D48: ='C6-FinPos'!C30+'C6-FinPos'!C31+'C6-FinPos'!C33+'C6-FinPos'!C38 -> 339279309.9 | E48: ='C6-FinPos'!D30+'C6-FinPos'!D31+'C6-FinPos'!D33+'C6-FinPos'!D38 -> 86362000 | F48: ='C6-FinPos'!E30+'C6-FinPos'!E31+'C6-FinPos'!E33+'C6-FinPos'!E38 -> 333479310 | G48: ='C6-FinPos'!F30+'C6-FinPos'!F31+'C6-FinPos'!F33+'C6-FinPos'!F38 -> 341276191.2 | H48: ='C6-FinPos'!G30+'C6-FinPos'!G31+'C6-FinPos'!G33+'C6-FinPos'!G38 -> 333479310
A49: Equity | D49: ='C6-FinPos'!C48 -> 2856305410 | E49: ='C6-FinPos'!D48 -> 3516524103 | F49: ='C6-FinPos'!E48 -> 3088472378 | G49: ='C6-FinPos'!F48 -> 2999913055 | H49: ='C6-FinPos'!G48 -> 3088472378
A50: ='C6-FinPos'!A47 -> Reserves | D50: ='C6-FinPos'!C47 -> 0 | E50: ='C6-FinPos'!D47 -> 0 | F50: ='C6-FinPos'!E47 -> 0 | G50: ='C6-FinPos'!F47 -> 0 | H50: ='C6-FinPos'!G47 -> 0
A51: ='C6-FinPos'!A38 -> Borrowing | D51: ='C6-FinPos'!C38 -> 0 | E51: ='C6-FinPos'!D38 -> 0 | F51: ='C6-FinPos'!E38 -> 0 | G51: ='C6-FinPos'!F38 -> 0 | H51: ='C6-FinPos'!G38 -> 0
A52: ='C6-FinPos'!A6 -> Current assets | D52: ='C6-FinPos'!C13 -> 191810788.3 | E52: ='C6-FinPos'!D13 -> 169043591 | F52: ='C6-FinPos'!E13 -> 471860917 | G52: ='C6-FinPos'!F13 -> 341029598.8 | H52: ='C6-FinPos'!G13 -> 471860917
A53: ='C6-FinPos'!A29 -> Current liabilities | D53: ='C6-FinPos'!C35 -> 374230239.9 | E53: ='C6-FinPos'!D35 -> 86362000 | F53: ='C6-FinPos'!E35 -> 368430240 | G53: ='C6-FinPos'!F35 -> 374802451.8 | H53: ='C6-FinPos'!G35 -> 368430240
A54: Monetary assets | D54: ='C6-FinPos'!C7+'C6-FinPos'!C8 -> 48780650.81 | E54: ='C6-FinPos'!D7+'C6-FinPos'!D8 -> 19040753 | F54: ='C6-FinPos'!E7+'C6-FinPos'!E8 -> 54557069 | G54: ='C6-FinPos'!F7+'C6-FinPos'!F8 -> 151606071.6 | H54: ='C6-FinPos'!G7+'C6-FinPos'!G8 -> 54557069
A55: ='C4-FinPerf RE'!A22 -> Total Revenue (excluding capital transfers and contributions) | D55: ='C4-FinPerf RE'!C22 -> 830899255.1 | E55: ='C4-FinPerf RE'!D22 -> 875780612 | F55: ='C4-FinPerf RE'!E22 -> 958425612 | G55: ='C4-FinPerf RE'!G22 -> 659184995 | H55: ='C4-FinPerf RE'!K22 -> 958425612
A56: ='C4-FinPerf RE'!A19 -> Transfers and subsidies | D56: ='C4-FinPerf RE'!C19 -> 434445420.4 | E56: ='C4-FinPerf RE'!D19 -> 467694767 | F56: ='C4-FinPerf RE'!E19 -> 550339767 | G56: ='C4-FinPerf RE'!G19 -> 429726279.2 | H56: ='C4-FinPerf RE'!K19 -> 550339767
A57: ='C4-FinPerf RE'!A39 -> Transfers and subsidies - capital (monetary allocations) (National / Provincial and District) | D57: ='C4-FinPerf RE'!C39 -> 68075621.78 | E57: ='C4-FinPerf RE'!D39 -> 202495233 | F57: ='C4-FinPerf RE'!E39 -> 202495233 | G57: ='C4-FinPerf RE'!G39 -> 0 | H57: ='C4-FinPerf RE'!K39 -> 202495233
A58: Debt service payments | D58: ='C7-CFlow'!C12+'C7-CFlow'!C36 -> -6166346.49 | E58: ='C7-CFlow'!D12+'C7-CFlow'!D36 -> 0 | F58: ='C7-CFlow'!E12+'C7-CFlow'!E36 -> -2800000 | G58: ='C7-CFlow'!G16+'C7-CFlow'!G36 -> -2648778.59 | H58: ='C7-CFlow'!K16+'C7-CFlow'!K36 -> -5843808
A59: Outstanding debtors (receivables) | D59: ='C6-FinPos'!C9+'C6-FinPos'!C10+'C6-FinPos'!C11+'C6-FinPos'!C16 -> 133278660 | E59: ='C6-FinPos'!D9+'C6-FinPos'!D10+'C6-FinPos'!D11+'C6-FinPos'!D16 -> 145002838 | F59: ='C6-FinPos'!E9+'C6-FinPos'!E10+'C6-FinPos'!E11+'C6-FinPos'!E16 -> 407552370 | G59: ='C6-FinPos'!F9+'C6-FinPos'!F10+'C6-FinPos'!F11+'C6-FinPos'!F16 -> 177865686.1 | H59: ='C6-FinPos'!G9+'C6-FinPos'!G10+'C6-FinPos'!G11+'C6-FinPos'!G16 -> 407552370
A60: Annual services revenue | D60: =SUM('C4-FinPerf RE'!C7:C11) -> 177042111.1 | E60: =SUM('C4-FinPerf RE'!D7:D11) -> 186492720 | F60: =SUM('C4-FinPerf RE'!E7:E11) -> 186492720 | G60: =SUM('C4-FinPerf RE'!G7:G11) -> 104428087
A61: Cash + investments | B61: Including LT investments | D61: ='C6-FinPos'!C7+'C6-FinPos'!C8+'C6-FinPos'!C17-'C6-FinPos'!C30 -> 48780650.81 | E61: ='C6-FinPos'!D7+'C6-FinPos'!D8+'C6-FinPos'!D17-'C6-FinPos'!D30 -> 19040753 | F61: ='C6-FinPos'!E7+'C6-FinPos'!E8+'C6-FinPos'!E17-'C6-FinPos'!E30 -> 54557069 | G61: ='C6-FinPos'!F7+'C6-FinPos'!F8+'C6-FinPos'!F17-'C6-FinPos'!F30 -> 151606071.6 | H61: ='C6-FinPos'!G7+'C6-FinPos'!G8+'C6-FinPos'!G17-'C6-FinPos'!G30 -> 54557069
A62: Fixed operational expend. (monthly)
A63: Longstanding debtors outstanding | D63: ='C6-FinPos'!C16 -> 0 | E63: ='C6-FinPos'!D16 -> 0 | F63: ='C6-FinPos'!E16 -> 0 | G63: ='C6-FinPos'!F16 -> 0 | H63: ='C6-FinPos'!G16 -> 0
A64: Longstanding debtors recovered
A65: Attorney collections

Sheet SC3
A1: =muni& " - "&S71I& " - "&Head57 -> NW375 Moses Kotane - Supporting Table SC3 Monthly Budget Statement - aged debtors - M07 January
A2: =desc -> Description | C2: =Head2 -> Budget Year 2020/21
A3: R thousands | B3: NT Code | C3: 0-30 Days | D3: 31-60 Days | E3: 61-90 Days | F3: 91-120 Days | G3: 121-150 Dys | H3: 151-180 Dys | I3: 181 Dys-1 Yr | J3: Over 1Yr | K3: Total | L3: Total over 90 days | M3: Actual Bad Debts Written Off against Debtors | N3: Impairment - Bad Debts i.t.o Council Policy
A4: Debtors Age Analysis By Income Source
A5: Trade and Other Receivables from Exchange Transactions - Water | B5: 1200 | C5: 41310731 | D5: 17393492 | E5: 16990538 | F5: 18407181 | G5: 13324805 | H5: 11917898 | I5: 86873561 | J5: 452926289 | K5: =SUM(C5:J5) -> 659144495 | L5: =SUM(F5:J5) -> 583449734 | M5: 0 | N5: 0
A6: Trade and Other Receivables from Exchange Transactions - Electricity | B6: 1300 | K6: =SUM(C6:J6) -> 0 | L6: =SUM(F6:J6) -> 0
A7: Receivables from Non-exchange Transactions - Property Rates | B7: 1400 | C7: 19906434 | D7: 8861798 | E7: 8687435 | F7: 8295098 | G7: 8951950 | H7: 7137524 | I7: 34674636 | J7: 186793058 | K7: =SUM(C7:J7) -> 283307933 | L7: 245852266 | M7: 0 | N7: 0
A8: Receivables from Exchange Transactions - Waste Water Management | B8: 1500 | C8: 594947 | D8: 219132 | E8: 365335 | F8: 316139 | G8: 305758 | H8: 243632 | I8: 1230552 | J8: 8149332 | K8: 11424827 | L8: 10245413 | M8: 0 | N8: 0
A9: Receivables from Exchange Transactions - Waste Management | B9: 1600 | C9: 2067814 | D9: 1032051 | E9: 1032794 | F9: 1032021 | G9: 1032814 | H9: 1029282 | I9: 5605742 | J9: 58047029 | K9: 70879547 | L9: =SUM(F9:J9) -> 66746888 | M9: 0 | N9: 0
A10: Receivables from Exchange Transactions - Property Rental Debtors | B10: 1700 | K10: 0 | L10: =SUM(F10:J10) -> 0
A11: Interest on Arrear Debtor Accounts | B11: 1810 | C11: 11224767 | D11: 5381265 | E11: 5268582 | F11: 5266063 | G11: 5095514 | H11: 4946968 | I11: 33201158 | J11: 247640125 | K11: 318024442 | L11: 296149828 | M11: 0 | N11: 0
A12: Recoverable unauthorised, irregular, fruitless and wasteful expenditure | B12: 1820 | K12: 0 | L12: 0
A13: Other | B13: 1900 | C13: 297422 | D13: 89422 | E13: 75022 | F13: 86038 | G13: 68373 | H13: 68828 | I13: 893031 | J13: 35727956 | K13: 37306092 | L13: =SUM(F13:J13) -> 36844226 | M13: 0 | N13: 0
A14: Total By Income Source | B14: 2000 | C14: =SUM(C5:C13) -> 75402115 | D14: 32977160 | E14: 32419706 | F14: 33402540 | G14: 28779214 | H14: 25344132 | I14: 162478680 | J14: 989283789 | K14: 1380087336 | L14: =SUM(L5:L13) -> 1239288355 | M14: 0 | N14: 0
A15: =Head1&" - totals only" -> 2019/20 - totals only | K15: =SUM(C15:J15) -> 0 | L15: =SUM(F15:J15) -> 0
A16: Debtors Age Analysis By Customer Group
A17: Organs of State | B17: 2200 | C17: 12726682 | D17: 5507880 | E17: 5427054 | F17: 5371609 | G17: 5359443 | H17: 5236445 | I17: 27593517 | J17: 127364964 | K17: =SUM(C17:J17) -> 194587594 | L17: =SUM(F17:J17) -> 170925978 | M17: 0 | N17: 0
A18: Commercial | B18: 2300 | C18: 23990029 | D18: 9402108 | E18: 9287547 | F18: 9352367 | G18: 8575447 | H18: 5759788 | I18: 22689351 | J18: 171059010 | K18: =SUM(C18:J18) -> 260115647 | L18: =SUM(F18:J18) -> 217435963 | M18: 0 | N18: 0
A19: Households | B19: 2400 | C19: 38394025 | D19: 17981485 | E19: 17634466 | F19: 18593174 | G19: 14776466 | H19: 14280079 | I19: 111499218 | J19: 684534024 | K19: =SUM(C19:J19) -> 917692937 | L19: =SUM(F19:J19) -> 843682961 | M19: 0 | N19: 0
A20: Other | B20: 2500 | C20: 291379 | D20: 85687 | E20: 70639 | F20: 85390 | G20: 67858 | H20: 67820 | I20: 696594 | J20: 6325791 | K20: =SUM(C20:J20) -> 7691158 | L20: =SUM(F20:J20) -> 7243453 | M20: 0 | N20: 0
A21: Total By Customer Group | B21: 2600 | C21: =SUM(C17:C20) -> 75402115 | D21: 32977160 | E21: 32419706 | F21: 33402540 | G21: 28779214 | H21: 25344132 | I21: 162478680 | J21: =SUM(J17:J20) -> 989283789 | K21: =SUM(K17:K20) -> 1380087336 | L21: =SUM(L17:L20) -> 1239288355 | M21: =SUM(M17:M20) -> 0 | N21: =SUM(N17:N20) -> 0
A22: Notes
A23: Material increases in value of debtors' categories compared to previous month to be explained
A24: Bad debts = amounts actually written off in the month
A25: Total by Income Source must reconcile with Total by Customer Group
C26: =C14-C21 -> 0 | D26: =D14-D21 -> 0 | E26: =E14-E21 -> 0 | F26: 0 | G26: 0 | H26: 0 | I26: 0 | J26: =J14-J21 -> 0 | K26: 0
C27: =IF(C26=0,"","MUST AGREE") ->  | D27: =IF(D26=0,"","MUST AGREE") -> 

Sheet SC4
A1: =muni& " - "&S71J& " - "&Head57 -> NW375 Moses Kotane - Supporting Table SC4 Monthly Budget Statement - aged creditors - M07 January
A2: =desc -> Description | B2: NT Code | C2: =Head2 -> Budget Year 2020/21 | L2: Prior year totals for chart (same period)
C3: 0 - 30 Days | D3: 31 - 60 Days | E3: 61 - 90 Days | F3: 91 - 120 Days | G3: 121 - 150 Days | H3: 151 - 180 Days | I3: 181 Days - 1 Year | J3: Over 1 Year | K3: Total
A4: R thousands
A5: Creditors Age Analysis By Customer Type
A6: Bulk Electricity | B6: 0100 | C6: 2222350.38 | D6: 61881.5 | E6: 1740603.85 | F6: 4024835.73 | G6: 0 | H6: 0 | I6: 0 | J6: 0 | K6: =SUM(C6:J6) -> 8049671.46
A7: Bulk Water | B7: 0200 | K7: =SUM(C7:J7) -> 0
A8: PAYE deductions | B8: 0300 | K8: 0
A9: VAT (output less input) | B9: 0400 | K9: 0
A10: Pensions / Retirement deductions | B10: 0500 | K10: 0
A11: Loan repayments | B11: 0600 | K11: 0
A12: Trade Creditors | B12: 0700 | K12: 0 | L12: 4287261.84
A13: Auditor General | B13: 0800 | K13: 0
A14: Other | B14: 0900 | K14: =SUM(C14:J14) -> 0
A15: Total By Customer Type | B15: 1000 | C15: =SUM(C6:C14) -> 2222350.38 | D15: =SUM(D6:D14) -> 61881.5 | E15: 1740603.85 | F15: 4024835.73 | G15: 0 | H15: 0 | I15: 0 | J15: 0 | K15: =SUM(K6:K14) -> 8049671.46 | L15: =SUM(L6:L14) -> 4287261.84
A16: Notes
A17: Material increases in value of creditors' categories compared to previous month to be explained

Sheet SC5
A1: =muni& " - "&S71K& " - "&Head57 -> NW375 Moses Kotane - Supporting Table SC5 Monthly Budget Statement - investment portfolio - M07 January
A2: Investments by maturity Name of institution & investment ID | B2: Ref | C2: Period of Investment | D2: Type of Investment | E2: Capital Guarantee (Yes/ No) | F2: Variable or Fixed interest rate | G2: Interest Rate ᶟ | H2: Commission Paid (Rands) | I2: Commission Recipient | J2: Expiry date of investment | K2: Opening balance | L2: Interest to be realised | M2: Partial / Premature Withdrawal (4) | N2: Investment Top Up | O2: Closing Balance
A3: R thousands | C3: Yrs/Months
A4: Municipality
O5: =SUM(K5:N5) -> 0
A6: Municipality sub-total | K6: =SUM(K5:K5) -> 0 | M6: =SUM(M5:M5) -> 0 | N6: =SUM(N5:N5) -> 0 | O6: =SUM(O5:O5) -> 0
A8: Entities
O9: =SUM(K9:N9) -> 0
O10: 0
O11: 0
O12: 0
O13: 0
O14: 0
O15: 0
A16: Entities sub-total | K16: =SUM(K9:K15) -> 0 | M16: =SUM(M9:M15) -> 0 | N16: =SUM(N9:N15) -> 0 | O16: =SUM(O9:O15) -> 0
A18: TOTAL INVESTMENTS AND INTEREST | B18: 2 | K18: =K6+K16 -> 0 | M18: =M6+M16 -> 0 | N18: =N6+N16 -> 0 | O18: =O6+O16 -> 0
A19: =head27a -> References
A20: 2. List investments in expiry date order
A21: 3. If 'variable' is selected in column F, input interest rate range
A22: 4. Withdrawals to be entered as negative

Sheet SC6
A1: =muni& " - "&S71L& " - "&Head57 -> NW375 Moses Kotane - Supporting Table SC6 Monthly Budget Statement - transfers and grant receipts - M07 January
A2: =desc -> Description | B2: =head27 -> Ref | C2: =Head1 -> 2019/20 | D2: =Head2 -> Budget Year 2020/21
C3: =Head5 -> Audited Outcome | D3: =Head6 -> Original Budget | E3: =Head7 -> Adjusted Budget | F3: =Head38 -> Monthly actual | G3: =Head39 -> YearTD actual | H3: =Head40 -> YearTD budget | I3: =Head41 -> YTD variance | J3: =Head41 -> YTD variance | K3: =Head8 -> Full Year Forecast
A4: R thousands | J4: %
A5: RECEIPTS: | B5: 1,2
A7: Operating Transfers and Grants
A8: National Government: | C8: =SUM(C9:C16) -> 433799018.9 | D8: 467694767 | E8: 550339767 | F8: 0 | G8: 429726279.2 | H8: 314144427 | I8: =G8-H8 -> 115581852.2 | J8: =IF(H8=0,"",I8/H8) -> 0.36792584 | K8: =SUM(K9:K16) -> 550339767
A9: Community Library | C9: 0 | D9: 0 | E9: 0 | F9: 0 | G9: 0 | H9: 0 | I9: 0 | K9: 0
A10: Equitable Share | C10: 426929350.7 | D10: 459989000 | E10: 542634000 | F10: 0 | G10: 427397000 | H10: 309649405 | I10: 117747595 | J10: 0.3802610084 | K10: 542634000
A11: Expanded Public Works Programme Integrated Grant | C11: 1559133.26 | D11: 1827000 | E11: 1827000 | F11: 0 | G11: 1096370.07 | H11: 1065750 | I11: 30620.07 | J11: 0.02873100633 | K11: 1827000
A12: Local Government Financial Management Grant | C12: 1700000 | D12: 1700000 | E12: 1700000 | F12: 0 | G12: 1232909.11 | H12: 991662 | I12: 241247.11 | J12: 0.2432755415 | K12: 1700000
A13: Municipal Disaster Relief Grant | C13: 268000 | D13: 0 | E13: 0 | F13: 0 | G13: 0 | H13: 0 | I13: 0 | K13: 0
A14: Municipal Infrastructure Grant | B14: 3 | C14: 3342534.91 | D14: 4178767 | E14: 4178767 | F14: 0 | G14: 0 | H14: 2437610 | I14: -2437610 | J14: -1 | K14: 4178767
A15: Water Services Infrastructure Grant | C15: 0 | D15: 0 | E15: 0 | F15: 0 | G15: 0 | H15: 0 | I15: 0 | K15: 0
A16: Water Services Operating Subsidy Grant [Schedule 5B] | C16: 0 | D16: 0 | E16: 0 | F16: 0 | G16: 0 | H16: 0 | I16: 0 | K16: 0
A17: Other transfers and grants [insert description] | I17: =G17-H17 -> 0 | J17: =IF(I17=0,"",I17/H17) -> 
A18: Provincial Government: | C18: =SUM(C19:C20) -> 0 | D18: 0 | E18: 0 | F18: 0 | G18: 0 | H18: 0 | I18: =G18-H18 -> 0 | J18: =IF(H18=0,"",I18/H18) ->  | K18: =SUM(K19:K20) -> 0
A19: Libraries; Archives and Museums | C19: 0 | D19: 0 | E19: 0 | F19: 0 | G19: 0 | H19: 0 | I19: =G19-H19 -> 0 | J19: =IF(H19=0,"",I19/H19) ->  | K19: 0
A20: Specify (Add grant description) | C20: 0 | D20: 0 | E20: 0 | F20: 0 | G20: 0 | H20: 0 | I20: =G20-H20 -> 0 | J20: =IF(H20=0,"",I20/H20) ->  | K20: 0
A21: Other transfers and grants [insert description] | I21: =G21-H21 -> 0
A22: District Municipality: | C22: =SUM(C23:C23) -> 0 | D22: 0 | E22: 0 | F22: 0 | G22: 0 | H22: 0 | I22: 0 | K22: =SUM(K23:K23) -> 0
A23: [insert description] | I23: 0
A24: Other grant providers: | C24: =SUM(C25:C25) -> 646401.54 | D24: 0 | E24: 0 | F24: 0 | G24: 0 | H24: 0 | I24: =G24-H24 -> 0 | J24: =IF(H24=0,"",I24/H24) ->  | K24: =SUM(K25:K25) -> 0
A25: National Library South Africa | C25: 646401.54 | D25: 0 | E25: 0 | F25: 0 | G25: 0 | H25: 0 | I25: =G25-H25 -> 0 | J25: =IF(H25=0,"",I25/H25) ->  | K25: 0
A26: Total Operating Transfers and Grants | B26: 5 | C26: =C8+C18+C22+C24 -> 434445420.4 | D26: 467694767 | E26: 550339767 | F26: 0 | G26: 429726279.2 | H26: 314144427 | I26: 115581852.2 | J26: 0.36792584 | K26: =K8+K18+K22+K24 -> 550339767
A28: Capital Transfers and Grants
A29: =A8 -> National Government: | C29: =SUM(C30:C32) -> 68075621.78 | D29: 202495233 | E29: 202495233 | F29: 0 | G29: 0 | H29: 118122200 | I29: =G29-H29 -> -118122200 | J29: =IF(H29=0,"",I29/H29) -> -1 | K29: =SUM(K30:K32) -> 202495233
A30: Municipal Infrastructure Grant | C30: 27965384.12 | D30: 144470233 | E30: 144470233 | F30: 0 | G30: 0 | H30: 84274288 | I30: -84274288 | J30: -1 | K30: 144470233
A31: Municipal Water Infrastructure Grant | C31: 0 | D31: 0 | E31: 0 | F31: 0 | G31: 0 | H31: 0 | I31: 0 | K31: 0
A32: Water Services Infrastructure Grant | C32: 40110237.66 | D32: 58025000 | E32: 58025000 | F32: 0 | G32: 0 | H32: 33847912 | I32: -33847912 | J32: -1 | K32: 58025000
A33: =A18 -> Provincial Government: | C33: =SUM(C34:C35) -> 0 | D33: 0 | E33: 0 | F33: 0 | G33: 0 | H33: 0 | I33: 0 | K33: =SUM(K34:K35) -> 0
A34: Specify (Add grant description) | C34: 0 | D34: 0 | E34: 0 | F34: 0 | G34: 0 | H34: 0 | I34: 0 | K34: 0
A35: Waste Water Infrastructure | C35: 0 | D35: 0 | E35: 0 | F35: 0 | G35: 0 | H35: 0 | I35: 0 | K35: 0
A36: =A22 -> District Municipality: | C36: =SUM(C37:C37) -> 0 | D36: 0 | E36: 0 | F36: 0 | G36: 0 | H36: 0 | I36: =G36-H36 -> 0 | J36: =IF(I36=0,"",I36/H36) ->  | K36: =SUM(K37:K37) -> 0
A37: [insert description] | I37: 0
A38: =A24 -> Other grant providers: | C38: =SUM(C39:C42) -> 96552077.22 | D38: 0 | E38: 0 | F38: 0 | G38: 0 | H38: 0 | I38: =G38-H38 -> 0 | J38: =IF(H38=0,"",I38/H38) ->  | K38: =SUM(K39:K42) -> 0
A39: [insert description] | I39: 0 | J39: =IF(I39=0,"",I39/H39) -> 
A40: Municipal Infrastructure Investment Unit | C40: 91811117.76 | D40: 0 | E40: 0 | F40: 0 | G40: 0 | H40: 0 | I40: =G40-H40 -> 0 | J40: =IF(H40=0,"",I40/H40) ->  | K40: 0
A41: National Small Business Council | C41: 4740959.46 | D41: 0 | E41: 0 | F41: 0 | G41: 0 | H41: 0 | I41: =G41-H41 -> 0 | J41: =IF(H41=0,"",I41/H41) ->  | K41: 0
A42: Registration of Deeds Trade Account | C42: 0 | D42: 0 | E42: 0 | F42: 0 | G42: 0 | H42: 0 | I42: =G42-H42 -> 0 | J42: =IF(H42=0,"",I42/H42) ->  | K42: 0
A43: Total Capital Transfers and Grants | B43: 5 | C43: =C29+C33+C36+C38 -> 164627699 | D43: 202495233 | E43: 202495233 | F43: 0 | G43: 0 | H43: 118122200 | I43: -118122200 | J43: -1 | K43: =K29+K33+K36+K38 -> 202495233
A45: TOTAL RECEIPTS OF TRANSFERS & GRANTS | B45: 5 | C45: =C26+C43 -> 599073119.4 | D45: 670190000 | E45: 752835000 | F45: 0 | G45: 429726279.2 | H45: 432266627 | I45: -2540347.82 | J45: -0.005876807649 | K45: =K26+K43 -> 752835000
A46: =head27a -> References
A47: 1. Each grant is listed by name as gazetted together with the name of the transferring department or municipality, donor or other organisation
A48: 2. Grant expenditure must be separately listed for each grant received
A49: 3. Replacement of RSC levies
A50: 4. Housing subsidies for housing where ownership transferred
A51: 5. Total recurrent/capital grants and subsidies must reconcile to the 'Financial Performance' Statement

Sheet SC7(1)
A1: =muni& " - "&S71M& " - "&Head57 -> NW375 Moses Kotane - Supporting Table SC7(1) Monthly Budget Statement - transfers and grant expenditure - M07 January
A2: =desc -> Description | B2: =head27 -> Ref | C2: =Head1 -> 2019/20 | D2: =Head2 -> Budget Year 2020/21
C3: =Head5 -> Audited Outcome | D3: =Head6 -> Original Budget | E3: =Head7 -> Adjusted Budget | F3: =Head38 -> Monthly actual | G3: =Head39 -> YearTD actual | H3: =Head40 -> YearTD budget | I3: =Head41 -> YTD variance | J3: =Head41 -> YTD variance | K3: =Head8 -> Full Year Forecast
A4: R thousands | J4: %
A5: EXPENDITURE
A7: Operating expenditure of Transfers and Grants
A8: ='SC6'!A8 -> National Government: | C8: =SUM(C9:C13) -> 109410515.3 | D8: 75539000 | E8: 78527000 | F8: 8804311.57 | G8: 34599901.49 | H8: 45558419 | I8: -10958517.51 | J8: =IF(I8=0,"",I8/H8) -> -0.2405377041 | K8: =SUM(K9:K13) -> 78527000
I9: =G9-H9 -> 0
A10: Equitable Share | C10: 106261835.6 | D10: 75000000 | E10: 75000000 | F10: 8558740.03 | G10: 32091687.52 | H10: 43750000 | I10: =G10-H10 -> -11658312.48 | J10: =IF(H10=0,"",I10/H10) -> -0.2664757138 | K10: 75000000
A11: Expanded Public Works Programme Integrated Grant | C11: 594749.91 | D11: 539000 | E11: 1827000 | F11: 108876.99 | G11: 1205247.06 | H11: 958419 | I11: =G11-H11 -> 246828.06 | J11: =IF(H11=0,"",I11/H11) -> 0.2575366932 | K11: 1827000
A12: Local Government Financial Management Grant | C12: 2290911.74 | D12: 0 | E12: 1700000 | F12: 136694.55 | G12: 1302966.91 | H12: 850000 | I12: =G12-H12 -> 452966.91 | J12: =IF(H12=0,"",I12/H12) -> 0.5329022471 | K12: 1700000
A13: Municipal Disaster Relief Grant | C13: 263018.04 | D13: 0 | E13: 0 | F13: 0 | G13: 0 | H13: 0 | I13: =G13-H13 -> 0 | J13: =IF(H13=0,"",I13/H13) ->  | K13: 0
A14: ='SC6'!A18 -> Provincial Government: | C14: =SUM(C15:C15) -> 0 | D14: 0 | E14: 0 | F14: 0 | G14: 0 | H14: 0 | I14: 0 | K14: =SUM(K15:K15) -> 0
I15: =G15-H15 -> 0
A16: ='SC6'!A22 -> District Municipality: | C16: =SUM(C17:C17) -> 0 | D16: 0 | E16: 0 | F16: 0 | G16: 0 | H16: 0 | I16: 0 | K16: =SUM(K17:K17) -> 0
I17: 0
A18: ='SC6'!A24 -> Other grant providers: | C18: =SUM(C19:C19) -> 0 | D18: 0 | E18: 0 | F18: 0 | G18: 0 | H18: 0 | I18: 0 | K18: =SUM(K19:K19) -> 0
I19: 0
A20: Total operating expenditure of Transfers and Grants: | C20: =C8+C14+C16+C18 -> 109410515.3 | D20: 75539000 | E20: 78527000 | F20: 8804311.57 | G20: 34599901.49 | H20: 45558419 | I20: -10958517.51 | J20: -0.2405377041 | K20: =K8+K14+K16+K18 -> 78527000
A22: Capital expenditure of Transfers and Grants
A23: ='SC6'!A29 -> National Government: | C23: =SUM(C24:C25) -> 22738382.28 | D23: 202495233 | E23: 202495233 | F23: 5758720.01 | G23: 70502585.58 | H23: 118122333 | I23: -47619747.42 | J23: =IF(I23=0,"",I23/H23) -> -0.4031392389 | K23: =SUM(K24:K25) -> 202495233
A24: Municipal Infrastructure Grant | C24: 22738382.28 | D24: 144470233 | E24: 144470233 | F24: 2102271.66 | G24: 50040664.81 | H24: 84274393 | I24: =G24-H24 -> -34233728.19 | J24: =IF(H24=0,"",I24/H24) -> -0.4062174401 | K24: 144470233
A25: Water Services Infrastructure Grant | C25: 0 | D25: 58025000 | E25: 58025000 | F25: 3656448.35 | G25: 20461920.77 | H25: 33847940 | I25: =G25-H25 -> -13386019.23 | J25: =IF(H25=0,"",I25/H25) -> -0.3954751524 | K25: 58025000
A26: ='SC6'!A33 -> Provincial Government: | C26: =SUM(C27:C27) -> 0 | D26: 0 | E26: 0 | F26: 0 | G26: 0 | H26: 0 | I26: =G26-H26 -> 0 | K26: =SUM(K27:K27) -> 0
A27: Specify (Add grant description) | C27: 0 | D27: 0 | E27: 0 | F27: 0 | G27: 0 | H27: 0 | I27: =G27-H27 -> 0 | J27: =IF(H27=0,"",I27/H27) ->  | K27: 0
A28: ='SC6'!A36 -> District Municipality: | C28: =SUM(C29:C29) -> 0 | D28: 0 | E28: 0 | F28: 0 | G28: 0 | H28: 0 | I28: 0 | K28: =SUM(K29:K29) -> 0
I29: 0
A30: ='SC6'!A38 -> Other grant providers: | C30: =SUM(C31:C32) -> 0 | D30: 0 | E30: 0 | F30: 0 | G30: 0 | H30: 0 | I30: 0 | K30: =SUM(K31:K32) -> 0
A31: Municipal Infrastructure Investment Unit | C31: 0 | D31: 0 | E31: 0 | F31: 0 | G31: 0 | H31: 0 | I31: =G31-H31 -> 0 | J31: =IF(H31=0,"",I31/H31) ->  | K31: 0
A32: National Small Business Council | C32: 0 | D32: 0 | E32: 0 | F32: 0 | G32: 0 | H32: 0 | I32: =G32-H32 -> 0 | J32: =IF(H32=0,"",I32/H32) ->  | K32: 0
A33: Total capital expenditure of Transfers and Grants | C33: =C23+C26+C28+C30 -> 22738382.28 | D33: 202495233 | E33: 202495233 | F33: 5758720.01 | G33: 70502585.58 | H33: 118122333 | I33: -47619747.42 | J33: =IF(I33=0,"",I33/H33) -> -0.4031392389 | K33: =K23+K26+K28+K30 -> 202495233
A35: TOTAL EXPENDITURE OF TRANSFERS AND GRANTS | C35: =C20+C33 -> 132148897.6 | D35: 278034233 | E35: 281022233 | F35: 14563031.58 | G35: 105102487.1 | H35: 163680752 | I35: -58578264.93 | J35: =IF(I35=0,"",I35/H35) -> -0.357881206 | K35: =K20+K33 -> 281022233
A36: =head27a -> References

Sheet SC7(2)
A1: =muni& " - "&S71T& " - "&Head57 -> NW375 Moses Kotane - Supporting Table SC7(2) Monthly Budget Statement - Expenditure against approved rollovers - M07 January
A2: =desc -> Description | B2: =head27 -> Ref | C2: =Head2 -> Budget Year 2020/21
C3: ="Approved Rollover " &Head1 -> Approved Rollover 2019/20 | D3: =Head38 -> Monthly actual | E3: =Head39 -> YearTD actual | F3: =Head41 -> YTD variance | G3: =Head41 -> YTD variance
A4: R thousands | G4: %
A5: EXPENDITURE
A7: Operating expenditure of Approved Roll-overs
A8: ='SC6'!A8 -> National Government: | C8: =SUM(C9:C9) -> 0 | D8: =SUM(D9:D9) -> 0 | E8: =SUM(E9:E9) -> 0 | F8: =SUM(F9:F9) -> 0 | G8: =IF(F8=0,"",F8/C8) -> 
A9: Local Government Equitable Share | C9: 0 | D9: 0 | E9: 0 | F9: =E9-C9 -> 0 | G9: =IF(C9=0,"",F9/C9) -> 
A10: ='SC6'!A18 -> Provincial Government: | C10: =SUM(C11:C11) -> 0 | D10: =SUM(D11:D11) -> 0 | E10: =SUM(E11:E11) -> 0 | F10: =SUM(F11:F11) -> 0 | G10: =IF(F10=0,"",F10/C10) -> 
F11: =C11-E11 -> 0
A12: ='SC6'!A22 -> District Municipality: | C12: =SUM(C13:C13) -> 0 | D12: =SUM(D13:D13) -> 0 | E12: =SUM(E13:E13) -> 0 | F12: =SUM(F13:F13) -> 0
F13: =C13-E13 -> 0
A14: ='SC6'!A24 -> Other grant providers: | C14: =SUM(C15:C15) -> 0 | D14: =SUM(D15:D15) -> 0 | E14: =SUM(E15:E15) -> 0 | F14: =SUM(F15:F15) -> 0
F15: =C15-E15 -> 0
A16: Total operating expenditure of Approved Roll-overs | C16: =C8+C10+C12+C14 -> 0 | D16: =D8+D10+D12+D14 -> 0 | E16: =E8+E10+E12+E14 -> 0 | F16: =F8+F10+F12+F14 -> 0
A18: Capital expenditure of Approved Roll-overs
A19: ='SC6'!A29 -> National Government: | C19: =SUM(C20:C20) -> 0 | D19: =SUM(D20:D20) -> 0 | E19: =SUM(E20:E20) -> 0 | F19: =SUM(F20:F20) -> 0
F20: =C20-E20 -> 0
A21: ='SC6'!A33 -> Provincial Government: | C21: =SUM(C22:C22) -> 0 | D21: =SUM(D22:D22) -> 0 | E21: =SUM(E22:E22) -> 0 | F21: =SUM(F22:F22) -> 0
F22: =C22-E22 -> 0
A23: ='SC6'!A36 -> District Municipality: | C23: =SUM(C24:C24) -> 0 | D23: =SUM(D24:D24) -> 0 | E23: =SUM(E24:E24) -> 0 | F23: =SUM(F24:F24) -> 0
F24: =C24-E24 -> 0
A25: ='SC6'!A38 -> Other grant providers: | C25: =SUM(C26:C26) -> 0 | D25: =SUM(D26:D26) -> 0 | E25: =SUM(E26:E26) -> 0 | F25: =SUM(F26:F26) -> 0
F26: =C26-E26 -> 0
A27: Total capital expenditure of Approved Roll-overs | C27: =C19+C21+C23+C25 -> 0 | D27: =D19+D21+D23+D25 -> 0 | E27: =E19+E21+E23+E25 -> 0 | F27: =F19+F21+F23+F25 -> 0
A29: TOTAL EXPENDITURE OF APPROVED ROLL-OVERS | C29: =C16+C27 -> 0 | D29: =D16+D27 -> 0 | E29: =E16+E27 -> 0 | F29: =F16+F27 -> 0
A30: =head27a -> References

Sheet SC8
A1: =muni& " - "&S71N& " - "&Head57 -> NW375 Moses Kotane - Supporting Table SC8 Monthly Budget Statement - councillor and staff benefits - M07 January
A2: Summary of Employee and Councillor remuneration | B2: =head27 -> Ref | C2: =Head1 -> 2019/20 | D2: =Head2 -> Budget Year 2020/21
C3: =Head5 -> Audited Outcome | D3: =Head6 -> Original Budget | E3: =Head7 -> Adjusted Budget | F3: =Head38 -> Monthly actual | G3: =Head39 -> YearTD actual | H3: =Head40 -> YearTD budget | I3: =Head41 -> YTD variance | J3: =Head41 -> YTD variance | K3: =Head8 -> Full Year Forecast
A4: R thousands | J4: %
B5: 1 | C5: A | D5: B | E5: C | K5: D
A6: Councillors (Political Office Bearers plus Other)
A7: Basic Salaries and Wages | C7: 15987849.92 | D7: 16070604 | E7: 16070604 | F7: 1360060.75 | G7: 10293635.11 | H7: 9374533 | I7: =G7-H7 -> 919102.11 | J7: =IF(I7=0,"",I7/H7) -> 0.09804244222 | K7: 16070604
A8: Pension and UIF Contributions | C8: 0 | D8: 0 | E8: 0 | F8: 0 | G8: 0 | H8: 0 | I8: 0 | K8: 0
A9: Medical Aid Contributions | C9: 0 | D9: 0 | E9: 0 | F9: 0 | G9: 0 | H9: 0 | I9: 0 | K9: 0
A10: Motor Vehicle Allowance | I10: =G10-H10 -> 0 | J10: =IF(I10=0,"",I10/H10) -> 
A11: Cellphone Allowance | C11: 2945988 | D11: 3019200 | E11: 3019200 | F11: 244800 | G11: 1719500 | H11: 1761200 | I11: =G11-H11 -> -41700 | J11: =IF(I11=0,"",I11/H11) -> -0.02367703838 | K11: 3019200
A12: Housing Allowances | C12: 0 | D12: 0 | E12: 0 | F12: 0 | G12: 0 | H12: 0 | I12: =G12-H12 -> 0 | J12: =IF(I12=0,"",I12/H12) ->  | K12: 0
A13: Other benefits and allowances | C13: 5194439.73 | D13: 5729310 | E13: 5729310 | F13: 421233.85 | G13: 2894490.01 | H13: 3342101 | I13: -447610.99 | J13: -0.1339310182 | K13: 5729310
A14: Sub Total - Councillors | C14: =SUM(C7:C13) -> 24128277.65 | D14: 24819114 | E14: 24819114 | F14: 2026094.6 | G14: 14907625.12 | H14: 14477834 | I14: 429791.12 | J14: 0.0296861478 | K14: 24819114
A15: % increase | B15: 4 | D15: =IF(D14=0,"",(D14/C14)-1) -> 0.02863181368 | E15: =IF(E14=0,"",(E14/C14)-1) -> 0.02863181368 | K15: =IF(K14=0,"",(K14/C14)-1) -> 0.02863181368
A17: Senior Managers of the Municipality | B17: 3
A18: Basic Salaries and Wages | C18: 2473004.58 | D18: 9030280 | E18: 9030280 | F18: 1608417.8 | G18: 2956055.06 | H18: 5267682 | I18: =G18-H18 -> -2311626.94 | J18: =IF(I18=0,"",I18/H18) -> -0.4388319075 | K18: 9030280
A19: Pension and UIF Contributions | C19: 318671.98 | D19: 585009 | E19: 585009 | F19: 35489.07 | G19: 242177.25 | H19: 341285 | I19: -99107.75 | J19: -0.2903958568 | K19: 585009
A20: Medical Aid Contributions | C20: 99192.72 | D20: 102537 | E20: 102537 | F20: 9007.32 | G20: 61398.9 | H20: 59822 | I20: 1576.9 | J20: 0.02635986761 | K20: 102537
A21: Overtime | C21: 0 | D21: 0 | E21: 0 | F21: 0 | G21: 0 | H21: 0 | I21: 0 | K21: 0
A22: Performance Bonus | C22: 184472.07 | D22: 517917 | E22: 517917 | F22: 30000 | G22: 219725.54 | H22: 302127 | I22: =G22-H22 -> -82401.46 | J22: =IF(I22=0,"",I22/H22) -> -0.2727378222 | K22: 517917
A23: Motor Vehicle Allowance | C23: 978592.68 | D23: 1818593 | E23: 1818593 | F23: 176549.39 | G23: 395845.73 | H23: 1060850 | I23: =G23-H23 -> -665004.27 | J23: =IF(I23=0,"",I23/H23) -> -0.6268598482 | K23: 1818593
A24: Cellphone Allowance | C24: 0 | D24: 0 | E24: 0 | F24: 0 | G24: 0 | H24: 0 | I24: =G24-H24 -> 0 | J24: =IF(I24=0,"",I24/H24) ->  | K24: 0
A25: Housing Allowances | C25: 0 | D25: 0 | E25: 0 | F25: 0 | G25: 0 | H25: 0 | I25: =G25-H25 -> 0 | J25: =IF(I25=0,"",I25/H25) ->  | K25: 0
A26: Other benefits and allowances | C26: 270.28 | D26: 953 | E26: 953 | F26: 89.1 | G26: 207.9 | H26: 560 | I26: -352.1 | J26: -0.62875 | K26: 953
A27: Payments in lieu of leave | C27: 0 | D27: 0 | E27: 0 | F27: 0 | G27: 0 | H27: 0 | I27: 0 | K27: 0
A28: Long service awards | C28: 0 | D28: 0 | E28: 0 | F28: 0 | G28: 0 | H28: 0 | I28: 0 | K28: 0
A29: Post-retirement benefit obligations | B29: 2 | C29: 0 | D29: 0 | E29: 0 | F29: 0 | G29: 0 | H29: 0 | I29: 0 | K29: 0
A30: Sub Total - Senior Managers of Municipality | C30: =SUM(C18:C29) -> 4054204.31 | D30: 12055289 | E30: 12055289 | F30: =SUM(F18:F29) -> 1859552.68 | G30: =SUM(G18:G29) -> 3875410.38 | H30: =SUM(H18:H29) -> 7032326 | I30: -3156915.62 | J30: =IF(I30=0,"",I30/H30) -> -0.4489148569 | K30: 12055289
A31: % increase | B31: 4 | D31: =IF(D30=0,"",(D30/C30)-1) -> 1.973527745 | E31: =IF(E30=0,"",(E30/C30)-1) -> 1.973527745 | K31: =IF(K30=0,"",(K30/C30)-1) -> 1.973527745
A33: Other Municipal Staff
A34: Basic Salaries and Wages | C34: 161086895 | D34: 181074048 | E34: 182362048 | F34: 11929081.73 | G34: 94511772.93 | H34: 106270654 | I34: =G34-H34 -> -11758881.07 | J34: =IF(I34=0,"",I34/H34) -> -0.1106503125 | K34: 182362048
A35: Pension and UIF Contributions | C35: 30167995.87 | D35: 36853305 | E35: 36853305 | F35: 2738443.38 | G35: 19084634.43 | H35: 21497994 | I35: -2413359.57 | J35: -0.1122597564 | K35: 36853305
A36: Medical Aid Contributions | C36: 11959665.49 | D36: 26373845 | E36: 26373845 | F36: 1131116.23 | G36: 7591017.08 | H36: 15384894 | I36: -7793876.92 | J36: -0.5065928254 | K36: 26373845
A37: Overtime | I37: 0
A38: Performance Bonus | C38: 9707942.15 | D38: 13014076 | E38: 13014076 | F38: 1388950.32 | G38: 7809078.4 | H38: 7591675 | I38: 217403.4 | J38: 0.02863707943 | K38: 13014076
A39: Motor Vehicle Allowance | C39: 640000 | D39: 540000 | E39: 540000 | F39: -105000 | G39: 80000 | H39: 315000 | I39: =G39-H39 -> -235000 | J39: =IF(I39=0,"",I39/H39) -> -0.746031746 | K39: 540000
A40: Cellphone Allowance | I40: =G40-H40 -> 0 | J40: =IF(I40=0,"",I40/H40) -> 
A41: Housing Allowances | C41: 478039.37 | D41: 530395 | E41: 530395 | F41: 45272.83 | G41: 307964.71 | H41: 309449 | I41: =G41-H41 -> -1484.29 | J41: =IF(I41=0,"",I41/H41) -> -0.004796557753 | K41: 530395
A42: Other benefits and allowances | C42: 10126718.69 | D42: 390449 | E42: 390449 | F42: 27781.83 | G42: 6445750.57 | H42: 227920 | I42: 6217830.57 | J42: 27.28075891 | K42: 390449
A43: Payments in lieu of leave | C43: 6079956.79 | D43: 0 | E43: 0 | F43: 0 | G43: 0 | H43: 0 | I43: 0 | K43: 0
A44: Long service awards | C44: 2623440.66 | D44: 0 | E44: 0 | F44: 0 | G44: 0 | H44: 0 | I44: 0 | K44: 0
A45: Post-retirement benefit obligations | B45: 2 | C45: 0 | D45: 0 | E45: 0 | F45: 0 | G45: 0 | H45: 0 | I45: 0 | K45: 0
A46: Sub Total - Other Municipal Staff | C46: =SUM(C34:C45) -> 232870654 | D46: 258776118 | E46: 260064118 | F46: =SUM(F34:F45) -> 17155646.32 | G46: =SUM(G34:G45) -> 135830218.1 | H46: =SUM(H34:H45) -> 151597586 | I46: -15767367.88 | J46: =IF(I46=0,"",I46/H46) -> -0.1040080406 | K46: 260064118
A47: % increase | B47: 4 | D47: =IF(D46=0,"",(D46/C46)-1) -> 0.111244004 | E47: =IF(E46=0,"",(E46/C46)-1) -> 0.1167749714 | K47: =IF(K46=0,"",(K46/C46)-1) -> 0.1167749714
A49: Total Parent Municipality | C49: =C14+C30+C46 -> 261053136 | D49: =D14+D30+D46 -> 295650521 | E49: 296938521 | F49: 21041293.6 | G49: 154613253.6 | H49: 173107746 | I49: =G49-H49 -> -18494492.38 | J49: =IF(I49=0,"",I49/H49) -> -0.1068380405 | K49: 296938521
D50: =IF(D49=0,"",(D49/C49)-1) -> 0.1325300494 | E50: =IF(E49=0,"",(E49/C49)-1) -> 0.1374639108 | K50: =IF(K49=0,"",(K49/C49)-1) -> 0.1374639108
A51: Unpaid salary, allowances & benefits in arrears:
A53: Board Members of Entities
A54: Basic Salaries and Wages | I54: =G54-H54 -> 0 | J54: =IF(I54=0,"",I54/H54) -> 
A55: Pension and UIF Contributions | I55: 0
A56: Medical Aid Contributions | I56: 0
A57: Overtime | I57: =G57-H57 -> 0 | J57: =IF(I57=0,"",I57/H57) -> 
A58: Performance Bonus | I58: =G58-H58 -> 0 | J58: =IF(I58=0,"",I58/H58) -> 
A59: Motor Vehicle Allowance | I59: =G59-H59 -> 0 | J59: =IF(I59=0,"",I59/H59) -> 
A60: Cellphone Allowance | I60: =G60-H60 -> 0 | J60: =IF(I60=0,"",I60/H60) -> 
A61: Housing Allowances | I61: =G61-H61 -> 0 | J61: =IF(I61=0,"",I61/H61) -> 
A62: Other benefits and allowances | I62: 0
A63: Board Fees | I63: =G63-H63 -> 0 | J63: =IF(I63=0,"",I63/H63) -> 
A64: Payments in lieu of leave | I64: 0
A65: Long service awards | I65: 0
A66: Post-retirement benefit obligations | I66: 0
A67: Sub Total - Board Members of Entities | B67: 2 | C67: =SUM(C54:C66) -> 0 | D67: 0 | E67: 0 | F67: =SUM(F54:F66) -> 0 | G67: =SUM(G54:G66) -> 0 | H67: =SUM(H54:H66) -> 0 | I67: 0 | J67: =IF(I67=0,"",I67/H67) ->  | K67: 0
A68: % increase | B68: 4 | D68: =IF(D67=0,"",(D67/C67)-1) ->  | E68: =IF(E67=0,"",(E67/C67)-1) ->  | K68: =IF(K67=0,"",(K67/C67)-1) -> 
A70: Senior Managers of Entities
A71: Basic Salaries and Wages | I71: =G71-H71 -> 0 | J71: =IF(I71=0,"",I71/H71) -> 
A72: Pension and UIF Contributions | I72: 0
A73: Medical Aid Contributions | I73: 0
A74: Overtime | I74: 0
A75: Performance Bonus | I75: =G75-H75 -> 0 | J75: =IF(I75=0,"",I75/H75) -> 
A76: Motor Vehicle Allowance | I76: =G76-H76 -> 0 | J76: =IF(I76=0,"",I76/H76) -> 
A77: Cellphone Allowance | I77: =G77-H77 -> 0 | J77: =IF(I77=0,"",I77/H77) -> 
A78: Housing Allowances | I78: =G78-H78 -> 0 | J78: =IF(I78=0,"",I78/H78) -> 
A79: Other benefits and allowances | I79: 0
A80: Payments in lieu of leave | I80: 0
A81: Long service awards | I81: 0
A82: Post-retirement benefit obligations | B82: 2 | I82: 0
A83: Sub Total - Senior Managers of Entities | C83: =SUM(C71:C82) -> 0 | D83: 0 | E83: 0 | F83: =SUM(F71:F82) -> 0 | G83: =SUM(G71:G82) -> 0 | H83: =SUM(H71:H82) -> 0 | I83: 0 | J83: =IF(I83=0,"",I83/H83) ->  | K83: 0
A84: % increase | B84: 4 | D84: =IF(D83=0,"",(D83/C83)-1) ->  | E84: =IF(E83=0,"",(E83/C83)-1) ->  | K84: =IF(K83=0,"",(K83/C83)-1) -> 
A86: Other Staff of Entities
A87: Basic Salaries and Wages | I87: =G87-H87 -> 0 | J87: =IF(I87=0,"",I87/H87) -> 
A88: Pension and UIF Contributions | I88: 0
A89: Medical Aid Contributions | I89: =G89-H89 -> 0 | J89: =IF(I89=0,"",I89/H89) -> 
A90: Overtime | I90: =G90-H90 -> 0 | J90: =IF(I90=0,"",I90/H90) -> 
A91: Performance Bonus | I91: =G91-H91 -> 0 | J91: =IF(I91=0,"",I91/H91) -> 
A92: Motor Vehicle Allowance | I92: =G92-H92 -> 0 | J92: =IF(I92=0,"",I92/H92) -> 
A93: Cellphone Allowance | I93: 0
A94: Housing Allowances | I94: 0
A95: Other benefits and allowances | I95: 0
A96: Payments in lieu of leave | I96: 0
A97: Long service awards | I97: 0
A98: Post-retirement benefit obligations | I98: 0
A99: Sub Total - Other Staff of Entities | C99: =SUM(C87:C98) -> 0 | D99: 0 | E99: 0 | F99: 0 | G99: 0 | H99: 0 | I99: 0 | J99: =IF(I99=0,"",I99/H99) ->  | K99: =SUM(K87:K98) -> 0
A100: % increase | B100: 4 | D100: =IF(D99=0,"",(D99/C99)-1) ->  | E100: =IF(E99=0,"",(E99/C99)-1) ->  | K100: =IF(K99=0,"",(K99/C99)-1) -> 
A102: Total Municipal Entities | C102: =C67+C83+C99 -> 0 | D102: 0 | E102: 0 | F102: 0 | G102: 0 | H102: 0 | I102: =G102-H102 -> 0 | J102: =IF(I102=0,"",I102/H102) ->  | K102: =K67+K83+K99 -> 0
A104: TOTAL SALARY, ALLOWANCES & BENEFITS | C104: =C49+C102 -> 261053136 | D104: 295650521 | E104: 296938521 | F104: 21041293.6 | G104: 154613253.6 | H104: 173107746 | I104: =G104-H104 -> -18494492.38 | J104: =IF(I104=0,"",I104/H104) -> -0.1068380405 | K104: =K49+K102 -> 296938521
A105: % increase | B105: 4 | D105: =IF(D104=0,"",(D104/C104)-1) -> 0.1325300494 | E105: =IF(E104=0,"",(E104/C104)-1) -> 0.1374639108 | K105: =IF(K104=0,"",(K104/C104)-1) -> 0.1374639108
A106: TOTAL MANAGERS AND STAFF | C106: =C30+C46+C83+C99 -> 236924858.4 | D106: 270831407 | E106: 272119407 | F106: 19015199 | G106: 139705628.5 | H106: 158629912 | I106: -18924283.5 | J106: =IF(I106=0,"",I106/H106) -> -0.1192983294 | K106: =K30+K46+K83+K99 -> 272119407
A107: =head27a -> References
A108: 1. Include 'Loans and advances' where applicable if any reportable amounts until phased compliance with s164 of MFMA achieved
A109: 2. If benefits in kind are provided (e.g. provision of living quarters) the full market value must be shown as the cost to the municipality
A110: 3. s57 of the Systems Act
A111: 4. B/A, C/A, D/A
A112: Column Definitions:
A113: A. Audited actual 2005/06 (audited financial statements). If audited amounts unavailable, unaudited amounts must be provided with a note stating these are unaudited
A114: B. The original budget approved by council for the 2006/07 budget year.
A115: C. The budget for 2006/07 budget year as adjusted by council resolution in terms of section 28 of the MFMA.
A116: D. An estimate of final actual amounts (pre audit - 2006/07 budget year) at the time of preparing the budget for the 2007/08 budget year. This may differ from C.

Sheet SC9
A1: =muni& " - "&S71O& " - "&Head57 -> NW375 Moses Kotane - Supporting Table SC9 Monthly Budget Statement - actuals and revised targets for cash receipts - M07 January
A2: =desc -> Description | B2: =head27 -> Ref | C2: =Head2 -> Budget Year 2020/21 | O2: ='Template names'!B5 -> 2020/21 Medium Term Revenue & Expenditure Framework
C3: July | D3: August | E3: Sept | F3: October | G3: Nov | H3: Dec | I3: January | J3: Feb | K3: March | L3: April | M3: May | N3: June | O3: =Head9 -> Budget Year 2020/21 | P3: =Head10 -> Budget Year +1 2021/22 | Q3: =Head11 -> Budget Year +2 2022/23
A4: R thousands | B4: 1 | C4: Outcome | D4: Outcome | E4: Outcome | F4: Outcome | G4: Outcome | H4: Outcome | I4: Outcome | J4: Budget | K4: Budget | L4: Budget | M4: Budget | N4: Budget
A5: Cash Receipts By Source
A6: Property rates | C6: 0 | D6: 0 | E6: 0 | F6: 35578994.21 | G6: 3553294.01 | H6: 3026676.44 | I6: 6056968.16 | J6: 5921978.83 | K6: 5921978.83 | L6: 5921978.83 | M6: 5921978.83 | N6: =O6-SUM(C6:M6) -> -840102.14 | O6: 71063746 | P6: 0 | Q6: 0
A7: Service charges - electricity revenue | N7: 0
A8: Service charges - water revenue | C8: 0 | D8: 0 | E8: 0 | F8: 4627689.32 | G8: 6051811.5 | H8: 3149793.86 | I8: 3619011.06 | J8: 5717590 | K8: 5717590 | L8: 5717590 | M8: 5717590 | N8: 28292414.26 | O8: 68611080 | P8: 0 | Q8: 0
A9: Service charges - sanitation revenue | C9: 0 | D9: 0 | E9: 0 | F9: 30196.02 | G9: 35327.32 | H9: 125395.14 | I9: 22087.22 | J9: 62250 | K9: 62250 | L9: 62250 | M9: 62250 | N9: 284994.3 | O9: 747000 | P9: 0 | Q9: 0
A10: Service charges - refuse | C10: 0 | D10: 0 | E10: 0 | F10: 38406.7 | G10: 41211.67 | H10: 32282.99 | I10: 14905.05 | J10: -51977.92 | K10: -51977.92 | L10: -51977.92 | M10: -51977.92 | N10: -542629.73 | O10: -623735 | P10: 0 | Q10: 0
A12: Rental of facilities and equipment | C12: 0 | D12: 0 | E12: 0 | F12: 6264.89 | G12: 6891.37 | H12: 6891.37 | I12: 6891.37 | J12: 0 | K12: 0 | L12: 0 | M12: 0 | N12: -26939 | O12: 0 | P12: 0 | Q12: 0
A13: Interest earned - external investments | C13: 0 | D13: 0 | E13: 0 | F13: 200034.69 | G13: 184171.76 | H13: 524612.95 | I13: 26429.72 | J13: 0 | K13: 0 | L13: 0 | M13: 0 | N13: -935249.12 | O13: 0 | P13: 0 | Q13: 0
A14: Interest earned - outstanding debtors | N14: 0
A15: Dividends received | N15: 0
A16: Fines, penalties and forfeits | C16: 0 | D16: 0 | E16: 0 | F16: 0 | G16: 0 | H16: 0 | I16: 886600 | J16: 0 | K16: 0 | L16: 0 | M16: 0 | N16: -886600 | O16: 0 | P16: 0 | Q16: 0
A17: Licences and permits | N17: 0
A18: Agency services | N18: 0
A19: Transfers and Subsidies - Operational | C19: 0 | D19: 0 | E19: 0 | F19: 0 | G19: 766000 | H19: 0 | I19: 0 | J19: 45861647.25 | K19: 45861647.25 | L19: 45861647.25 | M19: 45861647.25 | N19: 366127178 | O19: 550339767 | P19: 0 | Q19: 0
A20: Other revenue | C20: 0 | D20: 0 | E20: 0 | F20: 9460896.81 | G20: 62645648.86 | H20: 212817573.5 | I20: -24389812.84 | J20: 643750 | K20: 643750 | L20: 643750 | M20: 643750 | N20: -255384306.3 | O20: 7725000 | P20: 0 | Q20: 0
A21: Cash Receipts by Source | C21: =SUM(C6:C10)+SUM(C12:C20) -> 0 | D21: =SUM(D6:D10)+SUM(D12:D20) -> 0 | E21: 0 | F21: 49942482.64 | G21: 73284356.49 | H21: 219683226.2 | I21: -13756920.26 | J21: 58155238.16 | K21: 58155238.16 | L21: 58155238.16 | M21: 58155238.16 | N21: 136088760.3 | O21: 697862858 | P21: 0 | Q21: 0
N22: =O22-SUM(C22:M22) -> 0
A23: Other Cash Flows by Source | N23: 0
A24: ='C4-FinPerf RE'!A39 -> Transfers and subsidies - capital (monetary allocations) (National / Provincial and District) | C24: 0 | D24: 0 | E24: 0 | F24: 15000000 | G24: 69794000 | H24: 1318160.11 | I24: 0 | J24: 16874600.25 | K24: 16874600.25 | L24: 16874600.25 | M24: 16874600.25 | N24: 48884641.89 | O24: 202495203 | P24: 0 | Q24: 0
A25: ='C4-FinPerf RE'!A40 -> Transfers and subsidies - capital (monetary allocations) (National / Provincial Departmental Agencies, Households, Non-profit Institutions, Private Enterprises, Public Corporatons, Higher Educational Institutions) | N25: 0
A26: Proceeds on Disposal of Fixed and Intangible Assets | N26: 0
A27: Short term loans | N27: 0
A28: Borrowing long term/refinancing | N28: 0
A29: Increase (decrease) in consumer deposits | C29: 0 | D29: 0 | E29: 0 | F29: 0 | G29: 0 | H29: 0 | I29: 0 | J29: 0 | K29: 0 | L29: 0 | M29: 0 | N29: 0 | O29: 0 | P29: -15500 | Q29: 0
A31: Decrease (increase) in non-current receivables | C31: 0 | D31: 0 | E31: 0 | F31: 0 | G31: 0 | H31: 0 | I31: 0 | J31: 0 | K31: 0 | L31: 0 | M31: 0 | N31: 0 | O31: 0 | P31: 0 | Q31: 0
A32: Decrease (increase) in non-current investments | C32: 0 | D32: 0 | E32: 0 | F32: 0 | G32: 0 | H32: 0 | I32: 0 | J32: 0 | K32: 0 | L32: 0 | M32: 0 | N32: 0 | O32: 0 | P32: 0 | Q32: 0
A33: Total Cash Receipts by Source | C33: =SUM(C21:C29)+SUM(C31:C32) -> 0 | D33: =SUM(D21:D29)+SUM(D31:D32) -> 0 | E33: 0 | F33: 64942482.64 | G33: 143078356.5 | H33: 221001386.3 | I33: -13756920.26 | J33: 75029838.41 | K33: 75029838.41 | L33: 75029838.41 | M33: 75029838.41 | N33: 184973402.2 | O33: 900358061 | P33: -15500 | Q33: 0
N34: =O34-SUM(C34:M34) -> 0
A35: Cash Payments by Type | N35: 0
A36: Employee related costs | C36: 0 | D36: 0 | E36: 0 | F36: -4960322.05 | G36: 4071580.9 | H36: -82106.66 | I36: 1157997.26 | J36: 24744876.75 | K36: 24744876.75 | L36: 24744876.75 | M36: 24744876.75 | N36: 197771864.6 | O36: 296938521 | P36: 0 | Q36: 0
A37: Remuneration of councillors | N37: 0
A38: Interest paid | C38: 0 | D38: 0 | E38: 0 | F38: 0 | G38: 0 | H38: 0 | I38: 0 | J38: 253650.67 | K38: 253650.67 | L38: 253650.67 | M38: 253650.67 | N38: 2029205.32 | O38: 3043808 | P38: 0 | Q38: 0
A39: Bulk purchases - Electricity | C39: 0 | D39: 0 | E39: 0 | F39: 0 | G39: 0 | H39: 309230 | I39: 0 | J39: 2333333.34 | K39: 2333333.34 | L39: 2333333.34 | M39: 2333333.34 | N39: 18357436.64 | O39: 28000000 | P39: 0 | Q39: 0
A40: Bulk purchases - Water & Sewer | C40: 0 | D40: 0 | E40: 0 | F40: 6127899.61 | G40: 0 | H40: 20975447.65 | I40: 9786994.63 | J40: 6250000 | K40: 6250000 | L40: 6250000 | M40: 6250000 | N40: 13109658.11 | O40: 75000000 | P40: 0 | Q40: 0
A41: Other materials | N41: 0
A42: Contracted services | N42: 0
A43: Grants and subsidies paid - other municipalities | N43: 0
A44: Grants and subsidies paid - other | N44: 0
A45: General expenses | C45: 0 | D45: 0 | E45: 0 | F45: 36775803.94 | G45: 16344662.58 | H45: 87844408.23 | I45: 16199963.34 | J45: 41359860.5 | K45: 41359860.5 | L45: 41359860.5 | M45: 41359860.5 | N45: 173714045.9 | O45: 496318326 | P45: 0 | Q45: 0
A46: Cash Payments by Type | B46: =SUM(B36:B45) -> 0 | C46: =SUM(C36:C45) -> 0 | D46: =SUM(D36:D45) -> 0 | E46: 0 | F46: 37943381.5 | G46: 20416243.48 | H46: 109046979.2 | I46: 27144955.23 | J46: 74941721.26 | K46: 74941721.26 | L46: 74941721.26 | M46: 74941721.26 | N46: 404982210.5 | O46: 899300655 | P46: 0 | Q46: 0
N47: =O47-SUM(C47:M47) -> 0
A48: Other Cash Flows/Payments by Type
A49: Capital assets | C49: 0 | D49: 0 | E49: 0 | F49: 6350586.9 | G49: -247188.91 | H49: 34705421.41 | I49: 6904946.19 | J49: 0 | K49: 0 | L49: 0 | M49: 0 | N49: =O49-SUM(C49:M49) -> -47713765.59 | O49: 0 | P49: 0 | Q49: 0
A50: Repayment of borrowing | C50: 0 | D50: 619740.53 | E50: 786201.42 | F50: 140601.5 | G50: 0 | H50: 1102235.14 | I50: 0 | J50: 311111.08 | K50: 311111.08 | L50: 311111.08 | M50: 311111.08 | N50: =O50-SUM(C50:M50) -> -1093222.91 | O50: 2800000 | P50: 0 | Q50: 0
A51: Other Cash Flows/Payments | N51: =O51-SUM(C51:M51) -> 0
A52: Total Cash Payments by Type | B52: =SUM(B46:B51) -> 0 | C52: 0 | D52: 619740.53 | E52: 786201.42 | F52: 44434569.9 | G52: 20169054.57 | H52: 144854635.8 | I52: 34049901.42 | J52: 75252832.34 | K52: 75252832.34 | L52: 75252832.34 | M52: 75252832.34 | N52: 356175222 | O52: 902100655 | P52: 0 | Q52: 0
N53: =O53-SUM(C53:M53) -> 0
A54: NET INCREASE/(DECREASE) IN CASH HELD | B54: =B33-B52 -> 0 | C54: 0 | D54: -619740.53 | E54: -786201.42 | F54: 20507912.74 | G54: 122909301.9 | H54: 76146750.56 | I54: -47806821.68 | J54: -222993.93 | K54: -222993.93 | L54: -222993.93 | M54: -222993.93 | N54: -171201819.9 | O54: -1742594 | P54: -15500 | Q54: 0
A55: Cash/cash equivalents at the month/year beginning: | C55: 48780650.81 | D55: =C56 -> 48780650.81 | E55: =D56 -> 48160910.28 | F55: 47374708.86 | G55: 67882621.6 | H55: 190791923.5 | I55: 266938674.1 | J55: 219131852.4 | K55: 218908858.5 | L55: 218685864.5 | M55: 218462870.6 | N55: 218239876.7 | O55: =C55 -> 48780650.81 | P55: =O56 -> 47038056.81 | Q55: =P56 -> 47022556.81
A56: Cash/cash equivalents at the month/year end: | C56: =C54+C55 -> 48780650.81 | D56: =D54+D55 -> 48160910.28 | E56: =E54+E55 -> 47374708.86 | F56: 67882621.6 | G56: 190791923.5 | H56: 266938674.1 | I56: 219131852.4 | J56: 218908858.5 | K56: 218685864.5 | L56: 218462870.6 | M56: 218239876.7 | N56: 47038056.81 | O56: =O54+O55 -> 47038056.81 | P56: =P54+P55 -> 47022556.81 | Q56: =Q54+Q55 -> 47022556.81
A57: =head27a -> References
A58: 1. Replace 'budget' heading with adjusted budget, or 'outcome' only for month/s complete
A59: 2. Total of monthly amounts must always agree to the approved or adjusted budget
A60: 3. Amend 'cash-at-beginning' when prior year actual known (as part of the adjustments budget)
E65: =E46+E64 -> 0 | F65: 37943381.5 | G65: 20416243.48 | H65: 109046979.2 | I65: 27144955.23 | J65: 74941721.26 | K65: 74941721.26 | L65: 74941721.26 | N65: =N46+N64 -> 404982210.5 | O65: 899300655 | P65: 0
E66: =E54-E64 -> -786201.42 | F66: 20507912.74 | G66: 122909301.9 | H66: 76146750.56 | I66: -47806821.68 | J66: -222993.93 | K66: -222993.93 | L66: -222993.93 | M66: =M54-M64 -> -222993.93 | N66: =N54-N64 -> -171201819.9 | O66: -1742594 | P66: -15500

Sheet SC10
A1: =muni& " - "&S71P& " - "&Head57 -> NW375 Moses Kotane - NOT REQUIRED - municipality does not have entities or this is the parent municipality's budget - M07 January
A2: =desc -> Description | B2: =head27 -> Ref | C2: =Head1 -> 2019/20 | D2: =Head2 -> Budget Year 2020/21
C3: =Head5 -> Audited Outcome | D3: =Head6 -> Original Budget | E3: =Head7 -> Adjusted Budget | F3: =Head38 -> Monthly actual | G3: =Head39 -> YearTD actual | H3: =Head40 -> YearTD budget | I3: =Head41 -> YTD variance | J3: =Head41 -> YTD variance | K3: =Head8 -> Full Year Forecast
A4: R thousands | B4: 1 | J4: %
A5: ='C4-FinPerf RE'!A5 -> Revenue By Source
A6: ='C4-FinPerf RE'!A6 -> Property rates | I6: =G6-H6 -> 0 | J6: =IF(I6=0,"",I6/H6) -> 
A7: ='C4-FinPerf RE'!A7 -> Service charges - electricity revenue | I7: 0 | J7: =IF(I7=0,"",I7/H7) -> 
A8: ='C4-FinPerf RE'!A8 -> Service charges - water revenue | I8: 0
A9: ='C4-FinPerf RE'!A9 -> Service charges - sanitation revenue | I9: 0
A10: ='C4-FinPerf RE'!A10 -> Service charges - refuse revenue | I10: 0
A12: ='C4-FinPerf RE'!A12 -> Rental of facilities and equipment | I12: 0
A13: ='C4-FinPerf RE'!A13 -> Interest earned - external investments | I13: 0
A14: ='C4-FinPerf RE'!A14 -> Interest earned - outstanding debtors | I14: 0
A15: ='C4-FinPerf RE'!A15 -> Dividends received | I15: 0
A16: ='C4-FinPerf RE'!A16 -> Fines, penalties and forfeits | I16: 0
A17: ='C4-FinPerf RE'!A17 -> Licences and permits | I17: 0
A18: ='C4-FinPerf RE'!A18 -> Agency services | I18: 0
A19: ='C4-FinPerf RE'!A19 -> Transfers and subsidies | I19: 0
A20: ='C4-FinPerf RE'!A20 -> Other revenue | I20: 0
A21: ='C4-FinPerf RE'!A21 -> Gains | I21: 0
A22: Total Revenue (excluding capital transfers and contributions) | C22: =SUM(C6:C10)+SUM(C12:C21) -> 0 | D22: 0 | E22: 0 | F22: 0 | G22: 0 | H22: 0 | I22: =G22-H22 -> 0 | K22: =SUM(K6:K10)+SUM(K12:K21) -> 0
A24: Expenditure By Type
A25: ='C4-FinPerf RE'!A25 -> Employee related costs | I25: =G25-H25 -> 0 | J25: =IF(I25=0,"",I25/H25) -> 
A26: ='C4-FinPerf RE'!A26 -> Remuneration of councillors | I26: 0
A27: ='C4-FinPerf RE'!A27 -> Debt impairment | I27: 0
A28: ='C4-FinPerf RE'!A28 -> Depreciation & asset impairment | I28: 0
A29: ='C4-FinPerf RE'!A29 -> Finance charges | I29: 0
A30: ='C4-FinPerf RE'!A30 -> Bulk purchases | I30: 0
A31: ='C4-FinPerf RE'!A31 -> Other materials | I31: 0
A32: ='C4-FinPerf RE'!A32 -> Contracted services | I32: 0
A33: ='C4-FinPerf RE'!A33 -> Transfers and subsidies | I33: 0
A34: ='C4-FinPerf RE'!A34 -> Other expenditure | I34: 0
A35: ='C4-FinPerf RE'!A35 -> Losses | I35: 0
A36: Total Expenditure | C36: =SUM(C25:C35) -> 0 | D36: 0 | E36: 0 | F36: 0 | G36: 0 | H36: 0 | I36: 0 | K36: =SUM(K25:K35) -> 0
I37: 0
A38: ='C4-FinPerf RE'!A38 -> Surplus/(Deficit) | C38: =C22-C36 -> 0 | D38: 0 | E38: 0 | F38: 0 | G38: 0 | H38: 0 | I38: 0 | K38: =K22-K36 -> 0
A39: ='C4-FinPerf RE'!A39 -> Transfers and subsidies - capital (monetary allocations) (National / Provincial and District) | I39: 0
A40: ='C4-FinPerf RE'!A40 -> Transfers and subsidies - capital (monetary allocations) (National / Provincial Departmental Agencies, Households, Non-profit Institutions, Private Enterprises, Public Corporatons, Higher Educational Institutions) | I40: 0
A41: ='C4-FinPerf RE'!A41 -> Transfers and subsidies - capital (in-kind - all) | I41: 0
A42: ='C4-FinPerf RE'!A42 -> Surplus/(Deficit) after capital transfers & contributions | C42: =C38+SUM(C39:C41) -> 0 | D42: =D38+SUM(D39:D41) -> 0 | E42: 0 | F42: 0 | G42: 0 | H42: 0 | I42: 0 | K42: 0
A43: ='C4-FinPerf RE'!A43 -> Taxation | I43: 0
A44: ='C4-FinPerf RE'!A44 -> Surplus/(Deficit) after taxation | C44: =C42-C43 -> 0 | D44: 0 | E44: 0 | F44: 0 | G44: 0 | H44: 0 | I44: 0 | K44: =K42-K43 -> 0
A45: =head27a -> References
A46: 1. Votes (consolidated) are revenue sources and expenditure type

Sheet SC11
A1: =muni& " - "&S71Q& " - "&Head57 -> NW375 Moses Kotane - NOT REQUIRED - municipality does not have entities or this is the parent municipality's budget - M07 January
A2: =desc -> Description | B2: =head27 -> Ref | C2: =Head1 -> 2019/20 | D2: =Head2 -> Budget Year 2020/21
C3: =Head5 -> Audited Outcome | D3: =Head6 -> Original Budget | E3: =Head7 -> Adjusted Budget | F3: =Head38 -> Monthly actual | G3: =Head39 -> YearTD actual | H3: =Head40 -> YearTD budget | I3: =Head41 -> YTD variance | J3: =Head41 -> YTD variance | K3: =Head8 -> Full Year Forecast
A4: R thousands | J4: %
A5: Revenue By Municipal Entity
A6: Insert name of municipal entity | I6: =G6-H6 -> 0 | J6: =IF(I6=0,"",I6/H6) -> 
I7: 0 | J7: =IF(I7=0,"",I7/H7) -> 
I8: 0
I9: 0
I10: 0
I11: 0
I12: 0
I13: 0
I14: 0
I15: 0
A16: Total Operating Revenue | B16: 1 | C16: =SUM(C6:C15) -> 0 | D16: 0 | E16: 0 | F16: 0 | G16: 0 | H16: 0 | I16: 0 | K16: =SUM(K6:K15) -> 0
A18: Expenditure By Municipal Entity
A19: =A6 -> Insert name of municipal entity | I19: 0 | J19: =IF(I19=0,"",I19/H19) -> 
A20: =IF(A7="","",A7) ->  | I20: 0
A21: =IF(A8="","",A8) ->  | I21: 0
I22: 0
I23: 0
I24: 0
I25: 0
I26: 0
I27: 0
I28: 0
A29: Total Operating Expenditure | B29: 2 | C29: =SUM(C19:C28) -> 0 | D29: 0 | E29: 0 | F29: 0 | G29: 0 | H29: 0 | I29: 0 | K29: =SUM(K19:K28) -> 0
A31: =Head42 -> Surplus/ (Deficit) for the yr/period | C31: =C16-C29 -> 0 | D31: =D16-D29 -> 0 | E31: 0 | F31: 0 | G31: 0 | H31: 0 | I31: =I16+I29 -> 0 | K31: 0
A32: Capital Expenditure By Municipal Entity
A33: =$A$6 -> Insert name of municipal entity | I33: 0
A34: =IF(A7="","",A7) ->  | I34: 0
A35: =IF(A8="","",A8) ->  | I35: 0
I36: 0
I37: 0
I38: 0
I39: 0
I40: 0
I41: 0
A43: Total Capital Expenditure | B43: 3 | C43: =SUM(C32:C42) -> 0 | D43: =SUM(D32:D42) -> 0 | E43: 0 | F43: 0 | G43: 0 | H43: =SUM(H32:H42) -> 0 | I43: =G43-H43 -> 0 | K43: 0
A44: =head27a -> References
A45: 1. Must reconcile to the sum of all municipal entity monthly revenue reports
A46: 2. Must reconcile to the sum of all municipal entity monthly expenditure reports
A47: 3. YTD = Year to date; FAV - favourable variance or unfavourable variance
A48: 4. Material variances to be explained
A49: 5. Insert additional 'Adjustment' Budget column for each Adjustment made by an entity

Sheet SC12
A1: =muni& " - "&S71R& " - "&Head57 -> NW375 Moses Kotane - Supporting Table SC12 Monthly Budget Statement - capital expenditure trend - M07 January
A2: Month | B2: =Head1 -> 2019/20 | C2: =Head2 -> Budget Year 2020/21
B3: =Head5 -> Audited Outcome | C3: =Head6 -> Original Budget | D3: =Head7 -> Adjusted Budget | E3: =Head38 -> Monthly actual | F3: =Head39 -> YearTD actual | G3: =Head40 -> YearTD budget | H3: =Head41 -> YTD variance | I3: =Head41 -> YTD variance | J3: % spend of Original Budget
A4: R thousands | I4: %
A5: Monthly expenditure performance trend
A6: July | B6: 456868.82 | C6: 16957936.09 | D6: 16957953 | E6: 6132272.32 | F6: =IF(E6>0,E6,"") -> 6132272.32 | G6: =IF(D6>0,D6,C6) -> 16957953 | H6: =IF(F6="",0,G6-F6) -> 10825680.68 | I6: =IF(F6="","",IF(H6=0,"",H6/G6)) -> 0.6383836941 | J6: =IF(F6="","",F6/$C$18) -> 0.03013472222
A7: August | B7: 15381965.96 | C7: 16957936.09 | D7: 16957953 | E7: 12746732.56 | F7: =IF(E7>0,E7+F6,"") -> 18879004.88 | G7: =IF(D7>0,D7+D6,C7+C6) -> 33915906 | H7: 15036901.12 | I7: 0.4433583794 | J7: 0.09277369598
A8: September | B8: 7655673.58 | C8: 16957936.09 | D8: 16957953 | E8: 6595187.13 | F8: =IF(E8>0,E8+F7,"") -> 25474192.01 | G8: =IF(D8>0,D8+G7,C8+G7) -> 50873859 | H8: 25399666.99 | I8: 0.4992675509 | J8: 0.1251832371
A9: October | B9: 9883858.19 | C9: 16957936.09 | D9: 16957953 | E9: 6350586.9 | F9: 31824778.91 | G9: =IF(D9>0,D9+G8,C9+G8) -> 67831812 | H9: 36007033.09 | I9: 0.5308281178 | J9: 0.1563907834
A10: November | B10: 12336810.07 | C10: 16957936.09 | D10: 16957953 | E10: -247188.91 | G10: 84789765 | H10: 0
A11: December | B11: 19986773.06 | C11: 16957936.09 | D11: 16957953 | E11: 34705421.41 | G11: 101747718
A12: January | B12: 12180241.45 | C12: 16957936.09 | D12: 16957953 | E12: 6904946.19 | G12: 118705671
A13: February | B13: 9130612.42 | C13: 16957936.09 | D13: 16957953 | E13: 0 | G13: 135663624 | H13: 0
A14: March | B14: 11503317.72 | C14: 16957936.09 | D14: 16957953 | E14: 0 | G14: 152621577 | H14: 0
A15: April | B15: 3905991.8 | C15: 16957936.09 | D15: 16957953 | E15: 0 | G15: 169579530 | H15: 0
A16: May | B16: 7347078.27 | C16: 16957936.09 | D16: 16957953 | E16: 0 | G16: 186537483 | H16: 0
A17: June | B17: 26876111.31 | C17: 16957936.01 | D17: 16957750 | E17: 0 | G17: 203495233 | H17: =IF(F17="",0,G17-F17) -> 0 | I17: =IF(F17="","",IF(H17=0,"",H17/G17)) ->  | J17: =IF(F17="","",F17/$C$18) -> 
A18: Total Capital expenditure | B18: =SUM(B6:B17) -> 136645302.6 | C18: =SUM(C6:C17) -> 203495233 | D18: =SUM(D6:D17) -> 203495233 | E18: =SUM(E6:E17) -> 73187957.6

Sheet SC13a
A1: =muni& " - "&S71Sa& " - "&Head57 -> NW375 Moses Kotane - Supporting Table SC13a Monthly Budget Statement - capital expenditure on new assets by asset class - M07 January
A2: =desc -> Description | B2: =head27 -> Ref | C2: =Head1 -> 2019/20 | D2: =Head2 -> Budget Year 2020/21
C3: =Head5 -> Audited Outcome | D3: =Head6 -> Original Budget | E3: =Head7 -> Adjusted Budget | F3: =Head38 -> Monthly actual | G3: =Head39 -> YearTD actual | H3: =Head40 -> YearTD budget | I3: =Head41 -> YTD variance | J3: =Head41 -> YTD variance | K3: =Head8 -> Full Year Forecast
A4: R thousands | B4: 1 | J4: %
A5: Capital expenditure on new assets by Asset Class/Sub-class
A7: Infrastructure | C7: =C8+C13+C17+C27+C38+C45+C53+C63+C69 -> 11561454.2 | D7: 124425463 | E7: 124425463 | F7: 8553748.3 | G7: 44793090.1 | H7: 72581614 | I7: =H7-G7 -> 27788523.9 | J7: =IF(I7=0,"",I7/H7) -> 0.3828589965 | K7: =K8+K13+K17+K27+K38+K45+K53+K63+K69 -> 124425463
A8: Roads Infrastructure | C8: =SUM(C9:C12) -> 0 | D8: 0 | E8: 0 | F8: 0 | G8: 0 | H8: 0 | I8: 0 | K8: =SUM(K9:K12) -> 0
A9: Roads | C9: 0 | D9: 0 | E9: 0 | F9: 0 | G9: 0 | H9: 0 | I9: 0 | K9: 0
A10: Road Structures | I10: 0
A11: Road Furniture | I11: 0
A12: Capital Spares | I12: 0
A13: Storm water Infrastructure | C13: =SUM(C14:C16) -> 0 | D13: 0 | E13: 0 | F13: 0 | G13: 0 | H13: 0 | I13: 0 | K13: =SUM(K14:K16) -> 0
A14: Drainage Collection | C14: 0 | D14: 0 | E14: 0 | F14: 0 | G14: 0 | H14: 0 | I14: 0 | K14: 0
A15: Storm water Conveyance | I15: 0
A16: Attenuation | I16: 0
A17: Electrical Infrastructure | C17: =SUM(C18:C26) -> 0 | D17: 12265740 | E17: 12265740 | F17: 162522.9 | G17: 4750472.55 | H17: 7155057 | I17: 2404584.45 | J17: 0.3360678259 | K17: =SUM(K18:K26) -> 12265740
A18: Power Plants | I18: 0
A19: HV Substations | I19: 0
A20: HV Switching Station | I20: 0
A21: HV Transmission Conductors | I21: 0
A22: MV Substations | I22: 0
A23: MV Switching Stations | I23: 0
A24: MV Networks | I24: 0
A25: LV Networks | C25: 0 | D25: 12265740 | E25: 12265740 | F25: 162522.9 | G25: 4750472.55 | H25: 7155057 | I25: 2404584.45 | J25: 0.3360678259 | K25: 12265740
A26: Capital Spares | I26: 0
A27: Water Supply Infrastructure | C27: =SUM(C28:C37) -> 13781271.2 | D27: 83272366 | E27: 83272366 | F27: 6447814 | G27: 28576887.68 | H27: 48575583 | I27: 19998695.32 | J27: 0.4117026309 | K27: =SUM(K28:K37) -> 83272366
A28: Dams and Weirs | I28: 0
A29: Boreholes | I29: 0
A30: Reservoirs | C30: 0 | D30: 0 | E30: 0 | F30: 0 | G30: 0 | H30: 0 | I30: 0 | K30: 0
A31: Pump Stations | I31: 0
A32: Water Treatment Works | I32: 0
A33: Bulk Mains | C33: 0 | D33: 0 | E33: 0 | F33: 0 | G33: 0 | H33: 0 | I33: 0 | K33: 0
A34: Distribution | C34: 13781271.2 | D34: 83272366 | E34: 83272366 | F34: 6447814 | G34: 28576887.68 | H34: 48575583 | I34: 19998695.32 | J34: 0.4117026309 | K34: 83272366
A35: Distribution Points | I35: 0
A36: PRV Stations | I36: 0
A37: Capital Spares | I37: 0
A38: Sanitation Infrastructure | C38: =SUM(C39:C44) -> 0 | D38: 25887357 | E38: 25887357 | F38: 1943411.4 | G38: 11465729.87 | H38: 15100974 | I38: =H38-G38 -> 3635244.13 | J38: =IF(I38=0,"",I38/H38) -> 0.2407291165 | K38: =SUM(K39:K44) -> 25887357
A39: Pump Station | I39: 0
A40: Reticulation | I40: =H40-G40 -> 0 | J40: =IF(I40=0,"",I40/H40) -> 
A41: Waste Water Treatment Works | I41: =H41-G41 -> 0 | J41: =IF(I41=0,"",I41/H41) -> 
A42: Outfall Sewers | I42: =H42-G42 -> 0 | J42: =IF(I42=0,"",I42/H42) -> 
A43: Toilet Facilities | C43: 0 | D43: 25887357 | E43: 25887357 | F43: 1943411.4 | G43: 11465729.87 | H43: 15100974 | I43: 3635244.13 | J43: 0.2407291165 | K43: 25887357
A44: Capital Spares | I44: 0
A45: Solid Waste Infrastructure | C45: =SUM(C46:C52) -> -2219817 | D45: 3000000 | E45: 3000000 | F45: 0 | G45: 0 | H45: 1750000 | I45: =H45-G45 -> 1750000 | J45: =IF(I45=0,"",I45/H45) -> 1 | K45: =SUM(K46:K52) -> 3000000
A46: Landfill Sites | C46: -2219817 | D46: 3000000 | E46: 3000000 | F46: 0 | G46: 0 | H46: 1750000 | I46: 1750000 | J46: 1 | K46: 3000000
A47: Waste Transfer Stations | I47: 0
A48: Waste Processing Facilities | I48: =H48-G48 -> 0 | J48: =IF(I48=0,"",I48/H48) -> 
A49: Waste Drop-off Points | I49: 0
A50: Waste Separation Facilities | I50: 0
A51: Electricity Generation Facilities | I51: 0
A52: Capital Spares | I52: 0
A53: Rail Infrastructure | C53: =SUM(C54:C62) -> 0 | D53: 0 | E53: 0 | F53: 0 | G53: 0 | H53: 0 | I53: 0 | K53: =SUM(K54:K62) -> 0
A54: Rail Lines | I54: 0
A55: Rail Structures | I55: 0
A56: Rail Furniture | I56: 0
A57: Drainage Collection | I57: 0
A58: Storm water Conveyance | I58: 0
A59: Attenuation | I59: 0
A60: MV Substations | I60: 0
A61: LV Networks | I61: 0
A62: Capital Spares | I62: 0
A63: Coastal Infrastructure | C63: =SUM(C64:C68) -> 0 | D63: 0 | E63: 0 | F63: 0 | G63: 0 | H63: 0 | I63: 0 | K63: =SUM(K64:K68) -> 0
A64: Sand Pumps | I64: 0
A65: Piers | I65: 0
A66: Revetments | I66: 0
A67: Promenades | I67: 0
A68: Capital Spares | I68: 0
A69: Information and Communication Infrastructure | C69: =SUM(C70:C73) -> 0 | D69: 0 | E69: 0 | F69: 0 | G69: 0 | H69: 0 | I69: =H69-G69 -> 0 | J69: =IF(I69=0,"",I69/H69) ->  | K69: =SUM(K70:K73) -> 0
A70: Data Centres | I70: =H70-G70 -> 0
A71: Core Layers | I71: =H71-G71 -> 0
A72: Distribution Layers | I72: =H72-G72 -> 0
A73: Capital Spares | I73: =H73-G73 -> 0
A75: Community Assets | C75: =+C76+C99 -> 0 | D75: 7223512 | E75: 7223512 | F75: 0 | G75: 0 | H75: 4213720 | I75: =H75-G75 -> 4213720 | J75: 1 | K75: =+K76+K99 -> 7223512
A76: Community Facilities | C76: =SUM(C77:C98) -> 0 | D76: 7223512 | E76: 7223512 | F76: 0 | G76: 0 | H76: 4213720 | I76: =H76-G76 -> 4213720 | J76: =IF(I76=0,"",I76/H76) -> 1 | K76: =SUM(K77:K98) -> 7223512
A77: Halls | I77: 0
A78: Centres | I78: 0
A79: Crèches | I79: 0
A80: Clinics/Care Centres | I80: 0
A81: Fire/Ambulance Stations | I81: 0
A82: Testing Stations | I82: 0
A83: Museums | I83: 0
A84: Galleries | I84: 0
A85: Theatres | I85: 0
A86: Libraries | I86: 0
A87: Cemeteries/Crematoria | I87: 0
A88: Police | I88: =H88-G88 -> 0 | J88: =IF(I88=0,"",I88/H88) -> 
A89: Purls | I89: 0
A90: Public Open Space | I90: 0
A91: Nature Reserves | I91: 0
A92: Public Ablution Facilities | I92: 0
A93: Markets | C93: 0 | D93: 7223512 | E93: 7223512 | F93: 0 | G93: 0 | H93: 4213720 | I93: 4213720 | J93: 1 | K93: 7223512
A94: Stalls | I94: 0
A95: Abattoirs | I95: 0
A96: Airports | I96: 0
A97: Taxi Ranks/Bus Terminals | I97: 0
A98: Capital Spares | I98: 0
A99: Sport and Recreation Facilities | C99: =SUM(C100:C102) -> 0 | D99: 0 | E99: 0 | F99: 0 | G99: 0 | H99: 0 | I99: 0 | K99: =SUM(K100:K102) -> 0
A100: Indoor Facilities | I100: 0
A101: Outdoor Facilities | I101: 0
A102: Capital Spares | I102: 0
A103: Heritage assets | C103: =SUM(C104:C108) -> 0 | D103: 0 | E103: 0 | F103: 0 | G103: 0 | H103: 0 | I103: 0 | K103: =SUM(K104:K108) -> 0
A104: Monuments | I104: 0
A105: Historic Buildings | I105: 0
A106: Works of Art | I106: 0
A107: Conservation Areas | I107: 0
A108: Other Heritage | I108: 0
I109: 0
A110: Investment properties | C110: =+C111+C114 -> 0 | D110: 0 | E110: 0 | F110: 0 | G110: 0 | H110: 0 | I110: 0 | K110: =+K111+K114 -> 0
A111: Revenue Generating | C111: =SUM(C112:C113) -> 0 | D111: 0 | E111: 0 | F111: 0 | G111: 0 | H111: 0 | I111: 0 | K111: =SUM(K112:K113) -> 0
A112: Improved Property | I112: 0
A113: Unimproved Property | I113: 0
A114: Non-revenue Generating | C114: =SUM(C115:C116) -> 0 | D114: 0 | E114: 0 | F114: 0 | G114: 0 | H114: 0 | I114: 0 | K114: =SUM(K115:K116) -> 0
A115: Improved Property | I115: 0
A116: Unimproved Property | I116: 0
A117: Other assets | C117: =+C118+C130 -> 0 | D117: 0 | E117: 0 | F117: 0 | G117: 0 | H117: 0 | I117: 0 | K117: =+K118+K130 -> 0
A118: Operational Buildings | C118: =SUM(C119:C129) -> 0 | D118: 0 | E118: 0 | F118: 0 | G118: 0 | H118: 0 | I118: 0 | K118: =SUM(K119:K129) -> 0
A119: Municipal Offices | C119: 0 | D119: 0 | E119: 0 | F119: 0 | G119: 0 | H119: 0 | I119: 0 | K119: 0
A120: Pay/Enquiry Points | I120: 0 | J120: =IF(I120=0,"",I120/H120) -> 
A121: Building Plan Offices | I121: 0
A122: Workshops | I122: 0
A123: Yards | I123: 0
A124: Stores | I124: 0
A125: Laboratories | I125: 0
A126: Training Centres | I126: 0
A127: Manufacturing Plant | I127: 0
A128: Depots | I128: 0
A129: Capital Spares | I129: 0
A130: Housing | C130: =SUM(C131:C133) -> 0 | D130: 0 | E130: 0 | F130: 0 | G130: 0 | H130: 0 | I130: 0 | K130: =SUM(K131:K133) -> 0
A131: Staff Housing | I131: 0
A132: Social Housing | I132: 0
A133: Capital Spares | I133: 0
A135: Biological or Cultivated Assets | C135: =SUM(C136:C136) -> 0 | D135: 0 | E135: 0 | F135: 0 | G135: 0 | H135: 0 | I135: =H135-G135 -> 0 | K135: =SUM(K136) -> 0
A136: Biological or Cultivated Assets | I136: =H136-G136 -> 0
A138: Intangible Assets | C138: =SUM(C139:C140) -> 0 | D138: 0 | E138: 0 | F138: 0 | G138: 0 | H138: 0 | I138: =H138-G138 -> 0 | K138: =SUM(K139:K140) -> 0
A139: Servitudes | I139: 0
A140: Licences and Rights | C140: =SUM(C141:C146) -> 0 | D140: 0 | E140: 0 | F140: 0 | G140: 0 | H140: 0 | I140: 0 | K140: =SUM(K141:K146) -> 0
A141: Water Rights | I141: 0
A142: Effluent Licenses | I142: 0
A143: Solid Waste Licenses | I143: 0
A144: Computer Software and Applications | C144: 0 | D144: 0 | E144: 0 | F144: 0 | G144: 0 | H144: 0 | I144: 0 | K144: 0
A145: Load Settlement Software Applications | I145: 0
A146: Unspecified | I146: 0
A148: Computer Equipment | C148: =SUM(C149:C149) -> 0 | D148: 0 | E148: 0 | F148: 0 | G148: 0 | H148: 0 | I148: =H148-G148 -> 0 | J148: =IF(I148=0,"",I148/H148) ->  | K148: =SUM(K149) -> 0
A149: Computer Equipment | I149: =H149-G149 -> 0 | J149: =IF(I149=0,"",I149/H149) -> 
A151: Furniture and Office Equipment | C151: =SUM(C152:C152) -> 172258.61 | D151: 300000 | E151: 300000 | F151: 0 | G151: 0 | H151: 175000 | I151: =H151-G151 -> 175000 | J151: =IF(I151=0,"",I151/H151) -> 1 | K151: =SUM(K152) -> 300000
A152: Furniture and Office Equipment | C152: 172258.61 | D152: 300000 | E152: 300000 | F152: 0 | G152: 0 | H152: 175000 | I152: =H152-G152 -> 175000 | J152: =IF(I152=0,"",I152/H152) -> 1 | K152: 300000
J153: =IF(I153=0,"",I153/H153) -> 
A154: Machinery and Equipment | C154: =SUM(C155:C155) -> 0 | D154: 700000 | E154: 700000 | F154: 0 | G154: 54200 | H154: 408338 | I154: =H154-G154 -> 354138 | J154: =IF(I154=0,"",I154/H154) -> 0.8672668231 | K154: =SUM(K155) -> 700000
A155: Machinery and Equipment | C155: 0 | D155: 700000 | E155: 700000 | F155: 0 | G155: 54200 | H155: 408338 | I155: =H155-G155 -> 354138 | J155: =IF(I155=0,"",I155/H155) -> 0.8672668231 | K155: 700000
A157: Transport Assets | C157: =SUM(C158:C158) -> 0 | D157: 0 | E157: 0 | F157: 0 | G157: 0 | H157: 0 | I157: =H157-G157 -> 0 | J157: =IF(I157=0,"",I157/H157) ->  | K157: =SUM(K158) -> 0
A158: Transport Assets | I158: =H158-G158 -> 0 | J158: =IF(I158=0,"",I158/H158) -> 
A160: Land | C160: =SUM(C161:C161) -> 0 | D160: 0 | E160: 0 | F160: 0 | G160: 0 | H160: 0 | I160: =H160-G160 -> 0 | J160: =IF(I160=0,"",I160/H160) ->  | K160: =SUM(K161) -> 0
A161: Land | I161: =H161-G161 -> 0 | J161: =IF(I161=0,"",I161/H161) -> 
A163: Zoo's, Marine and Non-biological Animals | C163: =SUM(C164:C164) -> 0 | D163: 0 | E163: 0 | F163: 0 | G163: 0 | H163: 0 | I163: =H163-G163 -> 0 | J163: =IF(I163=0,"",I163/H163) ->  | K163: =SUM(K164) -> 0
A164: Zoo's, Marine and Non-biological Animals | I164: =H164-G164 -> 0 | J164: =IF(I164=0,"",I164/H164) -> 
J165: =IF(I165=0,"",I165/H165) -> 
A166: Total Capital Expenditure on new assets | B166: 1 | C166: =C7+C75+C103+C110+C117+C135+C138+C148+C151+C154+C157+C160+C163 -> 11733712.81 | D166: 132648975 | E166: 132648975 | F166: 8553748.3 | G166: 44847290.1 | H166: 77378672 | I166: =H166-G166 -> 32531381.9 | J166: =IF(I166=0,"",I166/H166) -> 0.4204179402 | K166: =K7+K75+K103+K110+K117+K135+K138+K148+K151+K154+K157+K160+K163 -> 132648975
A168: =head27a -> References
A169: 1. Total Capital Expenditure on new assets (SC13a) plus Total Capital Expenditure on renewal of existing assets (SC13b) plus Total Capital Expenditure on upgrading of existing assets (SC13e) must reconcile to total capital expenditure in Table C5
A171: check balance | C171: =C166+SC13b!C166+SC13e!C166-'C5-Capex'!C40 -> 0 | D171: =D166+SC13b!D166+SC13e!D166-'C5-Capex'!D40 -> 0 | E171: =E166+SC13b!E166+SC13e!E166-'C5-Capex'!E40 -> 0 | F171: =F166+SC13b!F166+SC13e!F166-'C5-Capex'!F40 -> 0 | G171: =G166+SC13b!G166+SC13e!G166-'C5-Capex'!G40 -> 0 | H171: =H166+SC13b!H166+SC13e!H166-'C5-Capex'!H40 -> 0 | K171: =K166+SC13b!K166+SC13e!K166-'C5-Capex'!K40 -> 0

Sheet SC13b
A1: =muni& " - "&S71Sb& " - "&Head57 -> NW375 Moses Kotane - Supporting Table SC13b Monthly Budget Statement - capital expenditure on renewal of existing assets by asset class - M07 January
A2: =desc -> Description | B2: =head27 -> Ref | C2: =Head1 -> 2019/20 | D2: =Head2 -> Budget Year 2020/21
C3: =Head5 -> Audited Outcome | D3: =Head6 -> Original Budget | E3: =Head7 -> Adjusted Budget | F3: =Head38 -> Monthly actual | G3: =Head39 -> YearTD actual | H3: =Head40 -> YearTD budget | I3: =Head41 -> YTD variance | J3: =Head41 -> YTD variance | K3: =Head8 -> Full Year Forecast
A4: R thousands | B4: 1 | J4: %
A5: Capital expenditure on renewal of existing assets by Asset Class/Sub-class
A7: Infrastructure | C7: =C8+C13+C17+C27+C38+C45+C53+C63+C69 -> 9314710.2 | D7: 0 | E7: 0 | F7: 0 | G7: 0 | H7: 0 | I7: =H7-G7 -> 0 | J7: =IF(I7=0,"",I7/H7) ->  | K7: =K8+K13+K17+K27+K38+K45+K53+K63+K69 -> 0
A8: Roads Infrastructure | C8: =SUM(C9:C12) -> 0 | D8: 0 | E8: 0 | F8: 0 | G8: 0 | H8: 0 | I8: 0 | K8: =SUM(K9:K12) -> 0
A9: Roads | I9: 0
A10: Road Structures | I10: 0
A11: Road Furniture | I11: 0
A12: Capital Spares | I12: 0
A13: Storm water Infrastructure | C13: =SUM(C14:C16) -> 0 | D13: 0 | E13: 0 | F13: 0 | G13: 0 | H13: 0 | I13: 0 | K13: =SUM(K14:K16) -> 0
A14: Drainage Collection | I14: 0
A15: Storm water Conveyance | I15: 0
A16: Attenuation | I16: 0
A17: Electrical Infrastructure | C17: =SUM(C18:C26) -> 0 | D17: 0 | E17: 0 | F17: 0 | G17: 0 | H17: 0 | I17: 0 | K17: =SUM(K18:K26) -> 0
A18: Power Plants | I18: 0
A19: HV Substations | I19: 0
A20: HV Switching Station | I20: 0
A21: HV Transmission Conductors | I21: 0
A22: MV Substations | I22: 0
A23: MV Switching Stations | I23: 0
A24: MV Networks | I24: 0
A25: LV Networks | I25: 0
A26: Capital Spares | I26: 0
A27: Water Supply Infrastructure | C27: =SUM(C28:C37) -> 9314710.2 | D27: 0 | E27: 0 | F27: 0 | G27: 0 | H27: 0 | I27: 0 | K27: =SUM(K28:K37) -> 0
A28: Dams and Weirs | I28: 0
A29: Boreholes | C29: 9314710.2 | D29: 0 | E29: 0 | F29: 0 | G29: 0 | H29: 0 | I29: 0 | K29: 0
A30: Reservoirs | I30: 0
A31: Pump Stations | I31: 0
A32: Water Treatment Works | I32: 0
A33: Bulk Mains | I33: 0
A34: Distribution | I34: 0
A35: Distribution Points | I35: 0
A36: PRV Stations | I36: 0
A37: Capital Spares | I37: 0
A38: Sanitation Infrastructure | C38: =SUM(C39:C44) -> 0 | D38: 0 | E38: 0 | F38: 0 | G38: 0 | H38: 0 | I38: 0 | K38: =SUM(K39:K44) -> 0
A39: Pump Station | I39: 0
A40: Reticulation | I40: 0
A41: Waste Water Treatment Works | I41: 0
A42: Outfall Sewers | I42: 0
A43: Toilet Facilities | I43: 0
A44: Capital Spares | I44: 0
A45: Solid Waste Infrastructure | C45: =SUM(C46:C52) -> 0 | D45: 0 | E45: 0 | F45: 0 | G45: 0 | H45: 0 | I45: 0 | K45: =SUM(K46:K52) -> 0
A46: Landfill Sites | I46: 0
A47: Waste Transfer Stations | I47: 0
A48: Waste Processing Facilities | I48: 0
A49: Waste Drop-off Points | I49: 0
A50: Waste Separation Facilities | I50: 0
A51: Electricity Generation Facilities | I51: 0
A52: Capital Spares | I52: 0
A53: Rail Infrastructure | C53: =SUM(C54:C62) -> 0 | D53: 0 | E53: 0 | F53: 0 | G53: 0 | H53: 0 | I53: 0 | K53: =SUM(K54:K62) -> 0
A54: Rail Lines | I54: 0
A55: Rail Structures | I55: 0
A56: Rail Furniture | I56: 0
A57: Drainage Collection | I57: 0
A58: Storm water Conveyance | I58: 0
A59: Attenuation | I59: 0
A60: MV Substations | I60: 0
A61: LV Networks | I61: 0
A62: Capital Spares | I62: 0
A63: Coastal Infrastructure | C63: =SUM(C64:C68) -> 0 | D63: 0 | E63: 0 | F63: 0 | G63: 0 | H63: 0 | I63: 0 | K63: =SUM(K64:K68) -> 0
A64: Sand Pumps | I64: 0
A65: Piers | I65: 0
A66: Revetments | I66: 0
A67: Promenades | I67: 0
A68: Capital Spares | I68: 0
A69: Information and Communication Infrastructure | C69: =SUM(C70:C73) -> 0 | D69: 0 | E69: 0 | F69: 0 | G69: 0 | H69: 0 | I69: 0 | K69: =SUM(K70:K73) -> 0
A70: Data Centres | I70: 0
A71: Core Layers | I71: 0
A72: Distribution Layers | I72: 0
A73: Capital Spares | I73: 0
A75: Community Assets | C75: =+C76+C99 -> 0 | D75: 9864475 | E75: 9864475 | F75: 446541.04 | G75: 3549672.74 | H75: 5754280 | I75: 2204607.26 | J75: 0.3831247802 | K75: =+K76+K99 -> 9864475
A76: Community Facilities | C76: =SUM(C77:C98) -> 0 | D76: 9864475 | E76: 9864475 | F76: 446541.04 | G76: 3549672.74 | H76: 5754280 | I76: 2204607.26 | J76: 0.3831247802 | K76: =SUM(K77:K98) -> 9864475
A77: Halls | C77: 0 | D77: 9864475 | E77: 9864475 | F77: 446541.04 | G77: 3549672.74 | H77: 5754280 | I77: 2204607.26 | J77: 0.3831247802 | K77: 9864475
A78: Centres | I78: 0
A79: Crèches | I79: 0
A80: Clinics/Care Centres | I80: 0
A81: Fire/Ambulance Stations | I81: 0
A82: Testing Stations | C82: 0 | D82: 0 | E82: 0 | F82: 0 | G82: 0 | H82: 0 | I82: 0 | K82: 0
A83: Museums | I83: 0
A84: Galleries | I84: 0
A85: Theatres | I85: 0
A86: Libraries | I86: 0
A87: Cemeteries/Crematoria | I87: 0
A88: Police | I88: 0
A89: Purls | I89: 0
A90: Public Open Space | C90: 0 | D90: 0 | E90: 0 | F90: 0 | G90: 0 | H90: 0 | I90: 0 | K90: 0
A91: Nature Reserves | I91: 0
A92: Public Ablution Facilities | I92: 0
A93: Markets | I93: 0
A94: Stalls | C94: 0 | D94: 0 | E94: 0 | F94: 0 | G94: 0 | H94: 0 | I94: 0 | K94: 0
A95: Abattoirs | I95: 0
A96: Airports | I96: 0
A97: Taxi Ranks/Bus Terminals | C97: 0 | D97: 0 | E97: 0 | F97: 0 | G97: 0 | H97: 0 | I97: 0 | K97: 0
A98: Capital Spares | I98: 0
A99: Sport and Recreation Facilities | C99: =SUM(C100:C102) -> 0 | D99: 0 | E99: 0 | F99: 0 | G99: 0 | H99: 0 | I99: 0 | K99: =SUM(K100:K102) -> 0
A100: Indoor Facilities | I100: 0
A101: Outdoor Facilities | I101: =H101-G101 -> 0 | J101: =IF(I101=0,"",I101/H101) -> 
A102: Capital Spares | I102: 0
A103: Heritage assets | C103: =SUM(C104:C108) -> 0 | D103: 0 | E103: 0 | F103: 0 | G103: 0 | H103: 0 | I103: 0 | K103: =SUM(K104:K108) -> 0
A104: Monuments | I104: 0
A105: Historic Buildings | I105: 0
A106: Works of Art | I106: 0
A107: Conservation Areas | I107: 0
A108: Other Heritage | I108: 0
I109: 0
A110: Investment properties | C110: =+C111+C114 -> 0 | D110: 0 | E110: 0 | F110: 0 | G110: 0 | H110: 0 | I110: 0 | K110: =+K111+K114 -> 0
A111: Revenue Generating | C111: =SUM(C112:C113) -> 0 | D111: 0 | E111: 0 | F111: 0 | G111: 0 | H111: 0 | I111: 0 | K111: =SUM(K112:K113) -> 0
A112: Improved Property | I112: 0
A113: Unimproved Property | I113: 0
A114: Non-revenue Generating | C114: =SUM(C115:C116) -> 0 | D114: 0 | E114: 0 | F114: 0 | G114: 0 | H114: 0 | I114: 0 | K114: =SUM(K115:K116) -> 0
A115: Improved Property | I115: 0
A116: Unimproved Property | I116: =H116-G116 -> 0 | J116: =IF(I116=0,"",I116/H116) -> 
A117: Other assets | C117: =+C118+C130 -> 0 | D117: 0 | E117: 0 | F117: 443010.79 | G117: 882928.33 | H117: 0 | I117: -882928.33 | K117: =+K118+K130 -> 0
A118: Operational Buildings | C118: =SUM(C119:C129) -> 0 | D118: 0 | E118: 0 | F118: 443010.79 | G118: 882928.33 | H118: 0 | I118: -882928.33 | K118: =SUM(K119:K129) -> 0
A119: Municipal Offices | C119: 0 | D119: 0 | E119: 0 | F119: 0 | G119: 0 | H119: 0 | I119: 0 | K119: 0
A120: Pay/Enquiry Points | I120: 0
A121: Building Plan Offices | I121: 0
A122: Workshops | I122: 0
A123: Yards | I123: 0
A124: Stores | C124: 0 | D124: 0 | E124: 0 | F124: 443010.79 | G124: 882928.33 | H124: 0 | I124: -882928.33 | K124: 0
A125: Laboratories | I125: 0
A126: Training Centres | I126: 0
A127: Manufacturing Plant | I127: 0
A128: Depots | I128: 0
A129: Capital Spares | I129: 0
A130: Housing | C130: =SUM(C131:C133) -> 0 | D130: 0 | E130: 0 | F130: 0 | G130: 0 | H130: 0 | I130: 0 | K130: =SUM(K131:K133) -> 0
A131: Staff Housing | I131: 0
A132: Social Housing | I132: 0
A133: Capital Spares | I133: 0
A135: Biological or Cultivated Assets | C135: =SUM(C136:C136) -> 0 | D135: 0 | E135: 0 | F135: 0 | G135: 0 | H135: 0 | I135: =H135-G135 -> 0 | K135: =SUM(K136) -> 0
A136: Biological or Cultivated Assets | I136: =H136-G136 -> 0
J137: =IF(I137=0,"",I137/H137) -> 
A138: Intangible Assets | C138: =SUM(C139:C140) -> 0 | D138: 0 | E138: 0 | F138: 0 | G138: 0 | H138: 0 | I138: =H138-G138 -> 0 | K138: =SUM(K139:K140) -> 0
A139: Servitudes | I139: 0
A140: Licences and Rights | C140: =SUM(C141:C146) -> 0 | D140: 0 | E140: 0 | F140: 0 | G140: 0 | H140: 0 | I140: 0 | K140: =SUM(K141:K146) -> 0
A141: Water Rights | I141: 0
A142: Effluent Licenses | I142: 0
A143: Solid Waste Licenses | I143: 0
A144: Computer Software and Applications | C144: 0 | D144: 0 | E144: 0 | F144: 0 | G144: 0 | H144: 0 | I144: 0 | K144: 0
A145: Load Settlement Software Applications | I145: 0
A146: Unspecified | I146: 0
A148: Computer Equipment | C148: =SUM(C149:C149) -> 0 | D148: 0 | E148: 0 | F148: 0 | G148: 0 | H148: 0 | I148: =H148-G148 -> 0 | J148: =IF(I148=0,"",I148/H148) ->  | K148: =SUM(K149) -> 0
A149: Computer Equipment | I149: =H149-G149 -> 0 | J149: =IF(I149=0,"",I149/H149) -> 
A151: Furniture and Office Equipment | C151: =SUM(C152:C152) -> 0 | D151: 0 | E151: 0 | F151: 0 | G151: 0 | H151: 0 | I151: =H151-G151 -> 0 | J151: =IF(I151=0,"",I151/H151) ->  | K151: =SUM(K152) -> 0
A152: Furniture and Office Equipment | I152: =H152-G152 -> 0 | J152: =IF(I152=0,"",I152/H152) -> 
J153: =IF(I153=0,"",I153/H153) -> 
A154: Machinery and Equipment | C154: =SUM(C155:C155) -> 0 | D154: 0 | E154: 0 | F154: 0 | G154: 0 | H154: 0 | I154: =H154-G154 -> 0 | J154: =IF(I154=0,"",I154/H154) ->  | K154: =SUM(K155) -> 0
A155: Machinery and Equipment | I155: =H155-G155 -> 0 | J155: =IF(I155=0,"",I155/H155) -> 
A157: Transport Assets | C157: =SUM(C158:C158) -> 0 | D157: 0 | E157: 0 | F157: 0 | G157: 0 | H157: 0 | I157: =H157-G157 -> 0 | J157: =IF(I157=0,"",I157/H157) ->  | K157: =SUM(K158) -> 0
A158: Transport Assets | I158: =H158-G158 -> 0 | J158: =IF(I158=0,"",I158/H158) -> 
A160: Land | C160: =SUM(C161:C161) -> 0 | D160: 0 | E160: 0 | F160: 0 | G160: 0 | H160: 0 | I160: =H160-G160 -> 0 | J160: =IF(I160=0,"",I160/H160) ->  | K160: =SUM(K161) -> 0
A161: Land | I161: =H161-G161 -> 0 | J161: =IF(I161=0,"",I161/H161) -> 
J162: .
A163: Zoo's, Marine and Non-biological Animals | C163: =SUM(C164:C164) -> 0 | D163: 0 | E163: 0 | F163: 0 | G163: 0 | H163: 0 | I163: =H163-G163 -> 0 | J163: =IF(I163=0,"",I163/H163) ->  | K163: =SUM(K164) -> 0
A164: Zoo's, Marine and Non-biological Animals | I164: =H164-G164 -> 0 | J164: =IF(I164=0,"",I164/H164) -> 
J165: =IF(I165=0,"",I165/H165) -> 
A166: Total Capital Expenditure on renewal of existing assets | B166: 1 | C166: =C7+C75+C103+C110+C117+C135+C138+C148+C151+C154+C157+C160+C163 -> 9314710.2 | D166: 9864475 | E166: 9864475 | F166: 889551.83 | G166: 4432601.07 | H166: 5754280 | I166: =H166-G166 -> 1321678.93 | J166: =IF(I166=0,"",I166/H166) -> 0.2296862388 | K166: =K7+K75+K103+K110+K117+K135+K138+K148+K151+K154+K157+K160+K163 -> 9864475
A168: =head27a -> References
A169: 1. Total Capital Expenditure on new assets (SC13a) plus Total Capital Expenditure on renewal of existing assets (SC13b) plus Total Capital Expenditure on upgrading of existing assets (SC13e) must reconcile to total capital expenditure in Table C5
A171: check balance | C171: =C166+SC13a!C166+SC13e!C166-'C5-Capex'!C40 -> 0 | D171: =D166+SC13a!D166+SC13e!D166-'C5-Capex'!D40 -> 0 | E171: =E166+SC13a!E166+SC13e!E166-'C5-Capex'!E40 -> 0 | F171: =F166+SC13a!F166+SC13e!F166-'C5-Capex'!F40 -> 0 | G171: =G166+SC13a!G166+SC13e!G166-'C5-Capex'!G40 -> 0 | H171: =H166+SC13a!H166+SC13e!H166-'C5-Capex'!H40 -> 0 | K171: =K166+SC13a!K166+SC13e!K166-'C5-Capex'!K40 -> 0

Sheet SC13c
A1: =muni& " - "&S71Sc& " - "&Head57 -> NW375 Moses Kotane - Supporting Table SC13c Monthly Budget Statement - expenditure on repairs and maintenance by asset class - M07 January
A2: =desc -> Description | B2: =head27 -> Ref | C2: =Head1 -> 2019/20 | D2: =Head2 -> Budget Year 2020/21
C3: =Head5 -> Audited Outcome | D3: =Head6 -> Original Budget | E3: =Head7 -> Adjusted Budget | F3: =Head38 -> Monthly actual | G3: =Head39 -> YearTD actual | H3: =Head40 -> YearTD budget | I3: =Head41 -> YTD variance | J3: =Head41 -> YTD variance | K3: =Head8 -> Full Year Forecast
A4: R thousands | B4: 1 | J4: %
A5: Repairs and maintenance expenditure by Asset Class/Sub-class
A7: Infrastructure | C7: =C8+C13+C17+C27+C38+C45+C53+C63+C69 -> 29460361.4 | D7: 20270000 | E7: 25910817 | F7: 960061.04 | G7: 29263893.6 | H7: 14644619.5 | I7: =H7-G7 -> -14619274.1 | J7: =IF(I7=0,"",I7/H7) -> -0.9982693029 | K7: =K8+K13+K17+K27+K38+K45+K53+K63+K69 -> 25910817
A8: Roads Infrastructure | C8: =SUM(C9:C12) -> 414820.5 | D8: 1100000 | E8: 1100000 | F8: 24747.5 | G8: 628032.88 | H8: 641676 | I8: 13643.12 | J8: 0.02126169593 | K8: =SUM(K9:K12) -> 1100000
A9: Roads | C9: 414820.5 | D9: 1000000 | E9: 1000000 | F9: 24747.5 | G9: 628032.88 | H9: 583338 | I9: -44694.88 | J9: -0.07661918133 | K9: 1000000
A10: Road Structures | I10: 0
A11: Road Furniture | C11: 0 | D11: 100000 | E11: 100000 | F11: 0 | G11: 0 | H11: 58338 | I11: 58338 | J11: 1 | K11: 100000
A12: Capital Spares | I12: 0
A13: Storm water Infrastructure | C13: =SUM(C14:C16) -> 32511.78 | D13: 760000 | E13: 760000 | F13: 0 | G13: 57318 | H13: 443338 | I13: 386020 | J13: 0.8707126391 | K13: =SUM(K14:K16) -> 760000
A14: Drainage Collection | I14: 0
A15: Storm water Conveyance | C15: 32511.78 | D15: 760000 | E15: 760000 | F15: 0 | G15: 57318 | H15: 443338 | I15: 386020 | J15: 0.8707126391 | K15: 760000
A16: Attenuation | I16: 0
A17: Electrical Infrastructure | C17: =SUM(C18:C26) -> 244640.08 | D17: 1000000 | E17: 1000000 | F17: 0 | G17: 804550.3 | H17: 583338 | I17: -221212.3 | J17: -0.379218052 | K17: =SUM(K18:K26) -> 1000000
A18: Power Plants | I18: 0
A19: HV Substations | I19: 0
A20: HV Switching Station | I20: 0
A21: HV Transmission Conductors | I21: 0
A22: MV Substations | I22: 0
A23: MV Switching Stations | I23: 0
A24: MV Networks | I24: 0
A25: LV Networks | C25: 244640.08 | D25: 1000000 | E25: 1000000 | F25: 0 | G25: 804550.3 | H25: 583338 | I25: -221212.3 | J25: -0.379218052 | K25: 1000000
A26: Capital Spares | I26: 0
A27: Water Supply Infrastructure | C27: =SUM(C28:C37) -> 68879.95 | D27: 200000 | E27: 200000 | F27: 0 | G27: 1029578.4 | H27: 116669 | I27: -912909.4 | J27: -7.824781219 | K27: =SUM(K28:K37) -> 200000
A28: Dams and Weirs | I28: 0
A29: Boreholes | I29: 0
A30: Reservoirs | C30: 68879.95 | D30: 200000 | E30: 200000 | F30: 0 | G30: 1029578.4 | H30: 116669 | I30: -912909.4 | J30: -7.824781219 | K30: 200000
A31: Pump Stations | I31: 0
A32: Water Treatment Works | I32: 0
A33: Bulk Mains | I33: 0
A34: Distribution | I34: 0
A35: Distribution Points | I35: 0
A36: PRV Stations | I36: 0
A37: Capital Spares | I37: 0
A38: Sanitation Infrastructure | C38: =SUM(C39:C44) -> 0 | D38: 0 | E38: 0 | F38: 0 | G38: 0 | H38: 0 | I38: 0 | K38: =SUM(K39:K44) -> 0
A39: Pump Station | I39: 0
A40: Reticulation | I40: 0
A41: Waste Water Treatment Works | I41: 0
A42: Outfall Sewers | I42: 0
A43: Toilet Facilities | I43: 0
A44: Capital Spares | I44: 0
A45: Solid Waste Infrastructure | C45: =SUM(C46:C52) -> 28699509.09 | D45: 17210000 | E45: 22850817 | F45: 935313.54 | G45: 26744414.02 | H45: 12859598.5 | I45: -13884815.52 | J45: -1.079723875 | K45: =SUM(K46:K52) -> 22850817
A46: Landfill Sites | C46: 28699509.09 | D46: 17210000 | E46: 22850817 | F46: 935313.54 | G46: 26744414.02 | H46: 12859598.5 | I46: -13884815.52 | J46: -1.079723875 | K46: 22850817
A47: Waste Transfer Stations | C47: 0 | D47: 0 | E47: 0 | F47: 0 | G47: 0 | H47: 0 | I47: 0 | K47: 0
A48: Waste Processing Facilities | I48: 0
A49: Waste Drop-off Points | I49: 0
A50: Waste Separation Facilities | I50: 0
A51: Electricity Generation Facilities | I51: 0
A52: Capital Spares | I52: 0
A53: Rail Infrastructure | C53: =SUM(C54:C62) -> 0 | D53: 0 | E53: 0 | F53: 0 | G53: 0 | H53: 0 | I53: 0 | K53: =SUM(K54:K62) -> 0
A54: Rail Lines | I54: 0
A55: Rail Structures | I55: 0
A56: Rail Furniture | I56: 0
A57: Drainage Collection | I57: 0
A58: Storm water Conveyance | I58: 0
A59: Attenuation | I59: 0
A60: MV Substations | I60: 0
A61: LV Networks | I61: 0
A62: Capital Spares | I62: 0
A63: Coastal Infrastructure | C63: =SUM(C64:C68) -> 0 | D63: 0 | E63: 0 | F63: 0 | G63: 0 | H63: 0 | I63: 0 | K63: =SUM(K64:K68) -> 0
A64: Sand Pumps | I64: 0
A65: Piers | I65: 0
A66: Revetments | I66: 0
A67: Promenades | I67: 0
A68: Capital Spares | I68: 0
A69: Information and Communication Infrastructure | C69: =SUM(C70:C73) -> 0 | D69: 0 | E69: 0 | F69: 0 | G69: 0 | H69: 0 | I69: 0 | K69: =SUM(K70:K73) -> 0
A70: Data Centres | I70: 0
A71: Core Layers | I71: 0
A72: Distribution Layers | I72: 0
A73: Capital Spares | I73: 0
A75: Community Assets | C75: =+C76+C99 -> 23890.59 | D75: 200000 | E75: 200000 | F75: 28950 | G75: 54675 | H75: 116669 | I75: 61994 | J75: 0.5313665155 | K75: =+K76+K99 -> 200000
A76: Community Facilities | C76: =SUM(C77:C98) -> 0 | D76: 0 | E76: 0 | F76: 0 | G76: 0 | H76: 0 | I76: 0 | K76: =SUM(K77:K98) -> 0
A77: Halls | I77: 0
A78: Centres | I78: 0
A79: Crèches | I79: 0
A80: Clinics/Care Centres | I80: 0
A81: Fire/Ambulance Stations | I81: 0
A82: Testing Stations | C82: 0 | D82: 0 | E82: 0 | F82: 0 | G82: 0 | H82: 0 | I82: 0 | K82: 0
A83: Museums | I83: 0
A84: Galleries | I84: 0
A85: Theatres | I85: 0
A86: Libraries | I86: 0
A87: Cemeteries/Crematoria | C87: 0 | D87: 0 | E87: 0 | F87: 0 | G87: 0 | H87: 0 | I87: 0 | K87: 0
A88: Police | I88: 0
A89: Purls | I89: 0
A90: Public Open Space | I90: 0
A91: Nature Reserves | I91: 0
A92: Public Ablution Facilities | I92: 0
A93: Markets | I93: 0
A94: Stalls | I94: 0
A95: Abattoirs | I95: 0
A96: Airports | I96: 0
A97: Taxi Ranks/Bus Terminals | I97: 0
A98: Capital Spares | I98: 0
A99: Sport and Recreation Facilities | C99: =SUM(C100:C102) -> 23890.59 | D99: 200000 | E99: 200000 | F99: 28950 | G99: 54675 | H99: 116669 | I99: 61994 | J99: 0.5313665155 | K99: =SUM(K100:K102) -> 200000
A100: Indoor Facilities | I100: 0
A101: Outdoor Facilities | C101: 23890.59 | D101: 200000 | E101: 200000 | F101: 28950 | G101: 54675 | H101: 116669 | I101: =H101-G101 -> 61994 | J101: =IF(I101=0,"",I101/H101) -> 0.5313665155 | K101: 200000
A102: Capital Spares | I102: 0
A103: Heritage assets | C103: =SUM(C104:C108) -> 0 | D103: 0 | E103: 0 | F103: 0 | G103: 0 | H103: 0 | I103: 0 | K103: =SUM(K104:K108) -> 0
A104: Monuments | I104: 0
A105: Historic Buildings | I105: 0
A106: Works of Art | I106: 0
A107: Conservation Areas | I107: 0
A108: Other Heritage | I108: 0
I109: 0
A110: Investment properties | C110: =+C111+C114 -> 0 | D110: 0 | E110: 0 | F110: 0 | G110: 0 | H110: 0 | I110: 0 | K110: =+K111+K114 -> 0
A111: Revenue Generating | C111: =SUM(C112:C113) -> 0 | D111: 0 | E111: 0 | F111: 0 | G111: 0 | H111: 0 | I111: 0 | K111: =SUM(K112:K113) -> 0
A112: Improved Property | I112: 0
A113: Unimproved Property | I113: 0
A114: Non-revenue Generating | C114: =SUM(C115:C116) -> 0 | D114: 0 | E114: 0 | F114: 0 | G114: 0 | H114: 0 | I114: 0 | K114: =SUM(K115:K116) -> 0
A115: Improved Property | I115: 0
A116: Unimproved Property | I116: =H116-G116 -> 0 | J116: =IF(I116=0,"",I116/H116) -> 
A117: Other assets | C117: =+C118+C130 -> 4175675.64 | D117: 4500000 | E117: 5446000 | F117: -11138.78 | G117: 1941067.86 | H117: 3098007 | I117: 1156939.14 | J117: 0.373446264 | K117: =+K118+K130 -> 5446000
A118: Operational Buildings | C118: =SUM(C119:C129) -> 4175675.64 | D118: 4500000 | E118: 5446000 | F118: -11138.78 | G118: 1941067.86 | H118: 3098007 | I118: 1156939.14 | J118: 0.373446264 | K118: =SUM(K119:K129) -> 5446000
A119: Municipal Offices | C119: 4175675.64 | D119: 4500000 | E119: 5446000 | F119: -11138.78 | G119: 1941067.86 | H119: 3098007 | I119: 1156939.14 | J119: 0.373446264 | K119: 5446000
A120: Pay/Enquiry Points | I120: 0
A121: Building Plan Offices | I121: 0
A122: Workshops | I122: 0
A123: Yards | I123: 0
A124: Stores | I124: 0
A125: Laboratories | I125: 0
A126: Training Centres | I126: 0
A127: Manufacturing Plant | I127: 0
A128: Depots | I128: 0
A129: Capital Spares | I129: 0
A130: Housing | C130: =SUM(C131:C133) -> 0 | D130: 0 | E130: 0 | F130: 0 | G130: 0 | H130: 0 | I130: 0 | K130: =SUM(K131:K133) -> 0
A131: Staff Housing | I131: 0
A132: Social Housing | I132: 0
A133: Capital Spares | I133: 0
A135: Biological or Cultivated Assets | C135: =SUM(C136:C136) -> 0 | D135: 0 | E135: 0 | F135: 0 | G135: 0 | H135: 0 | I135: =H135-G135 -> 0 | K135: =SUM(K136) -> 0
A136: Biological or Cultivated Assets | I136: =H136-G136 -> 0
J137: =IF(I137=0,"",I137/H137) -> 
A138: Intangible Assets | C138: =SUM(C139:C140) -> 758452.76 | D138: 0 | E138: 0 | F138: 0 | G138: 0 | H138: 0 | I138: =H138-G138 -> 0 | K138: =SUM(K139:K140) -> 0
A139: Servitudes | I139: 0
A140: Licences and Rights | C140: =SUM(C141:C146) -> 758452.76 | D140: 0 | E140: 0 | F140: 0 | G140: 0 | H140: 0 | I140: 0 | K140: =SUM(K141:K146) -> 0
A141: Water Rights | I141: 0
A142: Effluent Licenses | I142: 0
A143: Solid Waste Licenses | I143: 0
A144: Computer Software and Applications | C144: 758452.76 | D144: 0 | E144: 0 | F144: 0 | G144: 0 | H144: 0 | I144: 0 | K144: 0
A145: Load Settlement Software Applications | I145: 0
A146: Unspecified | I146: 0
A148: Computer Equipment | C148: =SUM(C149:C149) -> 3887 | D148: 50000 | E148: 50000 | F148: 0 | G148: 5735 | H148: 29169 | I148: =H148-G148 -> 23434 | J148: =IF(I148=0,"",I148/H148) -> 0.8033871576 | K148: =SUM(K149) -> 50000
A149: Computer Equipment | C149: 3887 | D149: 50000 | E149: 50000 | F149: 0 | G149: 5735 | H149: 29169 | I149: =H149-G149 -> 23434 | J149: =IF(I149=0,"",I149/H149) -> 0.8033871576 | K149: 50000
A151: Furniture and Office Equipment | C151: =SUM(C152:C152) -> 0 | D151: 0 | E151: 0 | F151: 0 | G151: 0 | H151: 0 | I151: =H151-G151 -> 0 | J151: =IF(I151=0,"",I151/H151) ->  | K151: =SUM(K152) -> 0
A152: Furniture and Office Equipment | I152: =H152-G152 -> 0 | J152: =IF(I152=0,"",I152/H152) -> 
J153: =IF(I153=0,"",I153/H153) -> 
A154: Machinery and Equipment | C154: =SUM(C155:C155) -> 0 | D154: 0 | E154: 0 | F154: 0 | G154: 0 | H154: 0 | I154: =H154-G154 -> 0 | J154: =IF(I154=0,"",I154/H154) ->  | K154: =SUM(K155) -> 0
A155: Machinery and Equipment | C155: 0 | D155: 0 | E155: 0 | F155: 0 | G155: 0 | H155: 0 | I155: =H155-G155 -> 0 | J155: =IF(I155=0,"",I155/H155) ->  | K155: 0
A157: Transport Assets | C157: =SUM(C158:C158) -> 11382320.95 | D157: 6160000 | E157: 6160000 | F157: -55707.39 | G157: 5287299.17 | H157: 3593345 | I157: =H157-G157 -> -1693954.17 | J157: =IF(I157=0,"",I157/H157) -> -0.4714142867 | K157: =SUM(K158) -> 6160000
A158: Transport Assets | C158: 11382320.95 | D158: 6160000 | E158: 6160000 | F158: -55707.39 | G158: 5287299.17 | H158: 3593345 | I158: =H158-G158 -> -1693954.17 | J158: =IF(I158=0,"",I158/H158) -> -0.4714142867 | K158: 6160000
A160: Land | C160: =SUM(C161:C161) -> 0 | D160: 0 | E160: 0 | F160: 0 | G160: 0 | H160: 0 | I160: =H160-G160 -> 0 | J160: =IF(I160=0,"",I160/H160) ->  | K160: =SUM(K161) -> 0
A161: Land | I161: =H161-G161 -> 0 | J161: =IF(I161=0,"",I161/H161) -> 
A163: Zoo's, Marine and Non-biological Animals | C163: =SUM(C164:C164) -> 0 | D163: 0 | E163: 0 | F163: 0 | G163: 0 | H163: 0 | I163: =H163-G163 -> 0 | J163: =IF(I163=0,"",I163/H163) ->  | K163: =SUM(K164) -> 0
A164: Zoo's, Marine and Non-biological Animals | I164: =H164-G164 -> 0 | J164: =IF(I164=0,"",I164/H164) -> 
J165: =IF(I165=0,"",I165/H165) -> 
A166: Total Repairs and Maintenance Expenditure | B166: 1 | C166: =C7+C75+C103+C110+C117+C135+C138+C148+C151+C154+C157+C160+C163 -> 45804588.34 | D166: 31180000 | E166: 37766817 | F166: 922164.87 | G166: 36552670.63 | H166: 21481809.5 | I166: -15070861.13 | J166: -0.7015638571 | K166: =K7+K75+K103+K110+K117+K135+K138+K148+K151+K154+K157+K160+K163 -> 37766817

Sheet SC13d
A1: =muni& " - "&S71Sd& " - "&Head57 -> NW375 Moses Kotane - Supporting Table SC13d Monthly Budget Statement - depreciation by asset class - M07 January
A2: =desc -> Description | B2: =head27 -> Ref | C2: =Head1 -> 2019/20 | D2: =Head2 -> Budget Year 2020/21
C3: =Head5 -> Audited Outcome | D3: =Head6 -> Original Budget | E3: =Head7 -> Adjusted Budget | F3: =Head38 -> Monthly actual | G3: =Head39 -> YearTD actual | H3: =Head40 -> YearTD budget | I3: =Head41 -> YTD variance | J3: =Head41 -> YTD variance | K3: =Head8 -> Full Year Forecast
A4: R thousands | B4: 1 | J4: %
A5: Depreciation by Asset Class/Sub-class
A7: Infrastructure | C7: =C8+C13+C17+C27+C38+C45+C53+C63+C69 -> 89735745.87 | D7: 5849303 | E7: 5849303 | F7: 59646974.31 | G7: 59646974.31 | H7: 3412101 | I7: =H7-G7 -> -56234873.31 | J7: =IF(I7=0,"",I7/H7) -> -16.48101076 | K7: =K8+K13+K17+K27+K38+K45+K53+K63+K69 -> 5849303
A8: Roads Infrastructure | C8: =SUM(C9:C12) -> 37515117.13 | D8: 0 | E8: 0 | F8: 27924963.5 | G8: 27924963.5 | H8: 0 | I8: -27924963.5 | K8: =SUM(K9:K12) -> 0
A9: Roads | C9: 37515117.13 | D9: 0 | E9: 0 | F9: 27924963.5 | G9: 27924963.5 | H9: 0 | I9: -27924963.5 | K9: 0
A10: Road Structures | C10: 0 | D10: 0 | E10: 0 | F10: 0 | G10: 0 | H10: 0 | I10: 0 | K10: 0
A11: Road Furniture | C11: 0 | D11: 0 | E11: 0 | F11: 0 | G11: 0 | H11: 0 | I11: 0 | K11: 0
A12: Capital Spares | C12: 0 | D12: 0 | E12: 0 | F12: 0 | G12: 0 | H12: 0 | I12: 0 | K12: 0
A13: Storm water Infrastructure | C13: =SUM(C14:C16) -> 3119061.48 | D13: 0 | E13: 0 | F13: 3250975 | G13: 3250975 | H13: 0 | I13: -3250975 | K13: =SUM(K14:K16) -> 0
A14: Drainage Collection | C14: 3119061.48 | D14: 0 | E14: 0 | F14: 3250975 | G14: 3250975 | H14: 0 | I14: -3250975 | K14: 0
A15: Storm water Conveyance | C15: 0 | D15: 0 | E15: 0 | F15: 0 | G15: 0 | H15: 0 | I15: 0 | K15: 0
A16: Attenuation | C16: 0 | D16: 0 | E16: 0 | F16: 0 | G16: 0 | H16: 0 | I16: 0 | K16: 0
A17: Electrical Infrastructure | C17: =SUM(C18:C26) -> 2922340.45 | D17: 2515474 | E17: 2515474 | F17: 1467359.81 | G17: 1467359.81 | H17: 1467361 | I17: 1.19 | J17: 8.109797112e-07 | K17: =SUM(K18:K26) -> 2515474
A18: Power Plants | C18: 2922340.45 | D18: 2515474 | E18: 2515474 | F18: 1467359.81 | G18: 1467359.81 | H18: 1467361 | I18: 1.19 | J18: 8.109797112e-07 | K18: 2515474
A19: HV Substations | C19: 0 | D19: 0 | E19: 0 | F19: 0 | G19: 0 | H19: 0 | I19: 0 | K19: 0
A20: HV Switching Station | C20: 0 | D20: 0 | E20: 0 | F20: 0 | G20: 0 | H20: 0 | I20: 0 | K20: 0
A21: HV Transmission Conductors | C21: 0 | D21: 0 | E21: 0 | F21: 0 | G21: 0 | H21: 0 | I21: 0 | K21: 0
A22: MV Substations | C22: 0 | D22: 0 | E22: 0 | F22: 0 | G22: 0 | H22: 0 | I22: 0 | K22: 0
A23: MV Switching Stations | C23: 0 | D23: 0 | E23: 0 | F23: 0 | G23: 0 | H23: 0 | I23: 0 | K23: 0
A24: MV Networks | C24: 0 | D24: 0 | E24: 0 | F24: 0 | G24: 0 | H24: 0 | I24: 0 | K24: 0
A25: LV Networks | C25: 0 | D25: 0 | E25: 0 | F25: 0 | G25: 0 | H25: 0 | I25: 0 | K25: 0
A26: Capital Spares | C26: 0 | D26: 0 | E26: 0 | F26: 0 | G26: 0 | H26: 0 | I26: 0 | K26: 0
A27: Water Supply Infrastructure | C27: =SUM(C28:C37) -> 42465387.62 | D27: 0 | E27: 0 | F27: 25058942.44 | G27: 25058942.44 | H27: 0 | I27: -25058942.44 | K27: =SUM(K28:K37) -> 0
A28: Dams and Weirs | C28: 0 | D28: 0 | E28: 0 | F28: 0 | G28: 0 | H28: 0 | I28: 0 | K28: 0
A29: Boreholes | C29: 0 | D29: 0 | E29: 0 | F29: 0 | G29: 0 | H29: 0 | I29: 0 | K29: 0
A30: Reservoirs | C30: 0 | D30: 0 | E30: 0 | F30: 0 | G30: 0 | H30: 0 | I30: 0 | K30: 0
A31: Pump Stations | C31: 0 | D31: 0 | E31: 0 | F31: 0 | G31: 0 | H31: 0 | I31: 0 | K31: 0
A32: Water Treatment Works | C32: 0 | D32: 0 | E32: 0 | F32: 0 | G32: 0 | H32: 0 | I32: 0 | K32: 0
A33: Bulk Mains | C33: 0 | D33: 0 | E33: 0 | F33: 0 | G33: 0 | H33: 0 | I33: 0 | K33: 0
A34: Distribution | C34: 42465387.62 | D34: 0 | E34: 0 | F34: 25058942.44 | G34: 25058942.44 | H34: 0 | I34: -25058942.44 | K34: 0
A35: Distribution Points | C35: 0 | D35: 0 | E35: 0 | F35: 0 | G35: 0 | H35: 0 | I35: 0 | K35: 0
A36: PRV Stations | C36: 0 | D36: 0 | E36: 0 | F36: 0 | G36: 0 | H36: 0 | I36: 0 | K36: 0
A37: Capital Spares | C37: 0 | D37: 0 | E37: 0 | F37: 0 | G37: 0 | H37: 0 | I37: 0 | K37: 0
A38: Sanitation Infrastructure | C38: =SUM(C39:C44) -> 2754188.32 | D38: 2785714 | E38: 2785714 | F38: 1624999.81 | G38: 1624999.81 | H38: 1625001 | I38: 1.19 | J38: 7.323072416e-07 | K38: =SUM(K39:K44) -> 2785714
A39: Pump Station | C39: 0 | D39: 0 | E39: 0 | F39: 0 | G39: 0 | H39: 0 | I39: 0 | K39: 0
A40: Reticulation | C40: 0 | D40: 0 | E40: 0 | F40: 0 | G40: 0 | H40: 0 | I40: 0 | K40: 0
A41: Waste Water Treatment Works | C41: 2754188.32 | D41: 2785714 | E41: 2785714 | F41: 1624999.81 | G41: 1624999.81 | H41: 1625001 | I41: 1.19 | J41: 7.323072416e-07 | K41: 2785714
A42: Outfall Sewers | C42: 0 | D42: 0 | E42: 0 | F42: 0 | G42: 0 | H42: 0 | I42: 0 | K42: 0
A43: Toilet Facilities | C43: 0 | D43: 0 | E43: 0 | F43: 0 | G43: 0 | H43: 0 | I43: 0 | K43: 0
A44: Capital Spares | C44: 0 | D44: 0 | E44: 0 | F44: 0 | G44: 0 | H44: 0 | I44: 0 | K44: 0
A45: Solid Waste Infrastructure | C45: =SUM(C46:C52) -> 959650.87 | D45: 548115 | E45: 548115 | F45: 319733.75 | G45: 319733.75 | H45: 319739 | I45: 5.25 | J45: 1.641964227e-05 | K45: =SUM(K46:K52) -> 548115
A46: Landfill Sites | C46: 959650.87 | D46: 548115 | E46: 548115 | F46: 319733.75 | G46: 319733.75 | H46: 319739 | I46: 5.25 | J46: 1.641964227e-05 | K46: 548115
A47: Waste Transfer Stations | C47: 0 | D47: 0 | E47: 0 | F47: 0 | G47: 0 | H47: 0 | I47: 0 | K47: 0
A48: Waste Processing Facilities | C48: 0 | D48: 0 | E48: 0 | F48: 0 | G48: 0 | H48: 0 | I48: 0 | K48: 0
A49: Waste Drop-off Points | C49: 0 | D49: 0 | E49: 0 | F49: 0 | G49: 0 | H49: 0 | I49: 0 | K49: 0
A50: Waste Separation Facilities | C50: 0 | D50: 0 | E50: 0 | F50: 0 | G50: 0 | H50: 0 | I50: 0 | K50: 0
A51: Electricity Generation Facilities | C51: 0 | D51: 0 | E51: 0 | F51: 0 | G51: 0 | H51: 0 | I51: 0 | K51: 0
A52: Capital Spares | C52: 0 | D52: 0 | E52: 0 | F52: 0 | G52: 0 | H52: 0 | I52: 0 | K52: 0
A53: Rail Infrastructure | C53: =SUM(C54:C62) -> 0 | D53: 0 | E53: 0 | F53: 0 | G53: 0 | H53: 0 | I53: 0 | K53: =SUM(K54:K62) -> 0
A54: Rail Lines | I54: 0
A55: Rail Structures | I55: 0
A56: Rail Furniture | I56: 0
A57: Drainage Collection | I57: 0
A58: Storm water Conveyance | I58: 0
A59: Attenuation | I59: 0
A60: MV Substations | I60: 0
A61: LV Networks | I61: 0
A62: Capital Spares | I62: 0
A63: Coastal Infrastructure | C63: =SUM(C64:C68) -> 0 | D63: 0 | E63: 0 | F63: 0 | G63: 0 | H63: 0 | I63: 0 | K63: =SUM(K64:K68) -> 0
A64: Sand Pumps | I64: 0
A65: Piers | I65: 0
A66: Revetments | I66: 0
A67: Promenades | I67: 0
A68: Capital Spares | I68: 0
A69: Information and Communication Infrastructure | C69: =SUM(C70:C73) -> 0 | D69: 0 | E69: 0 | F69: 0 | G69: 0 | H69: 0 | I69: 0 | K69: =SUM(K70:K73) -> 0
A70: Data Centres | I70: 0
A71: Core Layers | I71: 0
A72: Distribution Layers | I72: 0
A73: Capital Spares | I73: 0
A75: Community Assets | C75: =+C76+C99 -> 19581208.73 | D75: 17007132 | E75: 17007132 | F75: 6504185.94 | G75: 6504185.94 | H75: 9920827 | I75: 3416641.06 | J75: 0.3443907509 | K75: =+K76+K99 -> 17007132
A76: Community Facilities | C76: =SUM(C77:C98) -> 19581208.73 | D76: 17007132 | E76: 17007132 | F76: 6504185.94 | G76: 6504185.94 | H76: 9920827 | I76: 3416641.06 | J76: 0.3443907509 | K76: =SUM(K77:K98) -> 17007132
A77: Halls | C77: 15998476.37 | D77: 17007132 | E77: 17007132 | F77: 0 | G77: 0 | H77: 9920827 | I77: 9920827 | J77: 1 | K77: 17007132
A78: Centres | C78: 3582732.36 | D78: 0 | E78: 0 | F78: 6504185.94 | G78: 6504185.94 | H78: 0 | I78: -6504185.94 | K78: 0
A79: Crèches | C79: 0 | D79: 0 | E79: 0 | F79: 0 | G79: 0 | H79: 0 | I79: 0 | K79: 0
A80: Clinics/Care Centres | C80: 0 | D80: 0 | E80: 0 | F80: 0 | G80: 0 | H80: 0 | I80: 0 | K80: 0
A81: Fire/Ambulance Stations | C81: 0 | D81: 0 | E81: 0 | F81: 0 | G81: 0 | H81: 0 | I81: 0 | K81: 0
A82: Testing Stations | C82: 0 | D82: 0 | E82: 0 | F82: 0 | G82: 0 | H82: 0 | I82: 0 | K82: 0
A83: Museums | C83: 0 | D83: 0 | E83: 0 | F83: 0 | G83: 0 | H83: 0 | I83: 0 | K83: 0
A84: Galleries | C84: 0 | D84: 0 | E84: 0 | F84: 0 | G84: 0 | H84: 0 | I84: 0 | K84: 0
A85: Theatres | C85: 0 | D85: 0 | E85: 0 | F85: 0 | G85: 0 | H85: 0 | I85: 0 | K85: 0
A86: Libraries | C86: 0 | D86: 0 | E86: 0 | F86: 0 | G86: 0 | H86: 0 | I86: 0 | K86: 0
A87: Cemeteries/Crematoria | C87: 0 | D87: 0 | E87: 0 | F87: 0 | G87: 0 | H87: 0 | I87: 0 | K87: 0
A88: Police | C88: 0 | D88: 0 | E88: 0 | F88: 0 | G88: 0 | H88: 0 | I88: 0 | K88: 0
A89: Purls | C89: 0 | D89: 0 | E89: 0 | F89: 0 | G89: 0 | H89: 0 | I89: 0 | K89: 0
A90: Public Open Space | C90: 0 | D90: 0 | E90: 0 | F90: 0 | G90: 0 | H90: 0 | I90: 0 | K90: 0
A91: Nature Reserves | C91: 0 | D91: 0 | E91: 0 | F91: 0 | G91: 0 | H91: 0 | I91: 0 | K91: 0
A92: Public Ablution Facilities | C92: 0 | D92: 0 | E92: 0 | F92: 0 | G92: 0 | H92: 0 | I92: 0 | K92: 0
A93: Markets | C93: 0 | D93: 0 | E93: 0 | F93: 0 | G93: 0 | H93: 0 | I93: 0 | K93: 0
A94: Stalls | C94: 0 | D94: 0 | E94: 0 | F94: 0 | G94: 0 | H94: 0 | I94: 0 | K94: 0
A95: Abattoirs | C95: 0 | D95: 0 | E95: 0 | F95: 0 | G95: 0 | H95: 0 | I95: 0 | K95: 0
A96: Airports | C96: 0 | D96: 0 | E96: 0 | F96: 0 | G96: 0 | H96: 0 | I96: 0 | K96: 0
A97: Taxi Ranks/Bus Terminals | C97: 0 | D97: 0 | E97: 0 | F97: 0 | G97: 0 | H97: 0 | I97: 0 | K97: 0
A98: Capital Spares | C98: 0 | D98: 0 | E98: 0 | F98: 0 | G98: 0 | H98: 0 | I98: 0 | K98: 0
A99: Sport and Recreation Facilities | C99: =SUM(C100:C102) -> 0 | D99: 0 | E99: 0 | F99: 0 | G99: 0 | H99: 0 | I99: 0 | K99: =SUM(K100:K102) -> 0
A100: Indoor Facilities | I100: 0
A101: Outdoor Facilities | I101: =H101-G101 -> 0 | J101: =IF(I101=0,"",I101/H101) -> 
A102: Capital Spares | I102: 0
A103: Heritage assets | C103: =SUM(C104:C108) -> 0 | D103: 0 | E103: 0 | F103: 0 | G103: 0 | H103: 0 | I103: 0 | K103: =SUM(K104:K108) -> 0
A104: Monuments | I104: 0
A105: Historic Buildings | I105: 0
A106: Works of Art | I106: 0
A107: Conservation Areas | I107: 0
A108: Other Heritage | I108: 0
I109: 0
A110: Investment properties | C110: =+C111+C114 -> 0 | D110: 0 | E110: 0 | F110: 0 | G110: 0 | H110: 0 | I110: 0 | K110: =+K111+K114 -> 0
A111: Revenue Generating | C111: =SUM(C112:C113) -> 0 | D111: 0 | E111: 0 | F111: 0 | G111: 0 | H111: 0 | I111: 0 | K111: =SUM(K112:K113) -> 0
A112: Improved Property | I112: 0
A113: Unimproved Property | I113: 0
A114: Non-revenue Generating | C114: =SUM(C115:C116) -> 0 | D114: 0 | E114: 0 | F114: 0 | G114: 0 | H114: 0 | I114: 0 | K114: =SUM(K115:K116) -> 0
A115: Improved Property | I115: 0
A116: Unimproved Property | I116: =H116-G116 -> 0 | J116: =IF(I116=0,"",I116/H116) -> 
A117: Other assets | C117: =+C118+C130 -> 5964321.39 | D117: 0 | E117: 0 | F117: 3248000 | G117: 3248000 | H117: 0 | I117: -3248000 | K117: =+K118+K130 -> 0
